Workbook

Sheet Introduction

Sheet Abbreviations & Assumptions
B1: Capacity Analysis for Planning of Junctions Capacity Analysis for Planning of Junctions
B3: Abbreviation Definitions
B34: General Assumptions
E53: Cell Legend
J54: Required Input
J55: Optional Input
J56: Pre-entered Input / Calculated Output
J57: Input Not Required
B61: Multimodal Capacity Adjustment Factor Definitions
F67: •The following multimodal capacity adjustment factors were developed based on guidance in the Highway Capacity Manual, 6th Edition, and in the Highway Safety Manual.
F68: •The multimodal capacity adjustment factor is applied separately for each intersection approach.
F69: •To calculate the multimodal capacity adjustment factor, look-up the value in the table below for each mode (pedestrian, bicycle, transit). The multimodal capacity adjustment factor is the minimum factor calculated for all three modes on all four approaches.
E72: Mode | J72: Activity Level | M72: Signalized Intersections (Conventional, QR, TD, DLTI, SPI) | Y72: Mini- or Single-lane Roundabout | AE72: Multilane Roundabout | AK72: Other | AO72: Threshold (Adapted from HSM Table 12-26) | AW72: Associated Context Classification Zones
M73: 2-lane Major Street | P73: 4-lane Major Street | S73: 6-lane Major Street | V73: 8-lane Major Street | Y73: 3-leg | AB73: 4-leg | AE73: 3-leg | AH73: 4-leg
E74: Pedestrian | J74: Low | M74: 1 | P74: 1 | S74: 1 | V74: 1 | Y74: 1 | AB74: 1 | AE74: 1 | AH74: 1 | AK74: 1 | AO74: Fewer than 240 pedestrians per day | AW74: Natural, Rural
J76: Medium | M76: 1 | P76: 1 | S76: 0.9 | V76: 0.8 | Y76: 0.99 | AB76: 0.99 | AE76: 0.97 | AH76: 0.95 | AK76: 1 | AO76: 240 to 3,200 pedestrians per day | AW76: Rural Town, Suburban Residential/ Commercial
J78: High | M78: 1 | P78: 1 | S78: 0.9 | V78: 0.8 | Y78: 0.98 | AB78: 0.98 | AE78: 0.93 | AH78: 0.91 | AK78: 1 | AO78: More than 3,200 pedestrians per day | AW78: Urban Center, Urban Core
E80: Bicycle | J80: Low | M80: 1 | P80: 1 | S80: 1 | V80: 1 | Y80: 1 | AB80: 1 | AE80: 1 | AH80: 1 | AK80: 1 | AO80: Fewer than 240 bicycles per day | AW80: Natural, Rural
J82: Medium | M82: 1 | P82: 1 | S82: 0.9 | V82: 0.8 | Y82: 0.99 | AB82: 0.99 | AE82: 0.97 | AH82: 0.95 | AK82: 1 | AO82: 240 to 3,200 bicycles per day | AW82: Rural Town, Suburban Residential/ Commercial
J84: High | M84: 1 | P84: 1 | S84: 0.9 | V84: 0.8 | Y84: 0.98 | AB84: 0.98 | AE84: 0.93 | AH84: 0.91 | AK84: 1 | AO84: More than 3,200 bicycles per day | AW84: Urban Residential, Urban Center, Urban Core
E86: Transit | J86: Low | M86: 1 | P86: 1 | S86: 1 | V86: 1 | Y86: 1 | AB86: 1 | AE86: 1 | AH86: 1 | AK86: 1 | AO86: No transit stops | AW86: Natural, Rural
J88: Medium | M88: 1 | P88: 1 | S88: 1 | V88: 1 | Y88: 1 | AB88: 1 | AE88: 1 | AH88: 1 | AK88: 1 | AO88: A transit stop serving a single route | AW88: Rural Town, Suburban Residential/ Commercial
J90: High | M90: 1 | P90: 1 | S90: 1 | V90: 1 | Y90: 1 | AB90: 1 | AE90: 1 | AH90: 1 | AK90: 1 | AO90: A transit stop serving multiple routes | AW90: Urban Residential, Urban Center, Urban Core

Sheet Intersection Mapping
C4: CAP-X | D4: SPICE | E4: Economic Analysis for ICE
C5: At-Grade Intersections
C6: Traffic Signal | D6: Traffic Signal | E6: Traffic Signal
C7: Traffic Signal (Alt.) | D7: Traffic Signal (Alt.) | E7: Traffic Signal (Alt.)
C8: Two-Way Stop Control | D8: Minor Road Stop Control | E8: Minor Road Stop Control
C9: All-Way Stop Control | D9: All Way Stop Control | E9: All Way Stop Control
C10: Continuous Green T | D10: Continuous Green-T | E10: Continuous Green-T
C11: Quadrant Roadway | D11: - | E11: Quadrant Roadway Intersection | AA11: S-W
C12: Partial Displaced Left Turn | D12: Partial Displaced Left Turn (PDLT) | E12: Partial Displaced Left Turn (PDLT)
D13: -
C14: Signalized Restricted Crossing U-Turn | D14: Signalized Restricted Crossing U-Turn (RCUT) | E14: Signalized Restricted Crossing U-Turn (RCUT)
C15: Unsignalized Restricted Crossing U-Turn | D15: Unsignalized Restricted Crossing U-Turn (RCUT) | E15: Unsignalized Restricted Crossing U-Turn (RCUT)
C16: Median U-Turn | D16: Full Median U-Turn (MUT) | E16: Full Median U-Turn (MUT)
C17: Partial Median U-Turn | D17: -
C18: Bowtie | D18: Bowtie* | E18: Bowtie
C19: Signalized ThruCut | D19: Signalized Thru-Cut* | E19: Signalized Thru-Cut
C20: Unsignalized ThruCut | D20: Unsignalized Thru-Cut* | E20: Unsignalized Thru-Cut
C21: - | D21: Jughandle | E21: Jughandle (Forward Ramps)
C22: - | E22: Jughandle (Reverse Ramps)
C23: Roundabouts
C24: 50 ICD Miniroundabout | D24: - | E24: -
C25: 75 ICD Miniroundabout | D25: - | E25: -
C26: 1x1 | D26: 1-Lane Roundabout | E26: 1-Lane Roundabout
C27: 1NS x 2EW | D27: 2-Lane Roundabout | E27: 2-Lane Roundabout
C28: 2NS x 1EW
C29: 2x2
C30: Ramp Terminal Intersections
C31: Diamond | D31: Diamond Signalized | E31: Conventional Traffic Signal
C32: Diamond Alternative | D32: Diamond Signalized (Alt.) | E32: Conventional Traffic Signal (Alt.)
C33: Diamond Stop Control | D33: Diamond Stop Control** | E33: Unsignalized Diamond
C34: Signalized Tight Diamond | D34: Signalized Tight Diamond | E34: Signalized Tight Diamond Interchange
C35: Partial Cloverleaf A | D35: Four Quadrant Partial Cloverleaf A Signalized | E35: -
C36: Partial Cloverleaf B | D36: Four Quadrant Partial Cloverleaf B Signalized | E36: -
C37: Two Quadrant Partial Cloverleaf A Signalized | D37: Two Quadrant Partial Cloverleaf A Signalized | E37: -
C38: Two Quadrant Partial Cloverleaf B Signalized | D38: Two Quadrant Partial Cloverleaf B Signalized | E38: -
C39: Diverging Diamond | D39: Diverging Diamond | E39: Diverging Diamond Interchange
C40: Single Point Diamond | D40: Single-Point Diamond | E40: Single-Point Diamond Traffic Signal
C41: Displaced Left Turn Interchange | D41: - | E41: -
C42: Roundabout (1X1) | D42: 1-Lane Roundabout | E42: 1-lane Roundabout
C43: Roundabout (2X2) | D43: 2-Lane Roundabout | E43: 2-lane Roundabout
C44: Half Diamond | D44: Half Diamond Signalized | E44: -
C45: - | D45: Four Quadrant Partial Cloverleaf A Stop Control** | E45: -
C46: - | D46: Four Quadrant Partial Cloverleaf B Stop Control** | E46: -
C47: - | D47: Two Quadrant Partial Cloverleaf A Stop Control** | E47: -
C48: - | D48: Two Quadrant Partial Cloverleaf B Stop Control** | E48: -
C49: - | D49: Half Diamond Stop Control** | E49: -
D51: * Indicates that only SSI analysis is available. HSM analysis is not.
D52: ** Indicates that only HSM analysis is available. SSI analysis is not.

Sheet Changelog
A1: Capacity Analysis for Planning of Junctions Capacity Analysis for Planning of Junctions
A3: Changelog
C7: Date | I7: Description
C9: 2019-06-06 | I9: Fixed issue where equivalent passenger car volumes were not being computed correctly for eastbound left-turns and eastbound right-turns (on tab 1 - Volume Input). Previously, the LT and RT computations for EB were incorrectly linked to the WB truck percentages and growth factors.
C14: 2019-08-16 | I14: Updated labeling of 1x2 and 2x1 roundabouts to more accurately reflect that they represent 1NS x 2EW and 2NS x 1EW, respectively. Additionally, fixed issue where the incorrect major street alternative intersection was being displayed as the exising conditions in the 2 - Base and Alt Sel tab for some 3-leg intersection configurations. Fixed issue where certain intersections were not counted correctly in the Number of Configurations bins in the 4a - Detailed Results Tab.
C21: 2019-08-28 | I21: Updated 5b - Detailed Report tab, Number of Lanes for Interchanges to reflect 3 - Alt Num Lanes Input tab.
C28: 2021-10-06 | I28: Added Signalized and Unsignalized ThruCut intersections for N-S and E-W directions.
C35: 2022-10-13 | I35: Added V/C calculations for second entry of bowtie roundabouts. Replaced MMScoring methodology with MM Pedestrian and Bike Scores. Exclusive Pedestrian Phase input toggle added for Thrucut, Single Point, and QR. Median presence toggle added for TWSC.
C42: 2023-10-31 | I42: Added new images (as reference) to Multimodal Pedestrian and Multimodal Bicycle worksheets. Updated Signalized and Unsignalized Thrucut formula in Multimodal Pedestrian worksheet. Updated the definitions for PCE and PEPCH.
C49: 2023-12-22 | I49: Formula changes to the Multimodal Bike tab. Renamed certain tabs to add clarity. Updated dates to intro tab. Addition to disclaimer about the Excel version usage.
C56: 2024-11-15 | I56: Added aditional ramp terminal intersection types (diamond with stop control, tight diamond, two quadrant partial cloverleaves, diamonds with roundabouts, and half diamonds) and a second traffic signal (alt.) and a traditional diamond (alt). Updated Multimodal Ped and Multimodal Bike sheets to accommodate for 3-leg Intx and removed XLOOKUP function that was incompatiable with older versions of Excel. Updated lane configuration input cells for roundabout ramp terminal intersections. Fixed errors in the formulas for quadrant roadway intersections. Except for roundabouts, default speed limit values (for roadways and ramps) are no longer available in 4a - Multimodal Ped and 4b - Multimodal Bike sheets, requiring analysts to enter the values. Added cell color coding legend and provided explanation of directions in the sheet names in the Abbreviations & Assumptions sheet. Analysis type input is now in the 1 - Volume Input sheet. Based on the Number of legs selection, the volume row is greyed out. Based on the Number of legs selection, only relevant ramp terminal intersections appear in 2 – Base and Alt Selections sheet. Added a new sheet called Intersection Mapping to comapre the equivalents of each intersection across CAP-X, SPICE, and Economic Analysis for ICE tools. Other miscellaneous changes.
C63: 2024-12-20 | I63: The November 2024 version is renamed to January 2025, with an added note that "Drawings on all relevant worksheets are oriented such that north is up." on the Abbreviations & Assumptions worksheet.
C64: 2025-05-27 | I64: Made changes to throughput calculations for TWSC and Unsignalized Thru-cut. Edits made in the 4a - Multimodal Ped and 4b - Multimodal Bike sheets to make outputs consistent. Existing configuration results from the 2 - Base and Alt Selections sheet has been moved to the the 5a - Detailed Report sheet.
C65: 2025-11-03 | I65: Made CAP-X more interactive for a 3-legged intersection analysis by making some alternatives non-selectable (for example, Bowtie, Median U-Turn, Unsignalized Thru-Cut and Signalized Thru Cut) in the “2 – Base and Alt Selections” worksheet and the assignment of number of lanes in the “3 – Alt Num Lanes Input” worksheet. Added lane configuration details for roundabout intersections “3 – Alt Num Lanes Input” worksheet. Removed 50 ICD and 75 ICD Roundabouts.

Sheet 1 - Volume Input
B1: Capacity Analysis for Planning of Junctions Capacity Analysis for Planning of Junctions
B3: Input Worksheet 1
AI4: At-Grade Intersections | AJ4: Ramp Terminal Intersections | AK4: At-Grade Intersections and Interchanges
C5: 0 | E5: Analysis Type | M5: At-Grade Intersections and Interchanges | BH5: At-Grade Intersections and Interchanges
E6: Project Name | BH6: At-Grade Intersections Only
E8: Project Number
D10: 0 | E10: Location
D11: 0
D12: 0 | E12: Date
D13: 0
D14: 0 | E14: Number of Legs | M14: 4 | BH14: 3 | BI14: N
D15: 0 | BH15: 4 | BI15: S
E16: Major Street Direction | M16: North-South | BG16: North-South | BH16: =IF(Input_MajorStreetDirection="North-South","East-West","North-South") -> East-West | BI16: E
BG17: East-West | BI17: W
E18: Which leg is the minor street? | M18: S
E20: Traffic Volume Demand
K22: Volume (Veh/hr) | AQ22: Percent (%)
K24: U-Turn | S24: Left | AA24: Thru | AI24: Right | AQ24: Heavy Vehicles | AY24: Volume Growth
E30: Eastbound | K30: 0 | AQ30: 0 | AY30: 0
E32: Westbound | K32: 0 | AQ32: 0 | AY32: 0
E34: Southbound | K34: 0 | AQ34: 0 | AY34: 0
E36: Northbound | K36: 0 | AQ36: 0 | AY36: 0
BH37: C1-Natural
E38: Adjustment Factor | K38: 0.8 | S38: 0.95 | AI38: 0.85 | BH38: C2-Rural
BH39: C2T-Rural Town
E40: Suggested | K40: 0.8 | S40: 0.95 | AI40: 0.85 | BH40: C3R-Suburban Residential
BH41: C3C-Suburban Commercial
E42: Truck to PCE Factor | AI42: Suggested = 2.00 | AU42: 2 | BH42: C4-Urban General
BH43: C5-Urban Center
E44: FDOT Context Zone | W44: C4-Urban General | BH44: C6-Urban Core
E46: E-W / Crossing East-West Legs | W46: =IF(Multimodal=1,"Low",IF(Multimodal=2,"Medium","High")) -> High | AI46: =IF(Multimodal=1,"Low",IF(Multimodal=2,"Medium","High")) -> High | AU46: =IF(Multimodal=1,"Low",IF(Multimodal=2,"Medium","High")) -> High
E48: Westbound / Crossing East Leg | W48: =IF(Multimodal=1,"Low",IF(Multimodal=2,"Medium","High")) -> High | AI48: =IF(Multimodal=1,"Low",IF(Multimodal=2,"Medium","High")) -> High | AU48: =IF(Multimodal=1,"Low",IF(Multimodal=2,"Medium","High")) -> High
E50: N-S / Crossing North-South Legs | W50: =IF(Multimodal=1,"Low",IF(Multimodal=2,"Medium","High")) -> High | AI50: =IF(Multimodal=1,"Low",IF(Multimodal=2,"Medium","High")) -> High | AU50: =IF(Multimodal=1,"Low",IF(Multimodal=2,"Medium","High")) -> High
E52: Northbound / Crossing South Leg | W52: =IF(Multimodal=1,"Low",IF(Multimodal=2,"Medium","High")) -> High | AI52: =IF(Multimodal=1,"Low",IF(Multimodal=2,"Medium","High")) -> High | AU52: =IF(Multimodal=1,"Low",IF(Multimodal=2,"Medium","High")) -> High
E54: Critical Lane Volume Threshold | T54: 2-phase signal | AI54: Suggested = 1800 | AU54: 1800
T56: 3-phase signal | AI56: Suggested = 1750 | AU56: 1750
T58: 4-phase signal | AI58: Suggested = 1700 | AU58: 1700
M62: Equivalent Passenger Car Volume | BB62: =IF(W46="Low",1,IF(W46="Medium",2,3)) -> 3 | BC62: =IF(AI46="Low",1,IF(AI46="Medium",2,3)) -> 3 | BG62: =IF(W44=BH38,1,IF(W44=BH37,1,IF(OR(W44=BH42,W44=BH43),3,IF(W44=BH44,3,2)))) -> 3
S64: Volume (Veh/hr) | BB64: =IF(W48="Low",1,IF(W48="Medium",2,3)) -> 3 | BC64: =IF(AI48="Low",1,IF(AI48="Medium",2,3)) -> 3
S66: U-Turn | AA66: Left | AI66: Thru | AQ66: Right | BB66: =IF(W50="Low",1,IF(W50="Medium",2,3)) -> 3 | BC66: =IF(AI50="Low",1,IF(AI50="Medium",2,3)) -> 3
BB68: =IF(W52="Low",1,IF(W52="Medium",2,3)) -> 3 | BC68: =IF(AI52="Low",1,IF(AI52="Medium",2,3)) -> 3
M72: Eastbound | S72: =+ROUND((K30*(1-EB_Truck_Percentage) +K30* EB_Truck_Percentage*Truck_Adjustment_Factor)*(1+EB_Growth_Factor),0) -> 0 | AA72: =+ROUND((S30*(1-EB_Truck_Percentage) +S30* EB_Truck_Percentage*Truck_Adjustment_Factor)*(1+EB_Growth_Factor),0) -> 0 | AI72: =+ROUND((AA30*(1-EB_Truck_Percentage) +AA30* EB_Truck_Percentage*Truck_Adjustment_Factor)*(1+EB_Growth_Factor),0) -> 0 | AQ72: =+ROUND((AI30*(1-EB_Truck_Percentage) +AI30* EB_Truck_Percentage*Truck_Adjustment_Factor)*(1+EB_Growth_Factor),0) -> 0
M74: Westbound | S74: =+ROUND((K32*(1-WB_Truck_Percentage) +K32*WB_Truck_Percentage*Truck_Adjustment_Factor)*(1+WB_Growth_Factor),0) -> 0 | AA74: =+ROUND((S32*(1-WB_Truck_Percentage) +S32* WB_Truck_Percentage*Truck_Adjustment_Factor)*(1+WB_Growth_Factor),0) -> 0 | AI74: =+ROUND((AA32*(1-WB_Truck_Percentage) +AA32* WB_Truck_Percentage*Truck_Adjustment_Factor)*(1+WB_Growth_Factor),0) -> 0 | AQ74: =+ROUND((AI32*(1-WB_Truck_Percentage) +AI32* WB_Truck_Percentage*Truck_Adjustment_Factor)*(1+WB_Growth_Factor),0) -> 0
M76: Southbound | S76: =+ROUND((K34*(1-SB_Truck_Percentage) +K34* SB_Truck_Percentage*Truck_Adjustment_Factor)*(1+SB_Growth_Factor),0) -> 0 | AA76: =+ROUND((S34*(1-SB_Truck_Percentage) +S34* SB_Truck_Percentage*Truck_Adjustment_Factor)*(1+SB_Growth_Factor),0) -> 0 | AI76: =+ROUND((AA34*(1-SB_Truck_Percentage) +AA34* SB_Truck_Percentage*Truck_Adjustment_Factor)*(1+SB_Growth_Factor),0) -> 0 | AQ76: =+ROUND((AI34*(1-SB_Truck_Percentage) +AI34* SB_Truck_Percentage*Truck_Adjustment_Factor)*(1+SB_Growth_Factor),0) -> 0
M78: Northbound | S78: =+ROUND((K36*(1-NB_Truck_Percentage) +K36* NB_Truck_Percentage*Truck_Adjustment_Factor)*(1+NB_Growth_Factor),0) -> 0 | AA78: =+ROUND((S36*(1-NB_Truck_Percentage) +S36* NB_Truck_Percentage*Truck_Adjustment_Factor)*(1+NB_Growth_Factor),0) -> 0 | AI78: =+ROUND((AA36*(1-NB_Truck_Percentage) +AA36* NB_Truck_Percentage*Truck_Adjustment_Factor)*(1+NB_Growth_Factor),0) -> 0 | AQ78: =+ROUND((AI36*(1-NB_Truck_Percentage) +AI36* NB_Truck_Percentage*Truck_Adjustment_Factor)*(1+NB_Growth_Factor),0) -> 0
E82: Notes:
E83: Left-Turn Adjustment Factor | W83: Conversion of left-turning vehicles to equivalent through vehicles
E84: Right-turn Adjustment Factor | W84: Conversion of right-turning vehicles to equivalent through vehicles
E85: U-turn Adjustment Factor | W85: Conversion of U-turning vehicles to equivalent through vehicles
E86: Truck to PCE Factor | W86: 1 Truck = X Passenger Car Equivalents
E87: Critical Lane Volume Sum Limit | W87: Saturation Value for Critical Lane Volume Sum at an intersection

Sheet 2 – Base and Alt Selections
A1: Capacity Analysis for Planning of Junctions Capacity Analysis for Planning of Junctions | CZ1: Major Str Offset | DB1: =IF(OR($L$14='1 - Volume Input'!$BG$16,$L$14='1 - Volume Input'!$BI$16,$L$14='1 - Volume Input'!$BI$17),0,2) -> 0 | DD1: NB Lanes | DH1: SB Lanes | DL1: EB Lanes | DP1: WB Lanes | DT1: Zone 1 | DV1: Zone 2 | DX1: Zone 3 | DZ1: Zone 4 | EB1: Zone 5 | ED1: Zone 6 | EF1: Overall V/C | EG1: Ped Accom. | EH1: Bike Accom. | EI1: Transit Accom.
A3: Step 2A: Base Conditions Analysis | CZ3: Existing Intx List: | DB3: No Lanes | DC3: Outputs | DD3: U | DE3: L | DF3: T | DG3: R | DH3: U | DI3: L | DJ3: T | DK3: R | DL3: U | DM3: L | DN3: T | DO3: R | DP3: U | DQ3: L | DR3: T | DS3: R | DT3: CLV | DU3: VC | DV3: CLV | DW3: VC | DX3: CLV | DY3: VC | DZ3: CLV | EA3: VC | EB3: CLV | EC3: VC | ED3: CLV | EE3: VC
CZ4: ='3 - Alt Num Lanes Input'!E24 -> Traffic Signal | DB4: =24 -> 24 | DC4: =211 -> 211 | DD4: =INDIRECT("'3 - Alt Num Lanes Input'!AA"&$DB4) -> 0 | DE4: =INDIRECT("'3 - Alt Num Lanes Input'!AC"&$DB4) -> 1 | DF4: =INDIRECT("'3 - Alt Num Lanes Input'!AE"&$DB4) -> 2 | DG4: =INDIRECT("'3 - Alt Num Lanes Input'!AG"&$DB4) -> 1 | DH4: =INDIRECT("'3 - Alt Num Lanes Input'!AI"&$DB4) -> 0 | DI4: =INDIRECT("'3 - Alt Num Lanes Input'!AK"&$DB4) -> 1 | DJ4: =INDIRECT("'3 - Alt Num Lanes Input'!AM"&$DB4) -> 2 | DK4: =INDIRECT("'3 - Alt Num Lanes Input'!AO"&$DB4) -> 1 | DL4: =INDIRECT("'3 - Alt Num Lanes Input'!AQ"&$DB4) -> 0 | DM4: =INDIRECT("'3 - Alt Num Lanes Input'!AS"&$DB4) -> 1 | DN4: =INDIRECT("'3 - Alt Num Lanes Input'!AU"&$DB4) -> 2 | DO4: =INDIRECT("'3 - Alt Num Lanes Input'!AW"&$DB4) -> 1 | DP4: =INDIRECT("'3 - Alt Num Lanes Input'!AY"&$DB4) -> 0 | DQ4: =INDIRECT("'3 - Alt Num Lanes Input'!BA"&$DB4) -> 1 | DR4: =INDIRECT("'3 - Alt Num Lanes Input'!BC"&$DB4) -> 2 | DS4: =INDIRECT("'3 - Alt Num Lanes Input'!BE"&$DB4) -> 1 | DT4: =INDIRECT("'5a - Detailed Report'!AD"&$DC4) -> 0 | DU4: =INDIRECT("'5a - Detailed Report'!AG"&$DC4) -> 0 | DV4: =INDIRECT("'5a - Detailed Report'!AJ"&$DC4) -> 0 | DW4: =INDIRECT("'5a - Detailed Report'!AM"&$DC4) -> 0 | DX4: =INDIRECT("'5a - Detailed Report'!AP"&$DC4) -> 0 | DY4: =INDIRECT("'5a - Detailed Report'!AS"&$DC4) -> 0 | DZ4: =INDIRECT("'5a - Detailed Report'!AV"&$DC4) -> 0 | EA4: =INDIRECT("'5a - Detailed Report'!AY"&$DC4) -> 0 | EB4: =INDIRECT("'5a - Detailed Report'!BB"&$DC4) -> 0 | EC4: =INDIRECT("'5a - Detailed Report'!BE"&$DC4) -> 0 | ED4: 0 | EE4: 0 | EF4: =INDIRECT("'5a - Detailed Report'!BH"&$DC4) -> 0 | EG4: =INDIRECT("'5a - Detailed Report'!BO"&$DC4) -> Enter Major/Minor Street Speeds | EH4: =INDIRECT("'5a - Detailed Report'!BS"&$DC4) -> Check Speed Limit and/or Lane Input | EI4: =INDIRECT("'5a - Detailed Report'!BW"&$DC4) -> 0
D5: Anlysis Type | L5: =Intx_type -> At-Grade Intersections and Interchanges | CZ5: ='3 - Alt Num Lanes Input'!E28 -> Two-Way Stop Control | DB5: 28 | DC5: =215 +$DB$1 -> 215 | DD5: =INDIRECT("'3 - Alt Num Lanes Input'!AA"&$DB5) -> 0 | DE5: =INDIRECT("'3 - Alt Num Lanes Input'!AC"&$DB5) -> 1 | DF5: =INDIRECT("'3 - Alt Num Lanes Input'!AE"&$DB5) -> 2 | DG5: =INDIRECT("'3 - Alt Num Lanes Input'!AG"&$DB5) -> 1 | DH5: =INDIRECT("'3 - Alt Num Lanes Input'!AI"&$DB5) -> 0 | DI5: =INDIRECT("'3 - Alt Num Lanes Input'!AK"&$DB5) -> 1 | DJ5: =INDIRECT("'3 - Alt Num Lanes Input'!AM"&$DB5) -> 2 | DK5: =INDIRECT("'3 - Alt Num Lanes Input'!AO"&$DB5) -> 1 | DL5: =INDIRECT("'3 - Alt Num Lanes Input'!AQ"&$DB5) -> 0 | DM5: =INDIRECT("'3 - Alt Num Lanes Input'!AS"&$DB5) -> 0 | DN5: =INDIRECT("'3 - Alt Num Lanes Input'!AU"&$DB5) -> 2 | DO5: =INDIRECT("'3 - Alt Num Lanes Input'!AW"&$DB5) -> 0 | DP5: =INDIRECT("'3 - Alt Num Lanes Input'!AY"&$DB5) -> 0 | DQ5: =INDIRECT("'3 - Alt Num Lanes Input'!BA"&$DB5) -> 1 | DR5: =INDIRECT("'3 - Alt Num Lanes Input'!BC"&$DB5) -> 2 | DS5: =INDIRECT("'3 - Alt Num Lanes Input'!BE"&$DB5) -> 1 | DT5: =INDIRECT("'5a - Detailed Report'!AD"&$DC5) -> 0 | DU5: =INDIRECT("'5a - Detailed Report'!AG"&$DC5) -> 0 | DV5: =INDIRECT("'5a - Detailed Report'!AJ"&$DC5) -> 0 | DW5: =INDIRECT("'5a - Detailed Report'!AM"&$DC5) -> 0 | DX5: =INDIRECT("'5a - Detailed Report'!AP"&$DC5) -> 0 | DY5: =INDIRECT("'5a - Detailed Report'!AS"&$DC5) -> 0 | DZ5: =INDIRECT("'5a - Detailed Report'!AV"&$DC5) -> 0 | EA5: =INDIRECT("'5a - Detailed Report'!AY"&$DC5) -> 0 | EB5: =INDIRECT("'5a - Detailed Report'!BB"&$DC5) -> -- | EC5: =INDIRECT("'5a - Detailed Report'!BE"&$DC5) -> 0.0006116205921 | ED5: 0 | EE5: 0 | EF5: 0.0006116205921 | EG5: Enter Major/Minor Street Speeds | EH5: Check Speed Limit and/or Lane Input | EI5: 0
D6: Project Name | L6: =P_Name -> 0 | CZ6: ='3 - Alt Num Lanes Input'!E32 -> All-Way Stop Control | DB6: 32 | DC6: =219 -> 219 | DD6: =INDIRECT("'3 - Alt Num Lanes Input'!AA"&$DB6) -> 0 | DE6: =INDIRECT("'3 - Alt Num Lanes Input'!AC"&$DB6) -> 1 | DF6: =INDIRECT("'3 - Alt Num Lanes Input'!AE"&$DB6) -> 2 | DG6: =INDIRECT("'3 - Alt Num Lanes Input'!AG"&$DB6) -> 1 | DH6: =INDIRECT("'3 - Alt Num Lanes Input'!AI"&$DB6) -> 0 | DI6: =INDIRECT("'3 - Alt Num Lanes Input'!AK"&$DB6) -> 1 | DJ6: =INDIRECT("'3 - Alt Num Lanes Input'!AM"&$DB6) -> 2 | DK6: =INDIRECT("'3 - Alt Num Lanes Input'!AO"&$DB6) -> 1 | DL6: =INDIRECT("'3 - Alt Num Lanes Input'!AQ"&$DB6) -> 0 | DM6: =INDIRECT("'3 - Alt Num Lanes Input'!AS"&$DB6) -> 1 | DN6: =INDIRECT("'3 - Alt Num Lanes Input'!AU"&$DB6) -> 2 | DO6: =INDIRECT("'3 - Alt Num Lanes Input'!AW"&$DB6) -> 1 | DP6: =INDIRECT("'3 - Alt Num Lanes Input'!AY"&$DB6) -> 0 | DQ6: =INDIRECT("'3 - Alt Num Lanes Input'!BA"&$DB6) -> 1 | DR6: =INDIRECT("'3 - Alt Num Lanes Input'!BC"&$DB6) -> 2 | DS6: =INDIRECT("'3 - Alt Num Lanes Input'!BE"&$DB6) -> 1 | DT6: =INDIRECT("'5a - Detailed Report'!AD"&$DC6) -> 0 | DU6: =INDIRECT("'5a - Detailed Report'!AG"&$DC6) -> 0 | DV6: =INDIRECT("'5a - Detailed Report'!AJ"&$DC6) -> 0 | DW6: =INDIRECT("'5a - Detailed Report'!AM"&$DC6) -> 0 | DX6: =INDIRECT("'5a - Detailed Report'!AP"&$DC6) -> 0 | DY6: =INDIRECT("'5a - Detailed Report'!AS"&$DC6) -> 0 | DZ6: =INDIRECT("'5a - Detailed Report'!AV"&$DC6) -> 0 | EA6: =INDIRECT("'5a - Detailed Report'!AY"&$DC6) -> 0 | EB6: =INDIRECT("'5a - Detailed Report'!BB"&$DC6) -> 0 | EC6: =INDIRECT("'5a - Detailed Report'!BE"&$DC6) -> 0 | ED6: 0 | EE6: 0 | EF6: 0 | EG6: Enter Major/Minor Street Speeds | EH6: Check Speed Limit and/or Lane Input | EI6: 0
CZ7: 1x1 Roundabout At-Grade | DB7: =-1 -> -1 | DC7: 289 | DD7: -- | DE7: -- | DF7: -- | DG7: -- | DH7: -- | DI7: -- | DJ7: -- | DK7: -- | DL7: -- | DM7: -- | DN7: -- | DO7: -- | DP7: -- | DQ7: -- | DR7: -- | DS7: -- | DT7: =INDIRECT("'5a - Detailed Report'!L"&$DC7) -> 0 | DU7: =INDIRECT("'5a - Detailed Report'!P"&$DC7) -> 0 | DV7: =INDIRECT("'5a - Detailed Report'!T"&$DC7) -> 0 | DW7: =INDIRECT("'5a - Detailed Report'!X"&$DC7) -> 0 | DX7: =INDIRECT("'5a - Detailed Report'!AB"&$DC7) -> 0 | DY7: =INDIRECT("'5a - Detailed Report'!AF"&$DC7) -> 0 | DZ7: =INDIRECT("'5a - Detailed Report'!AJ"&$DC7) -> 0 | EA7: =INDIRECT("'5a - Detailed Report'!AN"&$DC7) -> 0 | EB7: =INDIRECT("'5a - Detailed Report'!AR"&$DC7) -> 0 | EC7: =INDIRECT("'5a - Detailed Report'!AV"&$DC7) -> 0 | ED7: =INDIRECT("'5a - Detailed Report'!AZ"&$DC7) -> 0 | EE7: =INDIRECT("'5a - Detailed Report'!BD"&$DC7) -> 0 | EF7: 0 | EG7: 5.696049894 | EH7: Check Speed Limit and/or Lane Input | EI7: 0
D8: Project Number | L8: =P_Number -> 0 | CZ8: 1x2 Roundabout At-Grade | DB8: -1 | DC8: =293-$DB$1 -> 293 | DD8: -- | DE8: -- | DF8: -- | DG8: -- | DH8: -- | DI8: -- | DJ8: -- | DK8: -- | DL8: -- | DM8: -- | DN8: -- | DO8: -- | DP8: -- | DQ8: -- | DR8: -- | DS8: -- | DT8: =INDIRECT("'5a - Detailed Report'!L"&$DC8) -> 0 | DU8: =INDIRECT("'5a - Detailed Report'!P"&$DC8) -> 0 | DV8: =INDIRECT("'5a - Detailed Report'!T"&$DC8) -> 0 | DW8: =INDIRECT("'5a - Detailed Report'!X"&$DC8) -> 0 | DX8: =INDIRECT("'5a - Detailed Report'!AB"&$DC8) -> 0 | DY8: =INDIRECT("'5a - Detailed Report'!AF"&$DC8) -> 0 | DZ8: =INDIRECT("'5a - Detailed Report'!AJ"&$DC8) -> 0 | EA8: =INDIRECT("'5a - Detailed Report'!AN"&$DC8) -> 0 | EB8: =INDIRECT("'5a - Detailed Report'!AR"&$DC8) -> 0 | EC8: =INDIRECT("'5a - Detailed Report'!AV"&$DC8) -> 0 | ED8: =INDIRECT("'5a - Detailed Report'!AZ"&$DC8) -> 0 | EE8: =INDIRECT("'5a - Detailed Report'!BD"&$DC8) -> 0 | EF8: 0 | EG8: 5.391637546 | EH8: Check Speed Limit and/or Lane Input | EI8: 0
CZ9: 2x2 Roundabout At-Grade | DB9: -1 | DC9: 295 | DD9: -- | DE9: -- | DF9: -- | DG9: -- | DH9: -- | DI9: -- | DJ9: -- | DK9: -- | DL9: -- | DM9: -- | DN9: -- | DO9: -- | DP9: -- | DQ9: -- | DR9: -- | DS9: -- | DT9: =INDIRECT("'5a - Detailed Report'!L"&$DC9) -> 0 | DU9: =INDIRECT("'5a - Detailed Report'!P"&$DC9) -> 0 | DV9: =INDIRECT("'5a - Detailed Report'!T"&$DC9) -> 0 | DW9: =INDIRECT("'5a - Detailed Report'!X"&$DC9) -> 0 | DX9: =INDIRECT("'5a - Detailed Report'!AB"&$DC9) -> 0 | DY9: =INDIRECT("'5a - Detailed Report'!AF"&$DC9) -> 0 | DZ9: =INDIRECT("'5a - Detailed Report'!AJ"&$DC9) -> 0 | EA9: =INDIRECT("'5a - Detailed Report'!AN"&$DC9) -> 0 | EB9: =INDIRECT("'5a - Detailed Report'!AR"&$DC9) -> 0 | EC9: =INDIRECT("'5a - Detailed Report'!AV"&$DC9) -> 0 | ED9: =INDIRECT("'5a - Detailed Report'!AZ"&$DC9) -> 0 | EE9: =INDIRECT("'5a - Detailed Report'!BD"&$DC9) -> 0 | EF9: 0 | EG9: 5.095584412 | EH9: Check Speed Limit and/or Lane Input | EI9: 0
D10: Location | L10: =Location -> 0 | CZ10: Traditional Diamond | DB10: =101-$DB$1 -> 101 | DC10: =309-$DB$1 -> 309 | DD10: =INDIRECT("'3 - Alt Num Lanes Input'!AA"&$DB10) -> 0 | DE10: =INDIRECT("'3 - Alt Num Lanes Input'!AC"&$DB10) -> 1 | DF10: =INDIRECT("'3 - Alt Num Lanes Input'!AE"&$DB10) -> 2 | DG10: =INDIRECT("'3 - Alt Num Lanes Input'!AG"&$DB10) -> 1 | DH10: =INDIRECT("'3 - Alt Num Lanes Input'!AI"&$DB10) -> 0 | DI10: =INDIRECT("'3 - Alt Num Lanes Input'!AK"&$DB10) -> 1 | DJ10: =INDIRECT("'3 - Alt Num Lanes Input'!AM"&$DB10) -> 2 | DK10: =INDIRECT("'3 - Alt Num Lanes Input'!AO"&$DB10) -> 1 | DL10: =INDIRECT("'3 - Alt Num Lanes Input'!AQ"&$DB10) -> 0 | DM10: =INDIRECT("'3 - Alt Num Lanes Input'!AS"&$DB10) -> 1 | DN10: =INDIRECT("'3 - Alt Num Lanes Input'!AU"&$DB10) -> 2 | DO10: =INDIRECT("'3 - Alt Num Lanes Input'!AW"&$DB10) -> 1 | DP10: =INDIRECT("'3 - Alt Num Lanes Input'!AY"&$DB10) -> 0 | DQ10: =INDIRECT("'3 - Alt Num Lanes Input'!BA"&$DB10) -> 1 | DR10: =INDIRECT("'3 - Alt Num Lanes Input'!BC"&$DB10) -> 2 | DS10: =INDIRECT("'3 - Alt Num Lanes Input'!BE"&$DB10) -> 1 | DT10: =INDIRECT("'5a - Detailed Report'!X"&$DC10) -> 0 | DU10: =INDIRECT("'5a - Detailed Report'!AA"&$DC10) -> 0 | DV10: =INDIRECT("'5a - Detailed Report'!AD"&$DC10) -> 0 | DW10: =INDIRECT("'5a - Detailed Report'!AG"&$DC10) -> 0 | DX10: =INDIRECT("'5a - Detailed Report'!AJ"&$DC10) -> 0 | DY10: =INDIRECT("'5a - Detailed Report'!AM"&$DC10) -> 0 | DZ10: =INDIRECT("'5a - Detailed Report'!AP"&$DC10) -> 0 | EA10: =INDIRECT("'5a - Detailed Report'!AS"&$DC10) -> 0 | EB10: =INDIRECT("'5a - Detailed Report'!AV"&$DC10) -> 0 | EC10: =INDIRECT("'5a - Detailed Report'!AY"&$DC10) -> 0 | ED10: =INDIRECT("'5a - Detailed Report'!BB"&$DC10) -> 0 | EE10: =INDIRECT("'5a - Detailed Report'!BE"&$DC10) -> 0 | EF10: 0 | EG10: Enter Ramp Terminal and/or Street Speeds | EH10: Check Speed Limit and/or Lane Input | EI10: 0
CZ11: Diamond Stop Control | DB11: =109-$DB$1 -> 109 | DC11: =317-$DB$1 -> 317 | DD11: =INDIRECT("'3 - Alt Num Lanes Input'!AA"&$DB11) -> 0 | DE11: =INDIRECT("'3 - Alt Num Lanes Input'!AC"&$DB11) -> 1 | DF11: =INDIRECT("'3 - Alt Num Lanes Input'!AE"&$DB11) -> 2 | DG11: =INDIRECT("'3 - Alt Num Lanes Input'!AG"&$DB11) -> 1 | DH11: =INDIRECT("'3 - Alt Num Lanes Input'!AI"&$DB11) -> 0 | DI11: =INDIRECT("'3 - Alt Num Lanes Input'!AK"&$DB11) -> 1 | DJ11: =INDIRECT("'3 - Alt Num Lanes Input'!AM"&$DB11) -> 2 | DK11: =INDIRECT("'3 - Alt Num Lanes Input'!AO"&$DB11) -> 1 | DL11: =INDIRECT("'3 - Alt Num Lanes Input'!AQ"&$DB11) -> 0 | DM11: =INDIRECT("'3 - Alt Num Lanes Input'!AS"&$DB11) -> 1 | DN11: =INDIRECT("'3 - Alt Num Lanes Input'!AU"&$DB11) -> 2 | DO11: =INDIRECT("'3 - Alt Num Lanes Input'!AW"&$DB11) -> 1 | DP11: =INDIRECT("'3 - Alt Num Lanes Input'!AY"&$DB11) -> 0 | DQ11: =INDIRECT("'3 - Alt Num Lanes Input'!BA"&$DB11) -> 1 | DR11: =INDIRECT("'3 - Alt Num Lanes Input'!BC"&$DB11) -> 2 | DS11: =INDIRECT("'3 - Alt Num Lanes Input'!BE"&$DB11) -> 1 | DT11: =INDIRECT("'5a - Detailed Report'!X"&$DC11) -> 0 | DU11: 0 | DV11: =INDIRECT("'5a - Detailed Report'!AD"&$DC11) -> 0 | DW11: 0 | DX11: =INDIRECT("'5a - Detailed Report'!AJ"&$DC11) -> 0 | DY11: 0 | DZ11: =INDIRECT("'5a - Detailed Report'!AP"&$DC11) -> 0 | EA11: 0 | EB11: =INDIRECT("'5a - Detailed Report'!AV"&$DC11) -> 0 | EC11: 0 | ED11: =INDIRECT("'5a - Detailed Report'!BB"&$DC11) -> 0 | EE11: 0 | EF11: 0 | EG11: Enter Ramp Terminal and/or Street Speeds | EH11: Check Speed Limit and/or Lane Input | EI11: 0
D12: Date | L12: =Date -> 00:00:00 | CZ12: Partial Cloverleaf A | DB12: =117-$DB$1 -> 117 | DC12: =325-$DB$1 -> 325 | DD12: =INDIRECT("'3 - Alt Num Lanes Input'!AA"&$DB12) -> 0 | DE12: =INDIRECT("'3 - Alt Num Lanes Input'!AC"&$DB12) -> 1 | DF12: =INDIRECT("'3 - Alt Num Lanes Input'!AE"&$DB12) -> 0 | DG12: =INDIRECT("'3 - Alt Num Lanes Input'!AG"&$DB12) -> 0 | DH12: =INDIRECT("'3 - Alt Num Lanes Input'!AI"&$DB12) -> 0 | DI12: =INDIRECT("'3 - Alt Num Lanes Input'!AK"&$DB12) -> 1 | DJ12: =INDIRECT("'3 - Alt Num Lanes Input'!AM"&$DB12) -> 0 | DK12: =INDIRECT("'3 - Alt Num Lanes Input'!AO"&$DB12) -> 0 | DL12: =INDIRECT("'3 - Alt Num Lanes Input'!AQ"&$DB12) -> 0 | DM12: =INDIRECT("'3 - Alt Num Lanes Input'!AS"&$DB12) -> 0 | DN12: =INDIRECT("'3 - Alt Num Lanes Input'!AU"&$DB12) -> 2 | DO12: =INDIRECT("'3 - Alt Num Lanes Input'!AW"&$DB12) -> 0 | DP12: =INDIRECT("'3 - Alt Num Lanes Input'!AY"&$DB12) -> 0 | DQ12: =INDIRECT("'3 - Alt Num Lanes Input'!BA"&$DB12) -> 0 | DR12: =INDIRECT("'3 - Alt Num Lanes Input'!BC"&$DB12) -> 2 | DS12: =INDIRECT("'3 - Alt Num Lanes Input'!BE"&$DB12) -> 0 | DT12: =INDIRECT("'5a - Detailed Report'!X"&$DC12) -> 0 | DU12: 0 | DV12: =INDIRECT("'5a - Detailed Report'!AD"&$DC12) -> 0 | DW12: 0 | DX12: =INDIRECT("'5a - Detailed Report'!AJ"&$DC12) -> 0 | DY12: 0 | DZ12: =INDIRECT("'5a - Detailed Report'!AP"&$DC12) -> 0 | EA12: 0 | EB12: =INDIRECT("'5a - Detailed Report'!AV"&$DC12) -> 0 | EC12: 0 | ED12: =INDIRECT("'5a - Detailed Report'!BB"&$DC12) -> 0 | EE12: 0 | EF12: 0 | EG12: Enter Ramp Terminal and/or Street Speeds | EH12: Check Speed Limit and/or Lane Input | EI12: 0
CZ13: Partial Cloverleaf B | DB13: =121-$DB$1 -> 121 | DC13: =329-$DB$1 -> 329 | DD13: =INDIRECT("'3 - Alt Num Lanes Input'!AA"&$DB13) -> 0 | DE13: =INDIRECT("'3 - Alt Num Lanes Input'!AC"&$DB13) -> 0 | DF13: =INDIRECT("'3 - Alt Num Lanes Input'!AE"&$DB13) -> 0 | DG13: =INDIRECT("'3 - Alt Num Lanes Input'!AG"&$DB13) -> 0 | DH13: =INDIRECT("'3 - Alt Num Lanes Input'!AI"&$DB13) -> 0 | DI13: =INDIRECT("'3 - Alt Num Lanes Input'!AK"&$DB13) -> 0 | DJ13: =INDIRECT("'3 - Alt Num Lanes Input'!AM"&$DB13) -> 0 | DK13: =INDIRECT("'3 - Alt Num Lanes Input'!AO"&$DB13) -> 0 | DL13: =INDIRECT("'3 - Alt Num Lanes Input'!AQ"&$DB13) -> 0 | DM13: =INDIRECT("'3 - Alt Num Lanes Input'!AS"&$DB13) -> 1 | DN13: =INDIRECT("'3 - Alt Num Lanes Input'!AU"&$DB13) -> 2 | DO13: =INDIRECT("'3 - Alt Num Lanes Input'!AW"&$DB13) -> 0 | DP13: =INDIRECT("'3 - Alt Num Lanes Input'!AY"&$DB13) -> 0 | DQ13: =INDIRECT("'3 - Alt Num Lanes Input'!BA"&$DB13) -> 1 | DR13: =INDIRECT("'3 - Alt Num Lanes Input'!BC"&$DB13) -> 2 | DS13: =INDIRECT("'3 - Alt Num Lanes Input'!BE"&$DB13) -> 0 | DT13: =INDIRECT("'5a - Detailed Report'!X"&$DC13) -> 0 | DU13: 0 | DV13: =INDIRECT("'5a - Detailed Report'!AD"&$DC13) -> 0 | DW13: 0 | DX13: =INDIRECT("'5a - Detailed Report'!AJ"&$DC13) -> 0 | DY13: 0 | DZ13: =INDIRECT("'5a - Detailed Report'!AP"&$DC13) -> 0 | EA13: 0 | EB13: =INDIRECT("'5a - Detailed Report'!AV"&$DC13) -> 0 | EC13: 0 | ED13: =INDIRECT("'5a - Detailed Report'!BB"&$DC13) -> 0 | EE13: 0 | EF13: 0 | EG13: Enter Ramp Terminal and/or Street Speeds | EH13: Check Speed Limit and/or Lane Input | EI13: 0
D14: =IF(Input_NumLegs = 3,'1 - Volume Input'!E18, '1 - Volume Input'!E16) -> Major Street Direction | L14: =IF(Input_NumLegs = 3, Input_MinorStreetLeg, '1 - Volume Input'!M16) -> North-South | CZ14: 1x1 Roundabout Ramp Terminal | DB14: =145-$DB$1 -> 145 | DC14: =353-$DB$1 -> 353 | DD14: -- | DE14: -- | DF14: -- | DG14: -- | DH14: -- | DI14: -- | DJ14: -- | DK14: -- | DL14: -- | DM14: -- | DN14: -- | DO14: -- | DP14: -- | DQ14: -- | DR14: -- | DS14: -- | DU14: 0 | DW14: 0 | DY14: 0 | EA14: 0 | EC14: 0 | EE14: 0 | EF14: 0 | EG14: Enter Ramp Terminal and/or Street Speeds | EH14: Check Speed Limit and/or Lane Input
CZ15: 2x2 Roundabout Ramp Terminal | DB15: =149-$DB$1 -> 149 | DC15: =357-$DB$1 -> 357 | DD15: -- | DE15: -- | DF15: -- | DG15: -- | DH15: -- | DI15: -- | DJ15: -- | DK15: -- | DL15: -- | DM15: -- | DN15: -- | DO15: -- | DP15: -- | DQ15: -- | DR15: -- | DS15: -- | DU15: 0 | DW15: 0 | DY15: 0 | EA15: 0 | EC15: 0 | EE15: 0 | EF15: 0 | EG15: Enter Ramp Terminal and/or Street Speeds | EH15: Check Speed Limit and/or Lane Input
CZ16: No Existing Intersection | DB16: - | DC16: - | DD16: 0 | DE16: 0 | DF16: 0 | DG16: 0 | DH16: 0 | DI16: 0 | DJ16: 0 | DK16: 0 | DL16: 0 | DM16: 0 | DN16: 0 | DO16: 0 | DP16: 0 | DQ16: 0 | DR16: 0 | DS16: 0 | DT16: 0 | DU16: 0 | DV16: 0 | DW16: 0 | DX16: 0 | DY16: 0 | DZ16: 0 | EA16: 0 | EB16: 0 | EC16: 0 | ED16: 0 | EE16: 0 | EF16: 0 | EG16: 0 | EH16: 0 | EI16: 0
D17: Existing Intersection Configuration | AH17: Two-Way Stop Control | CZ17: *Will likely want note that existing lanes needs to be configured in step 3
D20: Number of Lanes for Existing Configuration (Can be edited in "3- Alt Num Lanes Input" as needed)
D22: TYPE OF INTERSECTION | U22: Sheet | AA22: Northbound | AI22: Southbound | AQ22: Eastbound | AY22: Westbound
AA24: U | AC24: L | AE24: T | AG24: R | AI24: U | AK24: L | AM24: T | AO24: R | AQ24: U | AS24: L | AU24: T | AW24: R | AY24: U | BA24: L | BC24: T | BE24: R
D26: =AH17 -> Two-Way Stop Control | U26: =IFERROR(IF(VLOOKUP(AH17,$CZ$4:$DC$16,3,FALSE)>0,INDIRECT("'3 - Alt Num Lanes Input'!V"&VLOOKUP(AH17,$CZ$4:$DC$16,3,FALSE)),INDIRECT("'4a - Detailed Results'!E"&VLOOKUP(AH17,$CZ$4:$DC$16,4,FALSE))),"") -> N-S | AC26: =VLOOKUP($AH$17,$CZ$4:$DS$16,6,FALSE) -> 1 | AE26: =VLOOKUP($AH$17,$CZ$4:$DS$16,7,FALSE) -> 2 | AG26: =VLOOKUP($AH$17,$CZ$4:$DS$16,8,FALSE) -> 1 | AK26: =VLOOKUP($AH$17,$CZ$4:$DS$16,10,FALSE) -> 1 | AM26: =VLOOKUP($AH$17,$CZ$4:$DS$16,11,FALSE) -> 2 | AO26: =VLOOKUP($AH$17,$CZ$4:$DS$16,12,FALSE) -> 1 | AS26: =VLOOKUP($AH$17,$CZ$4:$DS$16,14,FALSE) -> 0 | AU26: =VLOOKUP($AH$17,$CZ$4:$DS$16,15,FALSE) -> 2 | AW26: =VLOOKUP($AH$17,$CZ$4:$DS$16,16,FALSE) -> 0 | BA26: =VLOOKUP($AH$17,$CZ$4:$DS$16,18,FALSE) -> 1 | BC26: =VLOOKUP($AH$17,$CZ$4:$DS$16,19,FALSE) -> 2 | BE26: =VLOOKUP($AH$17,$CZ$4:$DS$16,20,FALSE) -> 1
D29: Results for Existing Configuration
D31: TYPE OF INTERSECTION | Q31: Sheet | W31: =IF($C$35=1,'Detailed Results'!AD20,IF($C$35=2,'Detailed Results'!L95,'Detailed Results'!X116)) -> Zone 1 (North) | AC31: =IF($C$35=1,'Detailed Results'!AJ20,IF($C$35=2,'Detailed Results'!X95,'Detailed Results'!AD116)) -> Zone 2 (South) | AI31: =IF($C$35=1,'Detailed Results'!AP20,IF($C$35=2,'Detailed Results'!AJ95,'Detailed Results'!AJ116)) -> Zone 3 (East) | AO31: =IF($C$35=1,'Detailed Results'!AV20,IF($C$35=2,'Detailed Results'!AV95,'Detailed Results'!AP116)) -> Zone 4 (West) | AU31: =IF($C$35=1,'Detailed Results'!BB20,IF($C$35=2,"",'Detailed Results'!AV116)) -> Zone 5 (Center) | BA31: =IF($C$35=1,"",IF($C$35=2,"",'Detailed Results'!BB116)) -> 
W33: =IF(W31<>"",IF($C$35=2,"V/C","CLV"),"") -> CLV | Z33: =IF(W31<>"","V/C","") -> V/C | AC33: =IF(AC31<>"",IF($C$35=2,"V/C","CLV"),"") -> CLV | AF33: =IF(AC31<>"","V/C","") -> V/C | AI33: =IF(AI31<>"",IF($C$35=2,"V/C","CLV"),"") -> CLV | AL33: =IF(AI31<>"","V/C","") -> V/C | AO33: =IF(AO31<>"",IF($C$35=2,"V/C","CLV"),"") -> CLV | AR33: =IF(AO31<>"","V/C","") -> V/C | AU33: =IF(AU31<>"","CLV","") -> CLV | AX33: =IF(AU31<>"","V/C","") -> V/C | BA33: =IF(BA31<>"","CLV","") ->  | BD33: =IF(BA31<>"","V/C","") -> 
C35: =IF(VLOOKUP(AH17,$CZ$4:$DC$16,3,FALSE)<0,2,IF(VLOOKUP(AH17,$CZ$4:$DC$16,3,FALSE)>80,3,1)) -> 1 | D35: =AH17 -> Two-Way Stop Control | Q35: =IFERROR(IF(VLOOKUP(AH17,$CZ$4:$DC$16,3,FALSE)>0,INDIRECT("'3 - Alt Num Lanes Input'!V"&VLOOKUP(AH17,$CZ$4:$DC$16,3,FALSE)),INDIRECT("'4a - Detailed Results'!E"&VLOOKUP(AH17,$CZ$4:$DC$16,4,FALSE))),"") -> N-S | W35: =VLOOKUP($AH$17,$CZ$4:$EE$16,21,FALSE) -> 0 | Z35: =VLOOKUP($AH$17,$CZ$4:$EE$16,22,FALSE) -> 0 | AC35: =IF($C$35<>2,VLOOKUP($AH$17,$CZ$4:$EE$16,23,FALSE),VLOOKUP($AH$17,$CZ$4:$EE$16,24,FALSE)) -> 0 | AF35: =IF($C$35<>2,VLOOKUP($AH$17,$CZ$4:$EE$16,24,FALSE),VLOOKUP($AH$17,$CZ$4:$EE$16,25,FALSE)) -> 0 | AI35: =IF($C$35<>2,VLOOKUP($AH$17,$CZ$4:$EE$16,25,FALSE),VLOOKUP($AH$17,$CZ$4:$EE$16,27,FALSE)) -> 0 | AL35: =IF($C$35<>2,VLOOKUP($AH$17,$CZ$4:$EE$16,26,FALSE),VLOOKUP($AH$17,$CZ$4:$EE$16,28,FALSE)) -> 0 | AO35: =IF($C$35<>2,VLOOKUP($AH$17,$CZ$4:$EE$16,27,FALSE),VLOOKUP($AH$17,$CZ$4:$EE$16,30,FALSE)) -> 0 | AR35: =IF($C$35<>2,VLOOKUP($AH$17,$CZ$4:$EE$16,28,FALSE),VLOOKUP($AH$17,$CZ$4:$EE$16,31,FALSE)) -> 0 | AU35: =IF($C$35<>2,VLOOKUP($AH$17,$CZ$4:$EE$16,29,FALSE),0) -> -- | AX35: =IF($C$35<>2,VLOOKUP($AH$17,$CZ$4:$EE$16,30,FALSE),0) -> 0.0006116205921 | BA35: =IF($C$35<>2,VLOOKUP($AH$17,$CZ$4:$EE$16,31,FALSE),0) -> 0 | BD35: =IF($C$35<>2,VLOOKUP($AH$17,$CZ$4:$EE$16,32,FALSE),0) -> 0
D38: Existing Configuration Results
D40: Overall v/c Ratio | J40: =IFERROR(VLOOKUP($AH$17,$CZ$4:$EI$16,33,FALSE),0) -> 0.0006116205921 | Q40: Pedestrian Accommodation Score | AG40: =IFERROR(VLOOKUP($AH$17,$CZ$4:$EI$16,34,FALSE),0) -> Enter Major/Minor Street Speeds | AL40: Bicycle Accommodation Score | BB40: =IFERROR(VLOOKUP($AH$17,$CZ$4:$EI$16,35,FALSE),0) -> Check Speed Limit and/or Lane Input
A43: Step 2B: Alternative Selection
BG45: Yes
D46: Rankings Inclusion | AH46: Yes/No | AN46: Comment | BG46: No
C47: =IF(AH47=$BG$45,TRUE,FALSE) -> TRUE | D47: At-Grade Non-Roundabout Intersections? | AH47: Yes
C48: =IF(AH48=$BG$45,TRUE,FALSE) -> FALSE | D48: ='3 - Alt Num Lanes Input'!E24 -> Traffic Signal | AH48: No
C49: FALSE | D49: ='3 - Alt Num Lanes Input'!E26 -> Traffic Signal (Alt.) | AH49: No
C50: FALSE | D50: ='3 - Alt Num Lanes Input'!E28 -> Two-Way Stop Control | AH50: No
C51: FALSE | D51: ='3 - Alt Num Lanes Input'!E32 -> All-Way Stop Control | AH51: No
C52: FALSE | D52: Continuous Green T | AH52: No
C53: FALSE | D53: Quadrant Roadway | AB53: S-W | AH53: No
C54: FALSE | AB54: N-E | AH54: No
C55: FALSE | AB55: S-E | AH55: No
C56: FALSE | AB56: N-W | AH56: No
C57: FALSE | D57: Partial Displaced Left Turn | AH57: No
C58: FALSE | D58: Displaced Left Turn | AH58: No
C59: FALSE | D59: ='3 - Alt Num Lanes Input'!E56 -> Signalized Restricted Crossing U-Turn | AH59: No
C60: FALSE | D60: ='3 - Alt Num Lanes Input'!E60 -> Unsignalized Restricted Crossing U-Turn | AH60: No
C61: FALSE | D61: Median U-Turn | AH61: No
C62: FALSE | D62: Partial Median U-Turn | AH62: No
C63: FALSE | D63: Bowtie | AH63: No
C64: =IF(AH64=$BG$45,TRUE,FALSE) -> FALSE | D64: Signalized ThruCut | AH64: No
C65: =IF(AH65=$BG$45,TRUE,FALSE) -> FALSE | D65: Unsignalized ThruCut | AH65: No
C66: =IF(AH66=$BG$45,TRUE,FALSE) -> FALSE | D66: Roundabouts? | AH66: No
C67: =IF(AH67=$BG$45,TRUE,FALSE) -> FALSE | D67: 50 ICD Miniroundabout | AH67: No
C68: FALSE | D68: 75 ICD Miniroundabout | AH68: No
C69: FALSE | D69: 1x1 | AH69: No
C70: =IF(AH70=$BG$45,TRUE,FALSE) -> FALSE | D70: 1NS x 2EW | AH70: No
C71: FALSE | D71: 2NS x 1EW | AH71: No
C72: FALSE | D72: 2x2 | AH72: No
C73: FALSE | D73: 3x3 | AH73: No
C74: FALSE | D74: Ramp Terminal Intersections? | AH74: No
C75: FALSE | D75: Diamond | AH75: No
C76: FALSE | D76: Diamond Alternative | AH76: No
C77: =IF(AH77=$BG$45,TRUE,FALSE) -> FALSE | D77: Diamond Stop Control | AH77: No
C78: =IF(AH78=$BG$45,TRUE,FALSE) -> FALSE | D78: Signalized Tight Diamond | AH78: No
C79: FALSE | D79: Partial Cloverleaf A | AH79: No
C80: FALSE | D80: Partial Cloverleaf B | AH80: No
C81: =IF(AH81=$BG$45,TRUE,FALSE) -> FALSE | D81: Two Quadrant Partial Cloverleaf A Signalized | AH81: No
C82: =IF(AH82=$BG$45,TRUE,FALSE) -> FALSE | D82: Two Quadrant Partial Cloverleaf B Signalized | AH82: No
C83: =IF(AH83=$BG$45,TRUE,FALSE) -> FALSE | D83: Diverging Diamond | AH83: No
C84: =IF(AH84=$BG$45,TRUE,FALSE) -> FALSE | D84: Single Point Diamond | AH84: No
C85: FALSE | D85: Displaced Left Turn Interchange | AH85: No
C86: FALSE | D86: Roundabout (1X1) | AH86: No
C87: =IF(AH87=$BG$45,TRUE,FALSE) -> FALSE | D87: Roundabout (2X2) | AH87: No
C88: =IF(AH88=$BG$45,TRUE,FALSE) -> FALSE | D88: Half Diamond Signalized | AH88: No
A89: Continue to Step 3

Sheet LanesDefaults (hidden)
B1: Capacity Analysis for Planning of Junctions Capacity Analysis for Planning of Junctions
B3: Input Worksheet 2
E8: Project Name: | M8: -
E10: Project Number: | M10: --
E12: Location | M12: --
E14: Date | M14: --
E18: Number of Lanes for Non-roundabout Intersections
E20: TYPE OF INTERSECTION | V20: Sheet | AA20: Northbound | AI20: Southbound | AQ20: Eastbound | AY20: Westbound
AA22: U | AC22: L | AE22: T | AG22: R | AI22: U | AK22: L | AM22: T | AO22: R | AQ22: U | AS22: L | AU22: T | AW22: R | AY22: U | BA22: L | BC22: T | BE22: R
E24: Traffic Signal | V24: FULL | AC24: 1 | AE24: 2 | AG24: 1 | AK24: 1 | AM24: 2 | AO24: 1 | AS24: 1 | AU24: 2 | AW24: 1 | BA24: 1 | BC24: 2 | BE24: 1
E26: Traffic Signal (Alt.) | V26: FULL | AC26: 1 | AE26: 2 | AG26: 1 | AK26: 1 | AM26: 2 | AO26: 1 | AS26: 1 | AU26: 2 | AW26: 1 | BA26: 1 | BC26: 2 | BE26: 1
E28: Two-Way Stop Control | V28: FULL | AC28: 1 | AE28: 2 | AG28: 1 | AK28: 1 | AM28: 2 | AO28: 1 | AS28: 1 | AU28: 2 | AW28: 1 | BA28: 1 | BC28: 2 | BE28: 1
V30: N-S | AC30: 1 | AE30: 2 | AG30: 1 | AK30: 1 | AM30: 2 | AO30: 1 | AS30: 1 | AU30: 2 | AW30: 1 | BA30: 1 | BC30: 2 | BE30: 1
E32: All-Way Stop Control | V32: E-W | AC32: 1 | AE32: 2 | AG32: 1 | AK32: 1 | AM32: 2 | AO32: 1 | AS32: 1 | AU32: 2 | AW32: 1 | BA32: 1 | BC32: 2 | BE32: 1
E34: Continuous Green T | V34: W | AC34: 1 | AE34: 2 | AM34: 2 | AO34: 1 | AS34: 1 | AW34: 1
V36: N | AK36: 1 | AO36: 1 | AS36: 1 | AU36: 2 | BC36: 2 | BE36: 1
V38: E | AE38: 2 | AG38: 1 | AK38: 1 | AM38: 2 | BA38: 1 | BE38: 1
V40: S | AC40: 1 | AG40: 1 | AU40: 2 | AW40: 1 | BA40: 1 | BC40: 2
E42: Quadrant Roadway | V42: S-W | AA42: Use the respective intersection tab(s) to specify the # of lanes inputs.
V44: N-E
V46: S-E
V48: N-W
E50: Partial Displaced Left Turn | V50: N-S | AC50: 1 | AE50: 2 | AG50: 1 | AK50: 1 | AM50: 2 | AO50: 1 | AS50: 1 | AU50: 2 | AW50: 1 | BA50: 1 | BC50: 2 | BE50: 1
V52: E-W | AC52: 1 | AE52: 2 | AG52: 1 | AK52: 1 | AM52: 2 | AO52: 1 | AS52: 1 | AU52: 2 | AW52: 1 | BA52: 1 | BC52: 2 | BE52: 1
E54: Displaced Left Turn | V54: FULL | AC54: 1 | AE54: 2 | AG54: 1 | AK54: 1 | AM54: 2 | AO54: 1 | AS54: 1 | AU54: 2 | AW54: 1 | BA54: 1 | BC54: 2 | BE54: 1
E56: Signalized Restricted Crossing U-Turn | V56: N-S | AA56: 1 | AC56: 1 | AE56: 2 | AG56: 1 | AI56: 1 | AK56: 1 | AM56: 2 | AO56: 1 | AW56: 1 | BE56: 1
V58: E-W | AG58: 1 | AO58: 1 | AQ58: 1 | AS58: 1 | AU58: 2 | AW58: 1 | AY58: 1 | BA58: 1 | BC58: 2 | BE58: 1
E60: Unsignalized Restricted Crossing U-Turn | V60: N-S | AA60: 1 | AC60: 1 | AE60: 2 | AG60: 1 | AI60: 1 | AK60: 1 | AM60: 2 | AO60: 1 | AW60: 1 | BE60: 1
V62: E-W | AG62: 1 | AO62: 1 | AQ62: 1 | AS62: 1 | AU62: 2 | AW62: 1 | AY62: 1 | BA62: 1 | BC62: 2 | BE62: 1
E64: Median U-Turn | V64: N-S | AA64: 1 | AE64: 2 | AG64: 1 | AI64: 1 | AM64: 2 | AO64: 1 | AU64: 2 | AW64: 1 | BC64: 2 | BE64: 1
V66: E-W | AE66: 2 | AG66: 1 | AM66: 2 | AO66: 1 | AQ66: 1 | AU66: 2 | AW66: 1 | AY66: 1 | BC66: 2 | BE66: 1
E68: Partial Median U-Turn | V68: N-S | AA68: 1 | AE68: 2 | AG68: 1 | AI68: 1 | AM68: 2 | AO68: 1 | AS68: 1 | AU68: 2 | AW68: 1 | BA68: 1 | BC68: 2 | BE68: 1
V70: E-W | AC70: 1 | AE70: 2 | AG70: 1 | AK70: 1 | AM70: 2 | AO70: 1 | AQ70: 1 | AU70: 2 | AW70: 1 | AY70: 1 | BC70: 2 | BE70: 1
E72: Signalized ThruCut | V72: N-S | AC72: 1 | AE72: 2 | AG72: 1 | AK72: 1 | AM72: 2 | AO72: 1 | AS72: 1 | AW72: 1 | BA72: 1 | BE72: 1
V74: E-W | AC74: 1 | AG74: 1 | AK74: 1 | AO74: 1 | AS74: 1 | AU74: 2 | AW74: 1 | BA74: 1 | BC74: 2 | BE74: 1
E76: Unsignalized ThruCut | V76: N-S | AC76: 1 | AE76: 2 | AG76: 1 | AK76: 1 | AM76: 2 | AO76: 1 | AS76: 1 | AW76: 1 | BA76: 1 | BE76: 1
V78: E-W | AC78: 1 | AG78: 1 | AK78: 1 | AO78: 1 | AS78: 1 | AU78: 2 | AW78: 1 | BA78: 1 | BC78: 2 | BE78: 1
E80: Bowtie | V80: N-S | AE80: 2 | AG80: 1 | AM80: 2 | AO80: 1 | AU80: 1 | AW80: 1 | BC80: 1 | BE80: 1
V82: E-W | AE82: 1 | AG82: 1 | AM82: 1 | AO82: 1 | AU82: 2 | AW82: 1 | BC82: 2 | BE82: 1
B87: Capacity Analysis for Planning of Junctions Capacity Analysis for Planning of Junctions
B89: Input Worksheet 2
E93: Number of Lanes for Interchanges
E95: TYPE OF INTERCHANGE | V95: Sheet | AA95: Northbound | AI95: Southbound | AQ95: Eastbound | AY95: Westbound
AA97: U | AC97: L | AE97: T | AG97: R | AI97: U | AK97: L | AM97: T | AO97: R | AQ97: U | AS97: L | AU97: T | AW97: R | AY97: U | BA97: L | BC97: T | BE97: R
E99: Diamond | V99: N-S | AC99: 1 | AE99: 2 | AG99: 1 | AK99: 1 | AM99: 2 | AO99: 1 | AS99: 1 | AU99: 2 | AW99: 1 | BA99: 1 | BC99: 2 | BE99: 1
V101: E-W | AC101: 1 | AE101: 2 | AG101: 1 | AK101: 1 | AM101: 2 | AO101: 1 | AS101: 1 | AU101: 2 | AW101: 1 | BA101: 1 | BC101: 2 | BE101: 1
E103: Diamond (Alt) | V103: N-S | AC103: 1 | AE103: 2 | AG103: 1 | AK103: 1 | AM103: 2 | AO103: 1 | AS103: 1 | AU103: 2 | AW103: 1 | BA103: 1 | BC103: 2 | BE103: 1
V105: E-W | AC105: 1 | AE105: 2 | AG105: 1 | AK105: 1 | AM105: 2 | AO105: 1 | AS105: 1 | AU105: 2 | AW105: 1 | BA105: 1 | BC105: 2 | BE105: 1
E107: Diamond Stop Control | V107: N-S | AC107: 1 | AE107: 2 | AG107: 1 | AK107: 1 | AM107: 2 | AO107: 1 | AS107: 1 | AU107: 2 | AW107: 1 | BA107: 1 | BC107: 2 | BE107: 1
V109: E-W | AC109: 1 | AE109: 2 | AG109: 1 | AK109: 1 | AM109: 2 | AO109: 1 | AS109: 1 | AU109: 2 | AW109: 1 | BA109: 1 | BC109: 2 | BE109: 1
E111: Signalized Tight Diamond | V111: N-S | AC111: 1 | AE111: 2 | AG111: 1 | AK111: 1 | AM111: 2 | AO111: 1 | AS111: 1 | AU111: 2 | AW111: 1 | BA111: 1 | BC111: 2 | BE111: 1
V113: E-W | AC113: 1 | AE113: 2 | AG113: 1 | AK113: 1 | AM113: 2 | AO113: 1 | AS113: 1 | AU113: 2 | AW113: 1 | BA113: 1 | BC113: 2 | BE113: 1
E115: Partial Cloverleaf A | V115: N-S | AE115: 2 | AM115: 2 | AS115: 1 | BA115: 1
V117: E-W | AC117: 1 | AK117: 1 | AU117: 2 | BC117: 2
E119: Partial Cloverleaf B | V119: N-S | AC119: 1 | AE119: 2 | AK119: 1 | AM119: 2
V121: E-W | AS121: 1 | AU121: 2 | BA121: 1 | BC121: 2
E123: Two Quadrant Partial Cloverleaf A Signalized | V123: N-S | AC123: 1 | AE123: 2 | AG123: 1 | AK123: 1 | AM123: 2 | AO123: 1 | AS123: 1 | AU123: 2 | AW123: 1 | BA123: 1 | BC123: 2 | BE123: 1
V125: E-W | AC125: 1 | AE125: 2 | AG125: 1 | AK125: 1 | AM125: 2 | AO125: 1 | AS125: 1 | AU125: 2 | AW125: 1 | BA125: 1 | BC125: 2 | BE125: 1
E127: Two Quadrant Partial Cloverleaf B Signalized | V127: N-S | AC127: 1 | AE127: 2 | AG127: 1 | AK127: 1 | AM127: 2 | AO127: 1 | AS127: 1 | AU127: 2 | AW127: 1 | BA127: 1 | BC127: 2 | BE127: 1
V129: E-W | AC129: 1 | AE129: 2 | AG129: 1 | AK129: 1 | AM129: 2 | AO129: 1 | AS129: 1 | AU129: 2 | AW129: 1 | BA129: 1 | BC129: 2 | BE129: 1
E131: Diverging Diamond | V131: N-S | AC131: 1 | AE131: 2 | AG131: 1 | AK131: 1 | AM131: 2 | AO131: 1 | AS131: 1 | AW131: 1 | BA131: 1 | BE131: 1
V133: E-W | AC133: 1 | AG133: 1 | AK133: 1 | AO133: 1 | AS133: 1 | AU133: 2 | AW133: 1 | BA133: 1 | BC133: 2 | BE133: 1
E135: Single Point Diamond | V135: N-S | AC135: 1 | AE135: 2 | AG135: 1 | AK135: 1 | AM135: 2 | AO135: 1 | AS135: 1 | AU135: 2 | AW135: 1 | BA135: 1 | BC135: 2 | BE135: 1
V137: E-W | AC137: 1 | AE137: 2 | AG137: 1 | AK137: 1 | AM137: 2 | AO137: 1 | AS137: 1 | AU137: 2 | AW137: 1 | BA137: 1 | BC137: 2 | BE137: 1
E139: Displaced Left Turn Interchange | V139: N-S | AC139: 1 | AE139: 2 | AG139: 1 | AK139: 1 | AM139: 2 | AO139: 1 | AS139: 1 | AU139: 2 | AW139: 1 | BA139: 1 | BC139: 2 | BE139: 1
V141: E-W | AC141: 1 | AE141: 2 | AG141: 1 | AK141: 1 | AM141: 2 | AO141: 1 | AS141: 1 | AU141: 2 | AW141: 1 | BA141: 1 | BC141: 2 | BE141: 1
E143: Roundabout (1X1) | V143: N-S
V145: E-W
E147: Roundabout (2X2) | V147: N-S
V149: E-W
E151: Half Diamond Signalized | V151: N | AK151: 1 | AO151: 1 | AS151: 1 | AU151: 2 | BC151: 2 | BE151: 1
V153: S | AC153: 1 | AG153: 1 | AU153: 2 | AW153: 1 | BA153: 1 | BC153: 2
V155: E | AE155: 2 | AG155: 1 | AK155: 1 | AM155: 2 | BA155: 1 | BE155: 1
V157: W | AC157: 1 | AE157: 2 | AM157: 2 | AO157: 1 | AS157: 1 | AW157: 1

Sheet 3 - Alt Num Lanes Input
B1: Capacity Analysis for Planning of Junctions Capacity Analysis for Planning of Junctions | BL1: Capacity Analysis for Planning of Junctions Capacity Analysis for Planning of Junctions
B3: Input Worksheet 2 | BL3: Input Worksheet 2
E8: Project Name | M8: =P_Name -> 0 | BO8: Project Name | BW8: =M8 -> 0
E10: Project Number | M10: =P_Number -> 0 | BO10: Project Number | BW10: =M10 -> 0
E12: Location | M12: =Location -> 0 | BO12: Location | BW12: =M12 -> 0
E14: Date | M14: =Date -> 0 | BO14: Date | BW14: =M14 -> 00:00:00
E16: Analysis Type | M16: =Intx_type -> At-Grade Intersections and Interchanges | BH16: At-Grade Intersections and Interchanges | BO16: Analysis Type | BW16: =Intx_type -> At-Grade Intersections and Interchanges
BH17: At-Grade Intersections Only
E18: Number of Lanes for Non-roundabout Intersections | BO18: Volume Echo with Shared Lane Adjustment for Non-roundabout Intersections
E20: TYPE OF INTERSECTION | V20: Sheet | AA20: Northbound | AI20: Southbound | AQ20: Eastbound | AY20: Westbound | BO20: TYPE OF INTERSECTION | CF20: Sheet | CK20: Northbound | CS20: Southbound | DA20: Eastbound | DI20: Westbound
AA22: U | AC22: L | AE22: T | AG22: R | AI22: U | AK22: L | AM22: T | AO22: R | AQ22: U | AS22: L | AU22: T | AW22: R | AY22: U | BA22: L | BC22: T | BE22: R | CK22: U | CM22: L | CO22: T | CQ22: R | CS22: U | CU22: L | CW22: T | CY22: R | DA22: U | DC22: L | DE22: T | DG22: R | DI22: U | DK22: L | DM22: T | DO22: R
E24: Traffic Signal | V24: FULL | AC24: 1 | AE24: 2 | AG24: 1 | AK24: 1 | AM24: 2 | AO24: 1 | AS24: 1 | AU24: 2 | AW24: 1 | BA24: 1 | BC24: 2 | BE24: 1 | BO24: ='3 - Alt Num Lanes Input'!E24 -> Traffic Signal | CF24: FULL | CM24: =IF(AC24>0,NBL_Master,0) -> 0 | CO24: =NBT_Master + IF(AC24=0,NBL_Master,0) + IF(AG24=0,NBR_Master) -> 0 | CQ24: =IF(AG24>0,NBR_Master,0) -> 0 | CU24: =IF(AK24>0,SBL_Master,0) -> 0 | CW24: =SBT_Master + IF(AK24=0,SBL_Master,0) + IF(AO24=0,SBR_Master) -> 0 | CY24: =IF(AO24>0,SBR_Master,0) -> 0 | DC24: =IF(AS24>0,EBL_Master,0) -> 0 | DE24: =EBT_Master + IF(AS24=0,EBL_Master,0) + IF(AW24=0,EBR_Master) -> 0 | DG24: =IF(AW24>0,EBR_Master,0) -> 0 | DK24: =IF(BA24>0,WBL_Master,0) -> 0 | DM24: =WBT_Master + IF(BA24=0,WBL_Master,0) + IF(BE24=0,WBR_Master) -> 0 | DO24: =IF(BE24>0,WBR_Master,0) -> 0
E26: Traffic Signal (Alt.) | V26: FULL | AC26: 1 | AE26: 2 | AG26: 1 | AK26: 1 | AM26: 2 | AO26: 1 | AS26: 1 | AU26: 2 | AW26: 1 | BA26: 1 | BC26: 2 | BE26: 1 | BO26: Traffic Signal (Alt.) | CF26: FULL | CM26: =IF(AC26>0,NBL_Master,0) -> 0 | CO26: =NBT_Master + IF(AC26=0,NBL_Master,0) + IF(AG26=0,NBR_Master) -> 0 | CQ26: =IF(AG26>0,NBR_Master,0) -> 0 | CU26: =IF(AK26>0,SBL_Master,0) -> 0 | CW26: =SBT_Master + IF(AK26=0,SBL_Master,0) + IF(AO26=0,SBR_Master) -> 0 | CY26: =IF(AO26>0,SBR_Master,0) -> 0 | DC26: =IF(AS26>0,EBL_Master,0) -> 0 | DE26: =EBT_Master + IF(AS26=0,EBL_Master,0) + IF(AW26=0,EBR_Master) -> 0 | DG26: =IF(AW26>0,EBR_Master,0) -> 0 | DK26: =IF(BA26>0,WBL_Master,0) -> 0 | DM26: =WBT_Master + IF(BA26=0,WBL_Master,0) + IF(BE26=0,WBR_Master) -> 0 | DO26: =IF(BE26>0,WBR_Master,0) -> 0
E28: Two-Way Stop Control | V28: N-S | AC28: 1 | AE28: 2 | AG28: 1 | AK28: 1 | AM28: 2 | AO28: 1 | AS28: 0 | AU28: 2 | AW28: 0 | BA28: 1 | BC28: 2 | BE28: 1 | BO28: =E28 -> Two-Way Stop Control | CF28: N-S | CM28: =IF(AC28>0,NBL_Master,0) -> 0 | CO28: =NBT_Master + IF(AC28=0,NBL_Master,0) + IF(AG28=0,NBR_Master) -> 0 | CQ28: =IF(AG28>0,NBR_Master,0) -> 0 | CU28: =IF(AK28>0,SBL_Master,0) -> 0 | CW28: =SBT_Master + IF(AK28=0,SBL_Master,0) + IF(AO28=0,SBR_Master) -> 0 | CY28: =IF(AO28>0,SBR_Master,0) -> 0 | DC28: =IF(AS28>0,IF(Input_NumLegs=4,EBL_Master, EBL_Master + IF(AW28>0,0,EBR_Master)),0) -> 0 | DE28: =EBT_Master + IF(AS28=0,EBL_Master,0) + IF(AW28=0,EBR_Master) -> 0 | DG28: =IF(AW28>0,IF(Input_NumLegs=4,EBR_Master,EBR_Master + IF(AS28>0,0,EBL_Master)),0) -> 0 | DK28: =IF(BA28>0,IF(Input_NumLegs=4,WBL_Master,WBL_Master + IF(BE28>0,0,WBR_Master)),0) -> 0 | DM28: =WBT_Master + IF(BA28=0,WBL_Master,0) + IF(BE28=0,WBR_Master) -> 0 | DO28: =IF(BE28>0,IF(Input_NumLegs=4,WBR_Master,WBR_Master+ IF(BA28>0,0,WBL_Master)),0) -> 0
V30: E-W | AC30: 0 | AE30: 2 | AG30: 1 | AK30: 1 | AM30: 2 | AO30: 1 | AS30: 1 | AU30: 2 | AW30: 1 | BA30: 1 | BC30: 2 | BE30: 1 | CF30: E-W | CM30: =IF(AC30>0,IF(Input_NumLegs=4,NBL_Master,NBL_Master+IF(AG30>0,0,NBR_Master)),0) -> 0 | CO30: =NBT_Master + IF(AC30=0,NBL_Master,0) + IF(AG30=0,NBR_Master) -> 0 | CQ30: =IF(AG30>0,IF(Input_NumLegs=4,NBR_Master,NBR_Master + IF(AC30>0,0,NBL_Master)),0) -> 0 | CU30: =IF(AK30>0,IF(Input_NumLegs=4,SBL_Master,SBL_Master + IF(AO30>0,0,SBR_Master)),0) -> 0 | CW30: =SBT_Master + IF(AK30=0,SBL_Master,0) + IF(AO30=0,SBR_Master) -> 0 | CY30: =IF(AO30>0,IF(Input_NumLegs=4,SBR_Master,SBR_Master + IF(AK30>0,0,SBL_Master)),0) -> 0 | DC30: =IF(AS30>0,EBL_Master,0) -> 0 | DE30: =EBT_Master + IF(AS30=0,EBL_Master,0) + IF(AW30=0,EBR_Master) -> 0 | DG30: =IF(AW30>0,EBR_Master,0) -> 0 | DK30: =IF(BA30>0,WBL_Master,0) -> 0 | DM30: =WBT_Master + IF(BA30=0,WBL_Master,0) + IF(BE30=0,WBR_Master) -> 0 | DO30: =IF(BE30>0,WBR_Master,0) -> 0 | EC30: =AO28 -> 1
E32: All-Way Stop Control | V32: FULL | AC32: 1 | AE32: 2 | AG32: 1 | AK32: 1 | AM32: 2 | AO32: 1 | AS32: 1 | AU32: 2 | AW32: 1 | BA32: 1 | BC32: 2 | BE32: 1 | BO32: =E32 -> All-Way Stop Control | CF32: FULL | CM32: =IF(AC32>0,NBL_Master,0) -> 0 | CO32: =NBT_Master + IF(AC32=0,NBL_Master,0) + IF(AG32=0,NBR_Master) -> 0 | CQ32: =IF(AG32>0,NBR_Master,0) -> 0 | CU32: =IF(AK32>0,SBL_Master,0) -> 0 | CW32: =SBT_Master + IF(AK32=0,SBL_Master,0) + IF(AO32=0,SBR_Master) -> 0 | CY32: =IF(AO32>0,SBR_Master,0) -> 0 | DC32: =IF(AS32>0,EBL_Master,0) -> 0 | DE32: =EBT_Master + IF(AS32=0,EBL_Master,0) + IF(AW32=0,EBR_Master) -> 0 | DG32: =IF(AW32>0,EBR_Master,0) -> 0 | DK32: =IF(BA32>0,WBL_Master,0) -> 0 | DM32: =WBT_Master + IF(BA32=0,WBL_Master,0) + IF(BE32=0,WBR_Master) -> 0 | DO32: =IF(BE32>0,WBR_Master,0) -> 0
E34: Continuous Green T | V34: W | AC34: 1 | AE34: 2 | AM34: 2 | AO34: 1 | AS34: 1 | AW34: 1 | BO34: Continuous Green T | CF34: W | CM34: =IF(AC34>0,NBL_Master,0) -> 0 | CO34: =NBT_Master + IF(AC34=0,NBL_Master,0) -> 0 | CW34: =SBT_Master + IF(AO34=0,SBR_Master) -> 0 | CY34: =IF(AO34>0,SBR_Master,0) -> 0 | DC34: =IF(AS34>0,EBL_Master,0) -> 0 | DG34: =IF(AW34>0,EBR_Master,0) -> 0
V36: N | AK36: 1 | AO36: 1 | AS36: 1 | AU36: 2 | BC36: 2 | BE36: 1 | CF36: N | CU36: =IF(AK36>0,SBL_Master,0) -> 0 | CY36: =IF(AO36>0,SBR_Master,0) -> 0 | DC36: =IF(AS36>0,EBL_Master,0) -> 0 | DE36: =EBT_Master + IF(AS36=0,EBL_Master,0) -> 0 | DM36: =WBT_Master + IF(BE36=0,WBR_Master) -> 0 | DO36: =IF(BE36>0,WBR_Master,0) -> 0
V38: E | AE38: 2 | AG38: 1 | AK38: 1 | AM38: 2 | BA38: 1 | BE38: 1 | CF38: E | CO38: =NBT_Master + IF(AG38=0,NBR_Master) -> 0 | CQ38: =IF(AG38>0,NBR_Master,0) -> 0 | CU38: =IF(AK38>0,SBL_Master,0) -> 0 | CW38: =SBT_Master + IF(AK38=0,SBL_Master,0) -> 0 | DK38: =IF(BA38>0,WBL_Master,0) -> 0 | DO38: =IF(BE38>0,WBL_Master,0) -> 0
V40: S | AC40: 1 | AG40: 1 | AU40: 2 | AW40: 1 | BA40: 1 | BC40: 2 | CF40: S | CM40: =IF(AC40>0,NBL_Master,0) -> 0 | CQ40: =IF(AG40>0,NBR_Master,0) -> 0 | DE40: =EBT_Master+ IF(AW40=0,EBR_Master) -> 0 | DG40: =IF(AW40>0,EBR_Master,0) -> 0 | DK40: =IF(BA40>0,WBL_Master,0) -> 0 | DM40: =WBT_Master + IF(BA40=0,WBL_Master,0) -> 0
E42: Quadrant Roadway | V42: S-W | AA42: Use the respective intersection tab(s) to specify the # of lanes inputs. | BO42: Quadrant Roadway | CF42: S-W | CM42: =NBL_Master -> 0 | CO42: =NBT_Master -> 0 | CQ42: =NBR_Master -> 0 | CW42: =SBT_Master -> 0 | CY42: =SBR_Master -> 0 | DC42: =EBL_Master -> 0 | DE42: =EBT_Master -> 0 | DG42: =EBR_Master -> 0 | DK42: =WBL_Master -> 0 | DM42: =WBT_Master -> 0 | DO42: =WBR_Master -> 0
V44: N-E | CF44: N-E | CO44: =NBT_Master -> 0 | CQ44: =NBR_Master -> 0 | CU44: =SBL_Master -> 0 | CW44: =SBT_Master -> 0 | CY44: =SBR_Master -> 0 | DC44: =EBL_Master -> 0 | DE44: =EBT_Master -> 0 | DG44: =EBR_Master -> 0 | DK44: =WBL_Master -> 0 | DM44: =WBT_Master -> 0 | DO44: =WBR_Master -> 0
V46: S-E | CF46: S-E | CM46: =NBL_Master -> 0 | CO46: =NBT_Master -> 0 | CQ46: =NBR_Master -> 0 | CU46: =SBL_Master -> 0 | CW46: =SBT_Master -> 0 | CY46: =SBR_Master -> 0 | DE46: =EBT_Master -> 0 | DG46: =EBR_Master -> 0 | DK46: =WBL_Master -> 0 | DM46: =WBT_Master -> 0 | DO46: =WBR_Master -> 0
V48: N-W | CF48: N-W | CM48: =NBL_Master -> 0 | CO48: =NBT_Master -> 0 | CQ48: =NBR_Master -> 0 | CU48: =SBL_Master -> 0 | CW48: =SBT_Master -> 0 | CY48: =SBR_Master -> 0 | DC48: =EBL_Master -> 0 | DE48: =EBT_Master -> 0 | DG48: =EBR_Master -> 0 | DM48: =WBT_Master -> 0 | DO48: =WBR_Master -> 0
E50: Partial Displaced Left Turn | V50: N-S | AC50: 1 | AE50: 2 | AG50: 1 | AK50: 1 | AM50: 2 | AO50: 1 | AS50: 1 | AU50: 2 | AW50: 1 | BA50: 1 | BC50: 2 | BE50: 1 | BO50: Partial Displaced Left Turn | CF50: N-S | CM50: =NBL_Master -> 0 | CO50: =NBT_Master + IF(AG50=0,NBR_Master) -> 0 | CQ50: =IF(AG50>0,NBR_Master,0) -> 0 | CU50: =SBL_Master -> 0 | CW50: =SBT_Master + IF(AO50=0,SBR_Master) -> 0 | CY50: =IF(AO50>0,SBR_Master,0) -> 0 | DC50: =IF(AS50>0,EBL_Master,0) -> 0 | DE50: =EBT_Master + IF(AS50=0,EBL_Master,0) + IF(AW50=0,EBR_Master) -> 0 | DG50: =IF(AW50>0,EBR_Master,0) -> 0 | DK50: =IF(BA50>0,WBL_Master,0) -> 0 | DM50: =WBT_Master + IF(BA50=0,WBL_Master,0) + IF(BE50=0,WBR_Master) -> 0 | DO50: =IF(BE50>0,WBR_Master,0) -> 0
V52: E-W | AC52: 1 | AE52: 2 | AG52: 1 | AK52: 1 | AM52: 2 | AO52: 1 | AS52: 1 | AU52: 2 | AW52: 1 | BA52: 1 | BC52: 2 | BE52: 1 | CF52: E-W | CM52: =IF(AC52>0,NBL_Master,0) -> 0 | CO52: =NBT_Master + IF(AC52=0,NBL_Master,0) + IF(AG52=0,NBR_Master) -> 0 | CQ52: =IF(AG52>0,NBR_Master,0) -> 0 | CU52: =IF(AK52>0,SBL_Master,0) -> 0 | CW52: =SBT_Master + IF(AK52=0,SBL_Master,0) + IF(AO52=0,SBR_Master) -> 0 | CY52: =IF(AO52>0,SBR_Master,0) -> 0 | DC52: =EBL_Master -> 0 | DE52: =EBT_Master+ IF(AW52=0,EBR_Master) -> 0 | DG52: =IF(AW52>0,EBR_Master,0) -> 0 | DK52: =WBL_Master -> 0 | DM52: =WBT_Master + IF(BE52=0,WBR_Master) -> 0 | DO52: =IF(BE52>0,WBR_Master,0) -> 0
E54: Displaced Left Turn | V54: FULL | AC54: 1 | AE54: 2 | AG54: 1 | AK54: 1 | AM54: 2 | AO54: 1 | AS54: 1 | AU54: 2 | AW54: 1 | BA54: 1 | BC54: 2 | BE54: 1 | BO54: Displaced Left Turn | CF54: FULL | CM54: =NBL_Master -> 0 | CO54: =NBT_Master + IF(AG54=0,NBR_Master) -> 0 | CQ54: =IF(AG54>0,NBR_Master,0) -> 0 | CU54: =SBL_Master -> 0 | CW54: =SBT_Master + IF(AO54=0,SBR_Master) -> 0 | CY54: =IF(AO54>0,SBR_Master,0) -> 0 | DC54: =EBL_Master -> 0 | DE54: =EBT_Master + IF(AW54=0,EBR_Master) -> 0 | DG54: =IF(AW54>0,EBR_Master,0) -> 0 | DK54: =WBL_Master -> 0 | DM54: =WBT_Master + IF(BE54=0,WBR_Master) -> 0 | DO54: =IF(BE54>0,WBR_Master,0) -> 0
E56: Signalized Restricted Crossing U-Turn | V56: N-S | AA56: 1 | AC56: 1 | AE56: 2 | AG56: 1 | AI56: 1 | AK56: 1 | AM56: 2 | AO56: 1 | AW56: 1 | BE56: 1 | BO56: =E56 -> Signalized Restricted Crossing U-Turn | CF56: N-S | CK56: =IF(AA56>0,NBU_Master,0) -> 0 | CM56: =NBL_Master -> 0 | CO56: =NBT_Master + IF(AG56=0,NBR_Master) -> 0 | CQ56: =IF(AG56>0,NBR_Master,0) -> 0 | CS56: =IF(AI56>0,SBU_Master,0) -> 0 | CU56: =IF(AK56>0,SBL_Master,0) -> 0 | CW56: =SBT_Master + IF(AK56=0,SBL_Master,0) + IF(AO56=0,SBR_Master)+ IF(AI56=0,SBU_Master) -> 0 | CY56: =IF(AO56>0,SBR_Master,0) -> 0 | DG56: =IF(AW56>0,EBR_Master,0) -> 0 | DO56: =IF(BE56>0,WBR_Master,0) -> 0
V58: E-W | AG58: 1 | AO58: 1 | AQ58: 1 | AS58: 1 | AU58: 2 | AW58: 1 | AY58: 1 | BA58: 1 | BC58: 2 | BE58: 1 | CF58: E-W | CQ58: =IF(AG58>0,NBR_Master,0) -> 0 | CY58: =IF(AO58>0,SBR_Master,0) -> 0 | DA58: =IF(AQ58>0,EBU_Master,0) -> 0 | DC58: =IF(AS58>0,EBL_Master,0) -> 0 | DE58: =EBT_Master + IF(AS58=0,EBL_Master,0) + IF(AW58=0,EBR_Master)+ IF(AQ58=0,EBU_Master) -> 0 | DG58: =IF(AW58>0,EBR_Master,0) -> 0 | DI58: =IF(AY58>0,WBU_Master,0) -> 0 | DK58: =IF(BA58>0,WBL_Master,0) -> 0 | DM58: =WBT_Master + IF(BA58=0,WBL_Master,0) + IF(BE58=0,WBR_Master)+ IF(AY58=0,WBU_Master) -> 0 | DO58: =IF(BE58>0,WBR_Master,0) -> 0
E60: Unsignalized Restricted Crossing U-Turn | V60: N-S | AA60: 1 | AC60: 1 | AE60: 2 | AG60: 1 | AI60: 1 | AK60: 1 | AM60: 2 | AO60: 1 | AW60: 1 | BE60: 1 | BO60: =E60 -> Unsignalized Restricted Crossing U-Turn | CF60: N-S | CK60: =IF(AA60>0,NBU_Master,0) -> 0 | CM60: =NBL_Master -> 0 | CO60: =NBT_Master + IF(AG60=0,NBR_Master) -> 0 | CQ60: =IF(AG60>0,NBR_Master,0) -> 0 | CS60: =IF(AI60>0,SBU_Master,0) -> 0 | CU60: =IF(AK60>0,SBL_Master,0) -> 0 | CW60: =SBT_Master + IF(AK60=0,SBL_Master,0) + IF(AO60=0,SBR_Master)+ IF(AI60=0,SBU_Master) -> 0 | CY60: =IF(AO60>0,SBR_Master,0) -> 0 | DG60: =IF(AW60>0,EBR_Master,0) -> 0 | DO60: =IF(BE60>0,WBR_Master,0) -> 0
V62: E-W | AG62: 1 | AO62: 1 | AQ62: 1 | AS62: 1 | AU62: 2 | AW62: 1 | AY62: 1 | BA62: 1 | BC62: 2 | BE62: 1 | CF62: E-W | CQ62: =IF(AG62>0,NBR_Master,0) -> 0 | CY62: =IF(AO62>0,SBR_Master,0) -> 0 | DA62: =IF(AQ62>0,EBU_Master,0) -> 0 | DC62: =IF(AS62>0,EBL_Master,0) -> 0 | DE62: =EBT_Master + IF(AS62=0,EBL_Master,0) + IF(AW62=0,EBR_Master)+ IF(AQ62=0,EBU_Master) -> 0 | DG62: =IF(AW62>0,EBR_Master,0) -> 0 | DI62: =IF(AY62>0,WBU_Master,0) -> 0 | DK62: =IF(BA62>0,WBL_Master,0) -> 0 | DM62: =WBT_Master + IF(BA62=0,WBL_Master,0) + IF(BE62=0,WBR_Master)+ IF(AY62=0,WBU_Master) -> 0 | DO62: =IF(BE62>0,WBR_Master,0) -> 0
E64: Median U-Turn | V64: N-S | AA64: 1 | AE64: 2 | AG64: 1 | AI64: 1 | AM64: 2 | AO64: 1 | AU64: 2 | AW64: 1 | BC64: 2 | BE64: 1 | BO64: Median U-Turn | CF64: N-S | CK64: =IF(AA64>0,NBU_Master,0) -> 0 | CO64: =NBT_Master + IF(AG64=0,NBR_Master)+ IF(AA56=0,NBU_Master) -> 0 | CQ64: =IF(AG64>0,NBR_Master,0) -> 0 | CS64: =IF(AI64>0,SBU_Master,0) -> 0 | CW64: =SBT_Master + IF(AO64=0,SBR_Master)+ IF(AI56=0,SBU_Master) -> 0 | CY64: =IF(AO64>0,SBR_Master,0) -> 0 | DE64: =EBT_Master+ IF(AW64=0,EBR_Master) -> 0 | DG64: =IF(AW64>0,EBR_Master,0) -> 0 | DM64: =WBT_Master + IF(BE64=0,WBR_Master) -> 0 | DO64: =IF(BE64>0,WBR_Master,0) -> 0
V66: E-W | AE66: 2 | AG66: 1 | AM66: 2 | AO66: 1 | AQ66: 1 | AU66: 2 | AW66: 1 | AY66: 1 | BC66: 2 | BE66: 1 | CF66: E-W | CO66: =NBT_Master + IF(AG66=0,NBR_Master) -> 0 | CQ66: =IF(AG66>0,NBR_Master,0) -> 0 | CW66: =SBT_Master + IF(AO66=0,SBR_Master) -> 0 | CY66: =IF(AO66>0,SBR_Master,0) -> 0 | DA66: =IF(AQ66>0,EBU_Master,0) -> 0 | DE66: =EBT_Master+ IF(AW66=0,EBR_Master)+ IF(AQ58=0,EBU_Master) -> 0 | DG66: =IF(AW66>0,EBR_Master,0) -> 0 | DI66: =IF(AY66>0,WBU_Master,0) -> 0 | DM66: =WBT_Master + IF(BE66=0,WBR_Master)+ IF(AY58=0,WBU_Master) -> 0 | DO66: =IF(BE66>0,WBR_Master,0) -> 0
E68: Partial Median U-Turn | V68: N-S | AA68: 1 | AE68: 2 | AG68: 1 | AI68: 1 | AM68: 2 | AO68: 1 | AS68: 1 | AU68: 2 | AW68: 1 | BA68: 1 | BC68: 2 | BE68: 1 | BO68: Partial Median U-Turn | CF68: N-S | CK68: =IF(AA68>0,NBU_Master,0) -> 0 | CO68: =NBT_Master + IF(AG68=0,NBR_Master)+ IF(AA56=0,NBU_Master) -> 0 | CQ68: =IF(AG68>0,NBR_Master,0) -> 0 | CS68: =IF(AI68>0,SBU_Master,0) -> 0 | CW68: =SBT_Master + IF(AO68=0,SBR_Master)+ IF(AI56=0,SBU_Master) -> 0 | CY68: =IF(AO68>0,SBR_Master,0) -> 0 | DC68: =IF(AS68>0,EBL_Master,0) -> 0 | DE68: =EBT_Master + IF(AS68=0,EBL_Master,0) + IF(AW68=0,EBR_Master) -> 0 | DG68: =IF(AW68>0,EBR_Master,0) -> 0 | DK68: =IF(BA68>0,WBL_Master,0) -> 0 | DM68: =WBT_Master + IF(BA68=0,WBL_Master,0) + IF(BE68=0,WBR_Master) -> 0 | DO68: =IF(BE68>0,WBR_Master,0) -> 0
V70: E-W | AC70: 1 | AE70: 2 | AG70: 1 | AK70: 1 | AM70: 2 | AO70: 1 | AQ70: 1 | AU70: 2 | AW70: 1 | AY70: 1 | BC70: 2 | BE70: 1 | CF70: E-W | CM70: =IF(AC70>0,NBL_Master,0) -> 0 | CO70: =NBT_Master + IF(AC70=0,NBL_Master,0) + IF(AG70=0,NBR_Master) -> 0 | CQ70: =IF(AG70>0,NBR_Master,0) -> 0 | CU70: =IF(AK70>0,SBL_Master,0) -> 0 | CW70: =SBT_Master + IF(AK70=0,SBL_Master,0) + IF(AO70=0,SBR_Master) -> 0 | CY70: =IF(AO70>0,SBR_Master,0) -> 0 | DA70: =IF(AQ70>0,EBU_Master,0) -> 0 | DE70: =EBT_Master+ IF(AW70=0,EBR_Master)+ IF(AQ58=0,EBU_Master) -> 0 | DG70: =IF(AW70>0,EBR_Master,0) -> 0 | DI70: =IF(AY70>0,WBU_Master,0) -> 0 | DM70: =WBT_Master + IF(BE70=0,WBR_Master)+ IF(AY58=0,WBU_Master) -> 0 | DO70: =IF(BE70>0,WBR_Master,0) -> 0
E72: Signalized ThruCut | V72: N-S | AC72: 1 | AE72: 2 | AG72: 1 | AK72: 1 | AM72: 2 | AO72: 1 | AS72: 1 | AW72: 1 | BA72: 1 | BE72: 1 | BO72: =E72 -> Signalized ThruCut | CF72: N-S | CM72: =IF(AC72>0,NBL_Master,0) -> 0 | CO72: =NBT_Master + IF(AG72=0,ROUND(NBR_Master/RTAF,0),0) + IF(AC72=0,ROUND(NBL_Master/LTAF,0),0) -> 0 | CQ72: =IF(AG72>0,NBR_Master,0) -> 0 | CU72: =IF(AK72>0,SBL_Master,0) -> 0 | CW72: =SBT_Master + IF(AO72=0,ROUND(SBR_Master/RTAF,0),0) + IF(AK72=0,ROUND(SBL_Master/LTAF,0),0) -> 0 | CY72: =IF(AO72>0,SBR_Master,0) -> 0 | DC72: =IF(AS72>0,EBL_Master + EBT_Master/2 + IF(AW72=0,EBR_Master + EBT_Master/2,0),0) -> 0 | DG72: =IF(AW72>0,EBR_Master + EBT_Master/2 + IF(AS72=0,EBL_Master + EBT_Master/2,0),0) -> 0 | DK72: =IF(BA72>0,WBL_Master + WBT_Master/2 + IF(BE72=0,WBR_Master + WBT_Master/2,0),0) -> 0 | DO72: =IF(BE72>0,WBR_Master + WBT_Master/2 + IF(BA72=0,WBL_Master + WBT_Master/2,0),0) -> 0
V74: E-W | AC74: 1 | AG74: 1 | AK74: 1 | AO74: 1 | AS74: 1 | AU74: 2 | AW74: 1 | BA74: 1 | BC74: 2 | BE74: 1 | CF74: E-W | CM74: =IF(AC74>0,NBL_Master + NBT_Master/2 + IF(AG74=0,NBR_Master + NBT_Master/2,0),0) -> 0 | CQ74: =IF(AG74>0,NBR_Master + NBT_Master/2 + IF(AC74=0,NBL_Master + NBT_Master/2,0),0) -> 0 | CU74: =IF(AK74>0,SBL_Master + SBT_Master/2 + IF(AO74=0,SBR_Master + SBT_Master/2,0),0) -> 0 | CY74: =IF(AO74>0,SBR_Master + SBT_Master/2 + IF(AK74=0,SBL_Master + SBT_Master/2,0),0) -> 0 | DC74: =IF(AS74>0,EBL_Master,0) -> 0 | DE74: =EBT_Master + IF(AW74=0,ROUND(EBR_Master/RTAF,0),0) + IF(AS74=0,ROUND(EBL_Master/LTAF,0),0) -> 0 | DG74: =IF(AW74>0,EBR_Master,0) -> 0 | DK74: =IF(BA74>0,WBL_Master,0) -> 0 | DM74: =WBT_Master + IF(BE74=0,ROUND(WBR_Master/RTAF,0),0) + IF(BA74=0,ROUND(WBL_Master/LTAF,0),0) -> 0 | DO74: =IF(BE74>0,WBR_Master,0) -> 0
E76: Unsignalized ThruCut | V76: N-S | AC76: 1 | AE76: 2 | AG76: 1 | AK76: 1 | AM76: 2 | AO76: 1 | AS76: 1 | AW76: 1 | BA76: 1 | BE76: 1 | BO76: =E76 -> Unsignalized ThruCut | CF76: N-S | CM76: =IF(AC76>0,NBL_Master,0) -> 0 | CO76: =NBT_Master + IF(AC72=0,NBL_Master,0) + IF(AG72=0,NBR_Master,0) -> 0 | CQ76: =IF(AG76>0,NBR_Master+EBT_Master,0) -> 0 | CU76: =IF(AK76>0,SBL_Master,0) -> 0 | CW76: =SBT_Master + IF(AK72=0,SBL_Master,0) + IF(AO72=0,SBR_Master,0) -> 0 | CY76: =IF(AO76>0,SBR_Master+WBT_Master,0) -> 0 | DC76: =IF(AS76>0,EBL_Master,0) -> 0 | DG76: =EBR_Master + EBT_Master + IF(AS76=0,EBL_Master,0) -> 0 | DK76: =IF(BA76>0,WBL_Master,0) -> 0 | DO76: =WBR_Master + WBT_Master + IF(BA76=0,WBL_Master,0) -> 0
V78: E-W | AC78: 1 | AG78: 1 | AK78: 1 | AO78: 1 | AS78: 1 | AU78: 2 | AW78: 1 | BA78: 1 | BC78: 2 | BE78: 1 | CF78: E-W | CM78: =IF(AC78>0,NBL_Master,0) -> 0 | CQ78: =NBR_Master + NBT_Master + IF(AC78=0,NBL_Master,0) -> 0 | CU78: =IF(AK78>0,SBL_Master,0) -> 0 | CY78: =SBR_Master + SBT_Master + IF(AK78=0,SBL_Master,0) -> 0 | DC78: =IF(AS78>0,EBL_Master,0) -> 0 | DE78: =EBT_Master+IF(AS78=0,EBL_Master,0) + IF(AW78=0,EBR_Master,0) -> 0 | DG78: =IF(AW78>0,EBR_Master+SBT_Master,0) -> 0 | DK78: =IF(BA78>0,WBL_Master,0) -> 0 | DM78: =WBT_Master+IF(BA78=0,WBL_Master,0) + IF(BE78=0,WBR_Master,0) -> 0 | DO78: =IF(BE78>0,WBR_Master+NBT_Master,0) -> 0
E80: Bowtie | V80: N-S | AE80: 2 | AG80: 1 | AM80: 2 | AO80: 1 | AU80: 1 | AW80: 1 | BC80: 1 | BE80: 1 | BO80: =E80 -> Bowtie | CF80: N-S | CM80: =IF(AG80>0,NBL_Master,0) -> 0 | CO80: =NBT_Master+(NBR_Master+NBL_Master-CQ80-CM80)/RTAF -> 0 | CQ80: =IF(AG80>0,NBR_Master,(NBR_Master*(AG80/(AG80+1)))) -> 0 | CU80: =IF(AO80>0,SBL_Master,0) -> 0 | CW80: =SBT_Master + IF(AK76=0,SBL_Master,0) + IF(AO76=0,SBR_Master,0) -> 0 | CY80: =IF(AO80>0,SBR_Master,(SBR_Master*(AO80/(AO80+1)))) -> 0 | DE80: =EBT_Master+EBL_Master+SBL_Master+((EBR_Master+WBL_Master-DG80)/RTAF) -> 0 | DG80: =IF(AW80>0,EBR_Master+WBL_Master,((EBR_Master+WBL_Master)*(AW80/(AW80+1)))) -> 0 | DM80: =NBL_Master+WBT_Master+WBL_Master+(EBL_Master+WBR_Master-DO80)/RTAF -> 0 | DO80: =IF(BE80>0,WBR_Master+EBL_Master,((WBR_Master+EBL_Master)*(BE80/(BE80+1)))) -> 0
V82: E-W | AE82: 1 | AG82: 1 | AM82: 1 | AO82: 1 | AU82: 2 | AW82: 1 | BC82: 2 | BE82: 1 | CF82: E-W | CO82: =NBT_Master+NBL_Master+EBL_Master+(NBR_Master+SBL_Master-CQ82)/RTAF -> 0 | CQ82: =IF(AG82>0,NBR_Master+SBL_Master,((NBR_Master+SBL_Master)*(AG82/(AG82+1)))) -> 0 | CW82: =SBT_Master+SBL_Master+WBL_Master+(SBR_Master+NBL_Master-CY82)/RTAF -> 0 | CY82: =IF(AO82>0,SBR_Master+NBL_Master,((SBR_Master+NBL_Master)*(AO82/(AO82+1)))) -> 0 | DC82: =IF(AW82>0,EBL_Master,0) -> 0 | DE82: =EBT_Master+(EBR_Master+EBL_Master-DG82-DC82)/RTAF -> 0 | DG82: =IF(AW82>0,EBR_Master,(EBR_Master*(AW82/(AW82+1)))) -> 0 | DK82: =IF(BE82>0,WBL_Master,0) -> 0 | DM82: =WBT_Master+(WBR_Master+WBL_Master-DO82-DK82)/RTAF -> 0 | DO82: =IF(BE82>0,WBR_Master,(WBR_Master*(BE82/(BE82+1)))) -> 0
E85: For shared lanes, enter "0" in L or R
B87: Capacity Analysis for Planning of Junctions
B89: Input Worksheet 2
E93: Number of Lanes for Ramp Terminal Intersections
E95: TYPE OF RAMP TERMINAL INTERSECTION | V95: Sheet | AA95: Northbound | AI95: Southbound | AQ95: Eastbound | AY95: Westbound
AA97: U | AC97: L | AE97: T | AG97: R | AI97: U | AK97: L | AM97: T | AO97: R | AQ97: U | AS97: L | AU97: T | AW97: R | AY97: U | BA97: L | BC97: T | BE97: R
E99: Diamond | V99: N-S | AC99: 1 | AE99: 2 | AG99: 1 | AK99: 1 | AM99: 2 | AO99: 1 | AS99: 1 | AU99: 2 | AW99: 1 | BA99: 1 | BC99: 2 | BE99: 1
V101: E-W | AC101: 1 | AE101: 2 | AG101: 1 | AK101: 1 | AM101: 2 | AO101: 1 | AS101: 1 | AU101: 2 | AW101: 1 | BA101: 1 | BC101: 2 | BE101: 1
E103: Diamond (Alt) | V103: N-S | AC103: 1 | AE103: 2 | AG103: 1 | AK103: 1 | AM103: 2 | AO103: 1 | AS103: 1 | AU103: 2 | AW103: 1 | BA103: 1 | BC103: 2 | BE103: 1
V105: E-W | AC105: 1 | AE105: 2 | AG105: 1 | AK105: 1 | AM105: 2 | AO105: 1 | AS105: 1 | AU105: 2 | AW105: 1 | BA105: 1 | BC105: 2 | BE105: 1
E107: Diamond Stop Control | V107: N-S | AC107: 1 | AE107: 2 | AG107: 1 | AK107: 1 | AM107: 2 | AO107: 1 | AS107: 1 | AU107: 2 | AW107: 1 | BA107: 1 | BC107: 2 | BE107: 1
V109: E-W | AC109: 1 | AE109: 2 | AG109: 1 | AK109: 1 | AM109: 2 | AO109: 1 | AS109: 1 | AU109: 2 | AW109: 1 | BA109: 1 | BC109: 2 | BE109: 1
E111: Signalized Tight Diamond | V111: N-S | AC111: 1 | AE111: 2 | AG111: 1 | AK111: 1 | AM111: 2 | AO111: 1 | AS111: 1 | AU111: 2 | AW111: 1 | BA111: 1 | BC111: 2 | BE111: 1
V113: E-W | AC113: 1 | AE113: 2 | AG113: 1 | AK113: 1 | AM113: 2 | AO113: 1 | AS113: 1 | AU113: 2 | AW113: 1 | BA113: 1 | BC113: 2 | BE113: 1
E115: Partial Cloverleaf A | V115: N-S | AE115: 2 | AM115: 2 | AS115: 1 | BA115: 1
V117: E-W | AC117: 1 | AK117: 1 | AU117: 2 | BC117: 2
E119: Partial Cloverleaf B | V119: N-S | AC119: 1 | AE119: 2 | AK119: 1 | AM119: 2
V121: E-W | AS121: 1 | AU121: 2 | BA121: 1 | BC121: 2
E123: Two Quadrant Partial Cloverleaf A Signalized | V123: N-S | AC123: 1 | AE123: 2 | AG123: 1 | AK123: 1 | AM123: 2 | AO123: 1 | AS123: 1 | AU123: 2 | AW123: 1 | BA123: 1 | BC123: 2 | BE123: 1
V125: E-W | AC125: 1 | AE125: 2 | AG125: 1 | AK125: 1 | AM125: 2 | AO125: 1 | AS125: 1 | AU125: 2 | AW125: 1 | BA125: 1 | BC125: 2 | BE125: 1
E127: Two Quadrant Partial Cloverleaf B Signalized | V127: N-S | AC127: 1 | AE127: 2 | AG127: 1 | AK127: 1 | AM127: 2 | AO127: 1 | AS127: 1 | AU127: 2 | AW127: 1 | BA127: 1 | BC127: 2 | BE127: 1
V129: E-W | AC129: 1 | AE129: 2 | AG129: 1 | AK129: 1 | AM129: 2 | AO129: 1 | AS129: 1 | AU129: 2 | AW129: 1 | BA129: 1 | BC129: 2 | BE129: 1
E131: Diverging Diamond | V131: N-S | AC131: 1 | AE131: 2 | AG131: 1 | AK131: 1 | AM131: 2 | AO131: 1 | AS131: 1 | AW131: 1 | BA131: 1 | BE131: 1
V133: E-W | AC133: 1 | AG133: 1 | AK133: 1 | AO133: 1 | AS133: 1 | AU133: 2 | AW133: 1 | BA133: 1 | BC133: 2 | BE133: 1
E135: Single Point Diamond | V135: N-S | AC135: 1 | AE135: 2 | AG135: 1 | AK135: 1 | AM135: 2 | AO135: 1 | AS135: 1 | AU135: 2 | AW135: 1 | BA135: 1 | BC135: 2 | BE135: 1
V137: E-W | AC137: 1 | AE137: 2 | AG137: 1 | AK137: 1 | AM137: 2 | AO137: 1 | AS137: 1 | AU137: 2 | AW137: 1 | BA137: 1 | BC137: 2 | BE137: 1
E139: Displaced Left Turn Interchange | V139: N-S | AC139: 1 | AE139: 2 | AG139: 1 | AK139: 1 | AM139: 2 | AO139: 1 | AS139: 1 | AU139: 2 | AW139: 1 | BA139: 1 | BC139: 2 | BE139: 1
V141: E-W | AC141: 1 | AE141: 2 | AG141: 1 | AK141: 1 | AM141: 2 | AO141: 1 | AS141: 1 | AU141: 2 | AW141: 1 | BA141: 1 | BC141: 2 | BE141: 1
E151: Half Diamond Signalized | V151: N | AK151: 1 | AO151: 1 | AS151: 1 | AU151: 2 | BC151: 2 | BE151: 1
V153: S | AC153: 1 | AG153: 1 | AU153: 2 | AW153: 1 | BA153: 1 | BC153: 2
V155: E | AE155: 2 | AG155: 1 | AK155: 1 | AM155: 2 | BA155: 1 | BE155: 1
V157: W | AC157: 1 | AE157: 2 | AM157: 2 | AO157: 1 | AS157: 1 | AW157: 1
E163: Number of Lanes for Roundabout Intersections
E165: TYPE OF ROUNDABOUT INTERSECTION | V165: Sheet | AA165: Northbound | AI165: Southbound | AQ165: Eastbound | AY165: Westbound
E169: 1 X 1 | V169: NS-EW | AA169: 1 | AI169: 1 | AQ169: 1 | AY169: 1
E171: 1 NS X 2 EW | V171: E-W | AA171: 1 | AI171: 1 | AQ171: 2 | AY171: 2
E173: 2 NS X 1 EW | V173: N-S | AA173: 2 | AI173: 2 | AQ173: 1 | AY173: 1
E175: 2 X 2 | V175: NS-EW | AA175: 2 | AI175: 2 | AQ175: 2 | AY175: 2

Sheet Summary Results (hidden)
A1: Capacity Analysis for Planning of Junctions
A3: Dynamic Results Summary
B6: Project Name | S6: =IF(P_Name,P_Name,"") -> 
B8: Project Number | S8: =IF(P_Number,P_Number,"") -> 
B10: Location | S10: =IF(Location,Location,"") -> 
B12: Date | S12: =IF(Date,Date,"") -> 
B14: Number of Intersection Legs | S14: =IF(Input_NumLegs=0,"",Input_NumLegs) -> 4
B16: ='2 – Base and Alt Selections'!D14 -> Major Street Direction | S16: ='2 – Base and Alt Selections'!L14 -> North-South
BL20: Yes | BM20: No
B21: TYPE OF INTERSECTION | U21: Overall V/C Ratio | AB21: V/C Ranking | AF21: Multimodal Score | AJ21: Pedestrian Accommodation Score | AR21: Bicycle Accommodation Score | AZ21: Transit Accommodations
BH22: =IF(BJ22=$BL$20,TRUE,FALSE) -> FALSE
BH24: FALSE
B25: =IF(OR(ISNUMBER(U25),AND(U25=">10",OR(SumComp!AR4="Two-Way Stop Control E-W",SumComp!AR4="Two-Way Stop Control N-S"))),SumComp!AR4,"--") -> -- | U25: =IF(AND(SumComp!AL4<1000000,SumComp!AL4>10,OR(AND(SumComp!AR4="Two-Way Stop Control N-S",Input_MajorStreetDirection="North-South"),AND(SumComp!AR4="Two-Way Stop Control E-W",Input_MajorStreetDirection="East-West"))),">10",IF(AND(SumComp!AL4<1000000,OR(SumComp!AR4<>"Two-Way Stop Control N-S",SumComp!AR4<>"Two-Way Stop Control E-W")),SumComp!AL4,"--")) -> -- | AB25: =IF(ISNUMBER(U25),RANK(U25,$U$25:$AA$44,1),"--") -> -- | AF25: =IF(ISNUMBER($U25),SumComp!AX4,"--") -> -- | AJ25: =IF(AND( ISNUMBER($U25), IF(Input_NumLegs = 4, 1, IF(OR( B25="Traffic Signal", B25="Traffic Signal (Alt.)", B25="Two-Way Stop Control N-S", B25="Two-Way Stop Control E-W", B25="All-Way Stop Control", B25="Continuous Green T N", B25="Continuous Green T S",B25="Continuous Green T E",B25="Continuous Green T W", B25="1 X 1", B25="1NS X 2EW", B25="2NS X 1EW", B25="2 X 2", B25="Signalized Restricted Crossing U-Turn N-S", B25="Signalized Restricted Crossing U-Turn E-W", B25="Unsignalized Restricted Crossing U-Turn N-S", B25="Unsignalized Restricted Crossing U-Turn E-W", B25="Two Quadrant Partial Cloverleaf A E-W",B25="Two Quadrant Partial Cloverleaf A N-S", B25="Two Quadrant Partial Cloverleaf B E-W",B25="Two Quadrant Partial Cloverleaf B N-S", B25="Half Diamond N",B25="Half Diamond S",B25="Half Diamond E",B25="Half Diamond W"),1,0 )) ),SumComp!AU4,"--") -> -- | AR25: =IF(AND( ISNUMBER($U25), IF(Input_NumLegs = 4, 1, IF(OR( B25="Traffic Signal", B25="Traffic Signal (Alt.)", B25="Two-Way Stop Control N-S", B25="Two-Way Stop Control E-W", B25="All-Way Stop Control", B25="Continuous Green T N", B25="Continuous Green T S",B25="Continuous Green T E",B25="Continuous Green T W", B25="1 X 1", B25="1NS X 2EW", B25="2NS X 1EW", B25="2 X 2", B25="Signalized Restricted Crossing U-Turn N-S", B25="Signalized Restricted Crossing U-Turn E-W", B25="Unsignalized Restricted Crossing U-Turn N-S", B25="Unsignalized Restricted Crossing U-Turn E-W", B25="Two Quadrant Partial Cloverleaf A E-W",B25="Two Quadrant Partial Cloverleaf A N-S", B25="Two Quadrant Partial Cloverleaf B E-W",B25="Two Quadrant Partial Cloverleaf B N-S", B25="Half Diamond N",B25="Half Diamond S",B25="Half Diamond E",B25="Half Diamond W"),1,0 )) ),SumComp!AV4,"--") -> -- | AZ25: =IF(ISNUMBER($U25),SumComp!AW4,"--") -> --
B27: =IF(OR(ISNUMBER(U27),AND(U27=">10",OR(SumComp!AR6="Two-Way Stop Control E-W",SumComp!AR6="Two-Way Stop Control N-S"))),SumComp!AR6,"--") -> -- | U27: =IF(AND(SumComp!AL6<1000000,SumComp!AL6>10,OR(AND(SumComp!AR6="Two-Way Stop Control N-S",Input_MajorStreetDirection="North-South"),AND(SumComp!AR6="Two-Way Stop Control E-W",Input_MajorStreetDirection="East-West"))),">10",IF(AND(SumComp!AL6<1000000,OR(SumComp!AR6<>"Two-Way Stop Control N-S",SumComp!AR6<>"Two-Way Stop Control E-W")),SumComp!AL6,"--")) -> -- | AB27: =IF(ISNUMBER(U27),RANK(U27,$U$25:$AA$44,1),"--") -> -- | AF27: =IF(ISNUMBER($U27),SumComp!AX6,"--") -> -- | AJ27: =IF(AND( ISNUMBER($U27), IF(Input_NumLegs = 4, 1, IF(OR( B27="Traffic Signal", B27="Traffic Signal (Alt.)", B27="Two-Way Stop Control N-S", B27="Two-Way Stop Control E-W", B27="All-Way Stop Control", B27="Continuous Green T N", B27="Continuous Green T S",B27="Continuous Green T E",B27="Continuous Green T W", B27="1 X 1", B27="1NS X 2EW", B27="2NS X 1EW", B27="2 X 2", B27="Signalized Restricted Crossing U-Turn N-S", B27="Signalized Restricted Crossing U-Turn E-W", B27="Unsignalized Restricted Crossing U-Turn N-S", B27="Unsignalized Restricted Crossing U-Turn E-W", B27="Two Quadrant Partial Cloverleaf A E-W",B27="Two Quadrant Partial Cloverleaf A N-S", B27="Two Quadrant Partial Cloverleaf B E-W",B27="Two Quadrant Partial Cloverleaf B N-S", B27="Half Diamond N",B27="Half Diamond S",B27="Half Diamond E",B27="Half Diamond W"),1,0 )) ),SumComp!AU6,"--") -> -- | AR27: =IF(AND( ISNUMBER($U27), IF(Input_NumLegs = 4, 1, IF(OR( B27="Traffic Signal", B27="Traffic Signal (Alt.)", B27="Two-Way Stop Control N-S", B27="Two-Way Stop Control E-W", B27="All-Way Stop Control", B27="Continuous Green T N", B27="Continuous Green T S",B27="Continuous Green T E",B27="Continuous Green T W", B27="1 X 1", B27="1NS X 2EW", B27="2NS X 1EW", B27="2 X 2", B27="Signalized Restricted Crossing U-Turn N-S", B27="Signalized Restricted Crossing U-Turn E-W", B27="Unsignalized Restricted Crossing U-Turn N-S", B27="Unsignalized Restricted Crossing U-Turn E-W", B27="Two Quadrant Partial Cloverleaf A E-W",B27="Two Quadrant Partial Cloverleaf A N-S", B27="Two Quadrant Partial Cloverleaf B E-W",B27="Two Quadrant Partial Cloverleaf B N-S", B27="Half Diamond N",B27="Half Diamond S",B27="Half Diamond E",B27="Half Diamond W"),1,0 )) ),SumComp!AV6,"--") -> -- | AZ27: =IF(ISNUMBER($U27),SumComp!#REF!,"--") -> --
B29: =IF(OR(ISNUMBER(U29),AND(U29=">10",OR(SumComp!AR8="Two-Way Stop Control E-W",SumComp!AR8="Two-Way Stop Control N-S"))),SumComp!AR8,"--") -> -- | U29: =IF(AND(SumComp!AL8<1000000,SumComp!AL8>10,OR(AND(SumComp!AR8="Two-Way Stop Control N-S",Input_MajorStreetDirection="North-South"),AND(SumComp!AR8="Two-Way Stop Control E-W",Input_MajorStreetDirection="East-West"))),">10",IF(AND(SumComp!AL8<1000000,OR(SumComp!AR8<>"Two-Way Stop Control N-S",SumComp!AR8<>"Two-Way Stop Control E-W")),SumComp!AL8,"--")) -> -- | AB29: =IF(ISNUMBER(U29),RANK(U29,$U$25:$AA$44,1),"--") -> -- | AF29: =IF(ISNUMBER($U29),SumComp!AX8,"--") -> -- | AJ29: =IF(AND( ISNUMBER($U29), IF(Input_NumLegs = 4, 1, IF(OR( B29="Traffic Signal", B29="Traffic Signal (Alt.)", B29="Two-Way Stop Control N-S", B29="Two-Way Stop Control E-W", B29="All-Way Stop Control", B29="Continuous Green T N", B29="Continuous Green T S",B29="Continuous Green T E",B29="Continuous Green T W", B29="1 X 1", B29="1NS X 2EW", B29="2NS X 1EW", B29="2 X 2", B29="Signalized Restricted Crossing U-Turn N-S", B29="Signalized Restricted Crossing U-Turn E-W", B29="Unsignalized Restricted Crossing U-Turn N-S", B29="Unsignalized Restricted Crossing U-Turn E-W", B29="Two Quadrant Partial Cloverleaf A E-W",B29="Two Quadrant Partial Cloverleaf A N-S", B29="Two Quadrant Partial Cloverleaf B E-W",B29="Two Quadrant Partial Cloverleaf B N-S", B29="Half Diamond N",B29="Half Diamond S",B29="Half Diamond E",B29="Half Diamond W"),1,0 )) ),SumComp!AU8,"--") -> -- | AR29: =IF(AND( ISNUMBER($U29), IF(Input_NumLegs = 4, 1, IF(OR( B29="Traffic Signal", B29="Traffic Signal (Alt.)", B29="Two-Way Stop Control N-S", B29="Two-Way Stop Control E-W", B29="All-Way Stop Control", B29="Continuous Green T N", B29="Continuous Green T S",B29="Continuous Green T E",B29="Continuous Green T W", B29="1 X 1", B29="1NS X 2EW", B29="2NS X 1EW", B29="2 X 2", B29="Signalized Restricted Crossing U-Turn N-S", B29="Signalized Restricted Crossing U-Turn E-W", B29="Unsignalized Restricted Crossing U-Turn N-S", B29="Unsignalized Restricted Crossing U-Turn E-W", B29="Two Quadrant Partial Cloverleaf A E-W",B29="Two Quadrant Partial Cloverleaf A N-S", B29="Two Quadrant Partial Cloverleaf B E-W",B29="Two Quadrant Partial Cloverleaf B N-S", B29="Half Diamond N",B29="Half Diamond S",B29="Half Diamond E",B29="Half Diamond W"),1,0 )) ),SumComp!AV8,"--") -> -- | AZ29: =IF(ISNUMBER($U29),SumComp!AW8,"--") -> --
B31: =IF(OR(ISNUMBER(U31),AND(U31=">10",OR(SumComp!AR10="Two-Way Stop Control E-W",SumComp!AR10="Two-Way Stop Control N-S"))),SumComp!AR10,"--") -> -- | U31: =IF(AND(SumComp!AL10<1000000,SumComp!AL10>10,OR(AND(SumComp!AR10="Two-Way Stop Control N-S",Input_MajorStreetDirection="North-South"),AND(SumComp!AR10="Two-Way Stop Control E-W",Input_MajorStreetDirection="East-West"))),">10",IF(AND(SumComp!AL10<1000000,OR(SumComp!AR10<>"Two-Way Stop Control N-S",SumComp!AR10<>"Two-Way Stop Control E-W")),SumComp!AL10,"--")) -> -- | AB31: =IF(ISNUMBER(U31),RANK(U31,$U$25:$AA$44,1),"--") -> -- | AF31: =IF(ISNUMBER($U31),SumComp!AX10,"--") -> -- | AJ31: =IF(AND( ISNUMBER($U31), IF(Input_NumLegs = 4, 1, IF(OR( B31="Traffic Signal", B31="Traffic Signal (Alt.)", B31="Two-Way Stop Control N-S", B31="Two-Way Stop Control E-W", B31="All-Way Stop Control", B31="Continuous Green T N", B31="Continuous Green T S",B31="Continuous Green T E",B31="Continuous Green T W", B31="1 X 1", B31="1NS X 2EW", B31="2NS X 1EW", B31="2 X 2", B31="Signalized Restricted Crossing U-Turn N-S", B31="Signalized Restricted Crossing U-Turn E-W", B31="Unsignalized Restricted Crossing U-Turn N-S", B31="Unsignalized Restricted Crossing U-Turn E-W", B31="Two Quadrant Partial Cloverleaf A E-W",B31="Two Quadrant Partial Cloverleaf A N-S", B31="Two Quadrant Partial Cloverleaf B E-W",B31="Two Quadrant Partial Cloverleaf B N-S", B31="Half Diamond N",B31="Half Diamond S",B31="Half Diamond E",B31="Half Diamond W"),1,0 )) ),SumComp!AU10,"--") -> -- | AR31: =IF(AND( ISNUMBER($U31), IF(Input_NumLegs = 4, 1, IF(OR( B31="Traffic Signal", B31="Traffic Signal (Alt.)", B31="Two-Way Stop Control N-S", B31="Two-Way Stop Control E-W", B31="All-Way Stop Control", B31="Continuous Green T N", B31="Continuous Green T S",B31="Continuous Green T E",B31="Continuous Green T W", B31="1 X 1", B31="1NS X 2EW", B31="2NS X 1EW", B31="2 X 2", B31="Signalized Restricted Crossing U-Turn N-S", B31="Signalized Restricted Crossing U-Turn E-W", B31="Unsignalized Restricted Crossing U-Turn N-S", B31="Unsignalized Restricted Crossing U-Turn E-W", B31="Two Quadrant Partial Cloverleaf A E-W",B31="Two Quadrant Partial Cloverleaf A N-S", B31="Two Quadrant Partial Cloverleaf B E-W",B31="Two Quadrant Partial Cloverleaf B N-S", B31="Half Diamond N",B31="Half Diamond S",B31="Half Diamond E",B31="Half Diamond W"),1,0 )) ),SumComp!AV10,"--") -> -- | AZ31: =IF(ISNUMBER($U31),SumComp!AW10,"--") -> --
B33: =IF(OR(ISNUMBER(U33),AND(U33=">10",OR(SumComp!AR12="Two-Way Stop Control E-W",SumComp!AR12="Two-Way Stop Control N-S"))),SumComp!AR12,"--") -> -- | U33: =IF(AND(SumComp!AL12<1000000,SumComp!AL12>10,OR(AND(SumComp!AR12="Two-Way Stop Control N-S",Input_MajorStreetDirection="North-South"),AND(SumComp!AR12="Two-Way Stop Control E-W",Input_MajorStreetDirection="East-West"))),">10",IF(AND(SumComp!AL12<1000000,OR(SumComp!AR12<>"Two-Way Stop Control N-S",SumComp!AR12<>"Two-Way Stop Control E-W")),SumComp!AL12,"--")) -> -- | AB33: =IF(ISNUMBER(U33),RANK(U33,$U$25:$AA$44,1),"--") -> -- | AF33: =IF(ISNUMBER($U33),SumComp!AX12,"--") -> -- | AJ33: =IF(AND( ISNUMBER($U33), IF(Input_NumLegs = 4, 1, IF(OR( B33="Traffic Signal", B33="Traffic Signal (Alt.)", B33="Two-Way Stop Control N-S", B33="Two-Way Stop Control E-W", B33="All-Way Stop Control", B33="Continuous Green T N", B33="Continuous Green T S",B33="Continuous Green T E",B33="Continuous Green T W", B33="1 X 1", B33="1NS X 2EW", B33="2NS X 1EW", B33="2 X 2", B33="Signalized Restricted Crossing U-Turn N-S", B33="Signalized Restricted Crossing U-Turn E-W", B33="Unsignalized Restricted Crossing U-Turn N-S", B33="Unsignalized Restricted Crossing U-Turn E-W", B33="Two Quadrant Partial Cloverleaf A E-W",B33="Two Quadrant Partial Cloverleaf A N-S", B33="Two Quadrant Partial Cloverleaf B E-W",B33="Two Quadrant Partial Cloverleaf B N-S", B33="Half Diamond N",B33="Half Diamond S",B33="Half Diamond E",B33="Half Diamond W"),1,0 )) ),SumComp!AU12,"--") -> -- | AR33: =IF(AND( ISNUMBER($U33), IF(Input_NumLegs = 4, 1, IF(OR( B33="Traffic Signal", B33="Traffic Signal (Alt.)", B33="Two-Way Stop Control N-S", B33="Two-Way Stop Control E-W", B33="All-Way Stop Control", B33="Continuous Green T N", B33="Continuous Green T S",B33="Continuous Green T E",B33="Continuous Green T W", B33="1 X 1", B33="1NS X 2EW", B33="2NS X 1EW", B33="2 X 2", B33="Signalized Restricted Crossing U-Turn N-S", B33="Signalized Restricted Crossing U-Turn E-W", B33="Unsignalized Restricted Crossing U-Turn N-S", B33="Unsignalized Restricted Crossing U-Turn E-W", B33="Two Quadrant Partial Cloverleaf A E-W",B33="Two Quadrant Partial Cloverleaf A N-S", B33="Two Quadrant Partial Cloverleaf B E-W",B33="Two Quadrant Partial Cloverleaf B N-S", B33="Half Diamond N",B33="Half Diamond S",B33="Half Diamond E",B33="Half Diamond W"),1,0 )) ),SumComp!AV12,"--") -> -- | AZ33: =IF(ISNUMBER($U33),SumComp!AW12,"--") -> --
B35: =IF(OR(ISNUMBER(U35),AND(U35=">10",OR(SumComp!AR14="Two-Way Stop Control E-W",SumComp!AR14="Two-Way Stop Control N-S"))),SumComp!AR14,"--") -> -- | U35: =IF(AND(SumComp!AL14<1000000,SumComp!AL14>10,OR(AND(SumComp!AR14="Two-Way Stop Control N-S",Input_MajorStreetDirection="North-South"),AND(SumComp!AR14="Two-Way Stop Control E-W",Input_MajorStreetDirection="East-West"))),">10",IF(AND(SumComp!AL14<1000000,OR(SumComp!AR14<>"Two-Way Stop Control N-S",SumComp!AR14<>"Two-Way Stop Control E-W")),SumComp!AL14,"--")) -> -- | AB35: =IF(ISNUMBER(U35),RANK(U35,$U$25:$AA$44,1),"--") -> -- | AF35: =IF(ISNUMBER($U35),SumComp!AX14,"--") -> -- | AJ35: =IF(AND( ISNUMBER($U35), IF(Input_NumLegs = 4, 1, IF(OR( B35="Traffic Signal", B35="Traffic Signal (Alt.)", B35="Two-Way Stop Control N-S", B35="Two-Way Stop Control E-W", B35="All-Way Stop Control", B35="Continuous Green T N", B35="Continuous Green T S",B35="Continuous Green T E",B35="Continuous Green T W", B35="1 X 1", B35="1NS X 2EW", B35="2NS X 1EW", B35="2 X 2", B35="Signalized Restricted Crossing U-Turn N-S", B35="Signalized Restricted Crossing U-Turn E-W", B35="Unsignalized Restricted Crossing U-Turn N-S", B35="Unsignalized Restricted Crossing U-Turn E-W", B35="Two Quadrant Partial Cloverleaf A E-W",B35="Two Quadrant Partial Cloverleaf A N-S", B35="Two Quadrant Partial Cloverleaf B E-W",B35="Two Quadrant Partial Cloverleaf B N-S", B35="Half Diamond N",B35="Half Diamond S",B35="Half Diamond E",B35="Half Diamond W"),1,0 )) ),SumComp!AU14,"--") -> -- | AR35: =IF(AND( ISNUMBER($U35), IF(Input_NumLegs = 4, 1, IF(OR( B35="Traffic Signal", B35="Traffic Signal (Alt.)", B35="Two-Way Stop Control N-S", B35="Two-Way Stop Control E-W", B35="All-Way Stop Control", B35="Continuous Green T N", B35="Continuous Green T S",B35="Continuous Green T E",B35="Continuous Green T W", B35="1 X 1", B35="1NS X 2EW", B35="2NS X 1EW", B35="2 X 2", B35="Signalized Restricted Crossing U-Turn N-S", B35="Signalized Restricted Crossing U-Turn E-W", B35="Unsignalized Restricted Crossing U-Turn N-S", B35="Unsignalized Restricted Crossing U-Turn E-W", B35="Two Quadrant Partial Cloverleaf A E-W",B35="Two Quadrant Partial Cloverleaf A N-S", B35="Two Quadrant Partial Cloverleaf B E-W",B35="Two Quadrant Partial Cloverleaf B N-S", B35="Half Diamond N",B35="Half Diamond S",B35="Half Diamond E",B35="Half Diamond W"),1,0 )) ),SumComp!AV14,"--") -> -- | AZ35: =IF(ISNUMBER($U35),SumComp!AW14,"--") -> --
B37: =IF(OR(ISNUMBER(U37),AND(U37=">10",OR(SumComp!AR16="Two-Way Stop Control E-W",SumComp!AR16="Two-Way Stop Control N-S"))),SumComp!AR16,"--") -> -- | U37: =IF(AND(SumComp!AL16<1000000,SumComp!AL16>10,OR(AND(SumComp!AR16="Two-Way Stop Control N-S",Input_MajorStreetDirection="North-South"),AND(SumComp!AR16="Two-Way Stop Control E-W",Input_MajorStreetDirection="East-West"))),">10",IF(AND(SumComp!AL16<1000000,OR(SumComp!AR16<>"Two-Way Stop Control N-S",SumComp!AR16<>"Two-Way Stop Control E-W")),SumComp!AL16,"--")) -> -- | AB37: =IF(ISNUMBER(U37),RANK(U37,$U$25:$AA$44,1),"--") -> -- | AF37: =IF(ISNUMBER($U37),SumComp!AX16,"--") -> -- | AJ37: =IF(AND( ISNUMBER($U37), IF(Input_NumLegs = 4, 1, IF(OR( B37="Traffic Signal", B37="Traffic Signal (Alt.)", B37="Two-Way Stop Control N-S", B37="Two-Way Stop Control E-W", B37="All-Way Stop Control", B37="Continuous Green T N", B37="Continuous Green T S",B37="Continuous Green T E",B37="Continuous Green T W", B37="1 X 1", B37="1NS X 2EW", B37="2NS X 1EW", B37="2 X 2", B37="Signalized Restricted Crossing U-Turn N-S", B37="Signalized Restricted Crossing U-Turn E-W", B37="Unsignalized Restricted Crossing U-Turn N-S", B37="Unsignalized Restricted Crossing U-Turn E-W", B37="Two Quadrant Partial Cloverleaf A E-W",B37="Two Quadrant Partial Cloverleaf A N-S", B37="Two Quadrant Partial Cloverleaf B E-W",B37="Two Quadrant Partial Cloverleaf B N-S", B37="Half Diamond N",B37="Half Diamond S",B37="Half Diamond E",B37="Half Diamond W"),1,0 )) ),SumComp!AU16,"--") -> -- | AR37: =IF(AND( ISNUMBER($U37), IF(Input_NumLegs = 4, 1, IF(OR( B37="Traffic Signal", B37="Traffic Signal (Alt.)", B37="Two-Way Stop Control N-S", B37="Two-Way Stop Control E-W", B37="All-Way Stop Control", B37="Continuous Green T N", B37="Continuous Green T S",B37="Continuous Green T E",B37="Continuous Green T W", B37="1 X 1", B37="1NS X 2EW", B37="2NS X 1EW", B37="2 X 2", B37="Signalized Restricted Crossing U-Turn N-S", B37="Signalized Restricted Crossing U-Turn E-W", B37="Unsignalized Restricted Crossing U-Turn N-S", B37="Unsignalized Restricted Crossing U-Turn E-W", B37="Two Quadrant Partial Cloverleaf A E-W",B37="Two Quadrant Partial Cloverleaf A N-S", B37="Two Quadrant Partial Cloverleaf B E-W",B37="Two Quadrant Partial Cloverleaf B N-S", B37="Half Diamond N",B37="Half Diamond S",B37="Half Diamond E",B37="Half Diamond W"),1,0 )) ),SumComp!AV16,"--") -> -- | AZ37: =IF(ISNUMBER($U37),SumComp!AW16,"--") -> --
B39: =IF(OR(ISNUMBER(U39),AND(U39=">10",OR(SumComp!AR18="Two-Way Stop Control E-W",SumComp!AR18="Two-Way Stop Control N-S"))),SumComp!AR18,"--") -> -- | U39: =IF(AND(SumComp!AL18<1000000,SumComp!AL18>10,OR(AND(SumComp!AR18="Two-Way Stop Control N-S",Input_MajorStreetDirection="North-South"),AND(SumComp!AR18="Two-Way Stop Control E-W",Input_MajorStreetDirection="East-West"))),">10",IF(AND(SumComp!AL18<1000000,OR(SumComp!AR18<>"Two-Way Stop Control N-S",SumComp!AR18<>"Two-Way Stop Control E-W")),SumComp!AL18,"--")) -> -- | AB39: =IF(ISNUMBER(U39),RANK(U39,$U$25:$AA$44,1),"--") -> -- | AF39: =IF(ISNUMBER($U39),SumComp!AX18,"--") -> -- | AJ39: =IF(AND( ISNUMBER($U39), IF(Input_NumLegs = 4, 1, IF(OR( B39="Traffic Signal", B39="Traffic Signal (Alt.)", B39="Two-Way Stop Control N-S", B39="Two-Way Stop Control E-W", B39="All-Way Stop Control", B39="Continuous Green T N", B39="Continuous Green T S",B39="Continuous Green T E",B39="Continuous Green T W", B39="1 X 1", B39="1NS X 2EW", B39="2NS X 1EW", B39="2 X 2", B39="Signalized Restricted Crossing U-Turn N-S", B39="Signalized Restricted Crossing U-Turn E-W", B39="Unsignalized Restricted Crossing U-Turn N-S", B39="Unsignalized Restricted Crossing U-Turn E-W", B39="Two Quadrant Partial Cloverleaf A E-W",B39="Two Quadrant Partial Cloverleaf A N-S", B39="Two Quadrant Partial Cloverleaf B E-W",B39="Two Quadrant Partial Cloverleaf B N-S", B39="Half Diamond N",B39="Half Diamond S",B39="Half Diamond E",B39="Half Diamond W"),1,0 )) ),SumComp!AU18,"--") -> -- | AR39: =IF(AND( ISNUMBER($U39), IF(Input_NumLegs = 4, 1, IF(OR( B39="Traffic Signal", B39="Traffic Signal (Alt.)", B39="Two-Way Stop Control N-S", B39="Two-Way Stop Control E-W", B39="All-Way Stop Control", B39="Continuous Green T N", B39="Continuous Green T S",B39="Continuous Green T E",B39="Continuous Green T W", B39="1 X 1", B39="1NS X 2EW", B39="2NS X 1EW", B39="2 X 2", B39="Signalized Restricted Crossing U-Turn N-S", B39="Signalized Restricted Crossing U-Turn E-W", B39="Unsignalized Restricted Crossing U-Turn N-S", B39="Unsignalized Restricted Crossing U-Turn E-W", B39="Two Quadrant Partial Cloverleaf A E-W",B39="Two Quadrant Partial Cloverleaf A N-S", B39="Two Quadrant Partial Cloverleaf B E-W",B39="Two Quadrant Partial Cloverleaf B N-S", B39="Half Diamond N",B39="Half Diamond S",B39="Half Diamond E",B39="Half Diamond W"),1,0 )) ),SumComp!AV18,"--") -> -- | AZ39: =IF(ISNUMBER($U39),SumComp!AW18,"--") -> --
B41: =IF(OR(ISNUMBER(U41),AND(U41=">10",OR(SumComp!AR20="Two-Way Stop Control E-W",SumComp!AR20="Two-Way Stop Control N-S"))),SumComp!AR20,"--") -> -- | U41: =IF(AND(SumComp!AL20<1000000,SumComp!AL20>10,OR(AND(SumComp!AR20="Two-Way Stop Control N-S",Input_MajorStreetDirection="North-South"),AND(SumComp!AR20="Two-Way Stop Control E-W",Input_MajorStreetDirection="East-West"))),">10",IF(AND(SumComp!AL20<1000000,OR(SumComp!AR20<>"Two-Way Stop Control N-S",SumComp!AR20<>"Two-Way Stop Control E-W")),SumComp!AL20,"--")) -> -- | AB41: =IF(ISNUMBER(U41),RANK(U41,$U$25:$AA$44,1),"--") -> -- | AF41: =IF(ISNUMBER($U41),SumComp!AX20,"--") -> -- | AJ41: =IF(AND( ISNUMBER($U41), IF(Input_NumLegs = 4, 1, IF(OR( B41="Traffic Signal", B41="Traffic Signal (Alt.)", B41="Two-Way Stop Control N-S", B41="Two-Way Stop Control E-W", B41="All-Way Stop Control", B41="Continuous Green T N", B41="Continuous Green T S",B41="Continuous Green T E",B41="Continuous Green T W", B41="1 X 1", B41="1NS X 2EW", B41="2NS X 1EW", B41="2 X 2", B41="Signalized Restricted Crossing U-Turn N-S", B41="Signalized Restricted Crossing U-Turn E-W", B41="Unsignalized Restricted Crossing U-Turn N-S", B41="Unsignalized Restricted Crossing U-Turn E-W", B41="Two Quadrant Partial Cloverleaf A E-W",B41="Two Quadrant Partial Cloverleaf A N-S", B41="Two Quadrant Partial Cloverleaf B E-W",B41="Two Quadrant Partial Cloverleaf B N-S", B41="Half Diamond N",B41="Half Diamond S",B41="Half Diamond E",B41="Half Diamond W"),1,0 )) ),SumComp!AU20,"--") -> -- | AR41: =IF(AND( ISNUMBER($U41), IF(Input_NumLegs = 4, 1, IF(OR( B41="Traffic Signal", B41="Traffic Signal (Alt.)", B41="Two-Way Stop Control N-S", B41="Two-Way Stop Control E-W", B41="All-Way Stop Control", B41="Continuous Green T N", B41="Continuous Green T S",B41="Continuous Green T E",B41="Continuous Green T W", B41="1 X 1", B41="1NS X 2EW", B41="2NS X 1EW", B41="2 X 2", B41="Signalized Restricted Crossing U-Turn N-S", B41="Signalized Restricted Crossing U-Turn E-W", B41="Unsignalized Restricted Crossing U-Turn N-S", B41="Unsignalized Restricted Crossing U-Turn E-W", B41="Two Quadrant Partial Cloverleaf A E-W",B41="Two Quadrant Partial Cloverleaf A N-S", B41="Two Quadrant Partial Cloverleaf B E-W",B41="Two Quadrant Partial Cloverleaf B N-S", B41="Half Diamond N",B41="Half Diamond S",B41="Half Diamond E",B41="Half Diamond W"),1,0 )) ),SumComp!AV20,"--") -> -- | AZ41: =IF(ISNUMBER($U41),SumComp!AW20,"--") -> --
B43: =IF(OR(ISNUMBER(U43),AND(U43=">10",OR(SumComp!AR22="Two-Way Stop Control E-W",SumComp!AR22="Two-Way Stop Control N-S"))),SumComp!AR22,"--") -> -- | U43: =IF(AND(SumComp!AL22<1000000,SumComp!AL22>10,OR(AND(SumComp!AR22="Two-Way Stop Control N-S",Input_MajorStreetDirection="North-South"),AND(SumComp!AR22="Two-Way Stop Control E-W",Input_MajorStreetDirection="East-West"))),">10",IF(AND(SumComp!AL22<1000000,OR(SumComp!AR22<>"Two-Way Stop Control N-S",SumComp!AR22<>"Two-Way Stop Control E-W")),SumComp!AL22,"--")) -> -- | AB43: =IF(ISNUMBER(U43),RANK(U43,$U$25:$AA$44,1),"--") -> -- | AF43: =IF(ISNUMBER($U43),SumComp!AX22,"--") -> -- | AJ43: =IF(AND( ISNUMBER($U43), IF(Input_NumLegs = 4, 1, IF(OR( B43="Traffic Signal", B43="Traffic Signal (Alt.)", B43="Two-Way Stop Control N-S", B43="Two-Way Stop Control E-W", B43="All-Way Stop Control", B43="Continuous Green T N", B43="Continuous Green T S",B43="Continuous Green T E",B43="Continuous Green T W", B43="1 X 1", B43="1NS X 2EW", B43="2NS X 1EW", B43="2 X 2", B43="Signalized Restricted Crossing U-Turn N-S", B43="Signalized Restricted Crossing U-Turn E-W", B43="Unsignalized Restricted Crossing U-Turn N-S", B43="Unsignalized Restricted Crossing U-Turn E-W", B43="Two Quadrant Partial Cloverleaf A E-W",B43="Two Quadrant Partial Cloverleaf A N-S", B43="Two Quadrant Partial Cloverleaf B E-W",B43="Two Quadrant Partial Cloverleaf B N-S", B43="Half Diamond N",B43="Half Diamond S",B43="Half Diamond E",B43="Half Diamond W"),1,0 )) ),SumComp!AU22,"--") -> -- | AR43: =IF(AND( ISNUMBER($U43), IF(Input_NumLegs = 4, 1, IF(OR( B43="Traffic Signal", B43="Traffic Signal (Alt.)", B43="Two-Way Stop Control N-S", B43="Two-Way Stop Control E-W", B43="All-Way Stop Control", B43="Continuous Green T N", B43="Continuous Green T S",B43="Continuous Green T E",B43="Continuous Green T W", B43="1 X 1", B43="1NS X 2EW", B43="2NS X 1EW", B43="2 X 2", B43="Signalized Restricted Crossing U-Turn N-S", B43="Signalized Restricted Crossing U-Turn E-W", B43="Unsignalized Restricted Crossing U-Turn N-S", B43="Unsignalized Restricted Crossing U-Turn E-W", B43="Two Quadrant Partial Cloverleaf A E-W",B43="Two Quadrant Partial Cloverleaf A N-S", B43="Two Quadrant Partial Cloverleaf B E-W",B43="Two Quadrant Partial Cloverleaf B N-S", B43="Half Diamond N",B43="Half Diamond S",B43="Half Diamond E",B43="Half Diamond W"),1,0 )) ),SumComp!AV22,"--") -> -- | AZ43: =IF(ISNUMBER($U43),SumComp!AW22,"--") -> --
B45: =IF(OR(ISNUMBER(U45),AND(U45=">10",OR(SumComp!AR24="Two-Way Stop Control E-W",SumComp!AR24="Two-Way Stop Control N-S"))),SumComp!AR24,"--") -> -- | U45: =IF(AND(SumComp!AL24<1000000,SumComp!AL24>10,OR(AND(SumComp!AR24="Two-Way Stop Control N-S",Input_MajorStreetDirection="North-South"),AND(SumComp!AR24="Two-Way Stop Control E-W",Input_MajorStreetDirection="East-West"))),">10",IF(AND(SumComp!AL24<1000000,OR(SumComp!AR24<>"Two-Way Stop Control N-S",SumComp!AR24<>"Two-Way Stop Control E-W")),SumComp!AL24,"--")) -> -- | AB45: =IF(ISNUMBER(U45),RANK(U45,$U$25:$AA$44,1),"--") -> -- | AF45: =IF(ISNUMBER($U45),SumComp!AX24,"--") -> -- | AJ45: =IF(AND( ISNUMBER($U45), IF(Input_NumLegs = 4, 1, IF(OR( B45="Traffic Signal", B45="Traffic Signal (Alt.)", B45="Two-Way Stop Control N-S", B45="Two-Way Stop Control E-W", B45="All-Way Stop Control", B45="Continuous Green T N", B45="Continuous Green T S",B45="Continuous Green T E",B45="Continuous Green T W", B45="1 X 1", B45="1NS X 2EW", B45="2NS X 1EW", B45="2 X 2", B45="Signalized Restricted Crossing U-Turn N-S", B45="Signalized Restricted Crossing U-Turn E-W", B45="Unsignalized Restricted Crossing U-Turn N-S", B45="Unsignalized Restricted Crossing U-Turn E-W", B45="Two Quadrant Partial Cloverleaf A E-W",B45="Two Quadrant Partial Cloverleaf A N-S", B45="Two Quadrant Partial Cloverleaf B E-W",B45="Two Quadrant Partial Cloverleaf B N-S", B45="Half Diamond N",B45="Half Diamond S",B45="Half Diamond E",B45="Half Diamond W"),1,0 )) ),SumComp!AU24,"--") -> -- | AR45: =IF(AND( ISNUMBER($U45), IF(Input_NumLegs = 4, 1, IF(OR( B45="Traffic Signal", B45="Traffic Signal (Alt.)", B45="Two-Way Stop Control N-S", B45="Two-Way Stop Control E-W", B45="All-Way Stop Control", B45="Continuous Green T N", B45="Continuous Green T S",B45="Continuous Green T E",B45="Continuous Green T W", B45="1 X 1", B45="1NS X 2EW", B45="2NS X 1EW", B45="2 X 2", B45="Signalized Restricted Crossing U-Turn N-S", B45="Signalized Restricted Crossing U-Turn E-W", B45="Unsignalized Restricted Crossing U-Turn N-S", B45="Unsignalized Restricted Crossing U-Turn E-W", B45="Two Quadrant Partial Cloverleaf A E-W",B45="Two Quadrant Partial Cloverleaf A N-S", B45="Two Quadrant Partial Cloverleaf B E-W",B45="Two Quadrant Partial Cloverleaf B N-S", B45="Half Diamond N",B45="Half Diamond S",B45="Half Diamond E",B45="Half Diamond W"),1,0 )) ),SumComp!AV24,"--") -> --
B47: =IF(OR(ISNUMBER(U47),AND(U47=">10",OR(SumComp!AR26="Two-Way Stop Control E-W",SumComp!AR26="Two-Way Stop Control N-S"))),SumComp!AR26,"--") -> -- | U47: =IF(AND(SumComp!AL26<1000000,SumComp!AL26>10,OR(AND(SumComp!AR26="Two-Way Stop Control N-S",Input_MajorStreetDirection="North-South"),AND(SumComp!AR26="Two-Way Stop Control E-W",Input_MajorStreetDirection="East-West"))),">10",IF(AND(SumComp!AL26<1000000,OR(SumComp!AR26<>"Two-Way Stop Control N-S",SumComp!AR26<>"Two-Way Stop Control E-W")),SumComp!AL26,"--")) -> -- | AB47: =IF(ISNUMBER(U47),RANK(U47,$U$25:$AA$44,1),"--") -> -- | AF47: =IF(ISNUMBER($U47),SumComp!AX26,"--") -> -- | AJ47: =IF(AND( ISNUMBER($U47), IF(Input_NumLegs = 4, 1, IF(OR( B47="Traffic Signal", B47="Traffic Signal (Alt.)", B47="Two-Way Stop Control N-S", B47="Two-Way Stop Control E-W", B47="All-Way Stop Control", B47="Continuous Green T N", B47="Continuous Green T S",B47="Continuous Green T E",B47="Continuous Green T W", B47="1 X 1", B47="1NS X 2EW", B47="2NS X 1EW", B47="2 X 2", B47="Signalized Restricted Crossing U-Turn N-S", B47="Signalized Restricted Crossing U-Turn E-W", B47="Unsignalized Restricted Crossing U-Turn N-S", B47="Unsignalized Restricted Crossing U-Turn E-W", B47="Two Quadrant Partial Cloverleaf A E-W",B47="Two Quadrant Partial Cloverleaf A N-S", B47="Two Quadrant Partial Cloverleaf B E-W",B47="Two Quadrant Partial Cloverleaf B N-S", B47="Half Diamond N",B47="Half Diamond S",B47="Half Diamond E",B47="Half Diamond W"),1,0 )) ),SumComp!AU26,"--") -> -- | AR47: =IF(AND( ISNUMBER($U47), IF(Input_NumLegs = 4, 1, IF(OR( B47="Traffic Signal", B47="Traffic Signal (Alt.)", B47="Two-Way Stop Control N-S", B47="Two-Way Stop Control E-W", B47="All-Way Stop Control", B47="Continuous Green T N", B47="Continuous Green T S",B47="Continuous Green T E",B47="Continuous Green T W", B47="1 X 1", B47="1NS X 2EW", B47="2NS X 1EW", B47="2 X 2", B47="Signalized Restricted Crossing U-Turn N-S", B47="Signalized Restricted Crossing U-Turn E-W", B47="Unsignalized Restricted Crossing U-Turn N-S", B47="Unsignalized Restricted Crossing U-Turn E-W", B47="Two Quadrant Partial Cloverleaf A E-W",B47="Two Quadrant Partial Cloverleaf A N-S", B47="Two Quadrant Partial Cloverleaf B E-W",B47="Two Quadrant Partial Cloverleaf B N-S", B47="Half Diamond N",B47="Half Diamond S",B47="Half Diamond E",B47="Half Diamond W"),1,0 )) ),SumComp!AV26,"--") -> --
B49: =IF(OR(ISNUMBER(U49),AND(U49=">10",OR(SumComp!AR28="Two-Way Stop Control E-W",SumComp!AR28="Two-Way Stop Control N-S"))),SumComp!AR28,"--") -> -- | U49: =IF(AND(SumComp!AL28<1000000,SumComp!AL28>10,OR(AND(SumComp!AR28="Two-Way Stop Control N-S",Input_MajorStreetDirection="North-South"),AND(SumComp!AR28="Two-Way Stop Control E-W",Input_MajorStreetDirection="East-West"))),">10",IF(AND(SumComp!AL28<1000000,OR(SumComp!AR28<>"Two-Way Stop Control N-S",SumComp!AR28<>"Two-Way Stop Control E-W")),SumComp!AL28,"--")) -> -- | AB49: =IF(ISNUMBER(U49),RANK(U49,$U$25:$AA$44,1),"--") -> -- | AF49: =IF(ISNUMBER($U49),SumComp!AX28,"--") -> -- | AJ49: =IF(AND( ISNUMBER($U49), IF(Input_NumLegs = 4, 1, IF(OR( B49="Traffic Signal", B49="Traffic Signal (Alt.)", B49="Two-Way Stop Control N-S", B49="Two-Way Stop Control E-W", B49="All-Way Stop Control", B49="Continuous Green T N", B49="Continuous Green T S",B49="Continuous Green T E",B49="Continuous Green T W", B49="1 X 1", B49="1NS X 2EW", B49="2NS X 1EW", B49="2 X 2", B49="Signalized Restricted Crossing U-Turn N-S", B49="Signalized Restricted Crossing U-Turn E-W", B49="Unsignalized Restricted Crossing U-Turn N-S", B49="Unsignalized Restricted Crossing U-Turn E-W", B49="Two Quadrant Partial Cloverleaf A E-W",B49="Two Quadrant Partial Cloverleaf A N-S", B49="Two Quadrant Partial Cloverleaf B E-W",B49="Two Quadrant Partial Cloverleaf B N-S", B49="Half Diamond N",B49="Half Diamond S",B49="Half Diamond E",B49="Half Diamond W"),1,0 )) ),SumComp!AU28,"--") -> -- | AR49: =IF(AND( ISNUMBER($U49), IF(Input_NumLegs = 4, 1, IF(OR( B49="Traffic Signal", B49="Traffic Signal (Alt.)", B49="Two-Way Stop Control N-S", B49="Two-Way Stop Control E-W", B49="All-Way Stop Control", B49="Continuous Green T N", B49="Continuous Green T S",B49="Continuous Green T E",B49="Continuous Green T W", B49="1 X 1", B49="1NS X 2EW", B49="2NS X 1EW", B49="2 X 2", B49="Signalized Restricted Crossing U-Turn N-S", B49="Signalized Restricted Crossing U-Turn E-W", B49="Unsignalized Restricted Crossing U-Turn N-S", B49="Unsignalized Restricted Crossing U-Turn E-W", B49="Two Quadrant Partial Cloverleaf A E-W",B49="Two Quadrant Partial Cloverleaf A N-S", B49="Two Quadrant Partial Cloverleaf B E-W",B49="Two Quadrant Partial Cloverleaf B N-S", B49="Half Diamond N",B49="Half Diamond S",B49="Half Diamond E",B49="Half Diamond W"),1,0 )) ),SumComp!AV28,"--") -> --
B51: =IF(OR(ISNUMBER(U51),AND(U51=">10",OR(SumComp!AR30="Two-Way Stop Control E-W",SumComp!AR30="Two-Way Stop Control N-S"))),SumComp!AR30,"--") -> -- | U51: =IF(AND(SumComp!AL30<1000000,SumComp!AL30>10,OR(AND(SumComp!AR30="Two-Way Stop Control N-S",Input_MajorStreetDirection="North-South"),AND(SumComp!AR30="Two-Way Stop Control E-W",Input_MajorStreetDirection="East-West"))),">10",IF(AND(SumComp!AL30<1000000,OR(SumComp!AR30<>"Two-Way Stop Control N-S",SumComp!AR30<>"Two-Way Stop Control E-W")),SumComp!AL30,"--")) -> -- | AB51: =IF(ISNUMBER(U51),RANK(U51,$U$25:$AA$44,1),"--") -> -- | AF51: =IF(ISNUMBER($U51),SumComp!AX30,"--") -> -- | AJ51: =IF(AND( ISNUMBER($U51), IF(Input_NumLegs = 4, 1, IF(OR( B51="Traffic Signal", B51="Traffic Signal (Alt.)", B51="Two-Way Stop Control N-S", B51="Two-Way Stop Control E-W", B51="All-Way Stop Control", B51="Continuous Green T N", B51="Continuous Green T S",B51="Continuous Green T E",B51="Continuous Green T W", B51="1 X 1", B51="1NS X 2EW", B51="2NS X 1EW", B51="2 X 2", B51="Signalized Restricted Crossing U-Turn N-S", B51="Signalized Restricted Crossing U-Turn E-W", B51="Unsignalized Restricted Crossing U-Turn N-S", B51="Unsignalized Restricted Crossing U-Turn E-W", B51="Two Quadrant Partial Cloverleaf A E-W",B51="Two Quadrant Partial Cloverleaf A N-S", B51="Two Quadrant Partial Cloverleaf B E-W",B51="Two Quadrant Partial Cloverleaf B N-S", B51="Half Diamond N",B51="Half Diamond S",B51="Half Diamond E",B51="Half Diamond W"),1,0 )) ),SumComp!AU30,"--") -> -- | AR51: =IF(AND( ISNUMBER($U51), IF(Input_NumLegs = 4, 1, IF(OR( B51="Traffic Signal", B51="Traffic Signal (Alt.)", B51="Two-Way Stop Control N-S", B51="Two-Way Stop Control E-W", B51="All-Way Stop Control", B51="Continuous Green T N", B51="Continuous Green T S",B51="Continuous Green T E",B51="Continuous Green T W", B51="1 X 1", B51="1NS X 2EW", B51="2NS X 1EW", B51="2 X 2", B51="Signalized Restricted Crossing U-Turn N-S", B51="Signalized Restricted Crossing U-Turn E-W", B51="Unsignalized Restricted Crossing U-Turn N-S", B51="Unsignalized Restricted Crossing U-Turn E-W", B51="Two Quadrant Partial Cloverleaf A E-W",B51="Two Quadrant Partial Cloverleaf A N-S", B51="Two Quadrant Partial Cloverleaf B E-W",B51="Two Quadrant Partial Cloverleaf B N-S", B51="Half Diamond N",B51="Half Diamond S",B51="Half Diamond E",B51="Half Diamond W"),1,0 )) ),SumComp!AV30,"--") -> --
B53: =IF(OR(ISNUMBER(U53),AND(U53=">10",OR(SumComp!AR32="Two-Way Stop Control E-W",SumComp!AR32="Two-Way Stop Control N-S"))),SumComp!AR32,"--") -> -- | U53: =IF(AND(SumComp!AL32<1000000,SumComp!AL32>10,OR(AND(SumComp!AR32="Two-Way Stop Control N-S",Input_MajorStreetDirection="North-South"),AND(SumComp!AR32="Two-Way Stop Control E-W",Input_MajorStreetDirection="East-West"))),">10",IF(AND(SumComp!AL32<1000000,OR(SumComp!AR32<>"Two-Way Stop Control N-S",SumComp!AR32<>"Two-Way Stop Control E-W")),SumComp!AL32,"--")) -> -- | AB53: =IF(ISNUMBER(U53),RANK(U53,$U$25:$AA$44,1),"--") -> -- | AF53: =IF(ISNUMBER($U53),SumComp!AX32,"--") -> -- | AJ53: =IF(AND( ISNUMBER($U53), IF(Input_NumLegs = 4, 1, IF(OR( B53="Traffic Signal", B53="Traffic Signal (Alt.)", B53="Two-Way Stop Control N-S", B53="Two-Way Stop Control E-W", B53="All-Way Stop Control", B53="Continuous Green T N", B53="Continuous Green T S",B53="Continuous Green T E",B53="Continuous Green T W", B53="1 X 1", B53="1NS X 2EW", B53="2NS X 1EW", B53="2 X 2", B53="Signalized Restricted Crossing U-Turn N-S", B53="Signalized Restricted Crossing U-Turn E-W", B53="Unsignalized Restricted Crossing U-Turn N-S", B53="Unsignalized Restricted Crossing U-Turn E-W", B53="Two Quadrant Partial Cloverleaf A E-W",B53="Two Quadrant Partial Cloverleaf A N-S", B53="Two Quadrant Partial Cloverleaf B E-W",B53="Two Quadrant Partial Cloverleaf B N-S", B53="Half Diamond N",B53="Half Diamond S",B53="Half Diamond E",B53="Half Diamond W"),1,0 )) ),SumComp!AU32,"--") -> -- | AR53: =IF(AND( ISNUMBER($U53), IF(Input_NumLegs = 4, 1, IF(OR( B53="Traffic Signal", B53="Traffic Signal (Alt.)", B53="Two-Way Stop Control N-S", B53="Two-Way Stop Control E-W", B53="All-Way Stop Control", B53="Continuous Green T N", B53="Continuous Green T S",B53="Continuous Green T E",B53="Continuous Green T W", B53="1 X 1", B53="1NS X 2EW", B53="2NS X 1EW", B53="2 X 2", B53="Signalized Restricted Crossing U-Turn N-S", B53="Signalized Restricted Crossing U-Turn E-W", B53="Unsignalized Restricted Crossing U-Turn N-S", B53="Unsignalized Restricted Crossing U-Turn E-W", B53="Two Quadrant Partial Cloverleaf A E-W",B53="Two Quadrant Partial Cloverleaf A N-S", B53="Two Quadrant Partial Cloverleaf B E-W",B53="Two Quadrant Partial Cloverleaf B N-S", B53="Half Diamond N",B53="Half Diamond S",B53="Half Diamond E",B53="Half Diamond W"),1,0 )) ),SumComp!AV32,"--") -> --
B55: =IF(OR(ISNUMBER(U55),AND(U55=">10",OR(SumComp!AR34="Two-Way Stop Control E-W",SumComp!AR34="Two-Way Stop Control N-S"))),SumComp!AR34,"--") -> -- | U55: =IF(AND(SumComp!AL34<1000000,SumComp!AL34>10,OR(AND(SumComp!AR34="Two-Way Stop Control N-S",Input_MajorStreetDirection="North-South"),AND(SumComp!AR34="Two-Way Stop Control E-W",Input_MajorStreetDirection="East-West"))),">10",IF(AND(SumComp!AL34<1000000,OR(SumComp!AR34<>"Two-Way Stop Control N-S",SumComp!AR34<>"Two-Way Stop Control E-W")),SumComp!AL34,"--")) -> -- | AB55: =IF(ISNUMBER(U55),RANK(U55,$U$25:$AA$44,1),"--") -> -- | AF55: =IF(ISNUMBER($U55),SumComp!AX34,"--") -> -- | AJ55: =IF(AND( ISNUMBER($U55), IF(Input_NumLegs = 4, 1, IF(OR( B55="Traffic Signal", B55="Traffic Signal (Alt.)", B55="Two-Way Stop Control N-S", B55="Two-Way Stop Control E-W", B55="All-Way Stop Control", B55="Continuous Green T N", B55="Continuous Green T S",B55="Continuous Green T E",B55="Continuous Green T W", B55="1 X 1", B55="1NS X 2EW", B55="2NS X 1EW", B55="2 X 2", B55="Signalized Restricted Crossing U-Turn N-S", B55="Signalized Restricted Crossing U-Turn E-W", B55="Unsignalized Restricted Crossing U-Turn N-S", B55="Unsignalized Restricted Crossing U-Turn E-W", B55="Two Quadrant Partial Cloverleaf A E-W",B55="Two Quadrant Partial Cloverleaf A N-S", B55="Two Quadrant Partial Cloverleaf B E-W",B55="Two Quadrant Partial Cloverleaf B N-S", B55="Half Diamond N",B55="Half Diamond S",B55="Half Diamond E",B55="Half Diamond W"),1,0 )) ),SumComp!AU34,"--") -> -- | AR55: =IF(AND( ISNUMBER($U55), IF(Input_NumLegs = 4, 1, IF(OR( B55="Traffic Signal", B55="Traffic Signal (Alt.)", B55="Two-Way Stop Control N-S", B55="Two-Way Stop Control E-W", B55="All-Way Stop Control", B55="Continuous Green T N", B55="Continuous Green T S",B55="Continuous Green T E",B55="Continuous Green T W", B55="1 X 1", B55="1NS X 2EW", B55="2NS X 1EW", B55="2 X 2", B55="Signalized Restricted Crossing U-Turn N-S", B55="Signalized Restricted Crossing U-Turn E-W", B55="Unsignalized Restricted Crossing U-Turn N-S", B55="Unsignalized Restricted Crossing U-Turn E-W", B55="Two Quadrant Partial Cloverleaf A E-W",B55="Two Quadrant Partial Cloverleaf A N-S", B55="Two Quadrant Partial Cloverleaf B E-W",B55="Two Quadrant Partial Cloverleaf B N-S", B55="Half Diamond N",B55="Half Diamond S",B55="Half Diamond E",B55="Half Diamond W"),1,0 )) ),SumComp!AV34,"--") -> --
B57: =IF(OR(ISNUMBER(U57),AND(U57=">10",OR(SumComp!AR36="Two-Way Stop Control E-W",SumComp!AR36="Two-Way Stop Control N-S"))),SumComp!AR36,"--") -> -- | U57: =IF(AND(SumComp!AL36<1000000,SumComp!AL36>10,OR(AND(SumComp!AR36="Two-Way Stop Control N-S",Input_MajorStreetDirection="North-South"),AND(SumComp!AR36="Two-Way Stop Control E-W",Input_MajorStreetDirection="East-West"))),">10",IF(AND(SumComp!AL36<1000000,OR(SumComp!AR36<>"Two-Way Stop Control N-S",SumComp!AR36<>"Two-Way Stop Control E-W")),SumComp!AL36,"--")) -> -- | AB57: =IF(ISNUMBER(U57),RANK(U57,$U$25:$AA$44,1),"--") -> -- | AF57: =IF(ISNUMBER($U57),SumComp!AX36,"--") -> -- | AJ57: =IF(AND( ISNUMBER($U57), IF(Input_NumLegs = 4, 1, IF(OR( B57="Traffic Signal", B57="Traffic Signal (Alt.)", B57="Two-Way Stop Control N-S", B57="Two-Way Stop Control E-W", B57="All-Way Stop Control", B57="Continuous Green T N", B57="Continuous Green T S",B57="Continuous Green T E",B57="Continuous Green T W", B57="1 X 1", B57="1NS X 2EW", B57="2NS X 1EW", B57="2 X 2", B57="Signalized Restricted Crossing U-Turn N-S", B57="Signalized Restricted Crossing U-Turn E-W", B57="Unsignalized Restricted Crossing U-Turn N-S", B57="Unsignalized Restricted Crossing U-Turn E-W", B57="Two Quadrant Partial Cloverleaf A E-W",B57="Two Quadrant Partial Cloverleaf A N-S", B57="Two Quadrant Partial Cloverleaf B E-W",B57="Two Quadrant Partial Cloverleaf B N-S", B57="Half Diamond N",B57="Half Diamond S",B57="Half Diamond E",B57="Half Diamond W"),1,0 )) ),SumComp!AU36,"--") -> -- | AR57: =IF(AND( ISNUMBER($U57), IF(Input_NumLegs = 4, 1, IF(OR( B57="Traffic Signal", B57="Traffic Signal (Alt.)", B57="Two-Way Stop Control N-S", B57="Two-Way Stop Control E-W", B57="All-Way Stop Control", B57="Continuous Green T N", B57="Continuous Green T S",B57="Continuous Green T E",B57="Continuous Green T W", B57="1 X 1", B57="1NS X 2EW", B57="2NS X 1EW", B57="2 X 2", B57="Signalized Restricted Crossing U-Turn N-S", B57="Signalized Restricted Crossing U-Turn E-W", B57="Unsignalized Restricted Crossing U-Turn N-S", B57="Unsignalized Restricted Crossing U-Turn E-W", B57="Two Quadrant Partial Cloverleaf A E-W",B57="Two Quadrant Partial Cloverleaf A N-S", B57="Two Quadrant Partial Cloverleaf B E-W",B57="Two Quadrant Partial Cloverleaf B N-S", B57="Half Diamond N",B57="Half Diamond S",B57="Half Diamond E",B57="Half Diamond W"),1,0 )) ),SumComp!AV36,"--") -> --
B59: =IF(OR(ISNUMBER(U59),AND(U59=">10",OR(SumComp!AR38="Two-Way Stop Control E-W",SumComp!AR38="Two-Way Stop Control N-S"))),SumComp!AR38,"--") -> -- | U59: =IF(AND(SumComp!AL38<1000000,SumComp!AL38>10,OR(AND(SumComp!AR38="Two-Way Stop Control N-S",Input_MajorStreetDirection="North-South"),AND(SumComp!AR38="Two-Way Stop Control E-W",Input_MajorStreetDirection="East-West"))),">10",IF(AND(SumComp!AL38<1000000,OR(SumComp!AR38<>"Two-Way Stop Control N-S",SumComp!AR38<>"Two-Way Stop Control E-W")),SumComp!AL38,"--")) -> -- | AB59: =IF(ISNUMBER(U59),RANK(U59,$U$25:$AA$44,1),"--") -> -- | AF59: =IF(ISNUMBER($U59),SumComp!AX38,"--") -> -- | AJ59: =IF(AND( ISNUMBER($U59), IF(Input_NumLegs = 4, 1, IF(OR( B59="Traffic Signal", B59="Traffic Signal (Alt.)", B59="Two-Way Stop Control N-S", B59="Two-Way Stop Control E-W", B59="All-Way Stop Control", B59="Continuous Green T N", B59="Continuous Green T S",B59="Continuous Green T E",B59="Continuous Green T W", B59="1 X 1", B59="1NS X 2EW", B59="2NS X 1EW", B59="2 X 2", B59="Signalized Restricted Crossing U-Turn N-S", B59="Signalized Restricted Crossing U-Turn E-W", B59="Unsignalized Restricted Crossing U-Turn N-S", B59="Unsignalized Restricted Crossing U-Turn E-W", B59="Two Quadrant Partial Cloverleaf A E-W",B59="Two Quadrant Partial Cloverleaf A N-S", B59="Two Quadrant Partial Cloverleaf B E-W",B59="Two Quadrant Partial Cloverleaf B N-S", B59="Half Diamond N",B59="Half Diamond S",B59="Half Diamond E",B59="Half Diamond W"),1,0 )) ),SumComp!AU38,"--") -> -- | AR59: =IF(AND( ISNUMBER($U59), IF(Input_NumLegs = 4, 1, IF(OR( B59="Traffic Signal", B59="Traffic Signal (Alt.)", B59="Two-Way Stop Control N-S", B59="Two-Way Stop Control E-W", B59="All-Way Stop Control", B59="Continuous Green T N", B59="Continuous Green T S",B59="Continuous Green T E",B59="Continuous Green T W", B59="1 X 1", B59="1NS X 2EW", B59="2NS X 1EW", B59="2 X 2", B59="Signalized Restricted Crossing U-Turn N-S", B59="Signalized Restricted Crossing U-Turn E-W", B59="Unsignalized Restricted Crossing U-Turn N-S", B59="Unsignalized Restricted Crossing U-Turn E-W", B59="Two Quadrant Partial Cloverleaf A E-W",B59="Two Quadrant Partial Cloverleaf A N-S", B59="Two Quadrant Partial Cloverleaf B E-W",B59="Two Quadrant Partial Cloverleaf B N-S", B59="Half Diamond N",B59="Half Diamond S",B59="Half Diamond E",B59="Half Diamond W"),1,0 )) ),SumComp!AV38,"--") -> --
B61: =IF(OR(ISNUMBER(U61),AND(U61=">10",OR(SumComp!AR40="Two-Way Stop Control E-W",SumComp!AR40="Two-Way Stop Control N-S"))),SumComp!AR40,"--") -> -- | U61: =IF(AND(SumComp!AL40<1000000,SumComp!AL40>10,OR(AND(SumComp!AR40="Two-Way Stop Control N-S",Input_MajorStreetDirection="North-South"),AND(SumComp!AR40="Two-Way Stop Control E-W",Input_MajorStreetDirection="East-West"))),">10",IF(AND(SumComp!AL40<1000000,OR(SumComp!AR40<>"Two-Way Stop Control N-S",SumComp!AR40<>"Two-Way Stop Control E-W")),SumComp!AL40,"--")) -> -- | AB61: =IF(ISNUMBER(U61),RANK(U61,$U$25:$AA$44,1),"--") -> -- | AF61: =IF(ISNUMBER($U61),SumComp!AX40,"--") -> -- | AJ61: =IF(AND( ISNUMBER($U61), IF(Input_NumLegs = 4, 1, IF(OR( B61="Traffic Signal", B61="Traffic Signal (Alt.)", B61="Two-Way Stop Control N-S", B61="Two-Way Stop Control E-W", B61="All-Way Stop Control", B61="Continuous Green T N", B61="Continuous Green T S",B61="Continuous Green T E",B61="Continuous Green T W", B61="1 X 1", B61="1NS X 2EW", B61="2NS X 1EW", B61="2 X 2", B61="Signalized Restricted Crossing U-Turn N-S", B61="Signalized Restricted Crossing U-Turn E-W", B61="Unsignalized Restricted Crossing U-Turn N-S", B61="Unsignalized Restricted Crossing U-Turn E-W", B61="Two Quadrant Partial Cloverleaf A E-W",B61="Two Quadrant Partial Cloverleaf A N-S", B61="Two Quadrant Partial Cloverleaf B E-W",B61="Two Quadrant Partial Cloverleaf B N-S", B61="Half Diamond N",B61="Half Diamond S",B61="Half Diamond E",B61="Half Diamond W"),1,0 )) ),SumComp!AU40,"--") -> -- | AR61: =IF(AND( ISNUMBER($U61), IF(Input_NumLegs = 4, 1, IF(OR( B61="Traffic Signal", B61="Traffic Signal (Alt.)", B61="Two-Way Stop Control N-S", B61="Two-Way Stop Control E-W", B61="All-Way Stop Control", B61="Continuous Green T N", B61="Continuous Green T S",B61="Continuous Green T E",B61="Continuous Green T W", B61="1 X 1", B61="1NS X 2EW", B61="2NS X 1EW", B61="2 X 2", B61="Signalized Restricted Crossing U-Turn N-S", B61="Signalized Restricted Crossing U-Turn E-W", B61="Unsignalized Restricted Crossing U-Turn N-S", B61="Unsignalized Restricted Crossing U-Turn E-W", B61="Two Quadrant Partial Cloverleaf A E-W",B61="Two Quadrant Partial Cloverleaf A N-S", B61="Two Quadrant Partial Cloverleaf B E-W",B61="Two Quadrant Partial Cloverleaf B N-S", B61="Half Diamond N",B61="Half Diamond S",B61="Half Diamond E",B61="Half Diamond W"),1,0 )) ),SumComp!AV40,"--") -> --
B63: =IF(OR(ISNUMBER(U63),AND(U63=">10",OR(SumComp!AR42="Two-Way Stop Control E-W",SumComp!AR42="Two-Way Stop Control N-S"))),SumComp!AR42,"--") -> -- | U63: =IF(AND(SumComp!AL42<1000000,SumComp!AL42>10,OR(AND(SumComp!AR42="Two-Way Stop Control N-S",Input_MajorStreetDirection="North-South"),AND(SumComp!AR42="Two-Way Stop Control E-W",Input_MajorStreetDirection="East-West"))),">10",IF(AND(SumComp!AL42<1000000,OR(SumComp!AR42<>"Two-Way Stop Control N-S",SumComp!AR42<>"Two-Way Stop Control E-W")),SumComp!AL42,"--")) -> -- | AB63: =IF(ISNUMBER(U63),RANK(U63,$U$25:$AA$44,1),"--") -> -- | AF63: =IF(ISNUMBER($U63),SumComp!AX42,"--") -> -- | AJ63: =IF(AND( ISNUMBER($U63), IF(Input_NumLegs = 4, 1, IF(OR( B63="Traffic Signal", B63="Traffic Signal (Alt.)", B63="Two-Way Stop Control N-S", B63="Two-Way Stop Control E-W", B63="All-Way Stop Control", B63="Continuous Green T N", B63="Continuous Green T S",B63="Continuous Green T E",B63="Continuous Green T W", B63="1 X 1", B63="1NS X 2EW", B63="2NS X 1EW", B63="2 X 2", B63="Signalized Restricted Crossing U-Turn N-S", B63="Signalized Restricted Crossing U-Turn E-W", B63="Unsignalized Restricted Crossing U-Turn N-S", B63="Unsignalized Restricted Crossing U-Turn E-W", B63="Two Quadrant Partial Cloverleaf A E-W",B63="Two Quadrant Partial Cloverleaf A N-S", B63="Two Quadrant Partial Cloverleaf B E-W",B63="Two Quadrant Partial Cloverleaf B N-S", B63="Half Diamond N",B63="Half Diamond S",B63="Half Diamond E",B63="Half Diamond W"),1,0 )) ),SumComp!AU42,"--") -> -- | AR63: =IF(AND( ISNUMBER($U63), IF(Input_NumLegs = 4, 1, IF(OR( B63="Traffic Signal", B63="Traffic Signal (Alt.)", B63="Two-Way Stop Control N-S", B63="Two-Way Stop Control E-W", B63="All-Way Stop Control", B63="Continuous Green T N", B63="Continuous Green T S",B63="Continuous Green T E",B63="Continuous Green T W", B63="1 X 1", B63="1NS X 2EW", B63="2NS X 1EW", B63="2 X 2", B63="Signalized Restricted Crossing U-Turn N-S", B63="Signalized Restricted Crossing U-Turn E-W", B63="Unsignalized Restricted Crossing U-Turn N-S", B63="Unsignalized Restricted Crossing U-Turn E-W", B63="Two Quadrant Partial Cloverleaf A E-W",B63="Two Quadrant Partial Cloverleaf A N-S", B63="Two Quadrant Partial Cloverleaf B E-W",B63="Two Quadrant Partial Cloverleaf B N-S", B63="Half Diamond N",B63="Half Diamond S",B63="Half Diamond E",B63="Half Diamond W"),1,0 )) ),SumComp!AV42,"--") -> --

Sheet 4a - Multimodal Ped
A2: Capacity Analysis for Planning of Junctions
A4: Multimodal Intersection Configuration for Pedestrian Crossings
CR7: Crosswalk Marking Legend
CR8: Conflicting Vehicle Type
DA10: Stop/Signal Controlled
DA12: Freeflowing
DA14: Yield Controlled (yield to vehicles downstream)
DA16: Permissive Left (unless exclusive pedestrian phase)
CR18: Marking Type
B20: Roadway Speed Limits | AA20: Ramp Speed Limits (Only for Interchanges) | DF20: Marked | DO20: Unmarked
B21: Major Street Speed Limit | Z21: =IF(AND(Input_MajorStreetDirection=Input_MajorStreetDirection,ISBLANK($P$21)),"", $P$21) ->  | AA21: Diagonal Ramps
B23: Minor Street Speed Limit | Z23: =IF(AND(Input_MinorStreetDirection=Input_MinorStreetDirection,ISBLANK($P$23)),"",$P$23) ->  | AA23: Loop Ramps
B25: Mini Roundabout Entry & Exit Speed Limit | P25: 20 | AA25: DDI Ramps | UT25: =_xlfn.XLOOKUP(BC42,$AA$292:$AD$292,$AA$294:$AD$294,"check xlookup for volume 300",0,1) -> 5
UT26: =HLOOKUP(BC42,$AA$292:$AD$297,3,FALSE) -> 5
B27: 1-Lane Roundabout Entry & Exit Speed Limit | P27: 25 | AA27: Single Point Ramps | UT27: =_xlfn.XLOOKUP(BC42,AA$292:$AD$292,$AA$293:$AD$293,"check xlookup for volume 150",0,1) -> 5
UP28: BC42 | UT28: =HLOOKUP(BC42,$AA$292:$AD$297,2,FALSE) -> 5
B29: 2-Lane Roundabout Entry & Exit Speed Limit | P29: 30 | UP29: AN42 | UT29: =VLOOKUP(AN42,$W$276:$AA$279,5) -> 2
UT30: =_xlfn.XLOOKUP(AI42,Multistage_Crossing,$AA$305:$AA$307,"lookup error",0,1) -> 1.2
UT31: =VLOOKUP(AI42,$W$305:$AA$307,5) -> 1.2
UT32: =_xlfn.XLOOKUP(AD42,$W$311:$W$312,$AA$311:$AA$312,"lookup error",0,1) -> 1
UT33: =VLOOKUP(AD42,$W$311:$AA$312,5) -> 1 | VG33: CF42 | VP33: DI42 | VZ33: EL42 | WJ33: FO42 | WT33: GR42 | XD33: HU42 | XN33: IX42 | XX33: KA42 | YH33: LD42 | YR33: MG42 | ZB33: NJ42 | ZL33: OM42 | ZV33: PP42 | AAF33: QS42 | AAP33: RV42 | ABA33: SY42 | ABJ33: UB42
A34: DO NOT REMOVE ROW: Hiden Calculations | AC34: 5 | AN34: 6 | AO34: 7 | AP34: 8
A35: Pedestrian Crossing Configurations for Non-roundabout Intersections
A37: DO NOT MODIFY THIS ROW | AN37: 1 | AS37: =AN37 -> 1 | BQ37: 2 | BV37: =BQ37 -> 2 | CT37: 3 | CY37: =CT37 -> 3 | DD37: 4 | DI37: =DD37 -> 4 | DN37: 5 | DS37: =DN37 -> 5 | DX37: 6 | EC37: =DX37 -> 6 | EH37: 7 | EM37: =EH37 -> 7 | ER37: 8 | EW37: =ER37 -> 8 | FB37: 9 | FG37: =FB37 -> 9 | FL37: 10 | FQ37: =FL37 -> 10 | FV37: 11 | GA37: =FV37 -> 11 | GF37: 12 | GK37: =GF37 -> 12 | GP37: 13 | GU37: =GP37 -> 13 | GZ37: 14 | HE37: =GZ37 -> 14 | HJ37: 15 | HO37: =HJ37 -> 15 | HT37: 16 | HY37: =HT37 -> 16
A38: TYPE OF INTERSECTION | T38: Sheet | Z38: Intersection Score | AD38: Out of Direction Travel | AI38: Multistage Crossing | AN38: Crossing #1 | BQ38: Crossing #2 | CT38: Crossing #3 | DW38: Crossing #4 | EZ38: Crossing #5 | GC38: Crossing #6 | HF38: Crossing #7 | II38: Crossing #8 | JL38: Crossing #9 | KO38: Crossing #10 | LR38: Crossing #11 | MU38: Crossing #12 | NX38: Crossing #13 | PA38: Crossing #14 | QD38: Crossing #15 | RG38: Crossing #16 | SJ38: Crossing #17 | TM38: Crossing #18 | UP38: Score Combined | UU38: Individual Crossing Scores
AN40: # Lanes | AS40: Speed Limit | AX40: Volume | BC40: Conflicting Veh Type | BK40: Markings | BQ40: # Lanes | BV40: Speed Limit | CA40: Volume | CF40: Conflicting Veh Type | CN40: Markings | CT40: # Lanes | CY40: Speed Limit | DD40: Volume | DI40: Conflicting Veh Type | DQ40: Markings | DW40: # Lanes | EB40: Speed Limit | EG40: Volume | EL40: Conflicting Veh Type | ET40: Markings | EZ40: # Lanes | FE40: Speed Limit | FJ40: Volume | FO40: Conflicting Veh Type | FW40: Markings | GC40: # Lanes | GH40: Speed Limit | GM40: Volume | GR40: Conflicting Veh Type | GZ40: Markings | HF40: # Lanes | HK40: Speed Limit | HP40: Volume | HU40: Conflicting Veh Type | IC40: Markings | II40: # Lanes | IN40: Speed Limit | IS40: Volume | IX40: Conflicting Veh Type | JF40: Markings | JL40: # Lanes | JQ40: Speed Limit | JV40: Volume | KA40: Conflicting Veh Type | KI40: Markings | KO40: # Lanes | KT40: Speed Limit | KY40: Volume | LD40: Conflicting Veh Type | LL40: Markings | LR40: # Lanes | LW40: Speed Limit | MB40: Volume | MG40: Conflicting Veh Type | MO40: Markings | MU40: # Lanes | MZ40: Speed Limit | NE40: Volume | NJ40: Conflicting Veh Type | NR40: Markings | NX40: # Lanes | OC40: Speed Limit | OH40: Volume | OM40: Conflicting Veh Type | OU40: Markings | PA40: # Lanes | PF40: Speed Limit | PK40: Volume | PP40: Conflicting Veh Type | PX40: Markings | QD40: # Lanes | QI40: Speed Limit | QN40: Volume | QS40: Conflicting Veh Type | RA40: Markings | RG40: # Lanes | RL40: Speed Limit | RQ40: Volume | RV40: Conflicting Veh Type | SD40: Markings | SJ40: # Lanes | SO40: Speed Limit | ST40: Volume | SY40: Conflicting Veh Type | TG40: Markings | TM40: # Lanes | TR40: Speed Limit | TW40: Volume | UB40: Conflicting Veh Type | UJ40: Markings | UU40: #1 | VE40: #2 | VO40: #3 | VY40: #4 | WI40: #5 | WS40: #6 | XC40: #7 | XM40: #8 | XW40: #9 | YG40: #10 | YQ40: #11 | ZA40: #12 | ZK40: #13 | ZU40: #14 | AAE40: #15 | AAO40: #16 | AAY40: #17 | ABI40: #18
A42: ='3 - Alt Num Lanes Input'!E24 -> Traffic Signal | T42: FULL | Z42: =UP42 -> Enter Major/Minor Street Speeds | AD42: No | AI42: Yes Crossing(s) with 2 stages | AN42: =SUM('Traffic Signal'!CJ30:CU30) -> 4 | AS42: =IF(OR(AND(Input_MajorStreetDirection="East-West",OR(AN38="Crossing #3",AN38="Crossing #4",AN38="Crossing #7",AN38="Crossing #8")),AND(Input_MajorStreetDirection="North-South",OR(AN38="Crossing #1",AN38="Crossing #2",AN38="Crossing #5",AN38="Crossing #6"))),Maj_St_Spd_Lmt,Min_St_Spd_Lmt) ->  | AX42: =SUM(SBU_Master,SBL_Master,SBT_Master,SBR_Master) -> 0 | BC42: Stop/Signal Controlled | BK42: Marked | BQ42: =MAX('Traffic Signal'!CI31:CI36,'Traffic Signal'!CP43:CR43,'Traffic Signal'!CV31:CV33) -> 2 | BV42: =IF(OR(AND(Input_MajorStreetDirection="East-West",OR(BQ38="Crossing #3",BQ38="Crossing #4",BQ38="Crossing #7",BQ38="Crossing #8")),AND(Input_MajorStreetDirection="North-South",OR(BQ38="Crossing #1",BQ38="Crossing #2",BQ38="Crossing #5",BQ38="Crossing #6"))),Maj_St_Spd_Lmt,Min_St_Spd_Lmt) ->  | CA42: =SUM(SBU_Master,EBL_Master,NBT_Master,WBR_Master) -> 0 | CF42: Stop/Signal Controlled | CN42: Marked | CT42: =SUM('Traffic Signal'!CV31:CV42) -> 4 | CY42: =IF(OR(AND(Input_MajorStreetDirection="East-West",OR(CT38="Crossing #3",CT38="Crossing #4",CT38="Crossing #7",CT38="Crossing #8")),AND(Input_MajorStreetDirection="North-South",OR(CT38="Crossing #1",CT38="Crossing #2",CT38="Crossing #5",CT38="Crossing #6"))),Maj_St_Spd_Lmt,Min_St_Spd_Lmt) ->  | DD42: =SUM(WBU_Master,WBL_Master,WBT_Master,WBR_Master) -> 0 | DI42: Stop/Signal Controlled | DQ42: Marked | DW42: =MAX('Traffic Signal'!CP30:CU30,'Traffic Signal'!CI37:CI39,'Traffic Signal'!CS43:CU43) -> 2 | EB42: =IF(OR(AND(Input_MajorStreetDirection="East-West",OR(DW38="Crossing #3",DW38="Crossing #4",DW38="Crossing #7",DW38="Crossing #8")),AND(Input_MajorStreetDirection="North-South",OR(DW38="Crossing #1",DW38="Crossing #2",DW38="Crossing #5",DW38="Crossing #6"))),Maj_St_Spd_Lmt,Min_St_Spd_Lmt) ->  | EG42: =SUM(NBR_Master,SBL_Master,WBU_Master,EBT_Master) -> 0 | EL42: Stop/Signal Controlled | ET42: Marked | EZ42: =SUM('Traffic Signal'!CJ43:CU43) -> 4 | FE42: =IF(OR(AND(Input_MajorStreetDirection="East-West",OR(EZ38="Crossing #3",EZ38="Crossing #4",EZ38="Crossing #7",EZ38="Crossing #8")),AND(Input_MajorStreetDirection="North-South",OR(EZ38="Crossing #1",EZ38="Crossing #2",EZ38="Crossing #5",EZ38="Crossing #6"))),Maj_St_Spd_Lmt,Min_St_Spd_Lmt) ->  | FJ42: =SUM(NBT_Master,NBL_Master,NBR_Master,NBU_Master) -> 0 | FO42: Stop/Signal Controlled | FW42: Marked | GC42: =MAX('Traffic Signal'!CV37:CV42,'Traffic Signal'!CM30:CO30,'Traffic Signal'!CI40:CI42) -> 2 | GH42: =IF(OR(AND(Input_MajorStreetDirection="East-West",OR(GC38="Crossing #3",GC38="Crossing #4",GC38="Crossing #7",GC38="Crossing #8")),AND(Input_MajorStreetDirection="North-South",OR(GC38="Crossing #1",GC38="Crossing #2",GC38="Crossing #5",GC38="Crossing #6"))),Maj_St_Spd_Lmt,Min_St_Spd_Lmt) ->  | GM42: =SUM(EBR_Master,SBT_Master,WBL_Master,NBU_Master) -> 0 | GR42: Stop/Signal Controlled | GZ42: Marked | HF42: =SUM('Traffic Signal'!CI31:CI42) -> 4 | HK42: =IF(OR(AND(Input_MajorStreetDirection="East-West",OR(HF38="Crossing #3",HF38="Crossing #4",HF38="Crossing #7",HF38="Crossing #8")),AND(Input_MajorStreetDirection="North-South",OR(HF38="Crossing #1",HF38="Crossing #2",HF38="Crossing #5",HF38="Crossing #6"))),Maj_St_Spd_Lmt,Min_St_Spd_Lmt) ->  | HP42: =SUM(EBL_Master,EBT_Master,EBR_Master,EBU_Master) -> 0 | HU42: Stop/Signal Controlled | IC42: Marked | II42: =MAX('Traffic Signal'!CJ43:CO43,'Traffic Signal'!CV34:CV36,'Traffic Signal'!CJ30:CL30) -> 2 | IN42: =IF(OR(AND(Input_MajorStreetDirection="East-West",OR(II38="Crossing #3",II38="Crossing #4",II38="Crossing #7",II38="Crossing #8")),AND(Input_MajorStreetDirection="North-South",OR(II38="Crossing #1",II38="Crossing #2",II38="Crossing #5",II38="Crossing #6"))),Maj_St_Spd_Lmt,Min_St_Spd_Lmt) ->  | IS42: =SUM(NBL_Master,WBT_Master,SBR_Master,EBU_Master) -> 0 | IX42: Stop/Signal Controlled | JF42: Marked | UP42: =IFERROR((((SUM(SQRT(UU42),SQRT(VE42),SQRT(VO42),SQRT(VY42),SQRT(WI42),SQRT(WS42),SQRT(XC42),SQRT(XM42),SQRT(XW42),SQRT(YG42),SQRT(YQ42),SQRT(ZA42),SQRT(ZK42),SQRT(ZU42),SQRT(AAE42),SQRT(AAO42),SQRT(AAY42),SQRT(ABI42))/COUNTIF(UU42:ABR43,">0"))^2)*(_xlfn.XLOOKUP(AD42,$W$311:$W$312,$AA$311:$AA$312,"lookup error",0,1))*(_xlfn.XLOOKUP(AI42,Multistage_Crossing,$AA$305:$AA$307,"lookup error",0,1))),"Enter Major/Minor Street Speeds") -> Enter Major/Minor Street Speeds | UU42: =IF(OR(LEN($P$21)=0,LEN($P$23)=0),"Enter Major/Minor Street Speeds",IF(AN42=0,,(IF(AN42<5,VLOOKUP(AN42,$W$276:$AA$279,5, FALSE),$AA$280)+IF(AS42<=$V$283,$AA$283,IF(AND(AS42>$V$283,AS42<=$V$284),$AA$284,IF(AND(AS42>$V$284,AS42<=$V$285),$AA$285,IF(AND(AS42>$V$285,AS42<=$V$286),$AA$286,$AA$287))))+IF(AX42<=$V$293,HLOOKUP(BC42,$AA$292:$AD$297,2,FALSE),IF(AND(AX42>$V$293,AX42<=$V$294),HLOOKUP(BC42,$AA$292:$AD$297,3,FALSE),IF(AND(AX42>$V$294,AX42<=$V$295),HLOOKUP(BC42,$AA$292:$AD$297,4,FALSE),IF(AND(AX42>$V$295,AX42<=$V$296),HLOOKUP(BC42,$AA$292:$AD$297,5,FALSE),IF(AX42>$V$296,HLOOKUP(BC42,$AA$292:$AD$297,6,FALSE),"")))))+IF(BK42=$W$300,$AA$300,$AA$301))/4)) -> Enter Major/Minor Street Speeds | VE42: =IF(OR(LEN($P$21)=0,LEN($P$23)=0),"Enter Major/Minor Street Speeds",IF(BQ42=0,,(IF(BQ42<5,VLOOKUP(BQ42,$W$276:$AA$279,5, FALSE),$AA$280)+IF(BV42<=$V$283,$AA$283,IF(AND(BV42>$V$283,BV42<=$V$284),$AA$284,IF(AND(BV42>$V$284,BV42<=$V$285),$AA$285,IF(AND(BV42>$V$285,BV42<=$V$286),$AA$286,$AA$287))))+IF(CA42<=$V$293,HLOOKUP(CF42,$AA$292:$AD$297,2,FALSE),IF(AND(CA42>$V$293,CA42<=$V$294),HLOOKUP(CF42,$AA$292:$AD$297,3,FALSE),IF(AND(CA42>$V$294,CA42<=$V$295),HLOOKUP(CF42,$AA$292:$AD$297,4,FALSE),IF(AND(CA42>$V$295,CA42<=$V$296),HLOOKUP(CF42,$AA$292:$AD$297,5,FALSE),IF(CA42>$V$296,HLOOKUP(CF42,$AA$292:$AD$297,6,FALSE),"")))))+IF(CN42=$W$300,$AA$300,$AA$301))/4)) -> Enter Major/Minor Street Speeds | VO42: =IF(OR(LEN($P$21)=0,LEN($P$23)=0),"Enter Major/Minor Street Speeds",IF(CT42=0,,(IF(CT42<5,VLOOKUP(CT42,$W$276:$AA$279,5, FALSE),$AA$280)+IF(CY42<=$V$283,$AA$283,IF(AND(CY42>$V$283,CY42<=$V$284),$AA$284,IF(AND(CY42>$V$284,CY42<=$V$285),$AA$285,IF(AND(CY42>$V$285,CY42<=$V$286),$AA$286,$AA$287))))+IF(DD42<=$V$293,HLOOKUP(DI42,$AA$292:$AD$297,2,FALSE),IF(AND(DD42>$V$293,DD42<=$V$294),HLOOKUP(DI42,$AA$292:$AD$297,3,FALSE),IF(AND(DD42>$V$294,DD42<=$V$295),HLOOKUP(DI42,$AA$292:$AD$297,4,FALSE),IF(AND(DD42>$V$295,DD42<=$V$296),HLOOKUP(DI42,$AA$292:$AD$297,5,FALSE),IF(DD42>$V$296,HLOOKUP(DI42,$AA$292:$AD$297,6,FALSE),"")))))+IF(DQ42=$W$300,$AA$300,$AA$301))/4)) -> Enter Major/Minor Street Speeds | VY42: =IF(OR(LEN($P$21)=0,LEN($P$23)=0),"Enter Major/Minor Street Speeds",IF(DW42=0,,(IF(DW42<5,VLOOKUP(DW42,$W$276:$AA$279,5, FALSE),$AA$280)+IF(EB42<=$V$283,$AA$283,IF(AND(EB42>$V$283,EB42<=$V$284),$AA$284,IF(AND(EB42>$V$284,EB42<=$V$285),$AA$285,IF(AND(EB42>$V$285,EB42<=$V$286),$AA$286,$AA$287))))+IF(EG42<=$V$293,HLOOKUP(EL42,$AA$292:$AD$297,2,FALSE),IF(AND(EG42>$V$293,EG42<=$V$294),HLOOKUP(EL42,$AA$292:$AD$297,3,FALSE),IF(AND(EG42>$V$294,EG42<=$V$295),HLOOKUP(EL42,$AA$292:$AD$297,4,FALSE),IF(AND(EG42>$V$295,EG42<=$V$296),HLOOKUP(EL42,$AA$292:$AD$297,5,FALSE),IF(EG42>$V$296,HLOOKUP(EL42,$AA$292:$AD$297,6,FALSE),"")))))+IF(ET42=$W$300,$AA$300,$AA$301))/4)) -> Enter Major/Minor Street Speeds | WI42: =IF(OR(LEN($P$21)=0,LEN($P$23)=0),"Enter Major/Minor Street Speeds",IF(EZ42=0,,(IF(EZ42<5,VLOOKUP(EZ42,$W$276:$AA$279,5, FALSE),$AA$280)+IF(FE42<=$V$283,$AA$283,IF(AND(FE42>$V$283,FE42<=$V$284),$AA$284,IF(AND(FE42>$V$284,FE42<=$V$285),$AA$285,IF(AND(FE42>$V$285,FE42<=$V$286),$AA$286,$AA$287))))+IF(FJ42<=$V$293,HLOOKUP(FO42,$AA$292:$AD$297,2,FALSE),IF(AND(FJ42>$V$293,FJ42<=$V$294),HLOOKUP(FO42,$AA$292:$AD$297,3,FALSE),IF(AND(FJ42>$V$294,FJ42<=$V$295),HLOOKUP(FO42,$AA$292:$AD$297,4,FALSE),IF(AND(FJ42>$V$295,FJ42<=$V$296),HLOOKUP(FO42,$AA$292:$AD$297,5,FALSE),IF(FJ42>$V$296,HLOOKUP(FO42,$AA$292:$AD$297,6,FALSE),"")))))+IF(FW42=$W$300,$AA$300,$AA$301))/4)) -> Enter Major/Minor Street Speeds | WS42: =IF(OR(LEN($P$21)=0,LEN($P$23)=0),"Enter Major/Minor Street Speeds",IF(GC42=0,,(IF(GC42<5,VLOOKUP(GC42,$W$276:$AA$279,5, FALSE),$AA$280)+IF(GH42<=$V$283,$AA$283,IF(AND(GH42>$V$283,GH42<=$V$284),$AA$284,IF(AND(GH42>$V$284,GH42<=$V$285),$AA$285,IF(AND(GH42>$V$285,GH42<=$V$286),$AA$286,$AA$287))))+IF(GM42<=$V$293,HLOOKUP(GR42,$AA$292:$AD$297,2,FALSE),IF(AND(GM42>$V$293,GM42<=$V$294),HLOOKUP(GR42,$AA$292:$AD$297,3,FALSE),IF(AND(GM42>$V$294,GM42<=$V$295),HLOOKUP(GR42,$AA$292:$AD$297,4,FALSE),IF(AND(GM42>$V$295,GM42<=$V$296),HLOOKUP(GR42,$AA$292:$AD$297,5,FALSE),IF(GM42>$V$296,HLOOKUP(GR42,$AA$292:$AD$297,6,FALSE),"")))))+IF(GZ42=$W$300,$AA$300,$AA$301))/4)) -> Enter Major/Minor Street Speeds | XC42: =IF(OR(LEN($P$21)=0,LEN($P$23)=0),"Enter Major/Minor Street Speeds",IF(HF42=0,,(IF(HF42<5,VLOOKUP(HF42,$W$276:$AA$279,5, FALSE),$AA$280)+IF(HK42<=$V$283,$AA$283,IF(AND(HK42>$V$283,HK42<=$V$284),$AA$284,IF(AND(HK42>$V$284,HK42<=$V$285),$AA$285,IF(AND(HK42>$V$285,HK42<=$V$286),$AA$286,$AA$287))))+IF(HP42<=$V$293,HLOOKUP(HU42,$AA$292:$AD$297,2,FALSE),IF(AND(HP42>$V$293,HP42<=$V$294),HLOOKUP(GR42,$AA$292:$AD$297,3,FALSE),IF(AND(HP42>$V$294,HP42<=$V$295),HLOOKUP(GR42,$AA$292:$AD$297,4,FALSE),IF(AND(HP42>$V$295,HP42<=$V$296),HLOOKUP(GR42,$AA$292:$AD$297,5,FALSE),IF(HP42>$V$296,HLOOKUP(GR42,$AA$292:$AD$297,6,FALSE),"")))))+IF(IC42=$W$300,$AA$300,$AA$301))/4)) -> Enter Major/Minor Street Speeds | XM42: =IF(OR(LEN($P$21)=0,LEN($P$23)=0),"Enter Major/Minor Street Speeds",IF(II42=0,,(IF(II42<5,VLOOKUP(II42,$W$276:$AA$279,5, FALSE),$AA$280)+IF(IN42<=$V$283,$AA$283,IF(AND(IN42>$V$283,IN42<=$V$284),$AA$284,IF(AND(IN42>$V$284,IN42<=$V$285),$AA$285,IF(AND(IN42>$V$285,IN42<=$V$286),$AA$286,$AA$287))))+IF(IS42<=$V$293,HLOOKUP(IX42,$AA$292:$AD$297,2,FALSE),IF(AND(IS42>$V$293,IS42<=$V$294),HLOOKUP(IX42,$AA$292:$AD$297,3,FALSE),IF(AND(IS42>$V$294,IS42<=$V$295),HLOOKUP(IX42,$AA$292:$AD$297,4,FALSE),IF(AND(IS42>$V$295,IS42<=$V$296),HLOOKUP(IX42,$AA$292:$AD$297,5,FALSE),IF(IS42>$V$296,HLOOKUP(IX42,$AA$292:$AD$297,6,FALSE),"")))))+IF(JF42=$W$300,$AA$300,$AA$301))/4)) -> Enter Major/Minor Street Speeds
A44: ='3 - Alt Num Lanes Input'!E26 -> Traffic Signal (Alt.) | T44: FULL | Z44: =UP44 -> Enter Major/Minor Street Speeds | AD44: No | AI44: Yes Crossing(s) with 2 stages | AN44: =SUM('Traffic Signal (Alt.)'!CJ30:CU30) -> 4 | AS44: =IF(OR(AND(Input_MajorStreetDirection="East-West",OR(AN38="Crossing #3",AN38="Crossing #4",AN38="Crossing #7",AN38="Crossing #8")),AND(Input_MajorStreetDirection="North-South",OR(AN38="Crossing #1",AN38="Crossing #2",AN38="Crossing #5",AN38="Crossing #6"))),Maj_St_Spd_Lmt,Min_St_Spd_Lmt) ->  | AX44: =SUM(SBU_Master,SBL_Master,SBT_Master,SBR_Master) -> 0 | BC44: Stop/Signal Controlled | BK44: Marked | BQ44: =MAX('Traffic Signal (Alt.)'!CI31:CI36,'Traffic Signal (Alt.)'!CP43:CR43,'Traffic Signal (Alt.)'!CV31:CV33) -> 2 | BV44: =IF(OR(AND(Input_MajorStreetDirection="East-West",OR(BQ38="Crossing #3",BQ38="Crossing #4",BQ38="Crossing #7",BQ38="Crossing #8")),AND(Input_MajorStreetDirection="North-South",OR(BQ38="Crossing #1",BQ38="Crossing #2",BQ38="Crossing #5",BQ38="Crossing #6"))),Maj_St_Spd_Lmt,Min_St_Spd_Lmt) ->  | CA44: =SUM(SBU_Master,EBL_Master,NBT_Master,WBR_Master) -> 0 | CF44: Stop/Signal Controlled | CN44: Marked | CT44: =SUM('Traffic Signal (Alt.)'!CV31:CV42) -> 4 | CY44: =IF(OR(AND(Input_MajorStreetDirection="East-West",OR(CT38="Crossing #3",CT38="Crossing #4",CT38="Crossing #7",CT38="Crossing #8")),AND(Input_MajorStreetDirection="North-South",OR(CT38="Crossing #1",CT38="Crossing #2",CT38="Crossing #5",CT38="Crossing #6"))),Maj_St_Spd_Lmt,Min_St_Spd_Lmt) ->  | DD44: =SUM(WBU_Master,WBL_Master,WBT_Master,WBR_Master) -> 0 | DI44: Stop/Signal Controlled | DQ44: Marked | DW44: =MAX('Traffic Signal (Alt.)'!CP30:CU30,'Traffic Signal (Alt.)'!CI37:CI39,'Traffic Signal (Alt.)'!CS43:CU43) -> 2 | EB44: =IF(OR(AND(Input_MajorStreetDirection="East-West",OR(DW38="Crossing #3",DW38="Crossing #4",DW38="Crossing #7",DW38="Crossing #8")),AND(Input_MajorStreetDirection="North-South",OR(DW38="Crossing #1",DW38="Crossing #2",DW38="Crossing #5",DW38="Crossing #6"))),Maj_St_Spd_Lmt,Min_St_Spd_Lmt) ->  | EG44: =SUM(NBR_Master,SBL_Master,WBU_Master,EBT_Master) -> 0 | EL44: Stop/Signal Controlled | ET44: Marked | EZ44: =SUM('Traffic Signal (Alt.)'!CJ43:CU43) -> 4 | FE44: =IF(OR(AND(Input_MajorStreetDirection="East-West",OR(EZ38="Crossing #3",EZ38="Crossing #4",EZ38="Crossing #7",EZ38="Crossing #8")),AND(Input_MajorStreetDirection="North-South",OR(EZ38="Crossing #1",EZ38="Crossing #2",EZ38="Crossing #5",EZ38="Crossing #6"))),Maj_St_Spd_Lmt,Min_St_Spd_Lmt) ->  | FJ44: =SUM(NBT_Master,NBL_Master,NBR_Master,NBU_Master) -> 0 | FO44: Stop/Signal Controlled | FW44: Marked | GC44: =MAX('Traffic Signal (Alt.)'!CV37:CV42,'Traffic Signal (Alt.)'!CM30:CO30,'Traffic Signal (Alt.)'!CI40:CI42) -> 2 | GH44: =IF(OR(AND(Input_MajorStreetDirection="East-West",OR(GC38="Crossing #3",GC38="Crossing #4",GC38="Crossing #7",GC38="Crossing #8")),AND(Input_MajorStreetDirection="North-South",OR(GC38="Crossing #1",GC38="Crossing #2",GC38="Crossing #5",GC38="Crossing #6"))),Maj_St_Spd_Lmt,Min_St_Spd_Lmt) ->  | GM44: =SUM(EBR_Master,SBT_Master,WBL_Master,NBU_Master) -> 0 | GR44: Stop/Signal Controlled | GZ44: Marked | HF44: =SUM('Traffic Signal (Alt.)'!CI31:CI42) -> 4 | HK44: =IF(OR(AND(Input_MajorStreetDirection="East-West",OR(HF38="Crossing #3",HF38="Crossing #4",HF38="Crossing #7",HF38="Crossing #8")),AND(Input_MajorStreetDirection="North-South",OR(HF38="Crossing #1",HF38="Crossing #2",HF38="Crossing #5",HF38="Crossing #6"))),Maj_St_Spd_Lmt,Min_St_Spd_Lmt) ->  | HP44: =SUM(EBL_Master,EBT_Master,EBR_Master,EBU_Master) -> 0 | HU44: Stop/Signal Controlled | IC44: Marked | II44: =MAX('Traffic Signal (Alt.)'!CJ43:CO43,'Traffic Signal (Alt.)'!CV34:CV36,'Traffic Signal (Alt.)'!CJ30:CL30) -> 2 | IN44: =IF(OR(AND(Input_MajorStreetDirection="East-West",OR(II38="Crossing #3",II38="Crossing #4",II38="Crossing #7",II38="Crossing #8")),AND(Input_MajorStreetDirection="North-South",OR(II38="Crossing #1",II38="Crossing #2",II38="Crossing #5",II38="Crossing #6"))),Maj_St_Spd_Lmt,Min_St_Spd_Lmt) ->  | IS44: =SUM(NBL_Master,WBT_Master,SBR_Master,EBU_Master) -> 0 | IX44: Stop/Signal Controlled | JF44: Marked | UP44: =IFERROR((((SUM(SQRT(UU44),SQRT(VE44),SQRT(VO44),SQRT(VY44),SQRT(WI44),SQRT(WS44),SQRT(XC44),SQRT(XM44),SQRT(XW44),SQRT(YG44),SQRT(YQ44),SQRT(ZA44),SQRT(ZK44),SQRT(ZU44),SQRT(AAE44),SQRT(AAO44),SQRT(AAY44),SQRT(ABI44))/COUNTIF(UU44:ABR45,">0"))^2)*(_xlfn.XLOOKUP(AD44,$W$311:$W$312,$AA$311:$AA$312,"lookup error",0,1))*(_xlfn.XLOOKUP(AI44,Multistage_Crossing,$AA$305:$AA$307,"lookup error",0,1))),"Enter Major/Minor Street Speeds") -> Enter Major/Minor Street Speeds | UU44: =IF(OR(LEN($P$21)=0,LEN($P$23)=0),"Enter Major/Minor Street Speeds",IF(AN44=0,,(IF(AN44<5,VLOOKUP(AN44,$W$276:$AA$279,5, FALSE),$AA$280)+IF(AS44<=$V$283,$AA$283,IF(AND(AS44>$V$283,AS44<=$V$284),$AA$284,IF(AND(AS44>$V$284,AS44<=$V$285),$AA$285,IF(AND(AS44>$V$285,AS44<=$V$286),$AA$286,$AA$287))))+IF(AX44<=$V$293,HLOOKUP(BC44,$AA$292:$AD$297,2,FALSE),IF(AND(AX44>$V$293,AX44<=$V$294),HLOOKUP(BC44,$AA$292:$AD$297,3,FALSE),IF(AND(AX44>$V$294,AX44<=$V$295),HLOOKUP(BC44,$AA$292:$AD$297,4,FALSE),IF(AND(AX44>$V$295,AX44<=$V$296),HLOOKUP(BC44,$AA$292:$AD$297,5,FALSE),IF(AX44>$V$296,HLOOKUP(BC44,$AA$292:$AD$297,6,FALSE),"")))))+IF(BK44=$W$300,$AA$300,$AA$301))/4)) -> Enter Major/Minor Street Speeds | VE44: =IF(OR(LEN($P$21)=0,LEN($P$23)=0),"Enter Major/Minor Street Speeds",IF(BQ44=0,,(IF(BQ44<5,VLOOKUP(BQ44,$W$276:$AA$279,5, FALSE),$AA$280)+IF(BV44<=$V$283,$AA$283,IF(AND(BV44>$V$283,BV44<=$V$284),$AA$284,IF(AND(BV44>$V$284,BV44<=$V$285),$AA$285,IF(AND(BV44>$V$285,BV44<=$V$286),$AA$286,$AA$287))))+IF(CA44<=$V$293,HLOOKUP(CF44,$AA$292:$AD$297,2,FALSE),IF(AND(CA44>$V$293,CA44<=$V$294),HLOOKUP(CF44,$AA$292:$AD$297,3,FALSE),IF(AND(CA44>$V$294,CA44<=$V$295),HLOOKUP(CF44,$AA$292:$AD$297,4,FALSE),IF(AND(CA44>$V$295,CA44<=$V$296),HLOOKUP(CF44,$AA$292:$AD$297,5,FALSE),IF(CA44>$V$296,HLOOKUP(CF44,$AA$292:$AD$297,6,FALSE),"")))))+IF(CN44=$W$300,$AA$300,$AA$301))/4)) -> Enter Major/Minor Street Speeds | VO44: =IF(OR(LEN($P$21)=0,LEN($P$23)=0),"Enter Major/Minor Street Speeds",IF(CT44=0,,(IF(CT44<5,VLOOKUP(CT44,$W$276:$AA$279,5, FALSE),$AA$280)+IF(CY44<=$V$283,$AA$283,IF(AND(CY44>$V$283,CY44<=$V$284),$AA$284,IF(AND(CY44>$V$284,CY44<=$V$285),$AA$285,IF(AND(CY44>$V$285,CY44<=$V$286),$AA$286,$AA$287))))+IF(DD44<=$V$293,HLOOKUP(DI44,$AA$292:$AD$297,2,FALSE),IF(AND(DD44>$V$293,DD44<=$V$294),HLOOKUP(DI44,$AA$292:$AD$297,3,FALSE),IF(AND(DD44>$V$294,DD44<=$V$295),HLOOKUP(DI44,$AA$292:$AD$297,4,FALSE),IF(AND(DD44>$V$295,DD44<=$V$296),HLOOKUP(DI44,$AA$292:$AD$297,5,FALSE),IF(DD44>$V$296,HLOOKUP(DI44,$AA$292:$AD$297,6,FALSE),"")))))+IF(DQ44=$W$300,$AA$300,$AA$301))/4)) -> Enter Major/Minor Street Speeds | VY44: =IF(OR(LEN($P$21)=0,LEN($P$23)=0),"Enter Major/Minor Street Speeds",IF(DW44=0,,(IF(DW44<5,VLOOKUP(DW44,$W$276:$AA$279,5, FALSE),$AA$280)+IF(EB44<=$V$283,$AA$283,IF(AND(EB44>$V$283,EB44<=$V$284),$AA$284,IF(AND(EB44>$V$284,EB44<=$V$285),$AA$285,IF(AND(EB44>$V$285,EB44<=$V$286),$AA$286,$AA$287))))+IF(EG44<=$V$293,HLOOKUP(EL44,$AA$292:$AD$297,2,FALSE),IF(AND(EG44>$V$293,EG44<=$V$294),HLOOKUP(EL44,$AA$292:$AD$297,3,FALSE),IF(AND(EG44>$V$294,EG44<=$V$295),HLOOKUP(EL44,$AA$292:$AD$297,4,FALSE),IF(AND(EG44>$V$295,EG44<=$V$296),HLOOKUP(EL44,$AA$292:$AD$297,5,FALSE),IF(EG44>$V$296,HLOOKUP(EL44,$AA$292:$AD$297,6,FALSE),"")))))+IF(ET44=$W$300,$AA$300,$AA$301))/4)) -> Enter Major/Minor Street Speeds | WI44: =IF(OR(LEN($P$21)=0,LEN($P$23)=0),"Enter Major/Minor Street Speeds",IF(EZ44=0,,(IF(EZ44<5,VLOOKUP(EZ44,$W$276:$AA$279,5, FALSE),$AA$280)+IF(FE44<=$V$283,$AA$283,IF(AND(FE44>$V$283,FE44<=$V$284),$AA$284,IF(AND(FE44>$V$284,FE44<=$V$285),$AA$285,IF(AND(FE44>$V$285,FE44<=$V$286),$AA$286,$AA$287))))+IF(FJ44<=$V$293,HLOOKUP(FO44,$AA$292:$AD$297,2,FALSE),IF(AND(FJ44>$V$293,FJ44<=$V$294),HLOOKUP(FO44,$AA$292:$AD$297,3,FALSE),IF(AND(FJ44>$V$294,FJ44<=$V$295),HLOOKUP(FO44,$AA$292:$AD$297,4,FALSE),IF(AND(FJ44>$V$295,FJ44<=$V$296),HLOOKUP(FO44,$AA$292:$AD$297,5,FALSE),IF(FJ44>$V$296,HLOOKUP(FO44,$AA$292:$AD$297,6,FALSE),"")))))+IF(FW44=$W$300,$AA$300,$AA$301))/4)) -> Enter Major/Minor Street Speeds | WS44: =IF(OR(LEN($P$21)=0,LEN($P$23)=0),"Enter Major/Minor Street Speeds",IF(GC44=0,,(IF(GC44<5,VLOOKUP(GC44,$W$276:$AA$279,5, FALSE),$AA$280)+IF(GH44<=$V$283,$AA$283,IF(AND(GH44>$V$283,GH44<=$V$284),$AA$284,IF(AND(GH44>$V$284,GH44<=$V$285),$AA$285,IF(AND(GH44>$V$285,GH44<=$V$286),$AA$286,$AA$287))))+IF(GM44<=$V$293,HLOOKUP(GR44,$AA$292:$AD$297,2,FALSE),IF(AND(GM44>$V$293,GM44<=$V$294),HLOOKUP(GR44,$AA$292:$AD$297,3,FALSE),IF(AND(GM44>$V$294,GM44<=$V$295),HLOOKUP(GR44,$AA$292:$AD$297,4,FALSE),IF(AND(GM44>$V$295,GM44<=$V$296),HLOOKUP(GR44,$AA$292:$AD$297,5,FALSE),IF(GM44>$V$296,HLOOKUP(GR44,$AA$292:$AD$297,6,FALSE),"")))))+IF(GZ44=$W$300,$AA$300,$AA$301))/4)) -> Enter Major/Minor Street Speeds | XC44: =IF(OR(LEN($P$21)=0,LEN($P$23)=0),"Enter Major/Minor Street Speeds",IF(HF44=0,,(IF(HF44<5,VLOOKUP(HF44,$W$276:$AA$279,5, FALSE),$AA$280)+IF(HK44<=$V$283,$AA$283,IF(AND(HK44>$V$283,HK44<=$V$284),$AA$284,IF(AND(HK44>$V$284,HK44<=$V$285),$AA$285,IF(AND(HK44>$V$285,HK44<=$V$286),$AA$286,$AA$287))))+IF(HP44<=$V$293,HLOOKUP(HU44,$AA$292:$AD$297,2,FALSE),IF(AND(HP44>$V$293,HP44<=$V$294),HLOOKUP(HU44,$AA$292:$AD$297,3,FALSE),IF(AND(HP44>$V$294,HP44<=$V$295),HLOOKUP(HU44,$AA$292:$AD$297,4,FALSE),IF(AND(HP44>$V$295,HP44<=$V$296),HLOOKUP(HU44,$AA$292:$AD$297,5,FALSE),IF(HP44>$V$296,HLOOKUP(HU44,$AA$292:$AD$297,6,FALSE),"")))))+IF(IC44=$W$300,$AA$300,$AA$301))/4)) -> Enter Major/Minor Street Speeds | XM44: =IF(OR(LEN($P$21)=0,LEN($P$23)=0),"Enter Major/Minor Street Speeds",IF(II44=0,,(IF(II44<5,VLOOKUP(II44,$W$276:$AA$279,5, FALSE),$AA$280)+IF(IN44<=$V$283,$AA$283,IF(AND(IN44>$V$283,IN44<=$V$284),$AA$284,IF(AND(IN44>$V$284,IN44<=$V$285),$AA$285,IF(AND(IN44>$V$285,IN44<=$V$286),$AA$286,$AA$287))))+IF(IS44<=$V$293,HLOOKUP(IX44,$AA$292:$AD$297,2,FALSE),IF(AND(IS44>$V$293,IS44<=$V$294),HLOOKUP(IX44,$AA$292:$AD$297,3,FALSE),IF(AND(IS44>$V$294,IS44<=$V$295),HLOOKUP(IX44,$AA$292:$AD$297,4,FALSE),IF(AND(IS44>$V$295,IS44<=$V$296),HLOOKUP(IX44,$AA$292:$AD$297,5,FALSE),IF(IS44>$V$296,HLOOKUP(IX44,$AA$292:$AD$297,6,FALSE),"")))))+IF(JF44=$W$300,$AA$300,$AA$301))/4)) -> Enter Major/Minor Street Speeds
A46: ='3 - Alt Num Lanes Input'!E28 -> Two-Way Stop Control | T46: FULL | Z46: =UP46 -> Enter Major/Minor Street Speeds | AD46: No | AI46: No | AN46: =SUM('TWSC N-S'!EV32:FG32)+MAX('TWSC N-S'!FH33:FH35,'TWSC N-S'!FB45:FD45,'TWSC N-S'!EU33:EU38) -> 6 | AS46: =Maj_St_Spd_Lmt ->  | AX46: =SUM(SBL_Master,SBT_Master,SBR_Master,SBU_Master,EBL_Master,NBT_Master,WBR_Master) -> 0 | BC46: Free Flowing | BK46: Unmarked | BQ46: =SUM('TWSC N-S'!FH33:FH44)+MAX('TWSC N-S'!FE45:FG45,'TWSC N-S'!EU39:EU41,'TWSC N-S'!FB32:FG32) -> 6 | BV46: =Min_St_Spd_Lmt ->  | CA46: =SUM(WBL_Master,WBT_Master,WBR_Master,WBU_Master,SBL_Master,EBT_Master,NBR_Master) -> 0 | CF46: Permissive Left | CN46: Marked | CT46: =SUM('TWSC N-S'!EV45:FG45)+MAX('TWSC N-S'!EU42:EU44,'TWSC N-S'!EY32:FA32,'TWSC N-S'!FH39:FH44) -> 6 | CY46: =Maj_St_Spd_Lmt ->  | DD46: =SUM(NBL_Master,NBT_Master,NBR_Master,NBU_Master,WBL_Master,SBT_Master,EBR_Master) -> 0 | DI46: Free Flowing | DQ46: Unmarked | DW46: =SUM('TWSC N-S'!EU33:EU44)+MAX('TWSC N-S'!EV32:EX32,'TWSC N-S'!FH36:FH38,'TWSC N-S'!EV45:FA45) -> 4 | EB46: =Min_St_Spd_Lmt ->  | EG46: =SUM(EBL_Master,EBT_Master,EBR_Master,EBU_Master,NBL_Master,WBT_Master,SBR_Master) -> 0 | EL46: Permissive Left | ET46: Marked | UP46: =IFERROR((((SUM(SQRT(UU46),SQRT(VE46),SQRT(VO46),SQRT(VY46),SQRT(WI46),SQRT(WS46),SQRT(XC46),SQRT(XM46),SQRT(XW46),SQRT(YG46),SQRT(YQ46),SQRT(ZA46),SQRT(ZK46),SQRT(ZU46),SQRT(AAE46),SQRT(AAO46),SQRT(AAY46),SQRT(ABI46))/COUNTIF(UU46:ABR47,">0"))^2)*(_xlfn.XLOOKUP(AD46,$W$311:$W$312,$AA$311:$AA$312,"lookup error",0,1))*(_xlfn.XLOOKUP(AI46,Multistage_Crossing,$AA$305:$AA$307,"lookup error",0,1))),"Enter Major/Minor Street Speeds") -> Enter Major/Minor Street Speeds | UU46: =IF(OR(LEN($P$21)=0,LEN($P$23)=0),"Enter Major/Minor Street Speeds",IF(AN46=0,,(IF(AN46<5,VLOOKUP(AN46,$W$276:$AA$279,5, FALSE),$AA$280)+IF(AS46<=$V$283,$AA$283,IF(AND(AS46>$V$283,AS46<=$V$284),$AA$284,IF(AND(AS46>$V$284,AS46<=$V$285),$AA$285,IF(AND(AS46>$V$285,AS46<=$V$286),$AA$286,$AA$287))))+IF(AX46<=$V$293,HLOOKUP(BC46,$AA$292:$AD$297,2,FALSE),IF(AND(AX46>$V$293,AX46<=$V$294),HLOOKUP(BC46,$AA$292:$AD$297,3,FALSE),IF(AND(AX46>$V$294,AX46<=$V$295),HLOOKUP(BC46,$AA$292:$AD$297,4,FALSE),IF(AND(AX46>$V$295,AX46<=$V$296),HLOOKUP(BC46,$AA$292:$AD$297,5,FALSE),IF(AX46>$V$296,HLOOKUP(BC46,$AA$292:$AD$297,6,FALSE),"")))))+IF(BK46=$W$300,$AA$300,$AA$301))/4)) -> Enter Major/Minor Street Speeds | VE46: =IF(OR(LEN($P$21)=0,LEN($P$23)=0),"Enter Major/Minor Street Speeds",IF(BQ46=0,,(IF(BQ46<5,VLOOKUP(BQ46,$W$276:$AA$279,5, FALSE),$AA$280)+IF(BV46<=$V$283,$AA$283,IF(AND(BV46>$V$283,BV46<=$V$284),$AA$284,IF(AND(BV46>$V$284,BV46<=$V$285),$AA$285,IF(AND(BV46>$V$285,BV46<=$V$286),$AA$286,$AA$287))))+IF(CA46<=$V$293,HLOOKUP(CF46,$AA$292:$AD$297,2,FALSE),IF(AND(CA46>$V$293,CA46<=$V$294),HLOOKUP(CF46,$AA$292:$AD$297,3,FALSE),IF(AND(CA46>$V$294,CA46<=$V$295),HLOOKUP(CF46,$AA$292:$AD$297,4,FALSE),IF(AND(CA46>$V$295,CA46<=$V$296),HLOOKUP(CF46,$AA$292:$AD$297,5,FALSE),IF(CA46>$V$296,HLOOKUP(CF46,$AA$292:$AD$297,6,FALSE),"")))))+IF(CN46=$W$300,$AA$300,$AA$301))/4)) -> Enter Major/Minor Street Speeds | VO46: =IF(OR(LEN($P$21)=0,LEN($P$23)=0),"Enter Major/Minor Street Speeds",IF(CT46=0,,(IF(CT46<5,VLOOKUP(CT46,$W$276:$AA$279,5, FALSE),$AA$280)+IF(CY46<=$V$283,$AA$283,IF(AND(CY46>$V$283,CY46<=$V$284),$AA$284,IF(AND(CY46>$V$284,CY46<=$V$285),$AA$285,IF(AND(CY46>$V$285,CY46<=$V$286),$AA$286,$AA$287))))+IF(DD46<=$V$293,HLOOKUP(DI46,$AA$292:$AD$297,2,FALSE),IF(AND(DD46>$V$293,DD46<=$V$294),HLOOKUP(DI46,$AA$292:$AD$297,3,FALSE),IF(AND(DD46>$V$294,DD46<=$V$295),HLOOKUP(DI46,$AA$292:$AD$297,4,FALSE),IF(AND(DD46>$V$295,DD46<=$V$296),HLOOKUP(DI46,$AA$292:$AD$297,5,FALSE),IF(DD46>$V$296,HLOOKUP(DI46,$AA$292:$AD$297,6,FALSE),"")))))+IF(DQ46=$W$300,$AA$300,$AA$301))/4)) -> Enter Major/Minor Street Speeds | VY46: =IF(OR(LEN($P$21)=0,LEN($P$23)=0),"Enter Major/Minor Street Speeds",IF(DW46=0,,(IF(DW46<5,VLOOKUP(DW46,$W$276:$AA$279,5, FALSE),$AA$280)+IF(EB46<=$V$283,$AA$283,IF(AND(EB46>$V$283,EB46<=$V$284),$AA$284,IF(AND(EB46>$V$284,EB46<=$V$285),$AA$285,IF(AND(EB46>$V$285,EB46<=$V$286),$AA$286,$AA$287))))+IF(EG46<=$V$293,HLOOKUP(EL46,$AA$292:$AD$297,2,FALSE),IF(AND(EG46>$V$293,EG46<=$V$294),HLOOKUP(EL46,$AA$292:$AD$297,3,FALSE),IF(AND(EG46>$V$294,EG46<=$V$295),HLOOKUP(EL46,$AA$292:$AD$297,4,FALSE),IF(AND(EG46>$V$295,EG46<=$V$296),HLOOKUP(EL46,$AA$292:$AD$297,5,FALSE),IF(EG46>$V$296,HLOOKUP(EL46,$AA$292:$AD$297,6,FALSE),"")))))+IF(ET46=$W$300,$AA$300,$AA$301))/4)) -> Enter Major/Minor Street Speeds
T48: FULL | Z48: =UP48 -> Enter Major/Minor Street Speeds | AD48: No | AI48: No | AN48: =SUM('TWSC E-W'!CJ72:CJ83)+MAX('TWSC E-W'!CK71:CM71,'TWSC E-W'!CW75:CW77,'TWSC E-W'!CK84:CP84) -> 6 | AS48: =Maj_St_Spd_Lmt ->  | AX48: =SUM(EBL_Master,EBT_Master,EBR_Master,EBU_Master,WBT_Master,NBL_Master,SBR_Master) -> 0 | BC48: Free Flowing | BK48: Unmarked | BQ48: =SUM('TWSC E-W'!CK71:CV71)+MAX('TWSC E-W'!CW72:CW74,'TWSC E-W'!CQ84:CS84,'TWSC E-W'!CJ72:CJ77) -> 6 | BV48: =Min_St_Spd_Lmt ->  | CA48: =SUM(SBL_Master,SBT_Master,SBR_Master,NBT_Master,WBR_Master,EBL_Master) -> 0 | CF48: Permissive Left | CN48: Marked | CT48: =SUM('TWSC E-W'!CW72:CW83)+MAX('TWSC E-W'!CT84:CV84,'TWSC E-W'!CJ78:CJ80,'TWSC E-W'!CQ71:CV71) -> 6 | CY48: =Maj_St_Spd_Lmt ->  | DD48: =SUM(WBU_Master,WBL_Master,WBT_Master,WBR_Master,EBT_Master,SBL_Master,NBR_Master) -> 0 | DI48: Free Flowing | DQ48: Unmarked | DW48: =SUM('TWSC E-W'!CK84:CV84)+MAX('TWSC E-W'!CJ81:CJ83,'TWSC E-W'!CN71:CP71,'TWSC E-W'!CW78:CW83) -> 5 | EB48: =Min_St_Spd_Lmt ->  | EG48: =SUM(NBL_Master,NBT_Master,NBR_Master,WBL_Master,EBR_Master,SBT_Master) -> 0 | EL48: Permissive Left | ET48: Marked | UP48: =IFERROR((((SUM(SQRT(UU48),SQRT(VE48),SQRT(VO48),SQRT(VY48),SQRT(WI48),SQRT(WS48),SQRT(XC48),SQRT(XM48),SQRT(XW48),SQRT(YG48),SQRT(YQ48),SQRT(ZA48),SQRT(ZK48),SQRT(ZU48),SQRT(AAE48),SQRT(AAO48),SQRT(AAY48),SQRT(ABI48))/COUNTIF(UU48:ABR49,">0"))^2)*(_xlfn.XLOOKUP(AD48,$W$311:$W$312,$AA$311:$AA$312,"lookup error",0,1))*(_xlfn.XLOOKUP(AI48,Multistage_Crossing,$AA$305:$AA$307,"lookup error",0,1))),"Enter Major/Minor Street Speeds") -> Enter Major/Minor Street Speeds | UU48: =IF(OR(LEN($P$21)=0,LEN($P$23)=0),"Enter Major/Minor Street Speeds",IF(AN48=0,,(IF(AN48<5,VLOOKUP(AN48,$W$276:$AA$279,5, FALSE),$AA$280)+IF(AS48<=$V$283,$AA$283,IF(AND(AS48>$V$283,AS48<=$V$284),$AA$284,IF(AND(AS48>$V$284,AS48<=$V$285),$AA$285,IF(AND(AS48>$V$285,AS48<=$V$286),$AA$286,$AA$287))))+IF(AX48<=$V$293,HLOOKUP(BC48,$AA$292:$AD$297,2,FALSE),IF(AND(AX48>$V$293,AX48<=$V$294),HLOOKUP(BC48,$AA$292:$AD$297,3,FALSE),IF(AND(AX48>$V$294,AX48<=$V$295),HLOOKUP(BC48,$AA$292:$AD$297,4,FALSE),IF(AND(AX48>$V$295,AX48<=$V$296),HLOOKUP(BC48,$AA$292:$AD$297,5,FALSE),IF(AX48>$V$296,HLOOKUP(BC48,$AA$292:$AD$297,6,FALSE),"")))))+IF(BK48=$W$300,$AA$300,$AA$301))/4)) -> Enter Major/Minor Street Speeds | VE48: =IF(OR(LEN($P$21)=0,LEN($P$23)=0),"Enter Major/Minor Street Speeds",IF(BQ48=0,,(IF(BQ48<5,VLOOKUP(BQ48,$W$276:$AA$279,5, FALSE),$AA$280)+IF(BV48<=$V$283,$AA$283,IF(AND(BV48>$V$283,BV48<=$V$284),$AA$284,IF(AND(BV48>$V$284,BV48<=$V$285),$AA$285,IF(AND(BV48>$V$285,BV48<=$V$286),$AA$286,$AA$287))))+IF(CA48<=$V$293,HLOOKUP(CF48,$AA$292:$AD$297,2,FALSE),IF(AND(CA48>$V$293,CA48<=$V$294),HLOOKUP(CF48,$AA$292:$AD$297,3,FALSE),IF(AND(CA48>$V$294,CA48<=$V$295),HLOOKUP(CF48,$AA$292:$AD$297,4,FALSE),IF(AND(CA48>$V$295,CA48<=$V$296),HLOOKUP(CF48,$AA$292:$AD$297,5,FALSE),IF(CA48>$V$296,HLOOKUP(CF48,$AA$292:$AD$297,6,FALSE),"")))))+IF(CN48=$W$300,$AA$300,$AA$301))/4)) -> Enter Major/Minor Street Speeds | VO48: =IF(OR(LEN($P$21)=0,LEN($P$23)=0),"Enter Major/Minor Street Speeds",IF(CT48=0,,(IF(CT48<5,VLOOKUP(CT48,$W$276:$AA$279,5, FALSE),$AA$280)+IF(CY48<=$V$283,$AA$283,IF(AND(CY48>$V$283,CY48<=$V$284),$AA$284,IF(AND(CY48>$V$284,CY48<=$V$285),$AA$285,IF(AND(CY48>$V$285,CY48<=$V$286),$AA$286,$AA$287))))+IF(DD48<=$V$293,HLOOKUP(DI48,$AA$292:$AD$297,2,FALSE),IF(AND(DD48>$V$293,DD48<=$V$294),HLOOKUP(DI48,$AA$292:$AD$297,3,FALSE),IF(AND(DD48>$V$294,DD48<=$V$295),HLOOKUP(DI48,$AA$292:$AD$297,4,FALSE),IF(AND(DD48>$V$295,DD48<=$V$296),HLOOKUP(DI48,$AA$292:$AD$297,5,FALSE),IF(DD48>$V$296,HLOOKUP(DI48,$AA$292:$AD$297,6,FALSE),"")))))+IF(DQ48=$W$300,$AA$300,$AA$301))/4)) -> Enter Major/Minor Street Speeds | VY48: =IF(OR(LEN($P$21)=0,LEN($P$23)=0),"Enter Major/Minor Street Speeds",IF(DW48=0,,(IF(DW48<5,VLOOKUP(DW48,$W$276:$AA$279,5, FALSE),$AA$280)+IF(EB48<=$V$283,$AA$283,IF(AND(EB48>$V$283,EB48<=$V$284),$AA$284,IF(AND(EB48>$V$284,EB48<=$V$285),$AA$285,IF(AND(EB48>$V$285,EB48<=$V$286),$AA$286,$AA$287))))+IF(EG48<=$V$293,HLOOKUP(EL48,$AA$292:$AD$297,2,FALSE),IF(AND(EG48>$V$293,EG48<=$V$294),HLOOKUP(EL48,$AA$292:$AD$297,3,FALSE),IF(AND(EG48>$V$294,EG48<=$V$295),HLOOKUP(EL48,$AA$292:$AD$297,4,FALSE),IF(AND(EG48>$V$295,EG48<=$V$296),HLOOKUP(EL48,$AA$292:$AD$297,5,FALSE),IF(EG48>$V$296,HLOOKUP(EL48,$AA$292:$AD$297,6,FALSE),"")))))+IF(ET48=$W$300,$AA$300,$AA$301))/4)) -> Enter Major/Minor Street Speeds
A50: All-Way Stop Control | T50: FULL | Z50: =UP50 -> Enter Major/Minor Street Speeds | AD50: No | AI50: No | AN50: =SUM(AWSC!CK30:CV30)+MAX(AWSC!CJ31,AWSC!CQ43,AWSC!CW31) -> 6 | AS50: =IF(OR(AND(Input_MajorStreetDirection="East-West",OR(AN38="Crossing #2",AN38="Crossing #4")),AND(Input_MajorStreetDirection="North-South",OR(AN38="Crossing #1",AN38="Crossing #3"))),Maj_St_Spd_Lmt,Min_St_Spd_Lmt) ->  | AX50: =SUM(SBL_Master,SBT_Master,SBR_Master,WBR_Master,EBL_Master,NBT_Master) -> 0 | BC50: Stop/Signal Controlled | BK50: Marked | BQ50: =SUM(AWSC!CW31:CW42)+MAX(AWSC!CQ30,AWSC!CJ37,AWSC!CT43) -> 6 | BV50: =IF(OR(AND(Input_MajorStreetDirection="East-West",OR(BQ38="Crossing #2",BQ38="Crossing #4")),AND(Input_MajorStreetDirection="North-South",OR(BQ38="Crossing #1",BQ38="Crossing #3"))),Maj_St_Spd_Lmt,Min_St_Spd_Lmt) ->  | CA50: =SUM(WBL_Master,WBT_Master,WBR_Master,SBL_Master,NBR_Master,EBT_Master) -> 0 | CF50: Stop/Signal Controlled | CN50: Marked | CT50: =SUM(AWSC!CK43:CV43)+MAX(AWSC!CW37,AWSC!CN30,AWSC!CJ40) -> 6 | CY50: =IF(OR(AND(Input_MajorStreetDirection="East-West",OR(CT38="Crossing #2",CT38="Crossing #4")),AND(Input_MajorStreetDirection="North-South",OR(CT38="Crossing #1",CT38="Crossing #3"))),Maj_St_Spd_Lmt,Min_St_Spd_Lmt) ->  | DD50: =SUM(NBL_Master,NBT_Master,NBR_Master,WBL_Master,EBR_Master,SBT_Master) -> 0 | DI50: Stop/Signal Controlled | DQ50: Marked | DW50: =SUM(AWSC!CJ31:CJ42)+MAX(AWSC!CK43,AWSC!CW34,AWSC!CK30) -> 6 | EB50: =IF(OR(AND(Input_MajorStreetDirection="East-West",OR(DW38="Crossing #2",DW38="Crossing #4")),AND(Input_MajorStreetDirection="North-South",OR(DW38="Crossing #1",DW38="Crossing #3"))),Maj_St_Spd_Lmt,Min_St_Spd_Lmt) ->  | EG50: =SUM(EBL_Master,EBT_Master,EBR_Master,NBL_Master,SBR_Master,WBT_Master) -> 0 | EL50: Stop/Signal Controlled | ET50: Marked | UP50: =IFERROR((((SUM(SQRT(UU50),SQRT(VE50),SQRT(VO50),SQRT(VY50),SQRT(WI50),SQRT(WS50),SQRT(XC50),SQRT(XM50),SQRT(XW50),SQRT(YG50),SQRT(YQ50),SQRT(ZA50),SQRT(ZK50),SQRT(ZU50),SQRT(AAE50),SQRT(AAO50),SQRT(AAY50),SQRT(ABI50))/COUNTIF(UU50:ABR51,">0"))^2)*(_xlfn.XLOOKUP(AD50,$W$311:$W$312,$AA$311:$AA$312,"lookup error",0,1))*(_xlfn.XLOOKUP(AI50,Multistage_Crossing,$AA$305:$AA$307,"lookup error",0,1))),"Enter Major/Minor Street Speeds") -> Enter Major/Minor Street Speeds | UU50: =IF(OR(LEN($P$21)=0,LEN($P$23)=0),"Enter Major/Minor Street Speeds",IF(AN50=0,,(IF(AN50<5,VLOOKUP(AN50,$W$276:$AA$279,5, FALSE),$AA$280)+IF(AS50<=$V$283,$AA$283,IF(AND(AS50>$V$283,AS50<=$V$284),$AA$284,IF(AND(AS50>$V$284,AS50<=$V$285),$AA$285,IF(AND(AS50>$V$285,AS50<=$V$286),$AA$286,$AA$287))))+IF(AX50<=$V$293,HLOOKUP(BC50,$AA$292:$AD$297,2,FALSE),IF(AND(AX50>$V$293,AX50<=$V$294),HLOOKUP(BC50,$AA$292:$AD$297,3,FALSE),IF(AND(AX50>$V$294,AX50<=$V$295),HLOOKUP(BC50,$AA$292:$AD$297,4,FALSE),IF(AND(AX50>$V$295,AX50<=$V$296),HLOOKUP(BC50,$AA$292:$AD$297,5,FALSE),IF(AX50>$V$296,HLOOKUP(BC50,$AA$292:$AD$297,6,FALSE),"")))))+IF(BK50=$W$300,$AA$300,$AA$301))/4)) -> Enter Major/Minor Street Speeds | VE50: =IF(OR(LEN($P$21)=0,LEN($P$23)=0),"Enter Major/Minor Street Speeds",IF(BQ50=0,,(IF(BQ50<5,VLOOKUP(BQ50,$W$276:$AA$279,5, FALSE),$AA$280)+IF(BV50<=$V$283,$AA$283,IF(AND(BV50>$V$283,BV50<=$V$284),$AA$284,IF(AND(BV50>$V$284,BV50<=$V$285),$AA$285,IF(AND(BV50>$V$285,BV50<=$V$286),$AA$286,$AA$287))))+IF(CA50<=$V$293,HLOOKUP(CF50,$AA$292:$AD$297,2,FALSE),IF(AND(CA50>$V$293,CA50<=$V$294),HLOOKUP(CF50,$AA$292:$AD$297,3,FALSE),IF(AND(CA50>$V$294,CA50<=$V$295),HLOOKUP(CF50,$AA$292:$AD$297,4,FALSE),IF(AND(CA50>$V$295,CA50<=$V$296),HLOOKUP(CF50,$AA$292:$AD$297,5,FALSE),IF(CA50>$V$296,HLOOKUP(CF50,$AA$292:$AD$297,6,FALSE),"")))))+IF(CN50=$W$300,$AA$300,$AA$301))/4)) -> Enter Major/Minor Street Speeds | VO50: =IF(OR(LEN($P$21)=0,LEN($P$23)=0),"Enter Major/Minor Street Speeds",IF(CT50=0,,(IF(CT50<5,VLOOKUP(CT50,$W$276:$AA$279,5, FALSE),$AA$280)+IF(CY50<=$V$283,$AA$283,IF(AND(CY50>$V$283,CY50<=$V$284),$AA$284,IF(AND(CY50>$V$284,CY50<=$V$285),$AA$285,IF(AND(CY50>$V$285,CY50<=$V$286),$AA$286,$AA$287))))+IF(DD50<=$V$293,HLOOKUP(DI50,$AA$292:$AD$297,2,FALSE),IF(AND(DD50>$V$293,DD50<=$V$294),HLOOKUP(DI50,$AA$292:$AD$297,3,FALSE),IF(AND(DD50>$V$294,DD50<=$V$295),HLOOKUP(DI50,$AA$292:$AD$297,4,FALSE),IF(AND(DD50>$V$295,DD50<=$V$296),HLOOKUP(DI50,$AA$292:$AD$297,5,FALSE),IF(DD50>$V$296,HLOOKUP(DI50,$AA$292:$AD$297,6,FALSE),"")))))+IF(DQ50=$W$300,$AA$300,$AA$301))/4)) -> Enter Major/Minor Street Speeds | VY50: =IF(OR(LEN($P$21)=0,LEN($P$23)=0),"Enter Major/Minor Street Speeds",IF(DW50=0,,(IF(DW50<5,VLOOKUP(DW50,$W$276:$AA$279,5, FALSE),$AA$280)+IF(EB50<=$V$283,$AA$283,IF(AND(EB50>$V$283,EB50<=$V$284),$AA$284,IF(AND(EB50>$V$284,EB50<=$V$285),$AA$285,IF(AND(EB50>$V$285,EB50<=$V$286),$AA$286,$AA$287))))+IF(EG50<=$V$293,HLOOKUP(EL50,$AA$292:$AD$297,2,FALSE),IF(AND(EG50>$V$293,EG50<=$V$294),HLOOKUP(EL50,$AA$292:$AD$297,3,FALSE),IF(AND(EG50>$V$294,EG50<=$V$295),HLOOKUP(EL50,$AA$292:$AD$297,4,FALSE),IF(AND(EG50>$V$295,EG50<=$V$296),HLOOKUP(EL50,$AA$292:$AD$297,5,FALSE),IF(EG50>$V$296,HLOOKUP(EL50,$AA$292:$AD$297,6,FALSE),"")))))+IF(ET50=$W$300,$AA$300,$AA$301))/4)) -> Enter Major/Minor Street Speeds
A52: Continuous Green T | T52: FULL | Z52: =UP52 -> Enter Major/Minor Street Speeds | AD52: No | AI52: Yes Crossing(s) with 3+ stages | AN52: =SUM('CGT W'!CI37:CI39) -> 1 | AS52: =Min_St_Spd_Lmt ->  | AX52: =SUM(EBR_Master) -> 0 | BC52: Yield Controlled | BK52: Marked | BQ52: =SUM('CGT W'!CI31:CI36)+MAX('CGT W'!CJ43:CO43) -> 2 | BV52: =Min_St_Spd_Lmt ->  | CA52: =SUM(EBL_Master,EBU_Master,NBL_Master) -> 0 | CF52: Stop/Signal Controlled | CN52: Marked | CT52: =SUM('CGT W'!CJ30:CL30) -> 1 | CY52: =Maj_St_Spd_Lmt ->  | DD52: =SUM(SBR_Master) -> 0 | DI52: Yield Controlled | DQ52: Marked | DW52: =SUM('CGT W'!CM30:CO30) -> 2 | EB52: =Maj_St_Spd_Lmt ->  | EG52: =SUM(SBT_Master) -> 0 | EL52: Stop/Signal Controlled | ET52: Unmarked | EZ52: =SUM('CGT W'!CP43:CR43)+MAX('CGT W'!CI31:CI36) -> 3 | FE52: =Maj_St_Spd_Lmt ->  | FJ52: =SUM(NBT_Master,EBL_Master,SBU_Master) -> 0 | FO52: Free Flowing | FW52: Unmarked | GC52: =SUM('CGT W'!CJ43:CR43) -> 3 | GH52: =Maj_St_Spd_Lmt ->  | GM52: =SUM(NBL_Master,NBT_Master,NBU_Master) -> 0 | GR52: Free Flowing | GZ52: Unmarked | HF52: =MAX('CGT W'!CM30:CO30,'CGT W'!CJ43:CO43) -> 2 | HK52: =Maj_St_Spd_Lmt ->  | HP52: =SUM(SBT_Master,NBU_Master) -> 0 | HU52: Stop/Signal Controlled | IC52: Unmarked | UP52: =IFERROR((((SUM(SQRT(UU52),SQRT(VE52),SQRT(VO52),SQRT(VY52),SQRT(WI52),SQRT(WS52),SQRT(XC52),SQRT(XM52),SQRT(XW52),SQRT(YG52),SQRT(YQ52),SQRT(ZA52),SQRT(ZK52),SQRT(ZU52),SQRT(AAE52),SQRT(AAO52),SQRT(AAY52),SQRT(ABI52))/COUNTIF(UU52:ABR53,">0"))^2)*(_xlfn.XLOOKUP(AD52,$W$311:$W$312,$AA$311:$AA$312,"lookup error",0,1))*(_xlfn.XLOOKUP(AI52,Multistage_Crossing,$AA$305:$AA$307,"lookup error",0,1))),"Enter Major/Minor Street Speeds") -> Enter Major/Minor Street Speeds | UU52: =IF(OR(LEN($P$21)=0,LEN($P$23)=0),"Enter Major/Minor Street Speeds",IF(AN52=0,,(IF(AN52<5,VLOOKUP(AN52,$W$276:$AA$279,5, FALSE),$AA$280)+IF(AS52<=$V$283,$AA$283,IF(AND(AS52>$V$283,AS52<=$V$284),$AA$284,IF(AND(AS52>$V$284,AS52<=$V$285),$AA$285,IF(AND(AS52>$V$285,AS52<=$V$286),$AA$286,$AA$287))))+IF(AX52<=$V$293,HLOOKUP(BC52,$AA$292:$AD$297,2,FALSE),IF(AND(AX52>$V$293,AX52<=$V$294),HLOOKUP(BC52,$AA$292:$AD$297,3,FALSE),IF(AND(AX52>$V$294,AX52<=$V$295),HLOOKUP(BC52,$AA$292:$AD$297,4,FALSE),IF(AND(AX52>$V$295,AX52<=$V$296),HLOOKUP(BC52,$AA$292:$AD$297,5,FALSE),IF(AX52>$V$296,HLOOKUP(BC52,$AA$292:$AD$297,6,FALSE),"")))))+IF(BK52=$W$300,$AA$300,$AA$301))/4)) -> Enter Major/Minor Street Speeds | VE52: =IF(OR(LEN($P$21)=0,LEN($P$23)=0),"Enter Major/Minor Street Speeds",IF(BQ52=0,,(IF(BQ52<5,VLOOKUP(BQ52,$W$276:$AA$279,5, FALSE),$AA$280)+IF(BV52<=$V$283,$AA$283,IF(AND(BV52>$V$283,BV52<=$V$284),$AA$284,IF(AND(BV52>$V$284,BV52<=$V$285),$AA$285,IF(AND(BV52>$V$285,BV52<=$V$286),$AA$286,$AA$287))))+IF(CA52<=$V$293,HLOOKUP(CF52,$AA$292:$AD$297,2,FALSE),IF(AND(CA52>$V$293,CA52<=$V$294),HLOOKUP(CF52,$AA$292:$AD$297,3,FALSE),IF(AND(CA52>$V$294,CA52<=$V$295),HLOOKUP(CF52,$AA$292:$AD$297,4,FALSE),IF(AND(CA52>$V$295,CA52<=$V$296),HLOOKUP(CF52,$AA$292:$AD$297,5,FALSE),IF(CA52>$V$296,HLOOKUP(CF52,$AA$292:$AD$297,6,FALSE),"")))))+IF(CN52=$W$300,$AA$300,$AA$301))/4)) -> Enter Major/Minor Street Speeds | VO52: =IF(OR(LEN($P$21)=0,LEN($P$23)=0),"Enter Major/Minor Street Speeds",IF(CT52=0,,(IF(CT52<5,VLOOKUP(CT52,$W$276:$AA$279,5, FALSE),$AA$280)+IF(CY52<=$V$283,$AA$283,IF(AND(CY52>$V$283,CY52<=$V$284),$AA$284,IF(AND(CY52>$V$284,CY52<=$V$285),$AA$285,IF(AND(CY52>$V$285,CY52<=$V$286),$AA$286,$AA$287))))+IF(DD52<=$V$293,HLOOKUP(DI52,$AA$292:$AD$297,2,FALSE),IF(AND(DD52>$V$293,DD52<=$V$294),HLOOKUP(DI52,$AA$292:$AD$297,3,FALSE),IF(AND(DD52>$V$294,DD52<=$V$295),HLOOKUP(DI52,$AA$292:$AD$297,4,FALSE),IF(AND(DD52>$V$295,DD52<=$V$296),HLOOKUP(DI52,$AA$292:$AD$297,5,FALSE),IF(DD52>$V$296,HLOOKUP(DI52,$AA$292:$AD$297,6,FALSE),"")))))+IF(DQ52=$W$300,$AA$300,$AA$301))/4)) -> Enter Major/Minor Street Speeds | VY52: =IF(OR(LEN($P$21)=0,LEN($P$23)=0),"Enter Major/Minor Street Speeds",IF(DW52=0,,(IF(DW52<5,VLOOKUP(DW52,$W$276:$AA$279,5, FALSE),$AA$280)+IF(EB52<=$V$283,$AA$283,IF(AND(EB52>$V$283,EB52<=$V$284),$AA$284,IF(AND(EB52>$V$284,EB52<=$V$285),$AA$285,IF(AND(EB52>$V$285,EB52<=$V$286),$AA$286,$AA$287))))+IF(EG52<=$V$293,HLOOKUP(EL52,$AA$292:$AD$297,2,FALSE),IF(AND(EG52>$V$293,EG52<=$V$294),HLOOKUP(EL52,$AA$292:$AD$297,3,FALSE),IF(AND(EG52>$V$294,EG52<=$V$295),HLOOKUP(EL52,$AA$292:$AD$297,4,FALSE),IF(AND(EG52>$V$295,EG52<=$V$296),HLOOKUP(EL52,$AA$292:$AD$297,5,FALSE),IF(EG52>$V$296,HLOOKUP(EL52,$AA$292:$AD$297,6,FALSE),"")))))+IF(ET52=$W$300,$AA$300,$AA$301))/4)) -> Enter Major/Minor Street Speeds | WI52: =IF(OR(LEN($P$21)=0,LEN($P$23)=0),"Enter Major/Minor Street Speeds",IF(EZ52=0,,(IF(EZ52<5,VLOOKUP(EZ52,$W$276:$AA$279,5, FALSE),$AA$280)+IF(FE52<=$V$283,$AA$283,IF(AND(FE52>$V$283,FE52<=$V$284),$AA$284,IF(AND(FE52>$V$284,FE52<=$V$285),$AA$285,IF(AND(FE52>$V$285,FE52<=$V$286),$AA$286,$AA$287))))+IF(FJ52<=$V$293,HLOOKUP(FO52,$AA$292:$AD$297,2,FALSE),IF(AND(FJ52>$V$293,FJ52<=$V$294),HLOOKUP(FO52,$AA$292:$AD$297,3,FALSE),IF(AND(FJ52>$V$294,FJ52<=$V$295),HLOOKUP(FO52,$AA$292:$AD$297,4,FALSE),IF(AND(FJ52>$V$295,FJ52<=$V$296),HLOOKUP(FO52,$AA$292:$AD$297,5,FALSE),IF(FJ52>$V$296,HLOOKUP(FO52,$AA$292:$AD$297,6,FALSE),"")))))+IF(FW52=$W$300,$AA$300,$AA$301))/4)) -> Enter Major/Minor Street Speeds | WS52: =IF(OR(LEN($P$21)=0,LEN($P$23)=0),"Enter Major/Minor Street Speeds",IF(GC52=0,,(IF(GC52<5,VLOOKUP(GC52,$W$276:$AA$279,5, FALSE),$AA$280)+IF(GH52<=$V$283,$AA$283,IF(AND(GH52>$V$283,GH52<=$V$284),$AA$284,IF(AND(GH52>$V$284,GH52<=$V$285),$AA$285,IF(AND(GH52>$V$285,GH52<=$V$286),$AA$286,$AA$287))))+IF(GM52<=$V$293,HLOOKUP(GR52,$AA$292:$AD$297,2,FALSE),IF(AND(GM52>$V$293,GM52<=$V$294),HLOOKUP(GR52,$AA$292:$AD$297,3,FALSE),IF(AND(GM52>$V$294,GM52<=$V$295),HLOOKUP(GR52,$AA$292:$AD$297,4,FALSE),IF(AND(GM52>$V$295,GM52<=$V$296),HLOOKUP(GR52,$AA$292:$AD$297,5,FALSE),IF(GM52>$V$296,HLOOKUP(GR52,$AA$292:$AD$297,6,FALSE),"")))))+IF(GZ52=$W$300,$AA$300,$AA$301))/4)) -> Enter Major/Minor Street Speeds | XC52: =IF(OR(LEN($P$21)=0,LEN($P$23)=0),"Enter Major/Minor Street Speeds",IF(HF52=0,,(IF(HF52<5,VLOOKUP(HF52,$W$276:$AA$279,5, FALSE),$AA$280)+IF(HK52<=$V$283,$AA$283,IF(AND(HK52>$V$283,HK52<=$V$284),$AA$284,IF(AND(HK52>$V$284,HK52<=$V$285),$AA$285,IF(AND(HK52>$V$285,HK52<=$V$286),$AA$286,$AA$287))))+IF(HP52<=$V$293,HLOOKUP(HU52,$AA$292:$AD$297,2,FALSE),IF(AND(HP52>$V$293,HP52<=$V$294),HLOOKUP(GR52,$AA$292:$AD$297,3,FALSE),IF(AND(HP52>$V$294,HP52<=$V$295),HLOOKUP(GR52,$AA$292:$AD$297,4,FALSE),IF(AND(HP52>$V$295,HP52<=$V$296),HLOOKUP(GR52,$AA$292:$AD$297,5,FALSE),IF(HP52>$V$296,HLOOKUP(GR52,$AA$292:$AD$297,6,FALSE),"")))))+IF(IC52=$W$300,$AA$300,$AA$301))/4)) -> Enter Major/Minor Street Speeds | XM52: =IF(OR(LEN($P$21)=0,LEN($P$23)=0),"Enter Major/Minor Street Speeds",IF(II52=0,,(IF(II52<5,VLOOKUP(II52,$W$276:$AA$279,5, FALSE),$AA$280)+IF(IN52<=$V$283,$AA$283,IF(AND(IN52>$V$283,IN52<=$V$284),$AA$284,IF(AND(IN52>$V$284,IN52<=$V$285),$AA$285,IF(AND(IN52>$V$285,IN52<=$V$286),$AA$286,$AA$287))))+IF(IS52<=$V$293,HLOOKUP(IX52,$AA$292:$AD$297,2,FALSE),IF(AND(IS52>$V$293,IS52<=$V$294),HLOOKUP(IX52,$AA$292:$AD$297,3,FALSE),IF(AND(IS52>$V$294,IS52<=$V$295),HLOOKUP(IX52,$AA$292:$AD$297,4,FALSE),IF(AND(IS52>$V$295,IS52<=$V$296),HLOOKUP(IX52,$AA$292:$AD$297,5,FALSE),IF(IS52>$V$296,HLOOKUP(IX52,$AA$292:$AD$297,6,FALSE),"")))))+IF(JF52=$W$300,$AA$300,$AA$301))/4)) -> Enter Major/Minor Street Speeds | XW52: =IF(OR(LEN($P$21)=0,LEN($P$23)=0),"Enter Major/Minor Street Speeds",IF(JL52=0,,(IF(JL52<5,VLOOKUP(JL52,$W$276:$AA$279,5, FALSE),$AA$280)+IF(JQ52<=$V$283,$AA$283,IF(AND(JQ52>$V$283,JQ52<=$V$284),$AA$284,IF(AND(JQ52>$V$284,JQ52<=$V$285),$AA$285,IF(AND(JQ52>$V$285,JQ52<=$V$286),$AA$286,$AA$287))))+IF(JV52<=$V$293,HLOOKUP(KA52,$AA$292:$AD$297,2,FALSE),IF(AND(JV52>$V$293,JV52<=$V$294),HLOOKUP(KA52,$AA$292:$AD$297,3,FALSE),IF(AND(JV52>$V$294,JV52<=$V$295),HLOOKUP(KA52,$AA$292:$AD$297,4,FALSE),IF(AND(JV52>$V$295,JV52<=$V$296),HLOOKUP(KA52,$AA$292:$AD$297,5,FALSE),IF(JV52>$V$296,HLOOKUP(KA52,$AA$292:$AD$297,6,FALSE),"")))))+IF(KI52=$W$300,$AA$300,$AA$301))/4)) -> Enter Major/Minor Street Speeds | YG52: =IF(OR(LEN($P$21)=0,LEN($P$23)=0),"Enter Major/Minor Street Speeds",IF(KO52=0,,(IF(KO52<5,VLOOKUP(KO52,$W$276:$AA$279,5, FALSE),$AA$280)+IF(KT52<=$V$283,$AA$283,IF(AND(KT52>$V$283,KT52<=$V$284),$AA$284,IF(AND(KT52>$V$284,KT52<=$V$285),$AA$285,IF(AND(KT52>$V$285,KT52<=$V$286),$AA$286,$AA$287))))+IF(KY52<=$V$293,HLOOKUP(LD52,$AA$292:$AD$297,2,FALSE),IF(AND(KY52>$V$293,KY52<=$V$294),HLOOKUP(LD52,$AA$292:$AD$297,3,FALSE),IF(AND(KY52>$V$294,KY52<=$V$295),HLOOKUP(LD52,$AA$292:$AD$297,4,FALSE),IF(AND(KY52>$V$295,KY52<=$V$296),HLOOKUP(LD52,$AA$292:$AD$297,5,FALSE),IF(KY52>$V$296,HLOOKUP(LD52,$AA$292:$AD$297,6,FALSE),"")))))+IF(LL52=$W$300,$AA$300,$AA$301))/4)) -> Enter Major/Minor Street Speeds | YQ52: =IF(OR(LEN($P$21)=0,LEN($P$23)=0),"Enter Major/Minor Street Speeds",IF(LR52=0,,(IF(LR52<5,VLOOKUP(LR52,$W$276:$AA$279,5, FALSE),$AA$280)+IF(LW52<=$V$283,$AA$283,IF(AND(LW52>$V$283,LW52<=$V$284),$AA$284,IF(AND(LW52>$V$284,LW52<=$V$285),$AA$285,IF(AND(LW52>$V$285,LW52<=$V$286),$AA$286,$AA$287))))+IF(MB52<=$V$293,HLOOKUP(MG52,$AA$292:$AD$297,2,FALSE),IF(AND(MB52>$V$293,MB52<=$V$294),HLOOKUP(MG52,$AA$292:$AD$297,3,FALSE),IF(AND(MB52>$V$294,MB52<=$V$295),HLOOKUP(MG52,$AA$292:$AD$297,4,FALSE),IF(AND(MB52>$V$295,MB52<=$V$296),HLOOKUP(MG52,$AA$292:$AD$297,5,FALSE),IF(MB52>$V$296,HLOOKUP(MG52,$AA$292:$AD$297,6,FALSE),"")))))+IF(MO52=$W$300,$AA$300,$AA$301))/4)) -> Enter Major/Minor Street Speeds | ZA52: =IF(OR(LEN($P$21)=0,LEN($P$23)=0),"Enter Major/Minor Street Speeds",IF(MU52=0,,(IF(MU52<5,VLOOKUP(MU52,$W$276:$AA$279,5, FALSE),$AA$280)+IF(MZ52<=$V$283,$AA$283,IF(AND(MZ52>$V$283,MZ52<=$V$284),$AA$284,IF(AND(MZ52>$V$284,MZ52<=$V$285),$AA$285,IF(AND(MZ52>$V$285,MZ52<=$V$286),$AA$286,$AA$287))))+IF(NE52<=$V$293,HLOOKUP(NJ52,$AA$292:$AD$297,2,FALSE),IF(AND(NE52>$V$293,NE52<=$V$294),HLOOKUP(NJ52,$AA$292:$AD$297,3,FALSE),IF(AND(NE52>$V$294,NE52<=$V$295),HLOOKUP(NJ52,$AA$292:$AD$297,4,FALSE),IF(AND(NE52>$V$295,NE52<=$V$296),HLOOKUP(NJ52,$AA$292:$AD$297,5,FALSE),IF(NE52>$V$296,HLOOKUP(NJ52,$AA$292:$AD$297,6,FALSE),"")))))+IF(NR52=$W$300,$AA$300,$AA$301))/4)) -> Enter Major/Minor Street Speeds | ZK52: =IF(OR(LEN($P$21)=0,LEN($P$23)=0),"Enter Major/Minor Street Speeds",IF(NX52=0,,(IF(NX52<5,VLOOKUP(NX52,$W$276:$AA$279,5, FALSE),$AA$280)+IF(OC52<=$V$283,$AA$283,IF(AND(OC52>$V$283,OC52<=$V$284),$AA$284,IF(AND(OC52>$V$284,OC52<=$V$285),$AA$285,IF(AND(OC52>$V$285,OC52<=$V$286),$AA$286,$AA$287))))+IF(OH52<=$V$293,HLOOKUP(OM52,$AA$292:$AD$297,2,FALSE),IF(AND(OH52>$V$293,OH52<=$V$294),HLOOKUP(OM52,$AA$292:$AD$297,3,FALSE),IF(AND(OH52>$V$294,OH52<=$V$295),HLOOKUP(OM52,$AA$292:$AD$297,4,FALSE),IF(AND(OH52>$V$295,OH52<=$V$296),HLOOKUP(OM52,$AA$292:$AD$297,5,FALSE),IF(OH52>$V$296,HLOOKUP(OM52,$AA$292:$AD$297,6,FALSE),"")))))+IF(OU52=$W$300,$AA$300,$AA$301))/4)) -> Enter Major/Minor Street Speeds | ZU52: =IF(OR(LEN($P$21)=0,LEN($P$23)=0),"Enter Major/Minor Street Speeds",IF(PA52=0,,(IF(PA52<5,VLOOKUP(PA52,$W$276:$AA$279,5, FALSE),$AA$280)+IF(PF52<=$V$283,$AA$283,IF(AND(PF52>$V$283,PF52<=$V$284),$AA$284,IF(AND(PF52>$V$284,PF52<=$V$285),$AA$285,IF(AND(PF52>$V$285,PF52<=$V$286),$AA$286,$AA$287))))+IF(PK52<=$V$293,HLOOKUP(PP52,$AA$292:$AD$297,2,FALSE),IF(AND(PK52>$V$293,PK52<=$V$294),HLOOKUP(PP52,$AA$292:$AD$297,3,FALSE),IF(AND(PK52>$V$294,PK52<=$V$295),HLOOKUP(PP52,$AA$292:$AD$297,4,FALSE),IF(AND(PK52>$V$295,PK52<=$V$296),HLOOKUP(PP52,$AA$292:$AD$297,5,FALSE),IF(PK52>$V$296,HLOOKUP(PP52,$AA$292:$AD$297,6,FALSE),"")))))+IF(PX52=$W$300,$AA$300,$AA$301))/4)) -> Enter Major/Minor Street Speeds | AAE52: =IF(OR(LEN($P$21)=0,LEN($P$23)=0),"Enter Major/Minor Street Speeds",IF(QD52=0,,(IF(QD52<5,VLOOKUP(QD52,$W$276:$AA$279,5, FALSE),$AA$280)+IF(QI52<=$V$283,$AA$283,IF(AND(QI52>$V$283,QI52<=$V$284),$AA$284,IF(AND(QI52>$V$284,QI52<=$V$285),$AA$285,IF(AND(QI52>$V$285,QI52<=$V$286),$AA$286,$AA$287))))+IF(QN52<=$V$293,HLOOKUP(QS52,$AA$292:$AD$297,2,FALSE),IF(AND(QN52>$V$293,QN52<=$V$294),HLOOKUP(QS52,$AA$292:$AD$297,3,FALSE),IF(AND(QN52>$V$294,QN52<=$V$295),HLOOKUP(QS52,$AA$292:$AD$297,4,FALSE),IF(AND(QN52>$V$295,QN52<=$V$296),HLOOKUP(QS52,$AA$292:$AD$297,5,FALSE),IF(QN52>$V$296,HLOOKUP(QS52,$AA$292:$AD$297,6,FALSE),"")))))+IF(RA52=$W$300,$AA$300,$AA$301))/4)) -> Enter Major/Minor Street Speeds | AAO52: =IF(OR(LEN($P$21)=0,LEN($P$23)=0),"Enter Major/Minor Street Speeds",IF(RG52=0,,(IF(RG52<5,VLOOKUP(RG52,$W$276:$AA$279,5, FALSE),$AA$280)+IF(RL52<=$V$283,$AA$283,IF(AND(RL52>$V$283,RL52<=$V$284),$AA$284,IF(AND(RL52>$V$284,RL52<=$V$285),$AA$285,IF(AND(RL52>$V$285,RL52<=$V$286),$AA$286,$AA$287))))+IF(RQ52<=$V$293,HLOOKUP(RV52,$AA$292:$AD$297,2,FALSE),IF(AND(RQ52>$V$293,RQ52<=$V$294),HLOOKUP(RV52,$AA$292:$AD$297,3,FALSE),IF(AND(RQ52>$V$294,RQ52<=$V$295),HLOOKUP(RV52,$AA$292:$AD$297,4,FALSE),IF(AND(RQ52>$V$295,RQ52<=$V$296),HLOOKUP(RV52,$AA$292:$AD$297,5,FALSE),IF(RQ52>$V$296,HLOOKUP(RV52,$AA$292:$AD$297,6,FALSE),"")))))+IF(SD52=$W$300,$AA$300,$AA$301))/4)) -> Enter Major/Minor Street Speeds | AAY52: =IF(OR(LEN($P$21)=0,LEN($P$23)=0),"Enter Major/Minor Street Speeds",IF(SJ52=0,,(IF(SJ52<5,VLOOKUP(SJ52,$W$276:$AA$279,5, FALSE),$AA$280)+IF(SO52<=$V$283,$AA$283,IF(AND(SO52>$V$283,SO52<=$V$284),$AA$284,IF(AND(SO52>$V$284,SO52<=$V$285),$AA$285,IF(AND(SO52>$V$285,SO52<=$V$286),$AA$286,$AA$287))))+IF(ST52<=$V$293,HLOOKUP(SY52,$AA$292:$AD$297,2,FALSE),IF(AND(ST52>$V$293,ST52<=$V$294),HLOOKUP(SY52,$AA$292:$AD$297,3,FALSE),IF(AND(ST52>$V$294,ST52<=$V$295),HLOOKUP(SY52,$AA$292:$AD$297,4,FALSE),IF(AND(ST52>$V$295,ST52<=$V$296),HLOOKUP(SY52,$AA$292:$AD$297,5,FALSE),IF(ST52>$V$296,HLOOKUP(SY52,$AA$292:$AD$297,6,FALSE),"")))))+IF(TG52=$W$300,$AA$300,$AA$301))/4)) -> Enter Major/Minor Street Speeds | ABI52: =IF(OR(LEN($P$21)=0,LEN($P$23)=0),"Enter Major/Minor Street Speeds",IF(TM52=0,,(IF(TM52<5,VLOOKUP(TM52,$W$276:$AA$279,5, FALSE),$AA$280)+IF(TR52<=$V$283,$AA$283,IF(AND(TR52>$V$283,TR52<=$V$284),$AA$284,IF(AND(TR52>$V$284,TR52<=$V$285),$AA$285,IF(AND(TR52>$V$285,TR52<=$V$286),$AA$286,$AA$287))))+IF(TW52<=$V$293,HLOOKUP(UB52,$AA$292:$AD$297,2,FALSE),IF(AND(TW52>$V$293,TW52<=$V$294),HLOOKUP(UB52,$AA$292:$AD$297,3,FALSE),IF(AND(TW52>$V$294,TW52<=$V$295),HLOOKUP(UB52,$AA$292:$AD$297,4,FALSE),IF(AND(TW52>$V$295,TW52<=$V$296),HLOOKUP(UB52,$AA$292:$AD$297,5,FALSE),IF(TW52>$V$296,HLOOKUP(UB52,$AA$292:$AD$297,6,FALSE),"")))))+IF(UJ52=$W$300,$AA$300,$AA$301))/4)) -> Enter Major/Minor Street Speeds
T54: N | Z54: =UP54 -> Enter Major/Minor Street Speeds | AD54: No | AI54: Yes Crossing(s) with 3+ stages | AN54: =SUM('CGT N'!CM30:CO30) -> 1 | AS54: =Min_St_Spd_Lmt ->  | AX54: =SBR_Master -> 0 | BC54: Yield Controlled | BK54: Marked | BQ54: =SUM('CGT N'!CP30:CU30) -> 1 | BV54: =Min_St_Spd_Lmt ->  | CA54: =SUM(EBL_Master,SBU_Master,SBL_Master) -> 0 | CF54: Stop/Signal Controlled | CN54: Marked | CT54: =SUM('CGT N'!CV31:CV33) -> 1 | CY54: =Maj_St_Spd_Lmt ->  | DD54: =WBR_Master -> 0 | DI54: Yield Controlled | DQ54: Marked | DW54: =SUM('CGT N'!CV34:CV36) -> 2 | EB54: =Maj_St_Spd_Lmt ->  | EG54: =WBT_Master -> 0 | EL54: Stop/Signal Controlled | ET54: Unmarked | EZ54: =SUM('CGT N'!CI37:CI39,'CGT N'!CP30:CU30) -> 3 | FE54: =Maj_St_Spd_Lmt ->  | FJ54: =SUM(SBL_Master,EBT_Master) -> 0 | FO54: Free Flowing | FW54: Unmarked | GC54: =SUM('CGT N'!CI31:CI39) -> 3 | GH54: =Maj_St_Spd_Lmt ->  | GM54: =SUM(EBL_Master,EBT_Master,EBU_Master) -> 0 | GR54: Free Flowing | GZ54: Unmarked | HF54: =MAX('CGT N'!CV34:CV36,'CGT N'!CI31:CI36) -> 2 | HK54: =Maj_St_Spd_Lmt ->  | HP54: =SUM(EBU_Master,WBT_Master) -> 0 | HU54: Stop/Signal Controlled | IC54: Unmarked | UP54: =IFERROR((((SUM(SQRT(UU54),SQRT(VE54),SQRT(VO54),SQRT(VY54),SQRT(WI54),SQRT(WS54),SQRT(XC54),SQRT(XM54),SQRT(XW54),SQRT(YG54),SQRT(YQ54),SQRT(ZA54),SQRT(ZK54),SQRT(ZU54),SQRT(AAE54),SQRT(AAO54),SQRT(AAY54),SQRT(ABI54))/COUNTIF(UU54:ABR55,">0"))^2)*(_xlfn.XLOOKUP(AD54,$W$311:$W$312,$AA$311:$AA$312,"lookup error",0,1))*(_xlfn.XLOOKUP(AI54,Multistage_Crossing,$AA$305:$AA$307,"lookup error",0,1))),"Enter Major/Minor Street Speeds") -> Enter Major/Minor Street Speeds | UU54: =IF(OR(LEN($P$21)=0,LEN($P$23)=0),"Enter Major/Minor Street Speeds",IF(AN54=0,,(IF(AN54<5,VLOOKUP(AN54,$W$276:$AA$279,5, FALSE),$AA$280)+IF(AS54<=$V$283,$AA$283,IF(AND(AS54>$V$283,AS54<=$V$284),$AA$284,IF(AND(AS54>$V$284,AS54<=$V$285),$AA$285,IF(AND(AS54>$V$285,AS54<=$V$286),$AA$286,$AA$287))))+IF(AX54<=$V$293,HLOOKUP(BC54,$AA$292:$AD$297,2,FALSE),IF(AND(AX54>$V$293,AX54<=$V$294),HLOOKUP(BC54,$AA$292:$AD$297,3,FALSE),IF(AND(AX54>$V$294,AX54<=$V$295),HLOOKUP(BC54,$AA$292:$AD$297,4,FALSE),IF(AND(AX54>$V$295,AX54<=$V$296),HLOOKUP(BC54,$AA$292:$AD$297,5,FALSE),IF(AX54>$V$296,HLOOKUP(BC54,$AA$292:$AD$297,6,FALSE),"")))))+IF(BK54=$W$300,$AA$300,$AA$301))/4)) -> Enter Major/Minor Street Speeds | VE54: =IF(OR(LEN($P$21)=0,LEN($P$23)=0),"Enter Major/Minor Street Speeds",IF(BQ54=0,,(IF(BQ54<5,VLOOKUP(BQ54,$W$276:$AA$279,5, FALSE),$AA$280)+IF(BV54<=$V$283,$AA$283,IF(AND(BV54>$V$283,BV54<=$V$284),$AA$284,IF(AND(BV54>$V$284,BV54<=$V$285),$AA$285,IF(AND(BV54>$V$285,BV54<=$V$286),$AA$286,$AA$287))))+IF(CA54<=$V$293,HLOOKUP(CF54,$AA$292:$AD$297,2,FALSE),IF(AND(CA54>$V$293,CA54<=$V$294),HLOOKUP(CF54,$AA$292:$AD$297,3,FALSE),IF(AND(CA54>$V$294,CA54<=$V$295),HLOOKUP(CF54,$AA$292:$AD$297,4,FALSE),IF(AND(CA54>$V$295,CA54<=$V$296),HLOOKUP(CF54,$AA$292:$AD$297,5,FALSE),IF(CA54>$V$296,HLOOKUP(CF54,$AA$292:$AD$297,6,FALSE),"")))))+IF(CN54=$W$300,$AA$300,$AA$301))/4)) -> Enter Major/Minor Street Speeds | VO54: =IF(OR(LEN($P$21)=0,LEN($P$23)=0),"Enter Major/Minor Street Speeds",IF(CT54=0,,(IF(CT54<5,VLOOKUP(CT54,$W$276:$AA$279,5, FALSE),$AA$280)+IF(CY54<=$V$283,$AA$283,IF(AND(CY54>$V$283,CY54<=$V$284),$AA$284,IF(AND(CY54>$V$284,CY54<=$V$285),$AA$285,IF(AND(CY54>$V$285,CY54<=$V$286),$AA$286,$AA$287))))+IF(DD54<=$V$293,HLOOKUP(DI54,$AA$292:$AD$297,2,FALSE),IF(AND(DD54>$V$293,DD54<=$V$294),HLOOKUP(DI54,$AA$292:$AD$297,3,FALSE),IF(AND(DD54>$V$294,DD54<=$V$295),HLOOKUP(DI54,$AA$292:$AD$297,4,FALSE),IF(AND(DD54>$V$295,DD54<=$V$296),HLOOKUP(DI54,$AA$292:$AD$297,5,FALSE),IF(DD54>$V$296,HLOOKUP(DI54,$AA$292:$AD$297,6,FALSE),"")))))+IF(DQ54=$W$300,$AA$300,$AA$301))/4)) -> Enter Major/Minor Street Speeds | VY54: =IF(OR(LEN($P$21)=0,LEN($P$23)=0),"Enter Major/Minor Street Speeds",IF(DW54=0,,(IF(DW54<5,VLOOKUP(DW54,$W$276:$AA$279,5, FALSE),$AA$280)+IF(EB54<=$V$283,$AA$283,IF(AND(EB54>$V$283,EB54<=$V$284),$AA$284,IF(AND(EB54>$V$284,EB54<=$V$285),$AA$285,IF(AND(EB54>$V$285,EB54<=$V$286),$AA$286,$AA$287))))+IF(EG54<=$V$293,HLOOKUP(EL54,$AA$292:$AD$297,2,FALSE),IF(AND(EG54>$V$293,EG54<=$V$294),HLOOKUP(EL54,$AA$292:$AD$297,3,FALSE),IF(AND(EG54>$V$294,EG54<=$V$295),HLOOKUP(EL54,$AA$292:$AD$297,4,FALSE),IF(AND(EG54>$V$295,EG54<=$V$296),HLOOKUP(EL54,$AA$292:$AD$297,5,FALSE),IF(EG54>$V$296,HLOOKUP(EL54,$AA$292:$AD$297,6,FALSE),"")))))+IF(ET54=$W$300,$AA$300,$AA$301))/4)) -> Enter Major/Minor Street Speeds | WI54: =IF(OR(LEN($P$21)=0,LEN($P$23)=0),"Enter Major/Minor Street Speeds",IF(EZ54=0,,(IF(EZ54<5,VLOOKUP(EZ54,$W$276:$AA$279,5, FALSE),$AA$280)+IF(FE54<=$V$283,$AA$283,IF(AND(FE54>$V$283,FE54<=$V$284),$AA$284,IF(AND(FE54>$V$284,FE54<=$V$285),$AA$285,IF(AND(FE54>$V$285,FE54<=$V$286),$AA$286,$AA$287))))+IF(FJ54<=$V$293,HLOOKUP(FO54,$AA$292:$AD$297,2,FALSE),IF(AND(FJ54>$V$293,FJ54<=$V$294),HLOOKUP(FO54,$AA$292:$AD$297,3,FALSE),IF(AND(FJ54>$V$294,FJ54<=$V$295),HLOOKUP(FO54,$AA$292:$AD$297,4,FALSE),IF(AND(FJ54>$V$295,FJ54<=$V$296),HLOOKUP(FO54,$AA$292:$AD$297,5,FALSE),IF(FJ54>$V$296,HLOOKUP(FO54,$AA$292:$AD$297,6,FALSE),"")))))+IF(FW54=$W$300,$AA$300,$AA$301))/4)) -> Enter Major/Minor Street Speeds | WS54: =IF(OR(LEN($P$21)=0,LEN($P$23)=0),"Enter Major/Minor Street Speeds",IF(GC54=0,,(IF(GC54<5,VLOOKUP(GC54,$W$276:$AA$279,5, FALSE),$AA$280)+IF(GH54<=$V$283,$AA$283,IF(AND(GH54>$V$283,GH54<=$V$284),$AA$284,IF(AND(GH54>$V$284,GH54<=$V$285),$AA$285,IF(AND(GH54>$V$285,GH54<=$V$286),$AA$286,$AA$287))))+IF(GM54<=$V$293,HLOOKUP(GR54,$AA$292:$AD$297,2,FALSE),IF(AND(GM54>$V$293,GM54<=$V$294),HLOOKUP(GR54,$AA$292:$AD$297,3,FALSE),IF(AND(GM54>$V$294,GM54<=$V$295),HLOOKUP(GR54,$AA$292:$AD$297,4,FALSE),IF(AND(GM54>$V$295,GM54<=$V$296),HLOOKUP(GR54,$AA$292:$AD$297,5,FALSE),IF(GM54>$V$296,HLOOKUP(GR54,$AA$292:$AD$297,6,FALSE),"")))))+IF(GZ54=$W$300,$AA$300,$AA$301))/4)) -> Enter Major/Minor Street Speeds | XC54: =IF(OR(LEN($P$21)=0,LEN($P$23)=0),"Enter Major/Minor Street Speeds",IF(HF54=0,,(IF(HF54<5,VLOOKUP(HF54,$W$276:$AA$279,5, FALSE),$AA$280)+IF(HK54<=$V$283,$AA$283,IF(AND(HK54>$V$283,HK54<=$V$284),$AA$284,IF(AND(HK54>$V$284,HK54<=$V$285),$AA$285,IF(AND(HK54>$V$285,HK54<=$V$286),$AA$286,$AA$287))))+IF(HP54<=$V$293,HLOOKUP(HU54,$AA$292:$AD$297,2,FALSE),IF(AND(HP54>$V$293,HP54<=$V$294),HLOOKUP(GR54,$AA$292:$AD$297,3,FALSE),IF(AND(HP54>$V$294,HP54<=$V$295),HLOOKUP(GR54,$AA$292:$AD$297,4,FALSE),IF(AND(HP54>$V$295,HP54<=$V$296),HLOOKUP(GR54,$AA$292:$AD$297,5,FALSE),IF(HP54>$V$296,HLOOKUP(GR54,$AA$292:$AD$297,6,FALSE),"")))))+IF(IC54=$W$300,$AA$300,$AA$301))/4)) -> Enter Major/Minor Street Speeds | XM54: =IF(OR(LEN($P$21)=0,LEN($P$23)=0),"Enter Major/Minor Street Speeds",IF(II54=0,,(IF(II54<5,VLOOKUP(II54,$W$276:$AA$279,5, FALSE),$AA$280)+IF(IN54<=$V$283,$AA$283,IF(AND(IN54>$V$283,IN54<=$V$284),$AA$284,IF(AND(IN54>$V$284,IN54<=$V$285),$AA$285,IF(AND(IN54>$V$285,IN54<=$V$286),$AA$286,$AA$287))))+IF(IS54<=$V$293,HLOOKUP(IX54,$AA$292:$AD$297,2,FALSE),IF(AND(IS54>$V$293,IS54<=$V$294),HLOOKUP(IX54,$AA$292:$AD$297,3,FALSE),IF(AND(IS54>$V$294,IS54<=$V$295),HLOOKUP(IX54,$AA$292:$AD$297,4,FALSE),IF(AND(IS54>$V$295,IS54<=$V$296),HLOOKUP(IX54,$AA$292:$AD$297,5,FALSE),IF(IS54>$V$296,HLOOKUP(IX54,$AA$292:$AD$297,6,FALSE),"")))))+IF(JF54=$W$300,$AA$300,$AA$301))/4)) -> Enter Major/Minor Street Speeds | XW54: =IF(OR(LEN($P$21)=0,LEN($P$23)=0),"Enter Major/Minor Street Speeds",IF(JL54=0,,(IF(JL54<5,VLOOKUP(JL54,$W$276:$AA$279,5, FALSE),$AA$280)+IF(JQ54<=$V$283,$AA$283,IF(AND(JQ54>$V$283,JQ54<=$V$284),$AA$284,IF(AND(JQ54>$V$284,JQ54<=$V$285),$AA$285,IF(AND(JQ54>$V$285,JQ54<=$V$286),$AA$286,$AA$287))))+IF(JV54<=$V$293,HLOOKUP(KA54,$AA$292:$AD$297,2,FALSE),IF(AND(JV54>$V$293,JV54<=$V$294),HLOOKUP(KA54,$AA$292:$AD$297,3,FALSE),IF(AND(JV54>$V$294,JV54<=$V$295),HLOOKUP(KA54,$AA$292:$AD$297,4,FALSE),IF(AND(JV54>$V$295,JV54<=$V$296),HLOOKUP(KA54,$AA$292:$AD$297,5,FALSE),IF(JV54>$V$296,HLOOKUP(KA54,$AA$292:$AD$297,6,FALSE),"")))))+IF(KI54=$W$300,$AA$300,$AA$301))/4)) -> Enter Major/Minor Street Speeds | YG54: =IF(OR(LEN($P$21)=0,LEN($P$23)=0),"Enter Major/Minor Street Speeds",IF(KO54=0,,(IF(KO54<5,VLOOKUP(KO54,$W$276:$AA$279,5, FALSE),$AA$280)+IF(KT54<=$V$283,$AA$283,IF(AND(KT54>$V$283,KT54<=$V$284),$AA$284,IF(AND(KT54>$V$284,KT54<=$V$285),$AA$285,IF(AND(KT54>$V$285,KT54<=$V$286),$AA$286,$AA$287))))+IF(KY54<=$V$293,HLOOKUP(LD54,$AA$292:$AD$297,2,FALSE),IF(AND(KY54>$V$293,KY54<=$V$294),HLOOKUP(LD54,$AA$292:$AD$297,3,FALSE),IF(AND(KY54>$V$294,KY54<=$V$295),HLOOKUP(LD54,$AA$292:$AD$297,4,FALSE),IF(AND(KY54>$V$295,KY54<=$V$296),HLOOKUP(LD54,$AA$292:$AD$297,5,FALSE),IF(KY54>$V$296,HLOOKUP(LD54,$AA$292:$AD$297,6,FALSE),"")))))+IF(LL54=$W$300,$AA$300,$AA$301))/4)) -> Enter Major/Minor Street Speeds | YQ54: =IF(OR(LEN($P$21)=0,LEN($P$23)=0),"Enter Major/Minor Street Speeds",IF(LR54=0,,(IF(LR54<5,VLOOKUP(LR54,$W$276:$AA$279,5, FALSE),$AA$280)+IF(LW54<=$V$283,$AA$283,IF(AND(LW54>$V$283,LW54<=$V$284),$AA$284,IF(AND(LW54>$V$284,LW54<=$V$285),$AA$285,IF(AND(LW54>$V$285,LW54<=$V$286),$AA$286,$AA$287))))+IF(MB54<=$V$293,HLOOKUP(MG54,$AA$292:$AD$297,2,FALSE),IF(AND(MB54>$V$293,MB54<=$V$294),HLOOKUP(MG54,$AA$292:$AD$297,3,FALSE),IF(AND(MB54>$V$294,MB54<=$V$295),HLOOKUP(MG54,$AA$292:$AD$297,4,FALSE),IF(AND(MB54>$V$295,MB54<=$V$296),HLOOKUP(MG54,$AA$292:$AD$297,5,FALSE),IF(MB54>$V$296,HLOOKUP(MG54,$AA$292:$AD$297,6,FALSE),"")))))+IF(MO54=$W$300,$AA$300,$AA$301))/4)) -> Enter Major/Minor Street Speeds | ZA54: =IF(OR(LEN($P$21)=0,LEN($P$23)=0),"Enter Major/Minor Street Speeds",IF(MU54=0,,(IF(MU54<5,VLOOKUP(MU54,$W$276:$AA$279,5, FALSE),$AA$280)+IF(MZ54<=$V$283,$AA$283,IF(AND(MZ54>$V$283,MZ54<=$V$284),$AA$284,IF(AND(MZ54>$V$284,MZ54<=$V$285),$AA$285,IF(AND(MZ54>$V$285,MZ54<=$V$286),$AA$286,$AA$287))))+IF(NE54<=$V$293,HLOOKUP(NJ54,$AA$292:$AD$297,2,FALSE),IF(AND(NE54>$V$293,NE54<=$V$294),HLOOKUP(NJ54,$AA$292:$AD$297,3,FALSE),IF(AND(NE54>$V$294,NE54<=$V$295),HLOOKUP(NJ54,$AA$292:$AD$297,4,FALSE),IF(AND(NE54>$V$295,NE54<=$V$296),HLOOKUP(NJ54,$AA$292:$AD$297,5,FALSE),IF(NE54>$V$296,HLOOKUP(NJ54,$AA$292:$AD$297,6,FALSE),"")))))+IF(NR54=$W$300,$AA$300,$AA$301))/4)) -> Enter Major/Minor Street Speeds | ZK54: =IF(OR(LEN($P$21)=0,LEN($P$23)=0),"Enter Major/Minor Street Speeds",IF(NX54=0,,(IF(NX54<5,VLOOKUP(NX54,$W$276:$AA$279,5, FALSE),$AA$280)+IF(OC54<=$V$283,$AA$283,IF(AND(OC54>$V$283,OC54<=$V$284),$AA$284,IF(AND(OC54>$V$284,OC54<=$V$285),$AA$285,IF(AND(OC54>$V$285,OC54<=$V$286),$AA$286,$AA$287))))+IF(OH54<=$V$293,HLOOKUP(OM54,$AA$292:$AD$297,2,FALSE),IF(AND(OH54>$V$293,OH54<=$V$294),HLOOKUP(OM54,$AA$292:$AD$297,3,FALSE),IF(AND(OH54>$V$294,OH54<=$V$295),HLOOKUP(OM54,$AA$292:$AD$297,4,FALSE),IF(AND(OH54>$V$295,OH54<=$V$296),HLOOKUP(OM54,$AA$292:$AD$297,5,FALSE),IF(OH54>$V$296,HLOOKUP(OM54,$AA$292:$AD$297,6,FALSE),"")))))+IF(OU54=$W$300,$AA$300,$AA$301))/4)) -> Enter Major/Minor Street Speeds | ZU54: =IF(OR(LEN($P$21)=0,LEN($P$23)=0),"Enter Major/Minor Street Speeds",IF(PA54=0,,(IF(PA54<5,VLOOKUP(PA54,$W$276:$AA$279,5, FALSE),$AA$280)+IF(PF54<=$V$283,$AA$283,IF(AND(PF54>$V$283,PF54<=$V$284),$AA$284,IF(AND(PF54>$V$284,PF54<=$V$285),$AA$285,IF(AND(PF54>$V$285,PF54<=$V$286),$AA$286,$AA$287))))+IF(PK54<=$V$293,HLOOKUP(PP54,$AA$292:$AD$297,2,FALSE),IF(AND(PK54>$V$293,PK54<=$V$294),HLOOKUP(PP54,$AA$292:$AD$297,3,FALSE),IF(AND(PK54>$V$294,PK54<=$V$295),HLOOKUP(PP54,$AA$292:$AD$297,4,FALSE),IF(AND(PK54>$V$295,PK54<=$V$296),HLOOKUP(PP54,$AA$292:$AD$297,5,FALSE),IF(PK54>$V$296,HLOOKUP(PP54,$AA$292:$AD$297,6,FALSE),"")))))+IF(PX54=$W$300,$AA$300,$AA$301))/4)) -> Enter Major/Minor Street Speeds | AAE54: =IF(OR(LEN($P$21)=0,LEN($P$23)=0),"Enter Major/Minor Street Speeds",IF(QD54=0,,(IF(QD54<5,VLOOKUP(QD54,$W$276:$AA$279,5, FALSE),$AA$280)+IF(QI54<=$V$283,$AA$283,IF(AND(QI54>$V$283,QI54<=$V$284),$AA$284,IF(AND(QI54>$V$284,QI54<=$V$285),$AA$285,IF(AND(QI54>$V$285,QI54<=$V$286),$AA$286,$AA$287))))+IF(QN54<=$V$293,HLOOKUP(QS54,$AA$292:$AD$297,2,FALSE),IF(AND(QN54>$V$293,QN54<=$V$294),HLOOKUP(QS54,$AA$292:$AD$297,3,FALSE),IF(AND(QN54>$V$294,QN54<=$V$295),HLOOKUP(QS54,$AA$292:$AD$297,4,FALSE),IF(AND(QN54>$V$295,QN54<=$V$296),HLOOKUP(QS54,$AA$292:$AD$297,5,FALSE),IF(QN54>$V$296,HLOOKUP(QS54,$AA$292:$AD$297,6,FALSE),"")))))+IF(RA54=$W$300,$AA$300,$AA$301))/4)) -> Enter Major/Minor Street Speeds | AAO54: =IF(OR(LEN($P$21)=0,LEN($P$23)=0),"Enter Major/Minor Street Speeds",IF(RG54=0,,(IF(RG54<5,VLOOKUP(RG54,$W$276:$AA$279,5, FALSE),$AA$280)+IF(RL54<=$V$283,$AA$283,IF(AND(RL54>$V$283,RL54<=$V$284),$AA$284,IF(AND(RL54>$V$284,RL54<=$V$285),$AA$285,IF(AND(RL54>$V$285,RL54<=$V$286),$AA$286,$AA$287))))+IF(RQ54<=$V$293,HLOOKUP(RV54,$AA$292:$AD$297,2,FALSE),IF(AND(RQ54>$V$293,RQ54<=$V$294),HLOOKUP(RV54,$AA$292:$AD$297,3,FALSE),IF(AND(RQ54>$V$294,RQ54<=$V$295),HLOOKUP(RV54,$AA$292:$AD$297,4,FALSE),IF(AND(RQ54>$V$295,RQ54<=$V$296),HLOOKUP(RV54,$AA$292:$AD$297,5,FALSE),IF(RQ54>$V$296,HLOOKUP(RV54,$AA$292:$AD$297,6,FALSE),"")))))+IF(SD54=$W$300,$AA$300,$AA$301))/4)) -> Enter Major/Minor Street Speeds | AAY54: =IF(OR(LEN($P$21)=0,LEN($P$23)=0),"Enter Major/Minor Street Speeds",IF(SJ54=0,,(IF(SJ54<5,VLOOKUP(SJ54,$W$276:$AA$279,5, FALSE),$AA$280)+IF(SO54<=$V$283,$AA$283,IF(AND(SO54>$V$283,SO54<=$V$284),$AA$284,IF(AND(SO54>$V$284,SO54<=$V$285),$AA$285,IF(AND(SO54>$V$285,SO54<=$V$286),$AA$286,$AA$287))))+IF(ST54<=$V$293,HLOOKUP(SY54,$AA$292:$AD$297,2,FALSE),IF(AND(ST54>$V$293,ST54<=$V$294),HLOOKUP(SY54,$AA$292:$AD$297,3,FALSE),IF(AND(ST54>$V$294,ST54<=$V$295),HLOOKUP(SY54,$AA$292:$AD$297,4,FALSE),IF(AND(ST54>$V$295,ST54<=$V$296),HLOOKUP(SY54,$AA$292:$AD$297,5,FALSE),IF(ST54>$V$296,HLOOKUP(SY54,$AA$292:$AD$297,6,FALSE),"")))))+IF(TG54=$W$300,$AA$300,$AA$301))/4)) -> Enter Major/Minor Street Speeds | ABI54: =IF(OR(LEN($P$21)=0,LEN($P$23)=0),"Enter Major/Minor Street Speeds",IF(TM54=0,,(IF(TM54<5,VLOOKUP(TM54,$W$276:$AA$279,5, FALSE),$AA$280)+IF(TR54<=$V$283,$AA$283,IF(AND(TR54>$V$283,TR54<=$V$284),$AA$284,IF(AND(TR54>$V$284,TR54<=$V$285),$AA$285,IF(AND(TR54>$V$285,TR54<=$V$286),$AA$286,$AA$287))))+IF(TW54<=$V$293,HLOOKUP(UB54,$AA$292:$AD$297,2,FALSE),IF(AND(TW54>$V$293,TW54<=$V$294),HLOOKUP(UB54,$AA$292:$AD$297,3,FALSE),IF(AND(TW54>$V$294,TW54<=$V$295),HLOOKUP(UB54,$AA$292:$AD$297,4,FALSE),IF(AND(TW54>$V$295,TW54<=$V$296),HLOOKUP(UB54,$AA$292:$AD$297,5,FALSE),IF(TW54>$V$296,HLOOKUP(UB54,$AA$292:$AD$297,6,FALSE),"")))))+IF(UJ54=$W$300,$AA$300,$AA$301))/4)) -> Enter Major/Minor Street Speeds
T56: E | Z56: =UP56 -> Enter Major/Minor Street Speeds | AD56: No | AI56: Yes Crossing(s) with 3+ stages | AN56: =SUM('CGT E'!CV34:CV36) -> 1 | AS56: =Min_St_Spd_Lmt ->  | AX56: =SUM(WBR_Master) -> 0 | BC56: Yield Controlled | BK56: Marked | BQ56: =SUM('CGT E'!CV37:CV42)+MAX('CGT E'!CP30:CU30) -> 2 | BV56: =Min_St_Spd_Lmt ->  | CA56: =SUM(WBL_Master,SBL_Master,WBU_Master) -> 0 | CF56: Stop/Signal Controlled | CN56: Marked | CT56: =SUM('CGT E'!CS43:CU43) -> 1 | CY56: =Maj_St_Spd_Lmt ->  | DD56: =SUM(NBR_Master) -> 0 | DI56: Yield Controlled | DQ56: Marked | DW56: =SUM('CGT E'!CP43:CR43) -> 2 | EB56: =Maj_St_Spd_Lmt ->  | EG56: =SUM(NBT_Master) -> 0 | EL56: Stop/Signal Controlled | ET56: Unmarked | EZ56: =MAX('CGT E'!CV37:CV42,'CGT E'!CM30:CO30) -> 2 | FE56: =Maj_St_Spd_Lmt ->  | FJ56: =SUM(WBL_Master,SBT_Master) -> 0 | FO56: Free Flowing | FW56: Unmarked | GC56: =SUM('CGT E'!CM30:CU30) -> 3 | GH56: =Maj_St_Spd_Lmt ->  | GM56: =SUM(SBL_Master,SBT_Master) -> 0 | GR56: Free Flowing | GZ56: Unmarked | HF56: =MAX('CGT E'!CP43:CR43) -> 2 | HK56: =Maj_St_Spd_Lmt ->  | HP56: =SUM(NBT_Master) -> 0 | HU56: Stop/Signal Controlled | IC56: Unmarked | UP56: =IFERROR((((SUM(SQRT(UU56),SQRT(VE56),SQRT(VO56),SQRT(VY56),SQRT(WI56),SQRT(WS56),SQRT(XC56),SQRT(XM56),SQRT(XW56),SQRT(YG56),SQRT(YQ56),SQRT(ZA56),SQRT(ZK56),SQRT(ZU56),SQRT(AAE56),SQRT(AAO56),SQRT(AAY56),SQRT(ABI56))/COUNTIF(UU56:ABR57,">0"))^2)*(_xlfn.XLOOKUP(AD56,$W$311:$W$312,$AA$311:$AA$312,"lookup error",0,1))*(_xlfn.XLOOKUP(AI56,Multistage_Crossing,$AA$305:$AA$307,"lookup error",0,1))),"Enter Major/Minor Street Speeds") -> Enter Major/Minor Street Speeds | UU56: =IF(OR(LEN($P$21)=0,LEN($P$23)=0),"Enter Major/Minor Street Speeds",IF(AN56=0,,(IF(AN56<5,VLOOKUP(AN56,$W$276:$AA$279,5, FALSE),$AA$280)+IF(AS56<=$V$283,$AA$283,IF(AND(AS56>$V$283,AS56<=$V$284),$AA$284,IF(AND(AS56>$V$284,AS56<=$V$285),$AA$285,IF(AND(AS56>$V$285,AS56<=$V$286),$AA$286,$AA$287))))+IF(AX56<=$V$293,HLOOKUP(BC56,$AA$292:$AD$297,2,FALSE),IF(AND(AX56>$V$293,AX56<=$V$294),HLOOKUP(BC56,$AA$292:$AD$297,3,FALSE),IF(AND(AX56>$V$294,AX56<=$V$295),HLOOKUP(BC56,$AA$292:$AD$297,4,FALSE),IF(AND(AX56>$V$295,AX56<=$V$296),HLOOKUP(BC56,$AA$292:$AD$297,5,FALSE),IF(AX56>$V$296,HLOOKUP(BC56,$AA$292:$AD$297,6,FALSE),"")))))+IF(BK56=$W$300,$AA$300,$AA$301))/4)) -> Enter Major/Minor Street Speeds | VE56: =IF(OR(LEN($P$21)=0,LEN($P$23)=0),"Enter Major/Minor Street Speeds",IF(BQ56=0,,(IF(BQ56<5,VLOOKUP(BQ56,$W$276:$AA$279,5, FALSE),$AA$280)+IF(BV56<=$V$283,$AA$283,IF(AND(BV56>$V$283,BV56<=$V$284),$AA$284,IF(AND(BV56>$V$284,BV56<=$V$285),$AA$285,IF(AND(BV56>$V$285,BV56<=$V$286),$AA$286,$AA$287))))+IF(CA56<=$V$293,HLOOKUP(CF56,$AA$292:$AD$297,2,FALSE),IF(AND(CA56>$V$293,CA56<=$V$294),HLOOKUP(CF56,$AA$292:$AD$297,3,FALSE),IF(AND(CA56>$V$294,CA56<=$V$295),HLOOKUP(CF56,$AA$292:$AD$297,4,FALSE),IF(AND(CA56>$V$295,CA56<=$V$296),HLOOKUP(CF56,$AA$292:$AD$297,5,FALSE),IF(CA56>$V$296,HLOOKUP(CF56,$AA$292:$AD$297,6,FALSE),"")))))+IF(CN56=$W$300,$AA$300,$AA$301))/4)) -> Enter Major/Minor Street Speeds | VO56: =IF(OR(LEN($P$21)=0,LEN($P$23)=0),"Enter Major/Minor Street Speeds",IF(CT56=0,,(IF(CT56<5,VLOOKUP(CT56,$W$276:$AA$279,5, FALSE),$AA$280)+IF(CY56<=$V$283,$AA$283,IF(AND(CY56>$V$283,CY56<=$V$284),$AA$284,IF(AND(CY56>$V$284,CY56<=$V$285),$AA$285,IF(AND(CY56>$V$285,CY56<=$V$286),$AA$286,$AA$287))))+IF(DD56<=$V$293,HLOOKUP(DI56,$AA$292:$AD$297,2,FALSE),IF(AND(DD56>$V$293,DD56<=$V$294),HLOOKUP(DI56,$AA$292:$AD$297,3,FALSE),IF(AND(DD56>$V$294,DD56<=$V$295),HLOOKUP(DI56,$AA$292:$AD$297,4,FALSE),IF(AND(DD56>$V$295,DD56<=$V$296),HLOOKUP(DI56,$AA$292:$AD$297,5,FALSE),IF(DD56>$V$296,HLOOKUP(DI56,$AA$292:$AD$297,6,FALSE),"")))))+IF(DQ56=$W$300,$AA$300,$AA$301))/4)) -> Enter Major/Minor Street Speeds | VY56: =IF(OR(LEN($P$21)=0,LEN($P$23)=0),"Enter Major/Minor Street Speeds",IF(DW56=0,,(IF(DW56<5,VLOOKUP(DW56,$W$276:$AA$279,5, FALSE),$AA$280)+IF(EB56<=$V$283,$AA$283,IF(AND(EB56>$V$283,EB56<=$V$284),$AA$284,IF(AND(EB56>$V$284,EB56<=$V$285),$AA$285,IF(AND(EB56>$V$285,EB56<=$V$286),$AA$286,$AA$287))))+IF(EG56<=$V$293,HLOOKUP(EL56,$AA$292:$AD$297,2,FALSE),IF(AND(EG56>$V$293,EG56<=$V$294),HLOOKUP(EL56,$AA$292:$AD$297,3,FALSE),IF(AND(EG56>$V$294,EG56<=$V$295),HLOOKUP(EL56,$AA$292:$AD$297,4,FALSE),IF(AND(EG56>$V$295,EG56<=$V$296),HLOOKUP(EL56,$AA$292:$AD$297,5,FALSE),IF(EG56>$V$296,HLOOKUP(EL56,$AA$292:$AD$297,6,FALSE),"")))))+IF(ET56=$W$300,$AA$300,$AA$301))/4)) -> Enter Major/Minor Street Speeds | WI56: =IF(OR(LEN($P$21)=0,LEN($P$23)=0),"Enter Major/Minor Street Speeds",IF(EZ56=0,,(IF(EZ56<5,VLOOKUP(EZ56,$W$276:$AA$279,5, FALSE),$AA$280)+IF(FE56<=$V$283,$AA$283,IF(AND(FE56>$V$283,FE56<=$V$284),$AA$284,IF(AND(FE56>$V$284,FE56<=$V$285),$AA$285,IF(AND(FE56>$V$285,FE56<=$V$286),$AA$286,$AA$287))))+IF(FJ56<=$V$293,HLOOKUP(FO56,$AA$292:$AD$297,2,FALSE),IF(AND(FJ56>$V$293,FJ56<=$V$294),HLOOKUP(FO56,$AA$292:$AD$297,3,FALSE),IF(AND(FJ56>$V$294,FJ56<=$V$295),HLOOKUP(FO56,$AA$292:$AD$297,4,FALSE),IF(AND(FJ56>$V$295,FJ56<=$V$296),HLOOKUP(FO56,$AA$292:$AD$297,5,FALSE),IF(FJ56>$V$296,HLOOKUP(FO56,$AA$292:$AD$297,6,FALSE),"")))))+IF(FW56=$W$300,$AA$300,$AA$301))/4)) -> Enter Major/Minor Street Speeds | WS56: =IF(OR(LEN($P$21)=0,LEN($P$23)=0),"Enter Major/Minor Street Speeds",IF(GC56=0,,(IF(GC56<5,VLOOKUP(GC56,$W$276:$AA$279,5, FALSE),$AA$280)+IF(GH56<=$V$283,$AA$283,IF(AND(GH56>$V$283,GH56<=$V$284),$AA$284,IF(AND(GH56>$V$284,GH56<=$V$285),$AA$285,IF(AND(GH56>$V$285,GH56<=$V$286),$AA$286,$AA$287))))+IF(GM56<=$V$293,HLOOKUP(GR56,$AA$292:$AD$297,2,FALSE),IF(AND(GM56>$V$293,GM56<=$V$294),HLOOKUP(GR56,$AA$292:$AD$297,3,FALSE),IF(AND(GM56>$V$294,GM56<=$V$295),HLOOKUP(GR56,$AA$292:$AD$297,4,FALSE),IF(AND(GM56>$V$295,GM56<=$V$296),HLOOKUP(GR56,$AA$292:$AD$297,5,FALSE),IF(GM56>$V$296,HLOOKUP(GR56,$AA$292:$AD$297,6,FALSE),"")))))+IF(GZ56=$W$300,$AA$300,$AA$301))/4)) -> Enter Major/Minor Street Speeds | XC56: =IF(OR(LEN($P$21)=0,LEN($P$23)=0),"Enter Major/Minor Street Speeds",IF(HF56=0,,(IF(HF56<5,VLOOKUP(HF56,$W$276:$AA$279,5, FALSE),$AA$280)+IF(HK56<=$V$283,$AA$283,IF(AND(HK56>$V$283,HK56<=$V$284),$AA$284,IF(AND(HK56>$V$284,HK56<=$V$285),$AA$285,IF(AND(HK56>$V$285,HK56<=$V$286),$AA$286,$AA$287))))+IF(HP56<=$V$293,HLOOKUP(HU56,$AA$292:$AD$297,2,FALSE),IF(AND(HP56>$V$293,HP56<=$V$294),HLOOKUP(GR56,$AA$292:$AD$297,3,FALSE),IF(AND(HP56>$V$294,HP56<=$V$295),HLOOKUP(GR56,$AA$292:$AD$297,4,FALSE),IF(AND(HP56>$V$295,HP56<=$V$296),HLOOKUP(GR56,$AA$292:$AD$297,5,FALSE),IF(HP56>$V$296,HLOOKUP(GR56,$AA$292:$AD$297,6,FALSE),"")))))+IF(IC56=$W$300,$AA$300,$AA$301))/4)) -> Enter Major/Minor Street Speeds | XM56: =IF(OR(LEN($P$21)=0,LEN($P$23)=0),"Enter Major/Minor Street Speeds",IF(II56=0,,(IF(II56<5,VLOOKUP(II56,$W$276:$AA$279,5, FALSE),$AA$280)+IF(IN56<=$V$283,$AA$283,IF(AND(IN56>$V$283,IN56<=$V$284),$AA$284,IF(AND(IN56>$V$284,IN56<=$V$285),$AA$285,IF(AND(IN56>$V$285,IN56<=$V$286),$AA$286,$AA$287))))+IF(IS56<=$V$293,HLOOKUP(IX56,$AA$292:$AD$297,2,FALSE),IF(AND(IS56>$V$293,IS56<=$V$294),HLOOKUP(IX56,$AA$292:$AD$297,3,FALSE),IF(AND(IS56>$V$294,IS56<=$V$295),HLOOKUP(IX56,$AA$292:$AD$297,4,FALSE),IF(AND(IS56>$V$295,IS56<=$V$296),HLOOKUP(IX56,$AA$292:$AD$297,5,FALSE),IF(IS56>$V$296,HLOOKUP(IX56,$AA$292:$AD$297,6,FALSE),"")))))+IF(JF56=$W$300,$AA$300,$AA$301))/4)) -> Enter Major/Minor Street Speeds | XW56: =IF(OR(LEN($P$21)=0,LEN($P$23)=0),"Enter Major/Minor Street Speeds",IF(JL56=0,,(IF(JL56<5,VLOOKUP(JL56,$W$276:$AA$279,5, FALSE),$AA$280)+IF(JQ56<=$V$283,$AA$283,IF(AND(JQ56>$V$283,JQ56<=$V$284),$AA$284,IF(AND(JQ56>$V$284,JQ56<=$V$285),$AA$285,IF(AND(JQ56>$V$285,JQ56<=$V$286),$AA$286,$AA$287))))+IF(JV56<=$V$293,HLOOKUP(KA56,$AA$292:$AD$297,2,FALSE),IF(AND(JV56>$V$293,JV56<=$V$294),HLOOKUP(KA56,$AA$292:$AD$297,3,FALSE),IF(AND(JV56>$V$294,JV56<=$V$295),HLOOKUP(KA56,$AA$292:$AD$297,4,FALSE),IF(AND(JV56>$V$295,JV56<=$V$296),HLOOKUP(KA56,$AA$292:$AD$297,5,FALSE),IF(JV56>$V$296,HLOOKUP(KA56,$AA$292:$AD$297,6,FALSE),"")))))+IF(KI56=$W$300,$AA$300,$AA$301))/4)) -> Enter Major/Minor Street Speeds | YG56: =IF(OR(LEN($P$21)=0,LEN($P$23)=0),"Enter Major/Minor Street Speeds",IF(KO56=0,,(IF(KO56<5,VLOOKUP(KO56,$W$276:$AA$279,5, FALSE),$AA$280)+IF(KT56<=$V$283,$AA$283,IF(AND(KT56>$V$283,KT56<=$V$284),$AA$284,IF(AND(KT56>$V$284,KT56<=$V$285),$AA$285,IF(AND(KT56>$V$285,KT56<=$V$286),$AA$286,$AA$287))))+IF(KY56<=$V$293,HLOOKUP(LD56,$AA$292:$AD$297,2,FALSE),IF(AND(KY56>$V$293,KY56<=$V$294),HLOOKUP(LD56,$AA$292:$AD$297,3,FALSE),IF(AND(KY56>$V$294,KY56<=$V$295),HLOOKUP(LD56,$AA$292:$AD$297,4,FALSE),IF(AND(KY56>$V$295,KY56<=$V$296),HLOOKUP(LD56,$AA$292:$AD$297,5,FALSE),IF(KY56>$V$296,HLOOKUP(LD56,$AA$292:$AD$297,6,FALSE),"")))))+IF(LL56=$W$300,$AA$300,$AA$301))/4)) -> Enter Major/Minor Street Speeds | YQ56: =IF(OR(LEN($P$21)=0,LEN($P$23)=0),"Enter Major/Minor Street Speeds",IF(LR56=0,,(IF(LR56<5,VLOOKUP(LR56,$W$276:$AA$279,5, FALSE),$AA$280)+IF(LW56<=$V$283,$AA$283,IF(AND(LW56>$V$283,LW56<=$V$284),$AA$284,IF(AND(LW56>$V$284,LW56<=$V$285),$AA$285,IF(AND(LW56>$V$285,LW56<=$V$286),$AA$286,$AA$287))))+IF(MB56<=$V$293,HLOOKUP(MG56,$AA$292:$AD$297,2,FALSE),IF(AND(MB56>$V$293,MB56<=$V$294),HLOOKUP(MG56,$AA$292:$AD$297,3,FALSE),IF(AND(MB56>$V$294,MB56<=$V$295),HLOOKUP(MG56,$AA$292:$AD$297,4,FALSE),IF(AND(MB56>$V$295,MB56<=$V$296),HLOOKUP(MG56,$AA$292:$AD$297,5,FALSE),IF(MB56>$V$296,HLOOKUP(MG56,$AA$292:$AD$297,6,FALSE),"")))))+IF(MO56=$W$300,$AA$300,$AA$301))/4)) -> Enter Major/Minor Street Speeds | ZA56: =IF(OR(LEN($P$21)=0,LEN($P$23)=0),"Enter Major/Minor Street Speeds",IF(MU56=0,,(IF(MU56<5,VLOOKUP(MU56,$W$276:$AA$279,5, FALSE),$AA$280)+IF(MZ56<=$V$283,$AA$283,IF(AND(MZ56>$V$283,MZ56<=$V$284),$AA$284,IF(AND(MZ56>$V$284,MZ56<=$V$285),$AA$285,IF(AND(MZ56>$V$285,MZ56<=$V$286),$AA$286,$AA$287))))+IF(NE56<=$V$293,HLOOKUP(NJ56,$AA$292:$AD$297,2,FALSE),IF(AND(NE56>$V$293,NE56<=$V$294),HLOOKUP(NJ56,$AA$292:$AD$297,3,FALSE),IF(AND(NE56>$V$294,NE56<=$V$295),HLOOKUP(NJ56,$AA$292:$AD$297,4,FALSE),IF(AND(NE56>$V$295,NE56<=$V$296),HLOOKUP(NJ56,$AA$292:$AD$297,5,FALSE),IF(NE56>$V$296,HLOOKUP(NJ56,$AA$292:$AD$297,6,FALSE),"")))))+IF(NR56=$W$300,$AA$300,$AA$301))/4)) -> Enter Major/Minor Street Speeds | ZK56: =IF(OR(LEN($P$21)=0,LEN($P$23)=0),"Enter Major/Minor Street Speeds",IF(NX56=0,,(IF(NX56<5,VLOOKUP(NX56,$W$276:$AA$279,5, FALSE),$AA$280)+IF(OC56<=$V$283,$AA$283,IF(AND(OC56>$V$283,OC56<=$V$284),$AA$284,IF(AND(OC56>$V$284,OC56<=$V$285),$AA$285,IF(AND(OC56>$V$285,OC56<=$V$286),$AA$286,$AA$287))))+IF(OH56<=$V$293,HLOOKUP(OM56,$AA$292:$AD$297,2,FALSE),IF(AND(OH56>$V$293,OH56<=$V$294),HLOOKUP(OM56,$AA$292:$AD$297,3,FALSE),IF(AND(OH56>$V$294,OH56<=$V$295),HLOOKUP(OM56,$AA$292:$AD$297,4,FALSE),IF(AND(OH56>$V$295,OH56<=$V$296),HLOOKUP(OM56,$AA$292:$AD$297,5,FALSE),IF(OH56>$V$296,HLOOKUP(OM56,$AA$292:$AD$297,6,FALSE),"")))))+IF(OU56=$W$300,$AA$300,$AA$301))/4)) -> Enter Major/Minor Street Speeds | ZU56: =IF(OR(LEN($P$21)=0,LEN($P$23)=0),"Enter Major/Minor Street Speeds",IF(PA56=0,,(IF(PA56<5,VLOOKUP(PA56,$W$276:$AA$279,5, FALSE),$AA$280)+IF(PF56<=$V$283,$AA$283,IF(AND(PF56>$V$283,PF56<=$V$284),$AA$284,IF(AND(PF56>$V$284,PF56<=$V$285),$AA$285,IF(AND(PF56>$V$285,PF56<=$V$286),$AA$286,$AA$287))))+IF(PK56<=$V$293,HLOOKUP(PP56,$AA$292:$AD$297,2,FALSE),IF(AND(PK56>$V$293,PK56<=$V$294),HLOOKUP(PP56,$AA$292:$AD$297,3,FALSE),IF(AND(PK56>$V$294,PK56<=$V$295),HLOOKUP(PP56,$AA$292:$AD$297,4,FALSE),IF(AND(PK56>$V$295,PK56<=$V$296),HLOOKUP(PP56,$AA$292:$AD$297,5,FALSE),IF(PK56>$V$296,HLOOKUP(PP56,$AA$292:$AD$297,6,FALSE),"")))))+IF(PX56=$W$300,$AA$300,$AA$301))/4)) -> Enter Major/Minor Street Speeds | AAE56: =IF(OR(LEN($P$21)=0,LEN($P$23)=0),"Enter Major/Minor Street Speeds",IF(QD56=0,,(IF(QD56<5,VLOOKUP(QD56,$W$276:$AA$279,5, FALSE),$AA$280)+IF(QI56<=$V$283,$AA$283,IF(AND(QI56>$V$283,QI56<=$V$284),$AA$284,IF(AND(QI56>$V$284,QI56<=$V$285),$AA$285,IF(AND(QI56>$V$285,QI56<=$V$286),$AA$286,$AA$287))))+IF(QN56<=$V$293,HLOOKUP(QS56,$AA$292:$AD$297,2,FALSE),IF(AND(QN56>$V$293,QN56<=$V$294),HLOOKUP(QS56,$AA$292:$AD$297,3,FALSE),IF(AND(QN56>$V$294,QN56<=$V$295),HLOOKUP(QS56,$AA$292:$AD$297,4,FALSE),IF(AND(QN56>$V$295,QN56<=$V$296),HLOOKUP(QS56,$AA$292:$AD$297,5,FALSE),IF(QN56>$V$296,HLOOKUP(QS56,$AA$292:$AD$297,6,FALSE),"")))))+IF(RA56=$W$300,$AA$300,$AA$301))/4)) -> Enter Major/Minor Street Speeds | AAO56: =IF(OR(LEN($P$21)=0,LEN($P$23)=0),"Enter Major/Minor Street Speeds",IF(RG56=0,,(IF(RG56<5,VLOOKUP(RG56,$W$276:$AA$279,5, FALSE),$AA$280)+IF(RL56<=$V$283,$AA$283,IF(AND(RL56>$V$283,RL56<=$V$284),$AA$284,IF(AND(RL56>$V$284,RL56<=$V$285),$AA$285,IF(AND(RL56>$V$285,RL56<=$V$286),$AA$286,$AA$287))))+IF(RQ56<=$V$293,HLOOKUP(RV56,$AA$292:$AD$297,2,FALSE),IF(AND(RQ56>$V$293,RQ56<=$V$294),HLOOKUP(RV56,$AA$292:$AD$297,3,FALSE),IF(AND(RQ56>$V$294,RQ56<=$V$295),HLOOKUP(RV56,$AA$292:$AD$297,4,FALSE),IF(AND(RQ56>$V$295,RQ56<=$V$296),HLOOKUP(RV56,$AA$292:$AD$297,5,FALSE),IF(RQ56>$V$296,HLOOKUP(RV56,$AA$292:$AD$297,6,FALSE),"")))))+IF(SD56=$W$300,$AA$300,$AA$301))/4)) -> Enter Major/Minor Street Speeds | AAY56: =IF(OR(LEN($P$21)=0,LEN($P$23)=0),"Enter Major/Minor Street Speeds",IF(SJ56=0,,(IF(SJ56<5,VLOOKUP(SJ56,$W$276:$AA$279,5, FALSE),$AA$280)+IF(SO56<=$V$283,$AA$283,IF(AND(SO56>$V$283,SO56<=$V$284),$AA$284,IF(AND(SO56>$V$284,SO56<=$V$285),$AA$285,IF(AND(SO56>$V$285,SO56<=$V$286),$AA$286,$AA$287))))+IF(ST56<=$V$293,HLOOKUP(SY56,$AA$292:$AD$297,2,FALSE),IF(AND(ST56>$V$293,ST56<=$V$294),HLOOKUP(SY56,$AA$292:$AD$297,3,FALSE),IF(AND(ST56>$V$294,ST56<=$V$295),HLOOKUP(SY56,$AA$292:$AD$297,4,FALSE),IF(AND(ST56>$V$295,ST56<=$V$296),HLOOKUP(SY56,$AA$292:$AD$297,5,FALSE),IF(ST56>$V$296,HLOOKUP(SY56,$AA$292:$AD$297,6,FALSE),"")))))+IF(TG56=$W$300,$AA$300,$AA$301))/4)) -> Enter Major/Minor Street Speeds | ABI56: =IF(OR(LEN($P$21)=0,LEN($P$23)=0),"Enter Major/Minor Street Speeds",IF(TM56=0,,(IF(TM56<5,VLOOKUP(TM56,$W$276:$AA$279,5, FALSE),$AA$280)+IF(TR56<=$V$283,$AA$283,IF(AND(TR56>$V$283,TR56<=$V$284),$AA$284,IF(AND(TR56>$V$284,TR56<=$V$285),$AA$285,IF(AND(TR56>$V$285,TR56<=$V$286),$AA$286,$AA$287))))+IF(TW56<=$V$293,HLOOKUP(UB56,$AA$292:$AD$297,2,FALSE),IF(AND(TW56>$V$293,TW56<=$V$294),HLOOKUP(UB56,$AA$292:$AD$297,3,FALSE),IF(AND(TW56>$V$294,TW56<=$V$295),HLOOKUP(UB56,$AA$292:$AD$297,4,FALSE),IF(AND(TW56>$V$295,TW56<=$V$296),HLOOKUP(UB56,$AA$292:$AD$297,5,FALSE),IF(TW56>$V$296,HLOOKUP(UB56,$AA$292:$AD$297,6,FALSE),"")))))+IF(UJ56=$W$300,$AA$300,$AA$301))/4)) -> Enter Major/Minor Street Speeds
T58: S | Z58: =UP58 -> Enter Major/Minor Street Speeds | AD58: No | AI58: Yes Crossing(s) with 3+ stages | AN58: =SUM('CGT S'!CP43:CR43) -> 1 | AS58: =Min_St_Spd_Lmt ->  | AX58: =NBR_Master -> 0 | BC58: Yield Controlled | BK58: Marked | BQ58: =SUM('CGT S'!CJ43:CO43) -> 1 | BV58: =Min_St_Spd_Lmt ->  | CA58: =SUM('CGT S'!CJ43:CO43)+MAX('CGT S'!CV37:CV42) -> 2 | CF58: Stop/Signal Controlled | CN58: Marked | CT58: =SUM('CGT S'!CI40:CI42) -> 1 | CY58: =Maj_St_Spd_Lmt ->  | DD58: =SUM(EBR_Master) -> 0 | DI58: Yield Controlled | DQ58: Marked | DW58: =SUM('CGT S'!CI37:CI39) -> 2 | EB58: =Maj_St_Spd_Lmt ->  | EG58: =EBT_Master -> 0 | EL58: Stop/Signal Controlled | ET58: Unmarked | EZ58: =MAX('CGT S'!CV34:CV36,'CGT S'!CJ43:CO43) -> 2 | FE58: =Maj_St_Spd_Lmt ->  | FJ58: =SUM(WBT_Master,NBL_Master) -> 0 | FO58: Free Flowing | FW58: Unmarked | GC58: =SUM('CGT S'!CV34:CV42) -> 3 | GH58: =Maj_St_Spd_Lmt ->  | GM58: =SUM(WBT_Master,WBL_Master) -> 0 | GR58: Free Flowing | GZ58: Unmarked | HF58: =MAX('CGT S'!CI37:CI39) -> 2 | HK58: =Maj_St_Spd_Lmt ->  | HP58: =SUM(EBT_Master) -> 0 | HU58: Stop/Signal Controlled | IC58: Unmarked | UP58: =IFERROR((((SUM(SQRT(UU58),SQRT(VE58),SQRT(VO58),SQRT(VY58),SQRT(WI58),SQRT(WS58),SQRT(XC58),SQRT(XM58),SQRT(XW58),SQRT(YG58),SQRT(YQ58),SQRT(ZA58),SQRT(ZK58),SQRT(ZU58),SQRT(AAE58),SQRT(AAO58),SQRT(AAY58),SQRT(ABI58))/COUNTIF(UU58:ABR59,">0"))^2)*(_xlfn.XLOOKUP(AD58,$W$311:$W$312,$AA$311:$AA$312,"lookup error",0,1))*(_xlfn.XLOOKUP(AI58,Multistage_Crossing,$AA$305:$AA$307,"lookup error",0,1))),"Enter Major/Minor Street Speeds") -> Enter Major/Minor Street Speeds | UU58: =IF(OR(LEN($P$21)=0,LEN($P$23)=0),"Enter Major/Minor Street Speeds",IF(AN58=0,,(IF(AN58<5,VLOOKUP(AN58,$W$276:$AA$279,5, FALSE),$AA$280)+IF(AS58<=$V$283,$AA$283,IF(AND(AS58>$V$283,AS58<=$V$284),$AA$284,IF(AND(AS58>$V$284,AS58<=$V$285),$AA$285,IF(AND(AS58>$V$285,AS58<=$V$286),$AA$286,$AA$287))))+IF(AX58<=$V$293,HLOOKUP(BC58,$AA$292:$AD$297,2,FALSE),IF(AND(AX58>$V$293,AX58<=$V$294),HLOOKUP(BC58,$AA$292:$AD$297,3,FALSE),IF(AND(AX58>$V$294,AX58<=$V$295),HLOOKUP(BC58,$AA$292:$AD$297,4,FALSE),IF(AND(AX58>$V$295,AX58<=$V$296),HLOOKUP(BC58,$AA$292:$AD$297,5,FALSE),IF(AX58>$V$296,HLOOKUP(BC58,$AA$292:$AD$297,6,FALSE),"")))))+IF(BK58=$W$300,$AA$300,$AA$301))/4)) -> Enter Major/Minor Street Speeds | VE58: =IF(OR(LEN($P$21)=0,LEN($P$23)=0),"Enter Major/Minor Street Speeds",IF(BQ58=0,,(IF(BQ58<5,VLOOKUP(BQ58,$W$276:$AA$279,5, FALSE),$AA$280)+IF(BV58<=$V$283,$AA$283,IF(AND(BV58>$V$283,BV58<=$V$284),$AA$284,IF(AND(BV58>$V$284,BV58<=$V$285),$AA$285,IF(AND(BV58>$V$285,BV58<=$V$286),$AA$286,$AA$287))))+IF(CA58<=$V$293,HLOOKUP(CF58,$AA$292:$AD$297,2,FALSE),IF(AND(CA58>$V$293,CA58<=$V$294),HLOOKUP(CF58,$AA$292:$AD$297,3,FALSE),IF(AND(CA58>$V$294,CA58<=$V$295),HLOOKUP(CF58,$AA$292:$AD$297,4,FALSE),IF(AND(CA58>$V$295,CA58<=$V$296),HLOOKUP(CF58,$AA$292:$AD$297,5,FALSE),IF(CA58>$V$296,HLOOKUP(CF58,$AA$292:$AD$297,6,FALSE),"")))))+IF(CN58=$W$300,$AA$300,$AA$301))/4)) -> Enter Major/Minor Street Speeds | VO58: =IF(OR(LEN($P$21)=0,LEN($P$23)=0),"Enter Major/Minor Street Speeds",IF(CT58=0,,(IF(CT58<5,VLOOKUP(CT58,$W$276:$AA$279,5, FALSE),$AA$280)+IF(CY58<=$V$283,$AA$283,IF(AND(CY58>$V$283,CY58<=$V$284),$AA$284,IF(AND(CY58>$V$284,CY58<=$V$285),$AA$285,IF(AND(CY58>$V$285,CY58<=$V$286),$AA$286,$AA$287))))+IF(DD58<=$V$293,HLOOKUP(DI58,$AA$292:$AD$297,2,FALSE),IF(AND(DD58>$V$293,DD58<=$V$294),HLOOKUP(DI58,$AA$292:$AD$297,3,FALSE),IF(AND(DD58>$V$294,DD58<=$V$295),HLOOKUP(DI58,$AA$292:$AD$297,4,FALSE),IF(AND(DD58>$V$295,DD58<=$V$296),HLOOKUP(DI58,$AA$292:$AD$297,5,FALSE),IF(DD58>$V$296,HLOOKUP(DI58,$AA$292:$AD$297,6,FALSE),"")))))+IF(DQ58=$W$300,$AA$300,$AA$301))/4)) -> Enter Major/Minor Street Speeds | VY58: =IF(OR(LEN($P$21)=0,LEN($P$23)=0),"Enter Major/Minor Street Speeds",IF(DW58=0,,(IF(DW58<5,VLOOKUP(DW58,$W$276:$AA$279,5, FALSE),$AA$280)+IF(EB58<=$V$283,$AA$283,IF(AND(EB58>$V$283,EB58<=$V$284),$AA$284,IF(AND(EB58>$V$284,EB58<=$V$285),$AA$285,IF(AND(EB58>$V$285,EB58<=$V$286),$AA$286,$AA$287))))+IF(EG58<=$V$293,HLOOKUP(EL58,$AA$292:$AD$297,2,FALSE),IF(AND(EG58>$V$293,EG58<=$V$294),HLOOKUP(EL58,$AA$292:$AD$297,3,FALSE),IF(AND(EG58>$V$294,EG58<=$V$295),HLOOKUP(EL58,$AA$292:$AD$297,4,FALSE),IF(AND(EG58>$V$295,EG58<=$V$296),HLOOKUP(EL58,$AA$292:$AD$297,5,FALSE),IF(EG58>$V$296,HLOOKUP(EL58,$AA$292:$AD$297,6,FALSE),"")))))+IF(ET58=$W$300,$AA$300,$AA$301))/4)) -> Enter Major/Minor Street Speeds | WI58: =IF(OR(LEN($P$21)=0,LEN($P$23)=0),"Enter Major/Minor Street Speeds",IF(EZ58=0,,(IF(EZ58<5,VLOOKUP(EZ58,$W$276:$AA$279,5, FALSE),$AA$280)+IF(FE58<=$V$283,$AA$283,IF(AND(FE58>$V$283,FE58<=$V$284),$AA$284,IF(AND(FE58>$V$284,FE58<=$V$285),$AA$285,IF(AND(FE58>$V$285,FE58<=$V$286),$AA$286,$AA$287))))+IF(FJ58<=$V$293,HLOOKUP(FO58,$AA$292:$AD$297,2,FALSE),IF(AND(FJ58>$V$293,FJ58<=$V$294),HLOOKUP(FO58,$AA$292:$AD$297,3,FALSE),IF(AND(FJ58>$V$294,FJ58<=$V$295),HLOOKUP(FO58,$AA$292:$AD$297,4,FALSE),IF(AND(FJ58>$V$295,FJ58<=$V$296),HLOOKUP(FO58,$AA$292:$AD$297,5,FALSE),IF(FJ58>$V$296,HLOOKUP(FO58,$AA$292:$AD$297,6,FALSE),"")))))+IF(FW58=$W$300,$AA$300,$AA$301))/4)) -> Enter Major/Minor Street Speeds | WS58: =IF(OR(LEN($P$21)=0,LEN($P$23)=0),"Enter Major/Minor Street Speeds",IF(GC58=0,,(IF(GC58<5,VLOOKUP(GC58,$W$276:$AA$279,5, FALSE),$AA$280)+IF(GH58<=$V$283,$AA$283,IF(AND(GH58>$V$283,GH58<=$V$284),$AA$284,IF(AND(GH58>$V$284,GH58<=$V$285),$AA$285,IF(AND(GH58>$V$285,GH58<=$V$286),$AA$286,$AA$287))))+IF(GM58<=$V$293,HLOOKUP(GR58,$AA$292:$AD$297,2,FALSE),IF(AND(GM58>$V$293,GM58<=$V$294),HLOOKUP(GR58,$AA$292:$AD$297,3,FALSE),IF(AND(GM58>$V$294,GM58<=$V$295),HLOOKUP(GR58,$AA$292:$AD$297,4,FALSE),IF(AND(GM58>$V$295,GM58<=$V$296),HLOOKUP(GR58,$AA$292:$AD$297,5,FALSE),IF(GM58>$V$296,HLOOKUP(GR58,$AA$292:$AD$297,6,FALSE),"")))))+IF(GZ58=$W$300,$AA$300,$AA$301))/4)) -> Enter Major/Minor Street Speeds | XC58: =IF(OR(LEN($P$21)=0,LEN($P$23)=0),"Enter Major/Minor Street Speeds",IF(HF58=0,,(IF(HF58<5,VLOOKUP(HF58,$W$276:$AA$279,5, FALSE),$AA$280)+IF(HK58<=$V$283,$AA$283,IF(AND(HK58>$V$283,HK58<=$V$284),$AA$284,IF(AND(HK58>$V$284,HK58<=$V$285),$AA$285,IF(AND(HK58>$V$285,HK58<=$V$286),$AA$286,$AA$287))))+IF(HP58<=$V$293,HLOOKUP(HU58,$AA$292:$AD$297,2,FALSE),IF(AND(HP58>$V$293,HP58<=$V$294),HLOOKUP(GR58,$AA$292:$AD$297,3,FALSE),IF(AND(HP58>$V$294,HP58<=$V$295),HLOOKUP(GR58,$AA$292:$AD$297,4,FALSE),IF(AND(HP58>$V$295,HP58<=$V$296),HLOOKUP(GR58,$AA$292:$AD$297,5,FALSE),IF(HP58>$V$296,HLOOKUP(GR58,$AA$292:$AD$297,6,FALSE),"")))))+IF(IC58=$W$300,$AA$300,$AA$301))/4)) -> Enter Major/Minor Street Speeds | XM58: =IF(OR(LEN($P$21)=0,LEN($P$23)=0),"Enter Major/Minor Street Speeds",IF(II58=0,,(IF(II58<5,VLOOKUP(II58,$W$276:$AA$279,5, FALSE),$AA$280)+IF(IN58<=$V$283,$AA$283,IF(AND(IN58>$V$283,IN58<=$V$284),$AA$284,IF(AND(IN58>$V$284,IN58<=$V$285),$AA$285,IF(AND(IN58>$V$285,IN58<=$V$286),$AA$286,$AA$287))))+IF(IS58<=$V$293,HLOOKUP(IX58,$AA$292:$AD$297,2,FALSE),IF(AND(IS58>$V$293,IS58<=$V$294),HLOOKUP(IX58,$AA$292:$AD$297,3,FALSE),IF(AND(IS58>$V$294,IS58<=$V$295),HLOOKUP(IX58,$AA$292:$AD$297,4,FALSE),IF(AND(IS58>$V$295,IS58<=$V$296),HLOOKUP(IX58,$AA$292:$AD$297,5,FALSE),IF(IS58>$V$296,HLOOKUP(IX58,$AA$292:$AD$297,6,FALSE),"")))))+IF(JF58=$W$300,$AA$300,$AA$301))/4)) -> Enter Major/Minor Street Speeds | XW58: =IF(OR(LEN($P$21)=0,LEN($P$23)=0),"Enter Major/Minor Street Speeds",IF(JL58=0,,(IF(JL58<5,VLOOKUP(JL58,$W$276:$AA$279,5, FALSE),$AA$280)+IF(JQ58<=$V$283,$AA$283,IF(AND(JQ58>$V$283,JQ58<=$V$284),$AA$284,IF(AND(JQ58>$V$284,JQ58<=$V$285),$AA$285,IF(AND(JQ58>$V$285,JQ58<=$V$286),$AA$286,$AA$287))))+IF(JV58<=$V$293,HLOOKUP(KA58,$AA$292:$AD$297,2,FALSE),IF(AND(JV58>$V$293,JV58<=$V$294),HLOOKUP(KA58,$AA$292:$AD$297,3,FALSE),IF(AND(JV58>$V$294,JV58<=$V$295),HLOOKUP(KA58,$AA$292:$AD$297,4,FALSE),IF(AND(JV58>$V$295,JV58<=$V$296),HLOOKUP(KA58,$AA$292:$AD$297,5,FALSE),IF(JV58>$V$296,HLOOKUP(KA58,$AA$292:$AD$297,6,FALSE),"")))))+IF(KI58=$W$300,$AA$300,$AA$301))/4)) -> Enter Major/Minor Street Speeds | YG58: =IF(OR(LEN($P$21)=0,LEN($P$23)=0),"Enter Major/Minor Street Speeds",IF(KO58=0,,(IF(KO58<5,VLOOKUP(KO58,$W$276:$AA$279,5, FALSE),$AA$280)+IF(KT58<=$V$283,$AA$283,IF(AND(KT58>$V$283,KT58<=$V$284),$AA$284,IF(AND(KT58>$V$284,KT58<=$V$285),$AA$285,IF(AND(KT58>$V$285,KT58<=$V$286),$AA$286,$AA$287))))+IF(KY58<=$V$293,HLOOKUP(LD58,$AA$292:$AD$297,2,FALSE),IF(AND(KY58>$V$293,KY58<=$V$294),HLOOKUP(LD58,$AA$292:$AD$297,3,FALSE),IF(AND(KY58>$V$294,KY58<=$V$295),HLOOKUP(LD58,$AA$292:$AD$297,4,FALSE),IF(AND(KY58>$V$295,KY58<=$V$296),HLOOKUP(LD58,$AA$292:$AD$297,5,FALSE),IF(KY58>$V$296,HLOOKUP(LD58,$AA$292:$AD$297,6,FALSE),"")))))+IF(LL58=$W$300,$AA$300,$AA$301))/4)) -> Enter Major/Minor Street Speeds | YQ58: =IF(OR(LEN($P$21)=0,LEN($P$23)=0),"Enter Major/Minor Street Speeds",IF(LR58=0,,(IF(LR58<5,VLOOKUP(LR58,$W$276:$AA$279,5, FALSE),$AA$280)+IF(LW58<=$V$283,$AA$283,IF(AND(LW58>$V$283,LW58<=$V$284),$AA$284,IF(AND(LW58>$V$284,LW58<=$V$285),$AA$285,IF(AND(LW58>$V$285,LW58<=$V$286),$AA$286,$AA$287))))+IF(MB58<=$V$293,HLOOKUP(MG58,$AA$292:$AD$297,2,FALSE),IF(AND(MB58>$V$293,MB58<=$V$294),HLOOKUP(MG58,$AA$292:$AD$297,3,FALSE),IF(AND(MB58>$V$294,MB58<=$V$295),HLOOKUP(MG58,$AA$292:$AD$297,4,FALSE),IF(AND(MB58>$V$295,MB58<=$V$296),HLOOKUP(MG58,$AA$292:$AD$297,5,FALSE),IF(MB58>$V$296,HLOOKUP(MG58,$AA$292:$AD$297,6,FALSE),"")))))+IF(MO58=$W$300,$AA$300,$AA$301))/4)) -> Enter Major/Minor Street Speeds | ZA58: =IF(OR(LEN($P$21)=0,LEN($P$23)=0),"Enter Major/Minor Street Speeds",IF(MU58=0,,(IF(MU58<5,VLOOKUP(MU58,$W$276:$AA$279,5, FALSE),$AA$280)+IF(MZ58<=$V$283,$AA$283,IF(AND(MZ58>$V$283,MZ58<=$V$284),$AA$284,IF(AND(MZ58>$V$284,MZ58<=$V$285),$AA$285,IF(AND(MZ58>$V$285,MZ58<=$V$286),$AA$286,$AA$287))))+IF(NE58<=$V$293,HLOOKUP(NJ58,$AA$292:$AD$297,2,FALSE),IF(AND(NE58>$V$293,NE58<=$V$294),HLOOKUP(NJ58,$AA$292:$AD$297,3,FALSE),IF(AND(NE58>$V$294,NE58<=$V$295),HLOOKUP(NJ58,$AA$292:$AD$297,4,FALSE),IF(AND(NE58>$V$295,NE58<=$V$296),HLOOKUP(NJ58,$AA$292:$AD$297,5,FALSE),IF(NE58>$V$296,HLOOKUP(NJ58,$AA$292:$AD$297,6,FALSE),"")))))+IF(NR58=$W$300,$AA$300,$AA$301))/4)) -> Enter Major/Minor Street Speeds | ZK58: =IF(OR(LEN($P$21)=0,LEN($P$23)=0),"Enter Major/Minor Street Speeds",IF(NX58=0,,(IF(NX58<5,VLOOKUP(NX58,$W$276:$AA$279,5, FALSE),$AA$280)+IF(OC58<=$V$283,$AA$283,IF(AND(OC58>$V$283,OC58<=$V$284),$AA$284,IF(AND(OC58>$V$284,OC58<=$V$285),$AA$285,IF(AND(OC58>$V$285,OC58<=$V$286),$AA$286,$AA$287))))+IF(OH58<=$V$293,HLOOKUP(OM58,$AA$292:$AD$297,2,FALSE),IF(AND(OH58>$V$293,OH58<=$V$294),HLOOKUP(OM58,$AA$292:$AD$297,3,FALSE),IF(AND(OH58>$V$294,OH58<=$V$295),HLOOKUP(OM58,$AA$292:$AD$297,4,FALSE),IF(AND(OH58>$V$295,OH58<=$V$296),HLOOKUP(OM58,$AA$292:$AD$297,5,FALSE),IF(OH58>$V$296,HLOOKUP(OM58,$AA$292:$AD$297,6,FALSE),"")))))+IF(OU58=$W$300,$AA$300,$AA$301))/4)) -> Enter Major/Minor Street Speeds | ZU58: =IF(OR(LEN($P$21)=0,LEN($P$23)=0),"Enter Major/Minor Street Speeds",IF(PA58=0,,(IF(PA58<5,VLOOKUP(PA58,$W$276:$AA$279,5, FALSE),$AA$280)+IF(PF58<=$V$283,$AA$283,IF(AND(PF58>$V$283,PF58<=$V$284),$AA$284,IF(AND(PF58>$V$284,PF58<=$V$285),$AA$285,IF(AND(PF58>$V$285,PF58<=$V$286),$AA$286,$AA$287))))+IF(PK58<=$V$293,HLOOKUP(PP58,$AA$292:$AD$297,2,FALSE),IF(AND(PK58>$V$293,PK58<=$V$294),HLOOKUP(PP58,$AA$292:$AD$297,3,FALSE),IF(AND(PK58>$V$294,PK58<=$V$295),HLOOKUP(PP58,$AA$292:$AD$297,4,FALSE),IF(AND(PK58>$V$295,PK58<=$V$296),HLOOKUP(PP58,$AA$292:$AD$297,5,FALSE),IF(PK58>$V$296,HLOOKUP(PP58,$AA$292:$AD$297,6,FALSE),"")))))+IF(PX58=$W$300,$AA$300,$AA$301))/4)) -> Enter Major/Minor Street Speeds | AAE58: =IF(OR(LEN($P$21)=0,LEN($P$23)=0),"Enter Major/Minor Street Speeds",IF(QD58=0,,(IF(QD58<5,VLOOKUP(QD58,$W$276:$AA$279,5, FALSE),$AA$280)+IF(QI58<=$V$283,$AA$283,IF(AND(QI58>$V$283,QI58<=$V$284),$AA$284,IF(AND(QI58>$V$284,QI58<=$V$285),$AA$285,IF(AND(QI58>$V$285,QI58<=$V$286),$AA$286,$AA$287))))+IF(QN58<=$V$293,HLOOKUP(QS58,$AA$292:$AD$297,2,FALSE),IF(AND(QN58>$V$293,QN58<=$V$294),HLOOKUP(QS58,$AA$292:$AD$297,3,FALSE),IF(AND(QN58>$V$294,QN58<=$V$295),HLOOKUP(QS58,$AA$292:$AD$297,4,FALSE),IF(AND(QN58>$V$295,QN58<=$V$296),HLOOKUP(QS58,$AA$292:$AD$297,5,FALSE),IF(QN58>$V$296,HLOOKUP(QS58,$AA$292:$AD$297,6,FALSE),"")))))+IF(RA58=$W$300,$AA$300,$AA$301))/4)) -> Enter Major/Minor Street Speeds | AAO58: =IF(OR(LEN($P$21)=0,LEN($P$23)=0),"Enter Major/Minor Street Speeds",IF(RG58=0,,(IF(RG58<5,VLOOKUP(RG58,$W$276:$AA$279,5, FALSE),$AA$280)+IF(RL58<=$V$283,$AA$283,IF(AND(RL58>$V$283,RL58<=$V$284),$AA$284,IF(AND(RL58>$V$284,RL58<=$V$285),$AA$285,IF(AND(RL58>$V$285,RL58<=$V$286),$AA$286,$AA$287))))+IF(RQ58<=$V$293,HLOOKUP(RV58,$AA$292:$AD$297,2,FALSE),IF(AND(RQ58>$V$293,RQ58<=$V$294),HLOOKUP(RV58,$AA$292:$AD$297,3,FALSE),IF(AND(RQ58>$V$294,RQ58<=$V$295),HLOOKUP(RV58,$AA$292:$AD$297,4,FALSE),IF(AND(RQ58>$V$295,RQ58<=$V$296),HLOOKUP(RV58,$AA$292:$AD$297,5,FALSE),IF(RQ58>$V$296,HLOOKUP(RV58,$AA$292:$AD$297,6,FALSE),"")))))+IF(SD58=$W$300,$AA$300,$AA$301))/4)) -> Enter Major/Minor Street Speeds | AAY58: =IF(OR(LEN($P$21)=0,LEN($P$23)=0),"Enter Major/Minor Street Speeds",IF(SJ58=0,,(IF(SJ58<5,VLOOKUP(SJ58,$W$276:$AA$279,5, FALSE),$AA$280)+IF(SO58<=$V$283,$AA$283,IF(AND(SO58>$V$283,SO58<=$V$284),$AA$284,IF(AND(SO58>$V$284,SO58<=$V$285),$AA$285,IF(AND(SO58>$V$285,SO58<=$V$286),$AA$286,$AA$287))))+IF(ST58<=$V$293,HLOOKUP(SY58,$AA$292:$AD$297,2,FALSE),IF(AND(ST58>$V$293,ST58<=$V$294),HLOOKUP(SY58,$AA$292:$AD$297,3,FALSE),IF(AND(ST58>$V$294,ST58<=$V$295),HLOOKUP(SY58,$AA$292:$AD$297,4,FALSE),IF(AND(ST58>$V$295,ST58<=$V$296),HLOOKUP(SY58,$AA$292:$AD$297,5,FALSE),IF(ST58>$V$296,HLOOKUP(SY58,$AA$292:$AD$297,6,FALSE),"")))))+IF(TG58=$W$300,$AA$300,$AA$301))/4)) -> Enter Major/Minor Street Speeds | ABI58: =IF(OR(LEN($P$21)=0,LEN($P$23)=0),"Enter Major/Minor Street Speeds",IF(TM58=0,,(IF(TM58<5,VLOOKUP(TM58,$W$276:$AA$279,5, FALSE),$AA$280)+IF(TR58<=$V$283,$AA$283,IF(AND(TR58>$V$283,TR58<=$V$284),$AA$284,IF(AND(TR58>$V$284,TR58<=$V$285),$AA$285,IF(AND(TR58>$V$285,TR58<=$V$286),$AA$286,$AA$287))))+IF(TW58<=$V$293,HLOOKUP(UB58,$AA$292:$AD$297,2,FALSE),IF(AND(TW58>$V$293,TW58<=$V$294),HLOOKUP(UB58,$AA$292:$AD$297,3,FALSE),IF(AND(TW58>$V$294,TW58<=$V$295),HLOOKUP(UB58,$AA$292:$AD$297,4,FALSE),IF(AND(TW58>$V$295,TW58<=$V$296),HLOOKUP(UB58,$AA$292:$AD$297,5,FALSE),IF(TW58>$V$296,HLOOKUP(UB58,$AA$292:$AD$297,6,FALSE),"")))))+IF(UJ58=$W$300,$AA$300,$AA$301))/4)) -> Enter Major/Minor Street Speeds
A60: Quadrant Roadway | T60: S-W | Z60: =UP60 -> Enter Major/Minor Street Speeds | AD60: No | AI60: Yes Crossing(s) with 2 stages | AN60: =SUM('QR S-W'!CX16:DC16) -> 3 | AS60: =Min_St_Spd_Lmt ->  | AX60: =SUM(SBT_Master,SBR_Master,SBU_Master,SBL_Master) -> 0 | BC60: Stop/Signal Controlled | BK60: Marked | BQ60: =MAX('QR S-W'!DD29:DF29,'QR S-W'!DJ17:DJ19,) -> 2 | BV60: =Min_St_Spd_Lmt ->  | CA60: =SUM(SBU_Master,NBT_Master,WBR_Master,EBL_Master) -> 0 | CF60: Stop/Signal Controlled | CN60: Marked | CT60: =SUM('QR S-W'!DJ17:DJ22) -> 3 | CY60: =Maj_St_Spd_Lmt ->  | DD60: =SUM(WBR_Master,WBT_Master,WBU_Master,WBL_Master) -> 0 | DI60: Stop/Signal Controlled | DQ60: Marked | DW60: =MAX('QR S-W'!CW23:CW25,'QR S-W'!DG29:DI29) -> 2 | EB60: =Maj_St_Spd_Lmt ->  | EG60: =SUM(WBU_Master,NBR_Master,EBT_Master,SBL_Master) -> 0 | EL60: Stop/Signal Controlled | ET60: Marked | EZ60: =SUM('QR S-W'!DD29:DI29) -> 3 | FE60: =Min_St_Spd_Lmt ->  | FJ60: =SUM(NBT_Master,NBR_Master,SBU_Master,WBU_Master,EBL_Master) -> 0 | FO60: Stop/Signal Controlled | FW60: Marked | GC60: =MAX('QR S-W'!DA16:DC16,'QR S-W'!CW26:CW28) -> 2 | GH60: =Min_St_Spd_Lmt ->  | GM60: =SUM(SBT_Master,NBU_Master,EBU_Master,SBL_Master) -> 0 | GR60: Stop/Signal Controlled | GZ60: Marked | HF60: =SUM('QR S-W'!CW23:CW28) -> 3 | HK60: =Maj_St_Spd_Lmt ->  | HP60: =SUM(EBT_Master,SBL_Master,EBU_Master,NBU_Master) -> 0 | HU60: Stop/Signal Controlled | IC60: Marked | II60: =MAX('QR S-W'!DJ20:DJ22,'QR S-W'!CX16:CZ16) -> 2 | IN60: =Maj_St_Spd_Lmt ->  | IS60: =SUM(WBT_Master,SBR_Master,SBU_Master,WBU_Master,WBL_Master) -> 0 | IX60: Stop/Signal Controlled | JF60: Marked | JL60: =SUM('QR S-W'!CX44:DC44) -> 3 | JQ60: =Min_St_Spd_Lmt ->  | JV60: =SUM(NBU_Master,EBU_Master,SBT_Master,SBL_Master) -> 0 | KA60: Stop/Signal Controlled | KI60: Unmarked | KO60: =MAX('QR S-W'!CW51:CW53,'QR S-W'!DD57:DF57) -> 2 | KT60: =Min_St_Spd_Lmt ->  | KY60: =SUM(EBL_Master,NBT_Master,WBU_Master,SBU_Master,NBR_Master) -> 0 | LD60: Free Flowing | LL60: Unmarked | LR60: =SUM('QR S-W'!DA57:DF57) -> 3 | LW60: =Min_St_Spd_Lmt ->  | MB60: =SUM(NBT_Master,NBL_Master,NBU_Master,NBR_Master) -> 0 | MG60: Stop/Signal Controlled | MO60: Marked | MU60: =MAX('QR S-W'!CW54:CW56,'QR S-W'!DA44:DC44) -> 2 | MZ60: =Min_St_Spd_Lmt ->  | NE60: =SUM(SBT_Master,EBR_Master,NBU_Master,WBL_Master) -> 0 | NJ60: Stop/Signal Controlled | NR60: Marked | NX60: =SUM('QR S-W'!CW51:CW56)+MAX('QR S-W'!CX44:CZ44,'QR S-W'!DA57:DC57) -> 3 | OC60: =Maj_St_Spd_Lmt ->  | OH60: =SUM(EBL_Master,EBR_Master,NBL_Master,NBU_Master,SBU_Master,WBU_Master,EBU_Master,WBL_Master,SBL_Master) -> 0 | OM60: Stop/Signal Controlled | OU60: Marked | PA60: =SUM('QR S-W'!CH17:CH22) -> 3 | PF60: =Maj_St_Spd_Lmt ->  | PK60: =SUM(WBU_Master,SBU_Master,WBT_Master,WBL_Master,SBR_Master) -> 0 | PP60: Stop/Signal Controlled | PX60: Marked | QD60: =MAX('QR S-W'!CE29:CG29,'QR S-W'!BU23:BU25) -> 2 | QI60: =Maj_St_Spd_Lmt ->  | QN60: =SUM(EBT_Master,EBU_Master,NBU_Master,SBL_Master) -> 0 | QS60: Stop/Signal Controlled | RA60: Marked | RG60: =SUM('QR S-W'!CB29:CG29)+MAX('QR S-W'!BU26:BU28,'QR S-W'!CH20:CH22) -> 3 | RL60: =Min_St_Spd_Lmt ->  | RQ60: =SUM(NBU_Master,SBU_Master,EBU_Master,WBU_Master,NBL_Master,WBL_Master,EBR_Master,EBL_Master,SBL_Master) -> 0 | RV60: Stop/Signal Controlled | SD60: Marked | SJ60: =SUM('QR S-W'!BU23:BU28) -> 3 | SO60: =Maj_St_Spd_Lmt ->  | ST60: =SUM(EBT_Master,EBR_Master,EBL_Master,EBU_Master) -> 0 | SY60: Stop/Signal Controlled | TG60: Unmarked | TM60: =MAX('QR S-W'!CH17:CH19,'QR S-W'!CB29:CD29) -> 2 | TR60: =Maj_St_Spd_Lmt ->  | TW60: =SUM(EBU_Master,WBT_Master,NBL_Master,SBR_Master) -> 0 | UB60: Free Flowing | UJ60: Unmarked | UP60: =IFERROR((((SUM(SQRT(UU60),SQRT(VE60),SQRT(VO60),SQRT(VY60),SQRT(WI60),SQRT(WS60),SQRT(XC60),SQRT(XM60),SQRT(XW60),SQRT(YG60),SQRT(YQ60),SQRT(ZA60),SQRT(ZK60),SQRT(ZU60),SQRT(AAE60),SQRT(AAO60),SQRT(AAY60),SQRT(ABI60))/COUNTIF(UU60:ABR61,">0"))^2)*(_xlfn.XLOOKUP(AD60,$W$311:$W$312,$AA$311:$AA$312,"lookup error",0,1))*(_xlfn.XLOOKUP(AI60,Multistage_Crossing,$AA$305:$AA$307,"lookup error",0,1))),"Enter Major/Minor Street Speeds") -> Enter Major/Minor Street Speeds | UU60: =IF(OR(LEN($P$21)=0,LEN($P$23)=0),"Enter Major/Minor Street Speeds",IF(AN60=0,,(IF(AN60<5,VLOOKUP(AN60,$W$276:$AA$279,5, FALSE),$AA$280)+IF(AS60<=$V$283,$AA$283,IF(AND(AS60>$V$283,AS60<=$V$284),$AA$284,IF(AND(AS60>$V$284,AS60<=$V$285),$AA$285,IF(AND(AS60>$V$285,AS60<=$V$286),$AA$286,$AA$287))))+IF(AX60<=$V$293,HLOOKUP(BC60,$AA$292:$AD$297,2,FALSE),IF(AND(AX60>$V$293,AX60<=$V$294),HLOOKUP(BC60,$AA$292:$AD$297,3,FALSE),IF(AND(AX60>$V$294,AX60<=$V$295),HLOOKUP(BC60,$AA$292:$AD$297,4,FALSE),IF(AND(AX60>$V$295,AX60<=$V$296),HLOOKUP(BC60,$AA$292:$AD$297,5,FALSE),IF(AX60>$V$296,HLOOKUP(BC60,$AA$292:$AD$297,6,FALSE),"")))))+IF(BK60=$W$300,$AA$300,$AA$301))/4)) -> Enter Major/Minor Street Speeds | VE60: =IF(OR(LEN($P$21)=0,LEN($P$23)=0),"Enter Major/Minor Street Speeds",IF(BQ60=0,,(IF(BQ60<5,VLOOKUP(BQ60,$W$276:$AA$279,5, FALSE),$AA$280)+IF(BV60<=$V$283,$AA$283,IF(AND(BV60>$V$283,BV60<=$V$284),$AA$284,IF(AND(BV60>$V$284,BV60<=$V$285),$AA$285,IF(AND(BV60>$V$285,BV60<=$V$286),$AA$286,$AA$287))))+IF(CA60<=$V$293,HLOOKUP(CF60,$AA$292:$AD$297,2,FALSE),IF(AND(CA60>$V$293,CA60<=$V$294),HLOOKUP(CF60,$AA$292:$AD$297,3,FALSE),IF(AND(CA60>$V$294,CA60<=$V$295),HLOOKUP(CF60,$AA$292:$AD$297,4,FALSE),IF(AND(CA60>$V$295,CA60<=$V$296),HLOOKUP(CF60,$AA$292:$AD$297,5,FALSE),IF(CA60>$V$296,HLOOKUP(CF60,$AA$292:$AD$297,6,FALSE),"")))))+IF(CN60=$W$300,$AA$300,$AA$301))/4)) -> Enter Major/Minor Street Speeds | VO60: =IF(OR(LEN($P$21)=0,LEN($P$23)=0),"Enter Major/Minor Street Speeds",IF(CT60=0,,(IF(CT60<5,VLOOKUP(CT60,$W$276:$AA$279,5, FALSE),$AA$280)+IF(CY60<=$V$283,$AA$283,IF(AND(CY60>$V$283,CY60<=$V$284),$AA$284,IF(AND(CY60>$V$284,CY60<=$V$285),$AA$285,IF(AND(CY60>$V$285,CY60<=$V$286),$AA$286,$AA$287))))+IF(DD60<=$V$293,HLOOKUP(DI60,$AA$292:$AD$297,2,FALSE),IF(AND(DD60>$V$293,DD60<=$V$294),HLOOKUP(DI60,$AA$292:$AD$297,3,FALSE),IF(AND(DD60>$V$294,DD60<=$V$295),HLOOKUP(DI60,$AA$292:$AD$297,4,FALSE),IF(AND(DD60>$V$295,DD60<=$V$296),HLOOKUP(DI60,$AA$292:$AD$297,5,FALSE),IF(DD60>$V$296,HLOOKUP(DI60,$AA$292:$AD$297,6,FALSE),"")))))+IF(DQ60=$W$300,$AA$300,$AA$301))/4)) -> Enter Major/Minor Street Speeds | VY60: =IF(OR(LEN($P$21)=0,LEN($P$23)=0),"Enter Major/Minor Street Speeds",IF(DW60=0,,(IF(DW60<5,VLOOKUP(DW60,$W$276:$AA$279,5, FALSE),$AA$280)+IF(EB60<=$V$283,$AA$283,IF(AND(EB60>$V$283,EB60<=$V$284),$AA$284,IF(AND(EB60>$V$284,EB60<=$V$285),$AA$285,IF(AND(EB60>$V$285,EB60<=$V$286),$AA$286,$AA$287))))+IF(EG60<=$V$293,HLOOKUP(EL60,$AA$292:$AD$297,2,FALSE),IF(AND(EG60>$V$293,EG60<=$V$294),HLOOKUP(EL60,$AA$292:$AD$297,3,FALSE),IF(AND(EG60>$V$294,EG60<=$V$295),HLOOKUP(EL60,$AA$292:$AD$297,4,FALSE),IF(AND(EG60>$V$295,EG60<=$V$296),HLOOKUP(EL60,$AA$292:$AD$297,5,FALSE),IF(EG60>$V$296,HLOOKUP(EL60,$AA$292:$AD$297,6,FALSE),"")))))+IF(ET60=$W$300,$AA$300,$AA$301))/4)) -> Enter Major/Minor Street Speeds | WI60: =IF(OR(LEN($P$21)=0,LEN($P$23)=0),"Enter Major/Minor Street Speeds",IF(EZ60=0,,(IF(EZ60<5,VLOOKUP(EZ60,$W$276:$AA$279,5, FALSE),$AA$280)+IF(FE60<=$V$283,$AA$283,IF(AND(FE60>$V$283,FE60<=$V$284),$AA$284,IF(AND(FE60>$V$284,FE60<=$V$285),$AA$285,IF(AND(FE60>$V$285,FE60<=$V$286),$AA$286,$AA$287))))+IF(FJ60<=$V$293,HLOOKUP(FO60,$AA$292:$AD$297,2,FALSE),IF(AND(FJ60>$V$293,FJ60<=$V$294),HLOOKUP(FO60,$AA$292:$AD$297,3,FALSE),IF(AND(FJ60>$V$294,FJ60<=$V$295),HLOOKUP(FO60,$AA$292:$AD$297,4,FALSE),IF(AND(FJ60>$V$295,FJ60<=$V$296),HLOOKUP(FO60,$AA$292:$AD$297,5,FALSE),IF(FJ60>$V$296,HLOOKUP(FO60,$AA$292:$AD$297,6,FALSE),"")))))+IF(FW60=$W$300,$AA$300,$AA$301))/4)) -> Enter Major/Minor Street Speeds | WS60: =IF(OR(LEN($P$21)=0,LEN($P$23)=0),"Enter Major/Minor Street Speeds",IF(GC60=0,,(IF(GC60<5,VLOOKUP(GC60,$W$276:$AA$279,5, FALSE),$AA$280)+IF(GH60<=$V$283,$AA$283,IF(AND(GH60>$V$283,GH60<=$V$284),$AA$284,IF(AND(GH60>$V$284,GH60<=$V$285),$AA$285,IF(AND(GH60>$V$285,GH60<=$V$286),$AA$286,$AA$287))))+IF(GM60<=$V$293,HLOOKUP(GR60,$AA$292:$AD$297,2,FALSE),IF(AND(GM60>$V$293,GM60<=$V$294),HLOOKUP(GR60,$AA$292:$AD$297,3,FALSE),IF(AND(GM60>$V$294,GM60<=$V$295),HLOOKUP(GR60,$AA$292:$AD$297,4,FALSE),IF(AND(GM60>$V$295,GM60<=$V$296),HLOOKUP(GR60,$AA$292:$AD$297,5,FALSE),IF(GM60>$V$296,HLOOKUP(GR60,$AA$292:$AD$297,6,FALSE),"")))))+IF(GZ60=$W$300,$AA$300,$AA$301))/4)) -> Enter Major/Minor Street Speeds | XC60: =IF(OR(LEN($P$21)=0,LEN($P$23)=0),"Enter Major/Minor Street Speeds",IF(HF60=0,,(IF(HF60<5,VLOOKUP(HF60,$W$276:$AA$279,5, FALSE),$AA$280)+IF(HK60<=$V$283,$AA$283,IF(AND(HK60>$V$283,HK60<=$V$284),$AA$284,IF(AND(HK60>$V$284,HK60<=$V$285),$AA$285,IF(AND(HK60>$V$285,HK60<=$V$286),$AA$286,$AA$287))))+IF(HP60<=$V$293,HLOOKUP(HU60,$AA$292:$AD$297,2,FALSE),IF(AND(HP60>$V$293,HP60<=$V$294),HLOOKUP(GR60,$AA$292:$AD$297,3,FALSE),IF(AND(HP60>$V$294,HP60<=$V$295),HLOOKUP(GR60,$AA$292:$AD$297,4,FALSE),IF(AND(HP60>$V$295,HP60<=$V$296),HLOOKUP(GR60,$AA$292:$AD$297,5,FALSE),IF(HP60>$V$296,HLOOKUP(GR60,$AA$292:$AD$297,6,FALSE),"")))))+IF(IC60=$W$300,$AA$300,$AA$301))/4)) -> Enter Major/Minor Street Speeds | XM60: =IF(OR(LEN($P$21)=0,LEN($P$23)=0),"Enter Major/Minor Street Speeds",IF(II60=0,,(IF(II60<5,VLOOKUP(II60,$W$276:$AA$279,5, FALSE),$AA$280)+IF(IN60<=$V$283,$AA$283,IF(AND(IN60>$V$283,IN60<=$V$284),$AA$284,IF(AND(IN60>$V$284,IN60<=$V$285),$AA$285,IF(AND(IN60>$V$285,IN60<=$V$286),$AA$286,$AA$287))))+IF(IS60<=$V$293,HLOOKUP(IX60,$AA$292:$AD$297,2,FALSE),IF(AND(IS60>$V$293,IS60<=$V$294),HLOOKUP(IX60,$AA$292:$AD$297,3,FALSE),IF(AND(IS60>$V$294,IS60<=$V$295),HLOOKUP(IX60,$AA$292:$AD$297,4,FALSE),IF(AND(IS60>$V$295,IS60<=$V$296),HLOOKUP(IX60,$AA$292:$AD$297,5,FALSE),IF(IS60>$V$296,HLOOKUP(IX60,$AA$292:$AD$297,6,FALSE),"")))))+IF(JF60=$W$300,$AA$300,$AA$301))/4)) -> Enter Major/Minor Street Speeds | XW60: =IF(OR(LEN($P$21)=0,LEN($P$23)=0),"Enter Major/Minor Street Speeds",IF(JL60=0,,(IF(JL60<5,VLOOKUP(JL60,$W$276:$AA$279,5, FALSE),$AA$280)+IF(JQ60<=$V$283,$AA$283,IF(AND(JQ60>$V$283,JQ60<=$V$284),$AA$284,IF(AND(JQ60>$V$284,JQ60<=$V$285),$AA$285,IF(AND(JQ60>$V$285,JQ60<=$V$286),$AA$286,$AA$287))))+IF(JV60<=$V$293,HLOOKUP(KA60,$AA$292:$AD$297,2,FALSE),IF(AND(JV60>$V$293,JV60<=$V$294),HLOOKUP(KA60,$AA$292:$AD$297,3,FALSE),IF(AND(JV60>$V$294,JV60<=$V$295),HLOOKUP(KA60,$AA$292:$AD$297,4,FALSE),IF(AND(JV60>$V$295,JV60<=$V$296),HLOOKUP(KA60,$AA$292:$AD$297,5,FALSE),IF(JV60>$V$296,HLOOKUP(KA60,$AA$292:$AD$297,6,FALSE),"")))))+IF(KI60=$W$300,$AA$300,$AA$301))/4)) -> Enter Major/Minor Street Speeds | YG60: =IF(OR(LEN($P$21)=0,LEN($P$23)=0),"Enter Major/Minor Street Speeds",IF(KO60=0,,(IF(KO60<5,VLOOKUP(KO60,$W$276:$AA$279,5, FALSE),$AA$280)+IF(KT60<=$V$283,$AA$283,IF(AND(KT60>$V$283,KT60<=$V$284),$AA$284,IF(AND(KT60>$V$284,KT60<=$V$285),$AA$285,IF(AND(KT60>$V$285,KT60<=$V$286),$AA$286,$AA$287))))+IF(KY60<=$V$293,HLOOKUP(LD60,$AA$292:$AD$297,2,FALSE),IF(AND(KY60>$V$293,KY60<=$V$294),HLOOKUP(LD60,$AA$292:$AD$297,3,FALSE),IF(AND(KY60>$V$294,KY60<=$V$295),HLOOKUP(LD60,$AA$292:$AD$297,4,FALSE),IF(AND(KY60>$V$295,KY60<=$V$296),HLOOKUP(LD60,$AA$292:$AD$297,5,FALSE),IF(KY60>$V$296,HLOOKUP(LD60,$AA$292:$AD$297,6,FALSE),"")))))+IF(LL60=$W$300,$AA$300,$AA$301))/4)) -> Enter Major/Minor Street Speeds | YQ60: =IF(OR(LEN($P$21)=0,LEN($P$23)=0),"Enter Major/Minor Street Speeds",IF(LR60=0,,(IF(LR60<5,VLOOKUP(LR60,$W$276:$AA$279,5, FALSE),$AA$280)+IF(LW60<=$V$283,$AA$283,IF(AND(LW60>$V$283,LW60<=$V$284),$AA$284,IF(AND(LW60>$V$284,LW60<=$V$285),$AA$285,IF(AND(LW60>$V$285,LW60<=$V$286),$AA$286,$AA$287))))+IF(MB60<=$V$293,HLOOKUP(MG60,$AA$292:$AD$297,2,FALSE),IF(AND(MB60>$V$293,MB60<=$V$294),HLOOKUP(MG60,$AA$292:$AD$297,3,FALSE),IF(AND(MB60>$V$294,MB60<=$V$295),HLOOKUP(MG60,$AA$292:$AD$297,4,FALSE),IF(AND(MB60>$V$295,MB60<=$V$296),HLOOKUP(MG60,$AA$292:$AD$297,5,FALSE),IF(MB60>$V$296,HLOOKUP(MG60,$AA$292:$AD$297,6,FALSE),"")))))+IF(MO60=$W$300,$AA$300,$AA$301))/4)) -> Enter Major/Minor Street Speeds | ZA60: =IF(OR(LEN($P$21)=0,LEN($P$23)=0),"Enter Major/Minor Street Speeds",IF(MU60=0,,(IF(MU60<5,VLOOKUP(MU60,$W$276:$AA$279,5, FALSE),$AA$280)+IF(MZ60<=$V$283,$AA$283,IF(AND(MZ60>$V$283,MZ60<=$V$284),$AA$284,IF(AND(MZ60>$V$284,MZ60<=$V$285),$AA$285,IF(AND(MZ60>$V$285,MZ60<=$V$286),$AA$286,$AA$287))))+IF(NE60<=$V$293,HLOOKUP(NJ60,$AA$292:$AD$297,2,FALSE),IF(AND(NE60>$V$293,NE60<=$V$294),HLOOKUP(NJ60,$AA$292:$AD$297,3,FALSE),IF(AND(NE60>$V$294,NE60<=$V$295),HLOOKUP(NJ60,$AA$292:$AD$297,4,FALSE),IF(AND(NE60>$V$295,NE60<=$V$296),HLOOKUP(NJ60,$AA$292:$AD$297,5,FALSE),IF(NE60>$V$296,HLOOKUP(NJ60,$AA$292:$AD$297,6,FALSE),"")))))+IF(NR60=$W$300,$AA$300,$AA$301))/4)) -> Enter Major/Minor Street Speeds | ZK60: =IF(OR(LEN($P$21)=0,LEN($P$23)=0),"Enter Major/Minor Street Speeds",IF(NX60=0,,(IF(NX60<5,VLOOKUP(NX60,$W$276:$AA$279,5, FALSE),$AA$280)+IF(OC60<=$V$283,$AA$283,IF(AND(OC60>$V$283,OC60<=$V$284),$AA$284,IF(AND(OC60>$V$284,OC60<=$V$285),$AA$285,IF(AND(OC60>$V$285,OC60<=$V$286),$AA$286,$AA$287))))+IF(OH60<=$V$293,HLOOKUP(OM60,$AA$292:$AD$297,2,FALSE),IF(AND(OH60>$V$293,OH60<=$V$294),HLOOKUP(OM60,$AA$292:$AD$297,3,FALSE),IF(AND(OH60>$V$294,OH60<=$V$295),HLOOKUP(OM60,$AA$292:$AD$297,4,FALSE),IF(AND(OH60>$V$295,OH60<=$V$296),HLOOKUP(OM60,$AA$292:$AD$297,5,FALSE),IF(OH60>$V$296,HLOOKUP(OM60,$AA$292:$AD$297,6,FALSE),"")))))+IF(OU60=$W$300,$AA$300,$AA$301))/4)) -> Enter Major/Minor Street Speeds | ZU60: =IF(OR(LEN($P$21)=0,LEN($P$23)=0),"Enter Major/Minor Street Speeds",IF(PA60=0,,(IF(PA60<5,VLOOKUP(PA60,$W$276:$AA$279,5, FALSE),$AA$280)+IF(PF60<=$V$283,$AA$283,IF(AND(PF60>$V$283,PF60<=$V$284),$AA$284,IF(AND(PF60>$V$284,PF60<=$V$285),$AA$285,IF(AND(PF60>$V$285,PF60<=$V$286),$AA$286,$AA$287))))+IF(PK60<=$V$293,HLOOKUP(PP60,$AA$292:$AD$297,2,FALSE),IF(AND(PK60>$V$293,PK60<=$V$294),HLOOKUP(PP60,$AA$292:$AD$297,3,FALSE),IF(AND(PK60>$V$294,PK60<=$V$295),HLOOKUP(PP60,$AA$292:$AD$297,4,FALSE),IF(AND(PK60>$V$295,PK60<=$V$296),HLOOKUP(PP60,$AA$292:$AD$297,5,FALSE),IF(PK60>$V$296,HLOOKUP(PP60,$AA$292:$AD$297,6,FALSE),"")))))+IF(PX60=$W$300,$AA$300,$AA$301))/4)) -> Enter Major/Minor Street Speeds | AAE60: =IF(OR(LEN($P$21)=0,LEN($P$23)=0),"Enter Major/Minor Street Speeds",IF(QD60=0,,(IF(QD60<5,VLOOKUP(QD60,$W$276:$AA$279,5, FALSE),$AA$280)+IF(QI60<=$V$283,$AA$283,IF(AND(QI60>$V$283,QI60<=$V$284),$AA$284,IF(AND(QI60>$V$284,QI60<=$V$285),$AA$285,IF(AND(QI60>$V$285,QI60<=$V$286),$AA$286,$AA$287))))+IF(QN60<=$V$293,HLOOKUP(QS60,$AA$292:$AD$297,2,FALSE),IF(AND(QN60>$V$293,QN60<=$V$294),HLOOKUP(QS60,$AA$292:$AD$297,3,FALSE),IF(AND(QN60>$V$294,QN60<=$V$295),HLOOKUP(QS60,$AA$292:$AD$297,4,FALSE),IF(AND(QN60>$V$295,QN60<=$V$296),HLOOKUP(QS60,$AA$292:$AD$297,5,FALSE),IF(QN60>$V$296,HLOOKUP(QS60,$AA$292:$AD$297,6,FALSE),"")))))+IF(RA60=$W$300,$AA$300,$AA$301))/4)) -> Enter Major/Minor Street Speeds | AAO60: =IF(OR(LEN($P$21)=0,LEN($P$23)=0),"Enter Major/Minor Street Speeds",IF(RG60=0,,(IF(RG60<5,VLOOKUP(RG60,$W$276:$AA$279,5, FALSE),$AA$280)+IF(RL60<=$V$283,$AA$283,IF(AND(RL60>$V$283,RL60<=$V$284),$AA$284,IF(AND(RL60>$V$284,RL60<=$V$285),$AA$285,IF(AND(RL60>$V$285,RL60<=$V$286),$AA$286,$AA$287))))+IF(RQ60<=$V$293,HLOOKUP(RV60,$AA$292:$AD$297,2,FALSE),IF(AND(RQ60>$V$293,RQ60<=$V$294),HLOOKUP(RV60,$AA$292:$AD$297,3,FALSE),IF(AND(RQ60>$V$294,RQ60<=$V$295),HLOOKUP(RV60,$AA$292:$AD$297,4,FALSE),IF(AND(RQ60>$V$295,RQ60<=$V$296),HLOOKUP(RV60,$AA$292:$AD$297,5,FALSE),IF(RQ60>$V$296,HLOOKUP(RV60,$AA$292:$AD$297,6,FALSE),"")))))+IF(SD60=$W$300,$AA$300,$AA$301))/4)) -> Enter Major/Minor Street Speeds | AAY60: =IF(OR(LEN($P$21)=0,LEN($P$23)=0),"Enter Major/Minor Street Speeds",IF(SJ60=0,,(IF(SJ60<5,VLOOKUP(SJ60,$W$276:$AA$279,5, FALSE),$AA$280)+IF(SO60<=$V$283,$AA$283,IF(AND(SO60>$V$283,SO60<=$V$284),$AA$284,IF(AND(SO60>$V$284,SO60<=$V$285),$AA$285,IF(AND(SO60>$V$285,SO60<=$V$286),$AA$286,$AA$287))))+IF(ST60<=$V$293,HLOOKUP(SY60,$AA$292:$AD$297,2,FALSE),IF(AND(ST60>$V$293,ST60<=$V$294),HLOOKUP(SY60,$AA$292:$AD$297,3,FALSE),IF(AND(ST60>$V$294,ST60<=$V$295),HLOOKUP(SY60,$AA$292:$AD$297,4,FALSE),IF(AND(ST60>$V$295,ST60<=$V$296),HLOOKUP(SY60,$AA$292:$AD$297,5,FALSE),IF(ST60>$V$296,HLOOKUP(SY60,$AA$292:$AD$297,6,FALSE),"")))))+IF(TG60=$W$300,$AA$300,$AA$301))/4)) -> Enter Major/Minor Street Speeds | ABI60: =IF(OR(LEN($P$21)=0,LEN($P$23)=0),"Enter Major/Minor Street Speeds",IF(TM60=0,,(IF(TM60<5,VLOOKUP(TM60,$W$276:$AA$279,5, FALSE),$AA$280)+IF(TR60<=$V$283,$AA$283,IF(AND(TR60>$V$283,TR60<=$V$284),$AA$284,IF(AND(TR60>$V$284,TR60<=$V$285),$AA$285,IF(AND(TR60>$V$285,TR60<=$V$286),$AA$286,$AA$287))))+IF(TW60<=$V$293,HLOOKUP(UB60,$AA$292:$AD$297,2,FALSE),IF(AND(TW60>$V$293,TW60<=$V$294),HLOOKUP(UB60,$AA$292:$AD$297,3,FALSE),IF(AND(TW60>$V$294,TW60<=$V$295),HLOOKUP(UB60,$AA$292:$AD$297,4,FALSE),IF(AND(TW60>$V$295,TW60<=$V$296),HLOOKUP(UB60,$AA$292:$AD$297,5,FALSE),IF(TW60>$V$296,HLOOKUP(UB60,$AA$292:$AD$297,6,FALSE),"")))))+IF(UJ60=$W$300,$AA$300,$AA$301))/4)) -> Enter Major/Minor Street Speeds
T62: N-E | Z62: =UP62 -> Enter Major/Minor Street Speeds | AD62: No | AI62: Yes Crossing(s) with 2 stages | AN62: =SUM('QR N-E'!CB60:CG60) -> 3 | AS62: =Min_St_Spd_Lmt ->  | AX62: =SUM(NBT_Master,NBR_Master,NBL_Master,NBU_Master) -> 0 | BC62: Stop/Signal Controlled | BK62: Marked | BQ62: =MAX('QR N-E'!BY47:CA47,'QR N-E'!BU57:BU59) -> 2 | BV62: =Min_St_Spd_Lmt ->  | CA62: =SUM(EBR_Master,WBL_Master,SBT_Master,NBU_Master) -> 0 | CF62: Stop/Signal Controlled | CN62: Marked | CT62: =SUM('QR N-E'!BU54:BU59) -> 3 | CY62: =Maj_St_Spd_Lmt ->  | DD62: =SUM(EBL_Master,EBT_Master,EBR_Master,EBU_Master) -> 0 | DI62: Stop/Signal Controlled | DQ62: Marked | DW62: =MAX('QR N-E'!BV47:BX47,'QR N-E'!CH51:CH53) -> 2 | EB62: =Maj_St_Spd_Lmt ->  | EG62: =SUM(NBL_Master,WBT_Master,SBR_Master,EBU_Master) -> 0 | EL62: Stop/Signal Controlled | ET62: Marked | EZ62: =SUM('QR N-E'!BV47:CA47) -> 3 | FE62: =Min_St_Spd_Lmt ->  | FJ62: =SUM(SBT_Master,SBR_Master,WBL_Master,NBU_Master,EBU_Master) -> 0 | FO62: Stop/Signal Controlled | FW62: Marked | GC62: =MAX('QR N-E'!CB60:CD60,'QR N-E'!CH48:CH50) -> 2 | GH62: =Min_St_Spd_Lmt ->  | GM62: =SUM(NBT_Master,NBL_Master,SBU_Master,WBU_Master) -> 0 | GR62: Stop/Signal Controlled | GZ62: Marked | HF62: =SUM('QR N-E'!CH48:CH53) -> 3 | HK62: =Maj_St_Spd_Lmt ->  | HP62: =SUM(NBL_Master,WBT_Master,WBU_Master,SBU_Master) -> 0 | HU62: Stop/Signal Controlled | IC62: Marked | II62: =MAX('QR N-E'!BU54:BU56,'QR N-E'!CE60:CG60) -> 2 | IN62: =Maj_St_Spd_Lmt ->  | IS62: =SUM(EBL_Master,EBT_Master,NBR_Master,NBU_Master,EBU_Master) -> 0 | IX62: Stop/Signal Controlled | JF62: Marked | JL62: =SUM('QR N-E'!CB32:CG32) -> 3 | JQ62: =Min_St_Spd_Lmt ->  | JV62: =SUM(NBT_Master,NBL_Master,WBU_Master,SBU_Master) -> 0 | KA62: Stop/Signal Controlled | KI62: Unmarked | KO62: =MAX('QR N-E'!BY19:CA19,'QR N-E'!CH29:CH31) -> 2 | KT62: =Min_St_Spd_Lmt ->  | KY62: =SUM(SBT_Master,SBR_Master,WBL_Master,NBU_Master,EBU_Master) -> 0 | LD62: Free Flowing | LL62: Unmarked | LR62: =SUM('QR N-E'!BY19:CD19) -> 3 | LW62: =Min_St_Spd_Lmt ->  | MB62: =SUM(SBT_Master,SBR_Master,SBL_Master,SBU_Master) -> 0 | MG62: Stop/Signal Controlled | MO62: Marked | MU62: =MAX('QR N-E'!CH26:CH28,'QR N-E'!CB32:CD32) -> 2 | MZ62: =Min_St_Spd_Lmt ->  | NE62: =SUM(NBT_Master,WBR_Master,EBL_Master,SBU_Master) -> 0 | NJ62: Stop/Signal Controlled | NR62: Marked | NX62: =SUM('QR N-E'!CH26:CH31)+MAX('QR N-E'!CE32:CG32,'QR N-E'!CB19:CD19) -> 3 | OC62: =Maj_St_Spd_Lmt ->  | OH62: =SUM(WBR_Master,EBL_Master,NBU_Master,SBU_Master,EBU_Master,WBU_Master,SBL_Master,NBL_Master,WBL_Master) -> 0 | OM62: Stop/Signal Controlled | OU62: Marked | PA62: =SUM('QR N-E'!CW54:CW59) -> 3 | PF62: =Maj_St_Spd_Lmt ->  | PK62: =SUM(NBU_Master,EBU_Master,EBL_Master,EBT_Master,NBR_Master) -> 0 | PP62: Stop/Signal Controlled | PX62: Marked | QD62: =MAX('QR N-E'!DJ51:DJ53,'QR N-E'!CX47:CZ47) -> 2 | QI62: =Maj_St_Spd_Lmt ->  | QN62: =SUM(NBL_Master,WBT_Master,WBU_Master,SBU_Master) -> 0 | QS62: Stop/Signal Controlled | RA62: Marked | RG62: =SUM('QR N-E'!CX47:DC47)+MAX('QR N-E'!CW54:CW56,'QR N-E'!DJ48:DJ50) -> 3 | RL62: =Min_St_Spd_Lmt ->  | RQ62: =SUM(SBL_Master,SBU_Master,NBL_Master,NBU_Master,EBL_Master,EBU_Master,WBU_Master,WBL_Master,WBR_Master) -> 0 | RV62: Stop/Signal Controlled | SD62: Marked | SJ62: =SUM('QR N-E'!DJ48:DJ53) -> 3 | SO62: =Maj_St_Spd_Lmt ->  | ST62: =SUM(WBL_Master,WBT_Master,WBR_Master,WBU_Master) -> 0 | SY62: Stop/Signal Controlled | TG62: Unmarked | TM62: =MAX('QR N-E'!DA47:DC47,'QR N-E'!CW57:CW59) -> 2 | TR62: =Maj_St_Spd_Lmt ->  | TW62: =SUM(EBT_Master,NBR_Master,SBL_Master,WBU_Master) -> 0 | UB62: Free Flowing | UJ62: Unmarked | UP62: =IFERROR((((SUM(SQRT(UU62),SQRT(VE62),SQRT(VO62),SQRT(VY62),SQRT(WI62),SQRT(WS62),SQRT(XC62),SQRT(XM62),SQRT(XW62),SQRT(YG62),SQRT(YQ62),SQRT(ZA62),SQRT(ZK62),SQRT(ZU62),SQRT(AAE62),SQRT(AAO62),SQRT(AAY62),SQRT(ABI62))/COUNTIF(UU62:ABR63,">0"))^2)*(_xlfn.XLOOKUP(AD62,$W$311:$W$312,$AA$311:$AA$312,"lookup error",0,1))*(_xlfn.XLOOKUP(AI62,Multistage_Crossing,$AA$305:$AA$307,"lookup error",0,1))),"Enter Major/Minor Street Speeds") -> Enter Major/Minor Street Speeds | UU62: =IF(OR(LEN($P$21)=0,LEN($P$23)=0),"Enter Major/Minor Street Speeds",IF(AN62=0,,(IF(AN62<5,VLOOKUP(AN62,$W$276:$AA$279,5, FALSE),$AA$280)+IF(AS62<=$V$283,$AA$283,IF(AND(AS62>$V$283,AS62<=$V$284),$AA$284,IF(AND(AS62>$V$284,AS62<=$V$285),$AA$285,IF(AND(AS62>$V$285,AS62<=$V$286),$AA$286,$AA$287))))+IF(AX62<=$V$293,HLOOKUP(BC62,$AA$292:$AD$297,2,FALSE),IF(AND(AX62>$V$293,AX62<=$V$294),HLOOKUP(BC62,$AA$292:$AD$297,3,FALSE),IF(AND(AX62>$V$294,AX62<=$V$295),HLOOKUP(BC62,$AA$292:$AD$297,4,FALSE),IF(AND(AX62>$V$295,AX62<=$V$296),HLOOKUP(BC62,$AA$292:$AD$297,5,FALSE),IF(AX62>$V$296,HLOOKUP(BC62,$AA$292:$AD$297,6,FALSE),"")))))+IF(BK62=$W$300,$AA$300,$AA$301))/4)) -> Enter Major/Minor Street Speeds | VE62: =IF(OR(LEN($P$21)=0,LEN($P$23)=0),"Enter Major/Minor Street Speeds",IF(BQ62=0,,(IF(BQ62<5,VLOOKUP(BQ62,$W$276:$AA$279,5, FALSE),$AA$280)+IF(BV62<=$V$283,$AA$283,IF(AND(BV62>$V$283,BV62<=$V$284),$AA$284,IF(AND(BV62>$V$284,BV62<=$V$285),$AA$285,IF(AND(BV62>$V$285,BV62<=$V$286),$AA$286,$AA$287))))+IF(CA62<=$V$293,HLOOKUP(CF62,$AA$292:$AD$297,2,FALSE),IF(AND(CA62>$V$293,CA62<=$V$294),HLOOKUP(CF62,$AA$292:$AD$297,3,FALSE),IF(AND(CA62>$V$294,CA62<=$V$295),HLOOKUP(CF62,$AA$292:$AD$297,4,FALSE),IF(AND(CA62>$V$295,CA62<=$V$296),HLOOKUP(CF62,$AA$292:$AD$297,5,FALSE),IF(CA62>$V$296,HLOOKUP(CF62,$AA$292:$AD$297,6,FALSE),"")))))+IF(CN62=$W$300,$AA$300,$AA$301))/4)) -> Enter Major/Minor Street Speeds | VO62: =IF(OR(LEN($P$21)=0,LEN($P$23)=0),"Enter Major/Minor Street Speeds",IF(CT62=0,,(IF(CT62<5,VLOOKUP(CT62,$W$276:$AA$279,5, FALSE),$AA$280)+IF(CY62<=$V$283,$AA$283,IF(AND(CY62>$V$283,CY62<=$V$284),$AA$284,IF(AND(CY62>$V$284,CY62<=$V$285),$AA$285,IF(AND(CY62>$V$285,CY62<=$V$286),$AA$286,$AA$287))))+IF(DD62<=$V$293,HLOOKUP(DI62,$AA$292:$AD$297,2,FALSE),IF(AND(DD62>$V$293,DD62<=$V$294),HLOOKUP(DI62,$AA$292:$AD$297,3,FALSE),IF(AND(DD62>$V$294,DD62<=$V$295),HLOOKUP(DI62,$AA$292:$AD$297,4,FALSE),IF(AND(DD62>$V$295,DD62<=$V$296),HLOOKUP(DI62,$AA$292:$AD$297,5,FALSE),IF(DD62>$V$296,HLOOKUP(DI62,$AA$292:$AD$297,6,FALSE),"")))))+IF(DQ62=$W$300,$AA$300,$AA$301))/4)) -> Enter Major/Minor Street Speeds | VY62: =IF(OR(LEN($P$21)=0,LEN($P$23)=0),"Enter Major/Minor Street Speeds",IF(DW62=0,,(IF(DW62<5,VLOOKUP(DW62,$W$276:$AA$279,5, FALSE),$AA$280)+IF(EB62<=$V$283,$AA$283,IF(AND(EB62>$V$283,EB62<=$V$284),$AA$284,IF(AND(EB62>$V$284,EB62<=$V$285),$AA$285,IF(AND(EB62>$V$285,EB62<=$V$286),$AA$286,$AA$287))))+IF(EG62<=$V$293,HLOOKUP(EL62,$AA$292:$AD$297,2,FALSE),IF(AND(EG62>$V$293,EG62<=$V$294),HLOOKUP(EL62,$AA$292:$AD$297,3,FALSE),IF(AND(EG62>$V$294,EG62<=$V$295),HLOOKUP(EL62,$AA$292:$AD$297,4,FALSE),IF(AND(EG62>$V$295,EG62<=$V$296),HLOOKUP(EL62,$AA$292:$AD$297,5,FALSE),IF(EG62>$V$296,HLOOKUP(EL62,$AA$292:$AD$297,6,FALSE),"")))))+IF(ET62=$W$300,$AA$300,$AA$301))/4)) -> Enter Major/Minor Street Speeds | WI62: =IF(OR(LEN($P$21)=0,LEN($P$23)=0),"Enter Major/Minor Street Speeds",IF(EZ62=0,,(IF(EZ62<5,VLOOKUP(EZ62,$W$276:$AA$279,5, FALSE),$AA$280)+IF(FE62<=$V$283,$AA$283,IF(AND(FE62>$V$283,FE62<=$V$284),$AA$284,IF(AND(FE62>$V$284,FE62<=$V$285),$AA$285,IF(AND(FE62>$V$285,FE62<=$V$286),$AA$286,$AA$287))))+IF(FJ62<=$V$293,HLOOKUP(FO62,$AA$292:$AD$297,2,FALSE),IF(AND(FJ62>$V$293,FJ62<=$V$294),HLOOKUP(FO62,$AA$292:$AD$297,3,FALSE),IF(AND(FJ62>$V$294,FJ62<=$V$295),HLOOKUP(FO62,$AA$292:$AD$297,4,FALSE),IF(AND(FJ62>$V$295,FJ62<=$V$296),HLOOKUP(FO62,$AA$292:$AD$297,5,FALSE),IF(FJ62>$V$296,HLOOKUP(FO62,$AA$292:$AD$297,6,FALSE),"")))))+IF(FW62=$W$300,$AA$300,$AA$301))/4)) -> Enter Major/Minor Street Speeds | WS62: =IF(OR(LEN($P$21)=0,LEN($P$23)=0),"Enter Major/Minor Street Speeds",IF(GC62=0,,(IF(GC62<5,VLOOKUP(GC62,$W$276:$AA$279,5, FALSE),$AA$280)+IF(GH62<=$V$283,$AA$283,IF(AND(GH62>$V$283,GH62<=$V$284),$AA$284,IF(AND(GH62>$V$284,GH62<=$V$285),$AA$285,IF(AND(GH62>$V$285,GH62<=$V$286),$AA$286,$AA$287))))+IF(GM62<=$V$293,HLOOKUP(GR62,$AA$292:$AD$297,2,FALSE),IF(AND(GM62>$V$293,GM62<=$V$294),HLOOKUP(GR62,$AA$292:$AD$297,3,FALSE),IF(AND(GM62>$V$294,GM62<=$V$295),HLOOKUP(GR62,$AA$292:$AD$297,4,FALSE),IF(AND(GM62>$V$295,GM62<=$V$296),HLOOKUP(GR62,$AA$292:$AD$297,5,FALSE),IF(GM62>$V$296,HLOOKUP(GR62,$AA$292:$AD$297,6,FALSE),"")))))+IF(GZ62=$W$300,$AA$300,$AA$301))/4)) -> Enter Major/Minor Street Speeds | XC62: =IF(OR(LEN($P$21)=0,LEN($P$23)=0),"Enter Major/Minor Street Speeds",IF(HF62=0,,(IF(HF62<5,VLOOKUP(HF62,$W$276:$AA$279,5, FALSE),$AA$280)+IF(HK62<=$V$283,$AA$283,IF(AND(HK62>$V$283,HK62<=$V$284),$AA$284,IF(AND(HK62>$V$284,HK62<=$V$285),$AA$285,IF(AND(HK62>$V$285,HK62<=$V$286),$AA$286,$AA$287))))+IF(HP62<=$V$293,HLOOKUP(HU62,$AA$292:$AD$297,2,FALSE),IF(AND(HP62>$V$293,HP62<=$V$294),HLOOKUP(GR62,$AA$292:$AD$297,3,FALSE),IF(AND(HP62>$V$294,HP62<=$V$295),HLOOKUP(GR62,$AA$292:$AD$297,4,FALSE),IF(AND(HP62>$V$295,HP62<=$V$296),HLOOKUP(GR62,$AA$292:$AD$297,5,FALSE),IF(HP62>$V$296,HLOOKUP(GR62,$AA$292:$AD$297,6,FALSE),"")))))+IF(IC62=$W$300,$AA$300,$AA$301))/4)) -> Enter Major/Minor Street Speeds | XM62: =IF(OR(LEN($P$21)=0,LEN($P$23)=0),"Enter Major/Minor Street Speeds",IF(II62=0,,(IF(II62<5,VLOOKUP(II62,$W$276:$AA$279,5, FALSE),$AA$280)+IF(IN62<=$V$283,$AA$283,IF(AND(IN62>$V$283,IN62<=$V$284),$AA$284,IF(AND(IN62>$V$284,IN62<=$V$285),$AA$285,IF(AND(IN62>$V$285,IN62<=$V$286),$AA$286,$AA$287))))+IF(IS62<=$V$293,HLOOKUP(IX62,$AA$292:$AD$297,2,FALSE),IF(AND(IS62>$V$293,IS62<=$V$294),HLOOKUP(IX62,$AA$292:$AD$297,3,FALSE),IF(AND(IS62>$V$294,IS62<=$V$295),HLOOKUP(IX62,$AA$292:$AD$297,4,FALSE),IF(AND(IS62>$V$295,IS62<=$V$296),HLOOKUP(IX62,$AA$292:$AD$297,5,FALSE),IF(IS62>$V$296,HLOOKUP(IX62,$AA$292:$AD$297,6,FALSE),"")))))+IF(JF62=$W$300,$AA$300,$AA$301))/4)) -> Enter Major/Minor Street Speeds | XW62: =IF(OR(LEN($P$21)=0,LEN($P$23)=0),"Enter Major/Minor Street Speeds",IF(JL62=0,,(IF(JL62<5,VLOOKUP(JL62,$W$276:$AA$279,5, FALSE),$AA$280)+IF(JQ62<=$V$283,$AA$283,IF(AND(JQ62>$V$283,JQ62<=$V$284),$AA$284,IF(AND(JQ62>$V$284,JQ62<=$V$285),$AA$285,IF(AND(JQ62>$V$285,JQ62<=$V$286),$AA$286,$AA$287))))+IF(JV62<=$V$293,HLOOKUP(KA62,$AA$292:$AD$297,2,FALSE),IF(AND(JV62>$V$293,JV62<=$V$294),HLOOKUP(KA62,$AA$292:$AD$297,3,FALSE),IF(AND(JV62>$V$294,JV62<=$V$295),HLOOKUP(KA62,$AA$292:$AD$297,4,FALSE),IF(AND(JV62>$V$295,JV62<=$V$296),HLOOKUP(KA62,$AA$292:$AD$297,5,FALSE),IF(JV62>$V$296,HLOOKUP(KA62,$AA$292:$AD$297,6,FALSE),"")))))+IF(KI62=$W$300,$AA$300,$AA$301))/4)) -> Enter Major/Minor Street Speeds | YG62: =IF(OR(LEN($P$21)=0,LEN($P$23)=0),"Enter Major/Minor Street Speeds",IF(KO62=0,,(IF(KO62<5,VLOOKUP(KO62,$W$276:$AA$279,5, FALSE),$AA$280)+IF(KT62<=$V$283,$AA$283,IF(AND(KT62>$V$283,KT62<=$V$284),$AA$284,IF(AND(KT62>$V$284,KT62<=$V$285),$AA$285,IF(AND(KT62>$V$285,KT62<=$V$286),$AA$286,$AA$287))))+IF(KY62<=$V$293,HLOOKUP(LD62,$AA$292:$AD$297,2,FALSE),IF(AND(KY62>$V$293,KY62<=$V$294),HLOOKUP(LD62,$AA$292:$AD$297,3,FALSE),IF(AND(KY62>$V$294,KY62<=$V$295),HLOOKUP(LD62,$AA$292:$AD$297,4,FALSE),IF(AND(KY62>$V$295,KY62<=$V$296),HLOOKUP(LD62,$AA$292:$AD$297,5,FALSE),IF(KY62>$V$296,HLOOKUP(LD62,$AA$292:$AD$297,6,FALSE),"")))))+IF(LL62=$W$300,$AA$300,$AA$301))/4)) -> Enter Major/Minor Street Speeds | YQ62: =IF(OR(LEN($P$21)=0,LEN($P$23)=0),"Enter Major/Minor Street Speeds",IF(LR62=0,,(IF(LR62<5,VLOOKUP(LR62,$W$276:$AA$279,5, FALSE),$AA$280)+IF(LW62<=$V$283,$AA$283,IF(AND(LW62>$V$283,LW62<=$V$284),$AA$284,IF(AND(LW62>$V$284,LW62<=$V$285),$AA$285,IF(AND(LW62>$V$285,LW62<=$V$286),$AA$286,$AA$287))))+IF(MB62<=$V$293,HLOOKUP(MG62,$AA$292:$AD$297,2,FALSE),IF(AND(MB62>$V$293,MB62<=$V$294),HLOOKUP(MG62,$AA$292:$AD$297,3,FALSE),IF(AND(MB62>$V$294,MB62<=$V$295),HLOOKUP(MG62,$AA$292:$AD$297,4,FALSE),IF(AND(MB62>$V$295,MB62<=$V$296),HLOOKUP(MG62,$AA$292:$AD$297,5,FALSE),IF(MB62>$V$296,HLOOKUP(MG62,$AA$292:$AD$297,6,FALSE),"")))))+IF(MO62=$W$300,$AA$300,$AA$301))/4)) -> Enter Major/Minor Street Speeds | ZA62: =IF(OR(LEN($P$21)=0,LEN($P$23)=0),"Enter Major/Minor Street Speeds",IF(MU62=0,,(IF(MU62<5,VLOOKUP(MU62,$W$276:$AA$279,5, FALSE),$AA$280)+IF(MZ62<=$V$283,$AA$283,IF(AND(MZ62>$V$283,MZ62<=$V$284),$AA$284,IF(AND(MZ62>$V$284,MZ62<=$V$285),$AA$285,IF(AND(MZ62>$V$285,MZ62<=$V$286),$AA$286,$AA$287))))+IF(NE62<=$V$293,HLOOKUP(NJ62,$AA$292:$AD$297,2,FALSE),IF(AND(NE62>$V$293,NE62<=$V$294),HLOOKUP(NJ62,$AA$292:$AD$297,3,FALSE),IF(AND(NE62>$V$294,NE62<=$V$295),HLOOKUP(NJ62,$AA$292:$AD$297,4,FALSE),IF(AND(NE62>$V$295,NE62<=$V$296),HLOOKUP(NJ62,$AA$292:$AD$297,5,FALSE),IF(NE62>$V$296,HLOOKUP(NJ62,$AA$292:$AD$297,6,FALSE),"")))))+IF(NR62=$W$300,$AA$300,$AA$301))/4)) -> Enter Major/Minor Street Speeds | ZK62: =IF(OR(LEN($P$21)=0,LEN($P$23)=0),"Enter Major/Minor Street Speeds",IF(NX62=0,,(IF(NX62<5,VLOOKUP(NX62,$W$276:$AA$279,5, FALSE),$AA$280)+IF(OC62<=$V$283,$AA$283,IF(AND(OC62>$V$283,OC62<=$V$284),$AA$284,IF(AND(OC62>$V$284,OC62<=$V$285),$AA$285,IF(AND(OC62>$V$285,OC62<=$V$286),$AA$286,$AA$287))))+IF(OH62<=$V$293,HLOOKUP(OM62,$AA$292:$AD$297,2,FALSE),IF(AND(OH62>$V$293,OH62<=$V$294),HLOOKUP(OM62,$AA$292:$AD$297,3,FALSE),IF(AND(OH62>$V$294,OH62<=$V$295),HLOOKUP(OM62,$AA$292:$AD$297,4,FALSE),IF(AND(OH62>$V$295,OH62<=$V$296),HLOOKUP(OM62,$AA$292:$AD$297,5,FALSE),IF(OH62>$V$296,HLOOKUP(OM62,$AA$292:$AD$297,6,FALSE),"")))))+IF(OU62=$W$300,$AA$300,$AA$301))/4)) -> Enter Major/Minor Street Speeds | ZU62: =IF(OR(LEN($P$21)=0,LEN($P$23)=0),"Enter Major/Minor Street Speeds",IF(PA62=0,,(IF(PA62<5,VLOOKUP(PA62,$W$276:$AA$279,5, FALSE),$AA$280)+IF(PF62<=$V$283,$AA$283,IF(AND(PF62>$V$283,PF62<=$V$284),$AA$284,IF(AND(PF62>$V$284,PF62<=$V$285),$AA$285,IF(AND(PF62>$V$285,PF62<=$V$286),$AA$286,$AA$287))))+IF(PK62<=$V$293,HLOOKUP(PP62,$AA$292:$AD$297,2,FALSE),IF(AND(PK62>$V$293,PK62<=$V$294),HLOOKUP(PP62,$AA$292:$AD$297,3,FALSE),IF(AND(PK62>$V$294,PK62<=$V$295),HLOOKUP(PP62,$AA$292:$AD$297,4,FALSE),IF(AND(PK62>$V$295,PK62<=$V$296),HLOOKUP(PP62,$AA$292:$AD$297,5,FALSE),IF(PK62>$V$296,HLOOKUP(PP62,$AA$292:$AD$297,6,FALSE),"")))))+IF(PX62=$W$300,$AA$300,$AA$301))/4)) -> Enter Major/Minor Street Speeds | AAE62: =IF(OR(LEN($P$21)=0,LEN($P$23)=0),"Enter Major/Minor Street Speeds",IF(QD62=0,,(IF(QD62<5,VLOOKUP(QD62,$W$276:$AA$279,5, FALSE),$AA$280)+IF(QI62<=$V$283,$AA$283,IF(AND(QI62>$V$283,QI62<=$V$284),$AA$284,IF(AND(QI62>$V$284,QI62<=$V$285),$AA$285,IF(AND(QI62>$V$285,QI62<=$V$286),$AA$286,$AA$287))))+IF(QN62<=$V$293,HLOOKUP(QS62,$AA$292:$AD$297,2,FALSE),IF(AND(QN62>$V$293,QN62<=$V$294),HLOOKUP(QS62,$AA$292:$AD$297,3,FALSE),IF(AND(QN62>$V$294,QN62<=$V$295),HLOOKUP(QS62,$AA$292:$AD$297,4,FALSE),IF(AND(QN62>$V$295,QN62<=$V$296),HLOOKUP(QS62,$AA$292:$AD$297,5,FALSE),IF(QN62>$V$296,HLOOKUP(QS62,$AA$292:$AD$297,6,FALSE),"")))))+IF(RA62=$W$300,$AA$300,$AA$301))/4)) -> Enter Major/Minor Street Speeds | AAO62: =IF(OR(LEN($P$21)=0,LEN($P$23)=0),"Enter Major/Minor Street Speeds",IF(RG62=0,,(IF(RG62<5,VLOOKUP(RG62,$W$276:$AA$279,5, FALSE),$AA$280)+IF(RL62<=$V$283,$AA$283,IF(AND(RL62>$V$283,RL62<=$V$284),$AA$284,IF(AND(RL62>$V$284,RL62<=$V$285),$AA$285,IF(AND(RL62>$V$285,RL62<=$V$286),$AA$286,$AA$287))))+IF(RQ62<=$V$293,HLOOKUP(RV62,$AA$292:$AD$297,2,FALSE),IF(AND(RQ62>$V$293,RQ62<=$V$294),HLOOKUP(RV62,$AA$292:$AD$297,3,FALSE),IF(AND(RQ62>$V$294,RQ62<=$V$295),HLOOKUP(RV62,$AA$292:$AD$297,4,FALSE),IF(AND(RQ62>$V$295,RQ62<=$V$296),HLOOKUP(RV62,$AA$292:$AD$297,5,FALSE),IF(RQ62>$V$296,HLOOKUP(RV62,$AA$292:$AD$297,6,FALSE),"")))))+IF(SD62=$W$300,$AA$300,$AA$301))/4)) -> Enter Major/Minor Street Speeds | AAY62: =IF(OR(LEN($P$21)=0,LEN($P$23)=0),"Enter Major/Minor Street Speeds",IF(SJ62=0,,(IF(SJ62<5,VLOOKUP(SJ62,$W$276:$AA$279,5, FALSE),$AA$280)+IF(SO62<=$V$283,$AA$283,IF(AND(SO62>$V$283,SO62<=$V$284),$AA$284,IF(AND(SO62>$V$284,SO62<=$V$285),$AA$285,IF(AND(SO62>$V$285,SO62<=$V$286),$AA$286,$AA$287))))+IF(ST62<=$V$293,HLOOKUP(SY62,$AA$292:$AD$297,2,FALSE),IF(AND(ST62>$V$293,ST62<=$V$294),HLOOKUP(SY62,$AA$292:$AD$297,3,FALSE),IF(AND(ST62>$V$294,ST62<=$V$295),HLOOKUP(SY62,$AA$292:$AD$297,4,FALSE),IF(AND(ST62>$V$295,ST62<=$V$296),HLOOKUP(SY62,$AA$292:$AD$297,5,FALSE),IF(ST62>$V$296,HLOOKUP(SY62,$AA$292:$AD$297,6,FALSE),"")))))+IF(TG62=$W$300,$AA$300,$AA$301))/4)) -> Enter Major/Minor Street Speeds | ABI62: =IF(OR(LEN($P$21)=0,LEN($P$23)=0),"Enter Major/Minor Street Speeds",IF(TM62=0,,(IF(TM62<5,VLOOKUP(TM62,$W$276:$AA$279,5, FALSE),$AA$280)+IF(TR62<=$V$283,$AA$283,IF(AND(TR62>$V$283,TR62<=$V$284),$AA$284,IF(AND(TR62>$V$284,TR62<=$V$285),$AA$285,IF(AND(TR62>$V$285,TR62<=$V$286),$AA$286,$AA$287))))+IF(TW62<=$V$293,HLOOKUP(UB62,$AA$292:$AD$297,2,FALSE),IF(AND(TW62>$V$293,TW62<=$V$294),HLOOKUP(UB62,$AA$292:$AD$297,3,FALSE),IF(AND(TW62>$V$294,TW62<=$V$295),HLOOKUP(UB62,$AA$292:$AD$297,4,FALSE),IF(AND(TW62>$V$295,TW62<=$V$296),HLOOKUP(UB62,$AA$292:$AD$297,5,FALSE),IF(TW62>$V$296,HLOOKUP(UB62,$AA$292:$AD$297,6,FALSE),"")))))+IF(UJ62=$W$300,$AA$300,$AA$301))/4)) -> Enter Major/Minor Street Speeds
T64: S-E | Z64: =UP64 -> Enter Major/Minor Street Speeds | AD64: No | AI64: Yes Crossing(s) with 2 stages | AN64: =SUM('QR S-E'!BU25:BU30) -> 3 | AS64: =Min_St_Spd_Lmt ->  | AX64: =SUM(EBL_Master,EBT_Master,EBR_Master,EBU_Master) -> 0 | BC64: Stop/Signal Controlled | BK64: Marked | BQ64: =MAX('QR S-E'!BV18:BX18,'QR S-E'!CH22:CH24) -> 2 | BV64: =Min_St_Spd_Lmt ->  | CA64: =SUM(SBR_Master,WBT_Master,NBL_Master,EBU_Master) -> 0 | CF64: Stop/Signal Controlled | CN64: Marked | CT64: =SUM('QR S-E'!BV18:CA18) -> 3 | CY64: =Maj_St_Spd_Lmt ->  | DD64: =SUM(SBR_Master,SBL_Master,SBT_Master,SBU_Master) -> 0 | DI64: Stop/Signal Controlled | DQ64: Marked | DW64: =MAX('QR S-E'!CB31:CD31,'QR S-E'!CH19:CH21) -> 2 | EB64: =Maj_St_Spd_Lmt ->  | EG64: =SUM(NBT_Master,EBL_Master,WBR_Master,SBU_Master) -> 0 | EL64: Stop/Signal Controlled | ET64: Marked | EZ64: =SUM('QR S-E'!CH19:CH24) -> 3 | FE64: =Min_St_Spd_Lmt ->  | FJ64: =SUM(EBU_Master,WBT_Master,WBR_Master,NBL_Master,SBU_Master) -> 0 | FO64: Stop/Signal Controlled | FW64: Marked | GC64: =MAX('QR S-E'!CE31:CG31,'QR S-E'!BU25:BU27) -> 2 | GH64: =Min_St_Spd_Lmt ->  | GM64: =SUM(EBL_Master,EBT_Master,WBU_Master,NBU_Master,) -> 0 | GR64: Stop/Signal Controlled | GZ64: Marked | HF64: =SUM('QR S-E'!CB31:CG31) -> 3 | HK64: =Maj_St_Spd_Lmt ->  | HP64: =SUM(EBL_Master,WBU_Master,NBT_Master,NBU_Master,) -> 0 | HU64: Stop/Signal Controlled | IC64: Marked | II64: =MAX('QR S-E'!BU28:BU30,'QR S-E'!BY18:CA18) -> 2 | IN64: =Maj_St_Spd_Lmt ->  | IS64: =SUM(EBR_Master,EBU_Master,SBL_Master,SBT_Master,SBU_Master) -> 0 | IX64: Stop/Signal Controlled | JF64: Marked | JL64: =SUM('QR S-E'!CW25:CW30) -> 3 | JQ64: =Min_St_Spd_Lmt ->  | JV64: =SUM(EBT_Master,EBL_Master,WBU_Master,NBU_Master) -> 0 | KA64: Stop/Signal Controlled | KI64: Unmarked | KO64: =MAX('QR S-E'!DD31:DF31,'QR S-E'!DJ22:DJ24) -> 2 | KT64: =Min_St_Spd_Lmt ->  | KY64: =SUM(EBU_Master,WBR_Master,WBT_Master,NBL_Master,SBU_Master) -> 0 | LD64: Free Flowing | LL64: Unmarked | LR64: =SUM('QR S-E'!DJ22:DJ27) -> 3 | LW64: =Min_St_Spd_Lmt ->  | MB64: =SUM(WBL_Master,WBT_Master,WBR_Master,WBU_Master) -> 0 | MG64: Stop/Signal Controlled | MO64: Marked | MU64: =MAX('QR S-E'!CW25:CW27,'QR S-E'!DG31:DI31) -> 2 | MZ64: =Min_St_Spd_Lmt ->  | NE64: =SUM(EBT_Master,WBU_Master,NBR_Master,SBL_Master) -> 0 | NJ64: Stop/Signal Controlled | NR64: Marked | NX64: =SUM('QR S-E'!DD31:DI31)+MAX('QR S-E'!CW28:CW30,'QR S-E'!DJ25:DJ27) -> 3 | OC64: =Maj_St_Spd_Lmt ->  | OH64: =SUM(EBL_Master,EBU_Master,WBL_Master,WBU_Master,NBL_Master,NBR_Master,NBU_Master,SBL_Master,SBU_Master) -> 0 | OM64: Stop/Signal Controlled | OU64: Marked | PA64: =SUM('QR S-E'!BV46:CA46) -> 3 | PF64: =Maj_St_Spd_Lmt ->  | PK64: =SUM(EBR_Master,EBU_Master,SBT_Master,SBL_Master,SBU_Master) -> 0 | PP64: Stop/Signal Controlled | PX64: Marked | QD64: =MAX('QR S-E'!CH53:CH55,'QR S-E'!CB59:CD59) -> 2 | QI64: =Maj_St_Spd_Lmt ->  | QN64: =SUM(EBL_Master,WBU_Master,NBT_Master,NBU_Master) -> 0 | QS64: Stop/Signal Controlled | RA64: Marked | RG64: =SUM('QR S-E'!CH53:CH58)+MAX('QR S-E'!CE59:CG59,'QR S-E'!BY46:CA46) -> 3 | RL64: =Min_St_Spd_Lmt ->  | RQ64: =SUM(EBU_Master,EBL_Master,WBL_Master,WBU_Master,NBU_Master,NBR_Master,NBL_Master,SBL_Master,SBU_Master) -> 0 | RV64: Stop/Signal Controlled | SD64: Marked | SJ64: =SUM('QR S-E'!CB59:CG59) -> 3 | SO64: =Maj_St_Spd_Lmt ->  | ST64: =SUM(NBL_Master,NBT_Master,NBR_Master,NBU_Master) -> 0 | SY64: Stop/Signal Controlled | TG64: Unmarked | TM64: =MAX('QR S-E'!CH56:CH58,'QR S-E'!BV46:BX46) -> 2 | TR64: =Maj_St_Spd_Lmt ->  | TW64: =SUM(WBL_Master,SBT_Master,EBR_Master,NBU_Master) -> 0 | UB64: Free Flowing | UJ64: Unmarked | UP64: =IFERROR((((SUM(SQRT(UU64),SQRT(VE64),SQRT(VO64),SQRT(VY64),SQRT(WI64),SQRT(WS64),SQRT(XC64),SQRT(XM64),SQRT(XW64),SQRT(YG64),SQRT(YQ64),SQRT(ZA64),SQRT(ZK64),SQRT(ZU64),SQRT(AAE64),SQRT(AAO64),SQRT(AAY64),SQRT(ABI64))/COUNTIF(UU64:ABR65,">0"))^2)*(_xlfn.XLOOKUP(AD64,$W$311:$W$312,$AA$311:$AA$312,"lookup error",0,1))*(_xlfn.XLOOKUP(AI64,Multistage_Crossing,$AA$305:$AA$307,"lookup error",0,1))),"Enter Major/Minor Street Speeds") -> Enter Major/Minor Street Speeds | UU64: =IF(OR(LEN($P$21)=0,LEN($P$23)=0),"Enter Major/Minor Street Speeds",IF(AN64=0,,(IF(AN64<5,VLOOKUP(AN64,$W$276:$AA$279,5, FALSE),$AA$280)+IF(AS64<=$V$283,$AA$283,IF(AND(AS64>$V$283,AS64<=$V$284),$AA$284,IF(AND(AS64>$V$284,AS64<=$V$285),$AA$285,IF(AND(AS64>$V$285,AS64<=$V$286),$AA$286,$AA$287))))+IF(AX64<=$V$293,HLOOKUP(BC64,$AA$292:$AD$297,2,FALSE),IF(AND(AX64>$V$293,AX64<=$V$294),HLOOKUP(BC64,$AA$292:$AD$297,3,FALSE),IF(AND(AX64>$V$294,AX64<=$V$295),HLOOKUP(BC64,$AA$292:$AD$297,4,FALSE),IF(AND(AX64>$V$295,AX64<=$V$296),HLOOKUP(BC64,$AA$292:$AD$297,5,FALSE),IF(AX64>$V$296,HLOOKUP(BC64,$AA$292:$AD$297,6,FALSE),"")))))+IF(BK64=$W$300,$AA$300,$AA$301))/4)) -> Enter Major/Minor Street Speeds | VE64: =IF(OR(LEN($P$21)=0,LEN($P$23)=0),"Enter Major/Minor Street Speeds",IF(BQ64=0,,(IF(BQ64<5,VLOOKUP(BQ64,$W$276:$AA$279,5, FALSE),$AA$280)+IF(BV64<=$V$283,$AA$283,IF(AND(BV64>$V$283,BV64<=$V$284),$AA$284,IF(AND(BV64>$V$284,BV64<=$V$285),$AA$285,IF(AND(BV64>$V$285,BV64<=$V$286),$AA$286,$AA$287))))+IF(CA64<=$V$293,HLOOKUP(CF64,$AA$292:$AD$297,2,FALSE),IF(AND(CA64>$V$293,CA64<=$V$294),HLOOKUP(CF64,$AA$292:$AD$297,3,FALSE),IF(AND(CA64>$V$294,CA64<=$V$295),HLOOKUP(CF64,$AA$292:$AD$297,4,FALSE),IF(AND(CA64>$V$295,CA64<=$V$296),HLOOKUP(CF64,$AA$292:$AD$297,5,FALSE),IF(CA64>$V$296,HLOOKUP(CF64,$AA$292:$AD$297,6,FALSE),"")))))+IF(CN64=$W$300,$AA$300,$AA$301))/4)) -> Enter Major/Minor Street Speeds | VO64: =IF(OR(LEN($P$21)=0,LEN($P$23)=0),"Enter Major/Minor Street Speeds",IF(CT64=0,,(IF(CT64<5,VLOOKUP(CT64,$W$276:$AA$279,5, FALSE),$AA$280)+IF(CY64<=$V$283,$AA$283,IF(AND(CY64>$V$283,CY64<=$V$284),$AA$284,IF(AND(CY64>$V$284,CY64<=$V$285),$AA$285,IF(AND(CY64>$V$285,CY64<=$V$286),$AA$286,$AA$287))))+IF(DD64<=$V$293,HLOOKUP(DI64,$AA$292:$AD$297,2,FALSE),IF(AND(DD64>$V$293,DD64<=$V$294),HLOOKUP(DI64,$AA$292:$AD$297,3,FALSE),IF(AND(DD64>$V$294,DD64<=$V$295),HLOOKUP(DI64,$AA$292:$AD$297,4,FALSE),IF(AND(DD64>$V$295,DD64<=$V$296),HLOOKUP(DI64,$AA$292:$AD$297,5,FALSE),IF(DD64>$V$296,HLOOKUP(DI64,$AA$292:$AD$297,6,FALSE),"")))))+IF(DQ64=$W$300,$AA$300,$AA$301))/4)) -> Enter Major/Minor Street Speeds | VY64: =IF(OR(LEN($P$21)=0,LEN($P$23)=0),"Enter Major/Minor Street Speeds",IF(DW64=0,,(IF(DW64<5,VLOOKUP(DW64,$W$276:$AA$279,5, FALSE),$AA$280)+IF(EB64<=$V$283,$AA$283,IF(AND(EB64>$V$283,EB64<=$V$284),$AA$284,IF(AND(EB64>$V$284,EB64<=$V$285),$AA$285,IF(AND(EB64>$V$285,EB64<=$V$286),$AA$286,$AA$287))))+IF(EG64<=$V$293,HLOOKUP(EL64,$AA$292:$AD$297,2,FALSE),IF(AND(EG64>$V$293,EG64<=$V$294),HLOOKUP(EL64,$AA$292:$AD$297,3,FALSE),IF(AND(EG64>$V$294,EG64<=$V$295),HLOOKUP(EL64,$AA$292:$AD$297,4,FALSE),IF(AND(EG64>$V$295,EG64<=$V$296),HLOOKUP(EL64,$AA$292:$AD$297,5,FALSE),IF(EG64>$V$296,HLOOKUP(EL64,$AA$292:$AD$297,6,FALSE),"")))))+IF(ET64=$W$300,$AA$300,$AA$301))/4)) -> Enter Major/Minor Street Speeds | WI64: =IF(OR(LEN($P$21)=0,LEN($P$23)=0),"Enter Major/Minor Street Speeds",IF(EZ64=0,,(IF(EZ64<5,VLOOKUP(EZ64,$W$276:$AA$279,5, FALSE),$AA$280)+IF(FE64<=$V$283,$AA$283,IF(AND(FE64>$V$283,FE64<=$V$284),$AA$284,IF(AND(FE64>$V$284,FE64<=$V$285),$AA$285,IF(AND(FE64>$V$285,FE64<=$V$286),$AA$286,$AA$287))))+IF(FJ64<=$V$293,HLOOKUP(FO64,$AA$292:$AD$297,2,FALSE),IF(AND(FJ64>$V$293,FJ64<=$V$294),HLOOKUP(FO64,$AA$292:$AD$297,3,FALSE),IF(AND(FJ64>$V$294,FJ64<=$V$295),HLOOKUP(FO64,$AA$292:$AD$297,4,FALSE),IF(AND(FJ64>$V$295,FJ64<=$V$296),HLOOKUP(FO64,$AA$292:$AD$297,5,FALSE),IF(FJ64>$V$296,HLOOKUP(FO64,$AA$292:$AD$297,6,FALSE),"")))))+IF(FW64=$W$300,$AA$300,$AA$301))/4)) -> Enter Major/Minor Street Speeds | WS64: =IF(OR(LEN($P$21)=0,LEN($P$23)=0),"Enter Major/Minor Street Speeds",IF(GC64=0,,(IF(GC64<5,VLOOKUP(GC64,$W$276:$AA$279,5, FALSE),$AA$280)+IF(GH64<=$V$283,$AA$283,IF(AND(GH64>$V$283,GH64<=$V$284),$AA$284,IF(AND(GH64>$V$284,GH64<=$V$285),$AA$285,IF(AND(GH64>$V$285,GH64<=$V$286),$AA$286,$AA$287))))+IF(GM64<=$V$293,HLOOKUP(GR64,$AA$292:$AD$297,2,FALSE),IF(AND(GM64>$V$293,GM64<=$V$294),HLOOKUP(GR64,$AA$292:$AD$297,3,FALSE),IF(AND(GM64>$V$294,GM64<=$V$295),HLOOKUP(GR64,$AA$292:$AD$297,4,FALSE),IF(AND(GM64>$V$295,GM64<=$V$296),HLOOKUP(GR64,$AA$292:$AD$297,5,FALSE),IF(GM64>$V$296,HLOOKUP(GR64,$AA$292:$AD$297,6,FALSE),"")))))+IF(GZ64=$W$300,$AA$300,$AA$301))/4)) -> Enter Major/Minor Street Speeds | XC64: =IF(OR(LEN($P$21)=0,LEN($P$23)=0),"Enter Major/Minor Street Speeds",IF(HF64=0,,(IF(HF64<5,VLOOKUP(HF64,$W$276:$AA$279,5, FALSE),$AA$280)+IF(HK64<=$V$283,$AA$283,IF(AND(HK64>$V$283,HK64<=$V$284),$AA$284,IF(AND(HK64>$V$284,HK64<=$V$285),$AA$285,IF(AND(HK64>$V$285,HK64<=$V$286),$AA$286,$AA$287))))+IF(HP64<=$V$293,HLOOKUP(HU64,$AA$292:$AD$297,2,FALSE),IF(AND(HP64>$V$293,HP64<=$V$294),HLOOKUP(GR64,$AA$292:$AD$297,3,FALSE),IF(AND(HP64>$V$294,HP64<=$V$295),HLOOKUP(GR64,$AA$292:$AD$297,4,FALSE),IF(AND(HP64>$V$295,HP64<=$V$296),HLOOKUP(GR64,$AA$292:$AD$297,5,FALSE),IF(HP64>$V$296,HLOOKUP(GR64,$AA$292:$AD$297,6,FALSE),"")))))+IF(IC64=$W$300,$AA$300,$AA$301))/4)) -> Enter Major/Minor Street Speeds | XM64: =IF(OR(LEN($P$21)=0,LEN($P$23)=0),"Enter Major/Minor Street Speeds",IF(II64=0,,(IF(II64<5,VLOOKUP(II64,$W$276:$AA$279,5, FALSE),$AA$280)+IF(IN64<=$V$283,$AA$283,IF(AND(IN64>$V$283,IN64<=$V$284),$AA$284,IF(AND(IN64>$V$284,IN64<=$V$285),$AA$285,IF(AND(IN64>$V$285,IN64<=$V$286),$AA$286,$AA$287))))+IF(IS64<=$V$293,HLOOKUP(IX64,$AA$292:$AD$297,2,FALSE),IF(AND(IS64>$V$293,IS64<=$V$294),HLOOKUP(IX64,$AA$292:$AD$297,3,FALSE),IF(AND(IS64>$V$294,IS64<=$V$295),HLOOKUP(IX64,$AA$292:$AD$297,4,FALSE),IF(AND(IS64>$V$295,IS64<=$V$296),HLOOKUP(IX64,$AA$292:$AD$297,5,FALSE),IF(IS64>$V$296,HLOOKUP(IX64,$AA$292:$AD$297,6,FALSE),"")))))+IF(JF64=$W$300,$AA$300,$AA$301))/4)) -> Enter Major/Minor Street Speeds | XW64: =IF(OR(LEN($P$21)=0,LEN($P$23)=0),"Enter Major/Minor Street Speeds",IF(JL64=0,,(IF(JL64<5,VLOOKUP(JL64,$W$276:$AA$279,5, FALSE),$AA$280)+IF(JQ64<=$V$283,$AA$283,IF(AND(JQ64>$V$283,JQ64<=$V$284),$AA$284,IF(AND(JQ64>$V$284,JQ64<=$V$285),$AA$285,IF(AND(JQ64>$V$285,JQ64<=$V$286),$AA$286,$AA$287))))+IF(JV64<=$V$293,HLOOKUP(KA64,$AA$292:$AD$297,2,FALSE),IF(AND(JV64>$V$293,JV64<=$V$294),HLOOKUP(KA64,$AA$292:$AD$297,3,FALSE),IF(AND(JV64>$V$294,JV64<=$V$295),HLOOKUP(KA64,$AA$292:$AD$297,4,FALSE),IF(AND(JV64>$V$295,JV64<=$V$296),HLOOKUP(KA64,$AA$292:$AD$297,5,FALSE),IF(JV64>$V$296,HLOOKUP(KA64,$AA$292:$AD$297,6,FALSE),"")))))+IF(KI64=$W$300,$AA$300,$AA$301))/4)) -> Enter Major/Minor Street Speeds | YG64: =IF(OR(LEN($P$21)=0,LEN($P$23)=0),"Enter Major/Minor Street Speeds",IF(KO64=0,,(IF(KO64<5,VLOOKUP(KO64,$W$276:$AA$279,5, FALSE),$AA$280)+IF(KT64<=$V$283,$AA$283,IF(AND(KT64>$V$283,KT64<=$V$284),$AA$284,IF(AND(KT64>$V$284,KT64<=$V$285),$AA$285,IF(AND(KT64>$V$285,KT64<=$V$286),$AA$286,$AA$287))))+IF(KY64<=$V$293,HLOOKUP(LD64,$AA$292:$AD$297,2,FALSE),IF(AND(KY64>$V$293,KY64<=$V$294),HLOOKUP(LD64,$AA$292:$AD$297,3,FALSE),IF(AND(KY64>$V$294,KY64<=$V$295),HLOOKUP(LD64,$AA$292:$AD$297,4,FALSE),IF(AND(KY64>$V$295,KY64<=$V$296),HLOOKUP(LD64,$AA$292:$AD$297,5,FALSE),IF(KY64>$V$296,HLOOKUP(LD64,$AA$292:$AD$297,6,FALSE),"")))))+IF(LL64=$W$300,$AA$300,$AA$301))/4)) -> Enter Major/Minor Street Speeds | YQ64: =IF(OR(LEN($P$21)=0,LEN($P$23)=0),"Enter Major/Minor Street Speeds",IF(LR64=0,,(IF(LR64<5,VLOOKUP(LR64,$W$276:$AA$279,5, FALSE),$AA$280)+IF(LW64<=$V$283,$AA$283,IF(AND(LW64>$V$283,LW64<=$V$284),$AA$284,IF(AND(LW64>$V$284,LW64<=$V$285),$AA$285,IF(AND(LW64>$V$285,LW64<=$V$286),$AA$286,$AA$287))))+IF(MB64<=$V$293,HLOOKUP(MG64,$AA$292:$AD$297,2,FALSE),IF(AND(MB64>$V$293,MB64<=$V$294),HLOOKUP(MG64,$AA$292:$AD$297,3,FALSE),IF(AND(MB64>$V$294,MB64<=$V$295),HLOOKUP(MG64,$AA$292:$AD$297,4,FALSE),IF(AND(MB64>$V$295,MB64<=$V$296),HLOOKUP(MG64,$AA$292:$AD$297,5,FALSE),IF(MB64>$V$296,HLOOKUP(MG64,$AA$292:$AD$297,6,FALSE),"")))))+IF(MO64=$W$300,$AA$300,$AA$301))/4)) -> Enter Major/Minor Street Speeds | ZA64: =IF(OR(LEN($P$21)=0,LEN($P$23)=0),"Enter Major/Minor Street Speeds",IF(MU64=0,,(IF(MU64<5,VLOOKUP(MU64,$W$276:$AA$279,5, FALSE),$AA$280)+IF(MZ64<=$V$283,$AA$283,IF(AND(MZ64>$V$283,MZ64<=$V$284),$AA$284,IF(AND(MZ64>$V$284,MZ64<=$V$285),$AA$285,IF(AND(MZ64>$V$285,MZ64<=$V$286),$AA$286,$AA$287))))+IF(NE64<=$V$293,HLOOKUP(NJ64,$AA$292:$AD$297,2,FALSE),IF(AND(NE64>$V$293,NE64<=$V$294),HLOOKUP(NJ64,$AA$292:$AD$297,3,FALSE),IF(AND(NE64>$V$294,NE64<=$V$295),HLOOKUP(NJ64,$AA$292:$AD$297,4,FALSE),IF(AND(NE64>$V$295,NE64<=$V$296),HLOOKUP(NJ64,$AA$292:$AD$297,5,FALSE),IF(NE64>$V$296,HLOOKUP(NJ64,$AA$292:$AD$297,6,FALSE),"")))))+IF(NR64=$W$300,$AA$300,$AA$301))/4)) -> Enter Major/Minor Street Speeds | ZK64: =IF(OR(LEN($P$21)=0,LEN($P$23)=0),"Enter Major/Minor Street Speeds",IF(NX64=0,,(IF(NX64<5,VLOOKUP(NX64,$W$276:$AA$279,5, FALSE),$AA$280)+IF(OC64<=$V$283,$AA$283,IF(AND(OC64>$V$283,OC64<=$V$284),$AA$284,IF(AND(OC64>$V$284,OC64<=$V$285),$AA$285,IF(AND(OC64>$V$285,OC64<=$V$286),$AA$286,$AA$287))))+IF(OH64<=$V$293,HLOOKUP(OM64,$AA$292:$AD$297,2,FALSE),IF(AND(OH64>$V$293,OH64<=$V$294),HLOOKUP(OM64,$AA$292:$AD$297,3,FALSE),IF(AND(OH64>$V$294,OH64<=$V$295),HLOOKUP(OM64,$AA$292:$AD$297,4,FALSE),IF(AND(OH64>$V$295,OH64<=$V$296),HLOOKUP(OM64,$AA$292:$AD$297,5,FALSE),IF(OH64>$V$296,HLOOKUP(OM64,$AA$292:$AD$297,6,FALSE),"")))))+IF(OU64=$W$300,$AA$300,$AA$301))/4)) -> Enter Major/Minor Street Speeds | ZU64: =IF(OR(LEN($P$21)=0,LEN($P$23)=0),"Enter Major/Minor Street Speeds",IF(PA64=0,,(IF(PA64<5,VLOOKUP(PA64,$W$276:$AA$279,5, FALSE),$AA$280)+IF(PF64<=$V$283,$AA$283,IF(AND(PF64>$V$283,PF64<=$V$284),$AA$284,IF(AND(PF64>$V$284,PF64<=$V$285),$AA$285,IF(AND(PF64>$V$285,PF64<=$V$286),$AA$286,$AA$287))))+IF(PK64<=$V$293,HLOOKUP(PP64,$AA$292:$AD$297,2,FALSE),IF(AND(PK64>$V$293,PK64<=$V$294),HLOOKUP(PP64,$AA$292:$AD$297,3,FALSE),IF(AND(PK64>$V$294,PK64<=$V$295),HLOOKUP(PP64,$AA$292:$AD$297,4,FALSE),IF(AND(PK64>$V$295,PK64<=$V$296),HLOOKUP(PP64,$AA$292:$AD$297,5,FALSE),IF(PK64>$V$296,HLOOKUP(PP64,$AA$292:$AD$297,6,FALSE),"")))))+IF(PX64=$W$300,$AA$300,$AA$301))/4)) -> Enter Major/Minor Street Speeds | AAE64: =IF(OR(LEN($P$21)=0,LEN($P$23)=0),"Enter Major/Minor Street Speeds",IF(QD64=0,,(IF(QD64<5,VLOOKUP(QD64,$W$276:$AA$279,5, FALSE),$AA$280)+IF(QI64<=$V$283,$AA$283,IF(AND(QI64>$V$283,QI64<=$V$284),$AA$284,IF(AND(QI64>$V$284,QI64<=$V$285),$AA$285,IF(AND(QI64>$V$285,QI64<=$V$286),$AA$286,$AA$287))))+IF(QN64<=$V$293,HLOOKUP(QS64,$AA$292:$AD$297,2,FALSE),IF(AND(QN64>$V$293,QN64<=$V$294),HLOOKUP(QS64,$AA$292:$AD$297,3,FALSE),IF(AND(QN64>$V$294,QN64<=$V$295),HLOOKUP(QS64,$AA$292:$AD$297,4,FALSE),IF(AND(QN64>$V$295,QN64<=$V$296),HLOOKUP(QS64,$AA$292:$AD$297,5,FALSE),IF(QN64>$V$296,HLOOKUP(QS64,$AA$292:$AD$297,6,FALSE),"")))))+IF(RA64=$W$300,$AA$300,$AA$301))/4)) -> Enter Major/Minor Street Speeds | AAO64: =IF(OR(LEN($P$21)=0,LEN($P$23)=0),"Enter Major/Minor Street Speeds",IF(RG64=0,,(IF(RG64<5,VLOOKUP(RG64,$W$276:$AA$279,5, FALSE),$AA$280)+IF(RL64<=$V$283,$AA$283,IF(AND(RL64>$V$283,RL64<=$V$284),$AA$284,IF(AND(RL64>$V$284,RL64<=$V$285),$AA$285,IF(AND(RL64>$V$285,RL64<=$V$286),$AA$286,$AA$287))))+IF(RQ64<=$V$293,HLOOKUP(RV64,$AA$292:$AD$297,2,FALSE),IF(AND(RQ64>$V$293,RQ64<=$V$294),HLOOKUP(RV64,$AA$292:$AD$297,3,FALSE),IF(AND(RQ64>$V$294,RQ64<=$V$295),HLOOKUP(RV64,$AA$292:$AD$297,4,FALSE),IF(AND(RQ64>$V$295,RQ64<=$V$296),HLOOKUP(RV64,$AA$292:$AD$297,5,FALSE),IF(RQ64>$V$296,HLOOKUP(RV64,$AA$292:$AD$297,6,FALSE),"")))))+IF(SD64=$W$300,$AA$300,$AA$301))/4)) -> Enter Major/Minor Street Speeds | AAY64: =IF(OR(LEN($P$21)=0,LEN($P$23)=0),"Enter Major/Minor Street Speeds",IF(SJ64=0,,(IF(SJ64<5,VLOOKUP(SJ64,$W$276:$AA$279,5, FALSE),$AA$280)+IF(SO64<=$V$283,$AA$283,IF(AND(SO64>$V$283,SO64<=$V$284),$AA$284,IF(AND(SO64>$V$284,SO64<=$V$285),$AA$285,IF(AND(SO64>$V$285,SO64<=$V$286),$AA$286,$AA$287))))+IF(ST64<=$V$293,HLOOKUP(SY64,$AA$292:$AD$297,2,FALSE),IF(AND(ST64>$V$293,ST64<=$V$294),HLOOKUP(SY64,$AA$292:$AD$297,3,FALSE),IF(AND(ST64>$V$294,ST64<=$V$295),HLOOKUP(SY64,$AA$292:$AD$297,4,FALSE),IF(AND(ST64>$V$295,ST64<=$V$296),HLOOKUP(SY64,$AA$292:$AD$297,5,FALSE),IF(ST64>$V$296,HLOOKUP(SY64,$AA$292:$AD$297,6,FALSE),"")))))+IF(TG64=$W$300,$AA$300,$AA$301))/4)) -> Enter Major/Minor Street Speeds | ABI64: =IF(OR(LEN($P$21)=0,LEN($P$23)=0),"Enter Major/Minor Street Speeds",IF(TM64=0,,(IF(TM64<5,VLOOKUP(TM64,$W$276:$AA$279,5, FALSE),$AA$280)+IF(TR64<=$V$283,$AA$283,IF(AND(TR64>$V$283,TR64<=$V$284),$AA$284,IF(AND(TR64>$V$284,TR64<=$V$285),$AA$285,IF(AND(TR64>$V$285,TR64<=$V$286),$AA$286,$AA$287))))+IF(TW64<=$V$293,HLOOKUP(UB64,$AA$292:$AD$297,2,FALSE),IF(AND(TW64>$V$293,TW64<=$V$294),HLOOKUP(UB64,$AA$292:$AD$297,3,FALSE),IF(AND(TW64>$V$294,TW64<=$V$295),HLOOKUP(UB64,$AA$292:$AD$297,4,FALSE),IF(AND(TW64>$V$295,TW64<=$V$296),HLOOKUP(UB64,$AA$292:$AD$297,5,FALSE),IF(TW64>$V$296,HLOOKUP(UB64,$AA$292:$AD$297,6,FALSE),"")))))+IF(UJ64=$W$300,$AA$300,$AA$301))/4)) -> Enter Major/Minor Street Speeds
T66: N-W | Z66: =UP66 -> Enter Major/Minor Street Speeds | AD66: No | AI66: Yes Crossing(s) with 2 stages | AN66: =SUM('QR N-W'!DJ47:DJ52) -> 3 | AS66: =Min_St_Spd_Lmt ->  | AX66: =SUM(WBL_Master,WBT_Master,WBR_Master,WBU_Master) -> 0 | BC66: Stop/Signal Controlled | BK66: Marked | BQ66: =MAX('QR N-W'!DG59:DI59,'QR N-W'!CW53:CW55) -> 2 | BV66: =Min_St_Spd_Lmt ->  | CA66: =SUM(SBL_Master,EBT_Master,NBR_Master,WBU_Master) -> 0 | CF66: Stop/Signal Controlled | CN66: Marked | CT66: =SUM('QR N-W'!DD59:DI59) -> 3 | CY66: =Maj_St_Spd_Lmt ->  | DD66: =SUM(NBL_Master,NBT_Master,NBR_Master,NBU_Master) -> 0 | DI66: Stop/Signal Controlled | DQ66: Marked | DW66: =MAX('QR N-W'!CW56:CW58,'QR N-W'!DA46:DC46) -> 2 | EB66: =Maj_St_Spd_Lmt ->  | EG66: =SUM(WBL_Master,SBT_Master,EBR_Master,NBU_Master) -> 0 | EL66: Stop/Signal Controlled | ET66: Marked | EZ66: =SUM('QR N-W'!CW53:CW58) -> 3 | FE66: =Min_St_Spd_Lmt ->  | FJ66: =SUM(EBT_Master,EBR_Master,WBU_Master,NBU_Master,SBL_Master) -> 0 | FO66: Stop/Signal Controlled | FW66: Marked | GC66: =MAX('QR N-W'!DJ50:DJ52,'QR N-W'!CX46:CZ46) -> 2 | GH66: =Min_St_Spd_Lmt ->  | GM66: =SUM(EBU_Master,WBL_Master,WBT_Master,SBU_Master) -> 0 | GR66: Stop/Signal Controlled | GZ66: Marked | HF66: =SUM('QR N-W'!CX46:DC46) -> 3 | HK66: =Maj_St_Spd_Lmt ->  | HP66: =SUM(EBU_Master,WBL_Master,SBT_Master,SBU_Master) -> 0 | HU66: Stop/Signal Controlled | IC66: Marked | II66: =MAX('QR N-W'!DD59:DF59,'QR N-W'!DJ47:DJ49) -> 2 | IN66: =Maj_St_Spd_Lmt ->  | IS66: =SUM(WBR_Master,WBU_Master,NBL_Master,NBT_Master,NBU_Master) -> 0 | IX66: Stop/Signal Controlled | JF66: Marked | JL66: =SUM('QR N-W'!CH47:CH52) -> 3 | JQ66: =Min_St_Spd_Lmt ->  | JV66: =SUM(EBU_Master,WBL_Master,WBT_Master,SBU_Master) -> 0 | KA66: Stop/Signal Controlled | KI66: Unmarked | KO66: =MAX('QR N-W'!BY46:CA46,'QR N-W'!BU53:BU55) -> 2 | KT66: =Min_St_Spd_Lmt ->  | KY66: =SUM(EBT_Master,EBR_Master,WBU_Master,NBU_Master,SBL_Master) -> 0 | LD66: Free Flowing | LL66: Unmarked | LR66: =SUM('QR N-W'!BU50:BU55) -> 3 | LW66: =Min_St_Spd_Lmt ->  | MB66: =SUM(EBL_Master,EBT_Master,EBR_Master,EBU_Master) -> 0 | MG66: Stop/Signal Controlled | MO66: Marked | MU66: =MAX('QR N-W'!BV46:BX46,'QR N-W'!CH50:CH52) -> 2 | MZ66: =Min_St_Spd_Lmt ->  | NE66: =SUM(NBL_Master,WBT_Master,SBR_Master,EBU_Master) -> 0 | NJ66: Stop/Signal Controlled | NR66: Marked | NX66: =SUM('QR N-W'!BV46:CA46)+MAX('QR N-W'!BU50:BU52,'QR N-W'!CH47:CH49) -> 3 | OC66: =Maj_St_Spd_Lmt ->  | OH66: =SUM(EBL_Master,EBU_Master,WBL_Master,WBU_Master,NBL_Master,NBU_Master,SBL_Master,SBR_Master,SBU_Master) -> 0 | OM66: Stop/Signal Controlled | OU66: Marked | PA66: =SUM('QR N-W'!DD31:DI31) -> 3 | PF66: =Maj_St_Spd_Lmt ->  | PK66: =SUM(WBR_Master,WBU_Master,NBL_Master,NBT_Master,NBU_Master) -> 0 | PP66: Stop/Signal Controlled | PX66: Marked | QD66: =MAX('QR N-W'!CW28:CW30,'QR N-W'!DA18:DC18) -> 2 | QI66: =Maj_St_Spd_Lmt ->  | QN66: =SUM(EBU_Master,WBL_Master,SBT_Master,SBU_Master) -> 0 | QS66: Stop/Signal Controlled | RA66: Marked | RG66: =SUM('QR N-W'!CW25:CW30)+MAX('QR N-W'!DD31:DF31,'QR N-W'!CX18:CZ18) -> 3 | RL66: =Min_St_Spd_Lmt ->  | RQ66: =SUM(EBL_Master,EBU_Master,WBL_Master,WBU_Master,NBL_Master,NBU_Master,SBL_Master,SBR_Master,SBU_Master) -> 0 | RV66: Stop/Signal Controlled | SD66: Marked | SJ66: =SUM('QR N-W'!CX18:DC18) -> 3 | SO66: =Maj_St_Spd_Lmt ->  | ST66: =SUM(SBL_Master,SBT_Master,SBR_Master,SBU_Master) -> 0 | SY66: Stop/Signal Controlled | TG66: Unmarked | TM66: =MAX('QR N-W'!CW25:CW27,'QR N-W'!DG31:DI31) -> 2 | TR66: =Maj_St_Spd_Lmt ->  | TW66: =SUM(EBL_Master,NBT_Master,WBR_Master,SBU_Master) -> 0 | UB66: Free Flowing | UJ66: Unmarked | UP66: =IFERROR((((SUM(SQRT(UU66),SQRT(VE66),SQRT(VO66),SQRT(VY66),SQRT(WI66),SQRT(WS66),SQRT(XC66),SQRT(XM66),SQRT(XW66),SQRT(YG66),SQRT(YQ66),SQRT(ZA66),SQRT(ZK66),SQRT(ZU66),SQRT(AAE66),SQRT(AAO66),SQRT(AAY66),SQRT(ABI66))/COUNTIF(UU66:ABR67,">0"))^2)*(_xlfn.XLOOKUP(AD66,$W$311:$W$312,$AA$311:$AA$312,"lookup error",0,1))*(_xlfn.XLOOKUP(AI66,Multistage_Crossing,$AA$305:$AA$307,"lookup error",0,1))),"Enter Major/Minor Street Speeds") -> Enter Major/Minor Street Speeds | UU66: =IF(OR(LEN($P$21)=0,LEN($P$23)=0),"Enter Major/Minor Street Speeds",IF(AN66=0,,(IF(AN66<5,VLOOKUP(AN66,$W$276:$AA$279,5, FALSE),$AA$280)+IF(AS66<=$V$283,$AA$283,IF(AND(AS66>$V$283,AS66<=$V$284),$AA$284,IF(AND(AS66>$V$284,AS66<=$V$285),$AA$285,IF(AND(AS66>$V$285,AS66<=$V$286),$AA$286,$AA$287))))+IF(AX66<=$V$293,HLOOKUP(BC66,$AA$292:$AD$297,2,FALSE),IF(AND(AX66>$V$293,AX66<=$V$294),HLOOKUP(BC66,$AA$292:$AD$297,3,FALSE),IF(AND(AX66>$V$294,AX66<=$V$295),HLOOKUP(BC66,$AA$292:$AD$297,4,FALSE),IF(AND(AX66>$V$295,AX66<=$V$296),HLOOKUP(BC66,$AA$292:$AD$297,5,FALSE),IF(AX66>$V$296,HLOOKUP(BC66,$AA$292:$AD$297,6,FALSE),"")))))+IF(BK66=$W$300,$AA$300,$AA$301))/4)) -> Enter Major/Minor Street Speeds | VE66: =IF(OR(LEN($P$21)=0,LEN($P$23)=0),"Enter Major/Minor Street Speeds",IF(BQ66=0,,(IF(BQ66<5,VLOOKUP(BQ66,$W$276:$AA$279,5, FALSE),$AA$280)+IF(BV66<=$V$283,$AA$283,IF(AND(BV66>$V$283,BV66<=$V$284),$AA$284,IF(AND(BV66>$V$284,BV66<=$V$285),$AA$285,IF(AND(BV66>$V$285,BV66<=$V$286),$AA$286,$AA$287))))+IF(CA66<=$V$293,HLOOKUP(CF66,$AA$292:$AD$297,2,FALSE),IF(AND(CA66>$V$293,CA66<=$V$294),HLOOKUP(CF66,$AA$292:$AD$297,3,FALSE),IF(AND(CA66>$V$294,CA66<=$V$295),HLOOKUP(CF66,$AA$292:$AD$297,4,FALSE),IF(AND(CA66>$V$295,CA66<=$V$296),HLOOKUP(CF66,$AA$292:$AD$297,5,FALSE),IF(CA66>$V$296,HLOOKUP(CF66,$AA$292:$AD$297,6,FALSE),"")))))+IF(CN66=$W$300,$AA$300,$AA$301))/4)) -> Enter Major/Minor Street Speeds | VO66: =IF(OR(LEN($P$21)=0,LEN($P$23)=0),"Enter Major/Minor Street Speeds",IF(CT66=0,,(IF(CT66<5,VLOOKUP(CT66,$W$276:$AA$279,5, FALSE),$AA$280)+IF(CY66<=$V$283,$AA$283,IF(AND(CY66>$V$283,CY66<=$V$284),$AA$284,IF(AND(CY66>$V$284,CY66<=$V$285),$AA$285,IF(AND(CY66>$V$285,CY66<=$V$286),$AA$286,$AA$287))))+IF(DD66<=$V$293,HLOOKUP(DI66,$AA$292:$AD$297,2,FALSE),IF(AND(DD66>$V$293,DD66<=$V$294),HLOOKUP(DI66,$AA$292:$AD$297,3,FALSE),IF(AND(DD66>$V$294,DD66<=$V$295),HLOOKUP(DI66,$AA$292:$AD$297,4,FALSE),IF(AND(DD66>$V$295,DD66<=$V$296),HLOOKUP(DI66,$AA$292:$AD$297,5,FALSE),IF(DD66>$V$296,HLOOKUP(DI66,$AA$292:$AD$297,6,FALSE),"")))))+IF(DQ66=$W$300,$AA$300,$AA$301))/4)) -> Enter Major/Minor Street Speeds | VY66: =IF(OR(LEN($P$21)=0,LEN($P$23)=0),"Enter Major/Minor Street Speeds",IF(DW66=0,,(IF(DW66<5,VLOOKUP(DW66,$W$276:$AA$279,5, FALSE),$AA$280)+IF(EB66<=$V$283,$AA$283,IF(AND(EB66>$V$283,EB66<=$V$284),$AA$284,IF(AND(EB66>$V$284,EB66<=$V$285),$AA$285,IF(AND(EB66>$V$285,EB66<=$V$286),$AA$286,$AA$287))))+IF(EG66<=$V$293,HLOOKUP(EL66,$AA$292:$AD$297,2,FALSE),IF(AND(EG66>$V$293,EG66<=$V$294),HLOOKUP(EL66,$AA$292:$AD$297,3,FALSE),IF(AND(EG66>$V$294,EG66<=$V$295),HLOOKUP(EL66,$AA$292:$AD$297,4,FALSE),IF(AND(EG66>$V$295,EG66<=$V$296),HLOOKUP(EL66,$AA$292:$AD$297,5,FALSE),IF(EG66>$V$296,HLOOKUP(EL66,$AA$292:$AD$297,6,FALSE),"")))))+IF(ET66=$W$300,$AA$300,$AA$301))/4)) -> Enter Major/Minor Street Speeds | WI66: =IF(OR(LEN($P$21)=0,LEN($P$23)=0),"Enter Major/Minor Street Speeds",IF(EZ66=0,,(IF(EZ66<5,VLOOKUP(EZ66,$W$276:$AA$279,5, FALSE),$AA$280)+IF(FE66<=$V$283,$AA$283,IF(AND(FE66>$V$283,FE66<=$V$284),$AA$284,IF(AND(FE66>$V$284,FE66<=$V$285),$AA$285,IF(AND(FE66>$V$285,FE66<=$V$286),$AA$286,$AA$287))))+IF(FJ66<=$V$293,HLOOKUP(FO66,$AA$292:$AD$297,2,FALSE),IF(AND(FJ66>$V$293,FJ66<=$V$294),HLOOKUP(FO66,$AA$292:$AD$297,3,FALSE),IF(AND(FJ66>$V$294,FJ66<=$V$295),HLOOKUP(FO66,$AA$292:$AD$297,4,FALSE),IF(AND(FJ66>$V$295,FJ66<=$V$296),HLOOKUP(FO66,$AA$292:$AD$297,5,FALSE),IF(FJ66>$V$296,HLOOKUP(FO66,$AA$292:$AD$297,6,FALSE),"")))))+IF(FW66=$W$300,$AA$300,$AA$301))/4)) -> Enter Major/Minor Street Speeds | WS66: =IF(OR(LEN($P$21)=0,LEN($P$23)=0),"Enter Major/Minor Street Speeds",IF(GC66=0,,(IF(GC66<5,VLOOKUP(GC66,$W$276:$AA$279,5, FALSE),$AA$280)+IF(GH66<=$V$283,$AA$283,IF(AND(GH66>$V$283,GH66<=$V$284),$AA$284,IF(AND(GH66>$V$284,GH66<=$V$285),$AA$285,IF(AND(GH66>$V$285,GH66<=$V$286),$AA$286,$AA$287))))+IF(GM66<=$V$293,HLOOKUP(GR66,$AA$292:$AD$297,2,FALSE),IF(AND(GM66>$V$293,GM66<=$V$294),HLOOKUP(GR66,$AA$292:$AD$297,3,FALSE),IF(AND(GM66>$V$294,GM66<=$V$295),HLOOKUP(GR66,$AA$292:$AD$297,4,FALSE),IF(AND(GM66>$V$295,GM66<=$V$296),HLOOKUP(GR66,$AA$292:$AD$297,5,FALSE),IF(GM66>$V$296,HLOOKUP(GR66,$AA$292:$AD$297,6,FALSE),"")))))+IF(GZ66=$W$300,$AA$300,$AA$301))/4)) -> Enter Major/Minor Street Speeds | XC66: =IF(OR(LEN($P$21)=0,LEN($P$23)=0),"Enter Major/Minor Street Speeds",IF(HF66=0,,(IF(HF66<5,VLOOKUP(HF66,$W$276:$AA$279,5, FALSE),$AA$280)+IF(HK66<=$V$283,$AA$283,IF(AND(HK66>$V$283,HK66<=$V$284),$AA$284,IF(AND(HK66>$V$284,HK66<=$V$285),$AA$285,IF(AND(HK66>$V$285,HK66<=$V$286),$AA$286,$AA$287))))+IF(HP66<=$V$293,HLOOKUP(HU66,$AA$292:$AD$297,2,FALSE),IF(AND(HP66>$V$293,HP66<=$V$294),HLOOKUP(GR66,$AA$292:$AD$297,3,FALSE),IF(AND(HP66>$V$294,HP66<=$V$295),HLOOKUP(GR66,$AA$292:$AD$297,4,FALSE),IF(AND(HP66>$V$295,HP66<=$V$296),HLOOKUP(GR66,$AA$292:$AD$297,5,FALSE),IF(HP66>$V$296,HLOOKUP(GR66,$AA$292:$AD$297,6,FALSE),"")))))+IF(IC66=$W$300,$AA$300,$AA$301))/4)) -> Enter Major/Minor Street Speeds | XM66: =IF(OR(LEN($P$21)=0,LEN($P$23)=0),"Enter Major/Minor Street Speeds",IF(II66=0,,(IF(II66<5,VLOOKUP(II66,$W$276:$AA$279,5, FALSE),$AA$280)+IF(IN66<=$V$283,$AA$283,IF(AND(IN66>$V$283,IN66<=$V$284),$AA$284,IF(AND(IN66>$V$284,IN66<=$V$285),$AA$285,IF(AND(IN66>$V$285,IN66<=$V$286),$AA$286,$AA$287))))+IF(IS66<=$V$293,HLOOKUP(IX66,$AA$292:$AD$297,2,FALSE),IF(AND(IS66>$V$293,IS66<=$V$294),HLOOKUP(IX66,$AA$292:$AD$297,3,FALSE),IF(AND(IS66>$V$294,IS66<=$V$295),HLOOKUP(IX66,$AA$292:$AD$297,4,FALSE),IF(AND(IS66>$V$295,IS66<=$V$296),HLOOKUP(IX66,$AA$292:$AD$297,5,FALSE),IF(IS66>$V$296,HLOOKUP(IX66,$AA$292:$AD$297,6,FALSE),"")))))+IF(JF66=$W$300,$AA$300,$AA$301))/4)) -> Enter Major/Minor Street Speeds | XW66: =IF(OR(LEN($P$21)=0,LEN($P$23)=0),"Enter Major/Minor Street Speeds",IF(JL66=0,,(IF(JL66<5,VLOOKUP(JL66,$W$276:$AA$279,5, FALSE),$AA$280)+IF(JQ66<=$V$283,$AA$283,IF(AND(JQ66>$V$283,JQ66<=$V$284),$AA$284,IF(AND(JQ66>$V$284,JQ66<=$V$285),$AA$285,IF(AND(JQ66>$V$285,JQ66<=$V$286),$AA$286,$AA$287))))+IF(JV66<=$V$293,HLOOKUP(KA66,$AA$292:$AD$297,2,FALSE),IF(AND(JV66>$V$293,JV66<=$V$294),HLOOKUP(KA66,$AA$292:$AD$297,3,FALSE),IF(AND(JV66>$V$294,JV66<=$V$295),HLOOKUP(KA66,$AA$292:$AD$297,4,FALSE),IF(AND(JV66>$V$295,JV66<=$V$296),HLOOKUP(KA66,$AA$292:$AD$297,5,FALSE),IF(JV66>$V$296,HLOOKUP(KA66,$AA$292:$AD$297,6,FALSE),"")))))+IF(KI66=$W$300,$AA$300,$AA$301))/4)) -> Enter Major/Minor Street Speeds | YG66: =IF(OR(LEN($P$21)=0,LEN($P$23)=0),"Enter Major/Minor Street Speeds",IF(KO66=0,,(IF(KO66<5,VLOOKUP(KO66,$W$276:$AA$279,5, FALSE),$AA$280)+IF(KT66<=$V$283,$AA$283,IF(AND(KT66>$V$283,KT66<=$V$284),$AA$284,IF(AND(KT66>$V$284,KT66<=$V$285),$AA$285,IF(AND(KT66>$V$285,KT66<=$V$286),$AA$286,$AA$287))))+IF(KY66<=$V$293,HLOOKUP(LD66,$AA$292:$AD$297,2,FALSE),IF(AND(KY66>$V$293,KY66<=$V$294),HLOOKUP(LD66,$AA$292:$AD$297,3,FALSE),IF(AND(KY66>$V$294,KY66<=$V$295),HLOOKUP(LD66,$AA$292:$AD$297,4,FALSE),IF(AND(KY66>$V$295,KY66<=$V$296),HLOOKUP(LD66,$AA$292:$AD$297,5,FALSE),IF(KY66>$V$296,HLOOKUP(LD66,$AA$292:$AD$297,6,FALSE),"")))))+IF(LL66=$W$300,$AA$300,$AA$301))/4)) -> Enter Major/Minor Street Speeds | YQ66: =IF(OR(LEN($P$21)=0,LEN($P$23)=0),"Enter Major/Minor Street Speeds",IF(LR66=0,,(IF(LR66<5,VLOOKUP(LR66,$W$276:$AA$279,5, FALSE),$AA$280)+IF(LW66<=$V$283,$AA$283,IF(AND(LW66>$V$283,LW66<=$V$284),$AA$284,IF(AND(LW66>$V$284,LW66<=$V$285),$AA$285,IF(AND(LW66>$V$285,LW66<=$V$286),$AA$286,$AA$287))))+IF(MB66<=$V$293,HLOOKUP(MG66,$AA$292:$AD$297,2,FALSE),IF(AND(MB66>$V$293,MB66<=$V$294),HLOOKUP(MG66,$AA$292:$AD$297,3,FALSE),IF(AND(MB66>$V$294,MB66<=$V$295),HLOOKUP(MG66,$AA$292:$AD$297,4,FALSE),IF(AND(MB66>$V$295,MB66<=$V$296),HLOOKUP(MG66,$AA$292:$AD$297,5,FALSE),IF(MB66>$V$296,HLOOKUP(MG66,$AA$292:$AD$297,6,FALSE),"")))))+IF(MO66=$W$300,$AA$300,$AA$301))/4)) -> Enter Major/Minor Street Speeds | ZA66: =IF(OR(LEN($P$21)=0,LEN($P$23)=0),"Enter Major/Minor Street Speeds",IF(MU66=0,,(IF(MU66<5,VLOOKUP(MU66,$W$276:$AA$279,5, FALSE),$AA$280)+IF(MZ66<=$V$283,$AA$283,IF(AND(MZ66>$V$283,MZ66<=$V$284),$AA$284,IF(AND(MZ66>$V$284,MZ66<=$V$285),$AA$285,IF(AND(MZ66>$V$285,MZ66<=$V$286),$AA$286,$AA$287))))+IF(NE66<=$V$293,HLOOKUP(NJ66,$AA$292:$AD$297,2,FALSE),IF(AND(NE66>$V$293,NE66<=$V$294),HLOOKUP(NJ66,$AA$292:$AD$297,3,FALSE),IF(AND(NE66>$V$294,NE66<=$V$295),HLOOKUP(NJ66,$AA$292:$AD$297,4,FALSE),IF(AND(NE66>$V$295,NE66<=$V$296),HLOOKUP(NJ66,$AA$292:$AD$297,5,FALSE),IF(NE66>$V$296,HLOOKUP(NJ66,$AA$292:$AD$297,6,FALSE),"")))))+IF(NR66=$W$300,$AA$300,$AA$301))/4)) -> Enter Major/Minor Street Speeds | ZK66: =IF(OR(LEN($P$21)=0,LEN($P$23)=0),"Enter Major/Minor Street Speeds",IF(NX66=0,,(IF(NX66<5,VLOOKUP(NX66,$W$276:$AA$279,5, FALSE),$AA$280)+IF(OC66<=$V$283,$AA$283,IF(AND(OC66>$V$283,OC66<=$V$284),$AA$284,IF(AND(OC66>$V$284,OC66<=$V$285),$AA$285,IF(AND(OC66>$V$285,OC66<=$V$286),$AA$286,$AA$287))))+IF(OH66<=$V$293,HLOOKUP(OM66,$AA$292:$AD$297,2,FALSE),IF(AND(OH66>$V$293,OH66<=$V$294),HLOOKUP(OM66,$AA$292:$AD$297,3,FALSE),IF(AND(OH66>$V$294,OH66<=$V$295),HLOOKUP(OM66,$AA$292:$AD$297,4,FALSE),IF(AND(OH66>$V$295,OH66<=$V$296),HLOOKUP(OM66,$AA$292:$AD$297,5,FALSE),IF(OH66>$V$296,HLOOKUP(OM66,$AA$292:$AD$297,6,FALSE),"")))))+IF(OU66=$W$300,$AA$300,$AA$301))/4)) -> Enter Major/Minor Street Speeds | ZU66: =IF(OR(LEN($P$21)=0,LEN($P$23)=0),"Enter Major/Minor Street Speeds",IF(PA66=0,,(IF(PA66<5,VLOOKUP(PA66,$W$276:$AA$279,5, FALSE),$AA$280)+IF(PF66<=$V$283,$AA$283,IF(AND(PF66>$V$283,PF66<=$V$284),$AA$284,IF(AND(PF66>$V$284,PF66<=$V$285),$AA$285,IF(AND(PF66>$V$285,PF66<=$V$286),$AA$286,$AA$287))))+IF(PK66<=$V$293,HLOOKUP(PP66,$AA$292:$AD$297,2,FALSE),IF(AND(PK66>$V$293,PK66<=$V$294),HLOOKUP(PP66,$AA$292:$AD$297,3,FALSE),IF(AND(PK66>$V$294,PK66<=$V$295),HLOOKUP(PP66,$AA$292:$AD$297,4,FALSE),IF(AND(PK66>$V$295,PK66<=$V$296),HLOOKUP(PP66,$AA$292:$AD$297,5,FALSE),IF(PK66>$V$296,HLOOKUP(PP66,$AA$292:$AD$297,6,FALSE),"")))))+IF(PX66=$W$300,$AA$300,$AA$301))/4)) -> Enter Major/Minor Street Speeds | AAE66: =IF(OR(LEN($P$21)=0,LEN($P$23)=0),"Enter Major/Minor Street Speeds",IF(QD66=0,,(IF(QD66<5,VLOOKUP(QD66,$W$276:$AA$279,5, FALSE),$AA$280)+IF(QI66<=$V$283,$AA$283,IF(AND(QI66>$V$283,QI66<=$V$284),$AA$284,IF(AND(QI66>$V$284,QI66<=$V$285),$AA$285,IF(AND(QI66>$V$285,QI66<=$V$286),$AA$286,$AA$287))))+IF(QN66<=$V$293,HLOOKUP(QS66,$AA$292:$AD$297,2,FALSE),IF(AND(QN66>$V$293,QN66<=$V$294),HLOOKUP(QS66,$AA$292:$AD$297,3,FALSE),IF(AND(QN66>$V$294,QN66<=$V$295),HLOOKUP(QS66,$AA$292:$AD$297,4,FALSE),IF(AND(QN66>$V$295,QN66<=$V$296),HLOOKUP(QS66,$AA$292:$AD$297,5,FALSE),IF(QN66>$V$296,HLOOKUP(QS66,$AA$292:$AD$297,6,FALSE),"")))))+IF(RA66=$W$300,$AA$300,$AA$301))/4)) -> Enter Major/Minor Street Speeds | AAO66: =IF(OR(LEN($P$21)=0,LEN($P$23)=0),"Enter Major/Minor Street Speeds",IF(RG66=0,,(IF(RG66<5,VLOOKUP(RG66,$W$276:$AA$279,5, FALSE),$AA$280)+IF(RL66<=$V$283,$AA$283,IF(AND(RL66>$V$283,RL66<=$V$284),$AA$284,IF(AND(RL66>$V$284,RL66<=$V$285),$AA$285,IF(AND(RL66>$V$285,RL66<=$V$286),$AA$286,$AA$287))))+IF(RQ66<=$V$293,HLOOKUP(RV66,$AA$292:$AD$297,2,FALSE),IF(AND(RQ66>$V$293,RQ66<=$V$294),HLOOKUP(RV66,$AA$292:$AD$297,3,FALSE),IF(AND(RQ66>$V$294,RQ66<=$V$295),HLOOKUP(RV66,$AA$292:$AD$297,4,FALSE),IF(AND(RQ66>$V$295,RQ66<=$V$296),HLOOKUP(RV66,$AA$292:$AD$297,5,FALSE),IF(RQ66>$V$296,HLOOKUP(RV66,$AA$292:$AD$297,6,FALSE),"")))))+IF(SD66=$W$300,$AA$300,$AA$301))/4)) -> Enter Major/Minor Street Speeds | AAY66: =IF(OR(LEN($P$21)=0,LEN($P$23)=0),"Enter Major/Minor Street Speeds",IF(SJ66=0,,(IF(SJ66<5,VLOOKUP(SJ66,$W$276:$AA$279,5, FALSE),$AA$280)+IF(SO66<=$V$283,$AA$283,IF(AND(SO66>$V$283,SO66<=$V$284),$AA$284,IF(AND(SO66>$V$284,SO66<=$V$285),$AA$285,IF(AND(SO66>$V$285,SO66<=$V$286),$AA$286,$AA$287))))+IF(ST66<=$V$293,HLOOKUP(SY66,$AA$292:$AD$297,2,FALSE),IF(AND(ST66>$V$293,ST66<=$V$294),HLOOKUP(SY66,$AA$292:$AD$297,3,FALSE),IF(AND(ST66>$V$294,ST66<=$V$295),HLOOKUP(SY66,$AA$292:$AD$297,4,FALSE),IF(AND(ST66>$V$295,ST66<=$V$296),HLOOKUP(SY66,$AA$292:$AD$297,5,FALSE),IF(ST66>$V$296,HLOOKUP(SY66,$AA$292:$AD$297,6,FALSE),"")))))+IF(TG66=$W$300,$AA$300,$AA$301))/4)) -> Enter Major/Minor Street Speeds | ABI66: =IF(OR(LEN($P$21)=0,LEN($P$23)=0),"Enter Major/Minor Street Speeds",IF(TM66=0,,(IF(TM66<5,VLOOKUP(TM66,$W$276:$AA$279,5, FALSE),$AA$280)+IF(TR66<=$V$283,$AA$283,IF(AND(TR66>$V$283,TR66<=$V$284),$AA$284,IF(AND(TR66>$V$284,TR66<=$V$285),$AA$285,IF(AND(TR66>$V$285,TR66<=$V$286),$AA$286,$AA$287))))+IF(TW66<=$V$293,HLOOKUP(UB66,$AA$292:$AD$297,2,FALSE),IF(AND(TW66>$V$293,TW66<=$V$294),HLOOKUP(UB66,$AA$292:$AD$297,3,FALSE),IF(AND(TW66>$V$294,TW66<=$V$295),HLOOKUP(UB66,$AA$292:$AD$297,4,FALSE),IF(AND(TW66>$V$295,TW66<=$V$296),HLOOKUP(UB66,$AA$292:$AD$297,5,FALSE),IF(TW66>$V$296,HLOOKUP(UB66,$AA$292:$AD$297,6,FALSE),"")))))+IF(UJ66=$W$300,$AA$300,$AA$301))/4)) -> Enter Major/Minor Street Speeds
A68: Partial Displaced Left Turn | T68: N-S | Z68: =UP68 -> Enter Major/Minor Street Speeds | AD68: Yes | AI68: Yes Crossing(s) with 3+ stages | AN68: =SUM('P DLT N-S'!CI36:CI44)+MAX('P DLT N-S'!CV36:CV38) -> 6 | AS68: =Min_St_Spd_Lmt ->  | AX68: =SUM(EBL_Master,EBT_Master,WBT_Master) -> 0 | BC68: Stop/Signal Controlled | BK68: Marked | BQ68: =SUM('P DLT N-S'!CJ18:CL18) -> 1 | BV68: =Maj_St_Spd_Lmt ->  | CA68: =SUM(SBR_Master) -> 0 | CF68: Free Flowing | CN68: Marked | CT68: =SUM('P DLT N-S'!CM18:CO18) -> 2 | CY68: =Maj_St_Spd_Lmt ->  | DD68: =SUM(SBT_Master) -> 0 | DI68: Stop/Signal Controlled | DQ68: Marked | DW68: =MAX('P DLT N-S'!CI36:CI38,'P DLT N-S'!CP59:CR59) -> 2 | EB68: =Maj_St_Spd_Lmt ->  | EG68: =SUM(EBL_Master,NBT_Master) -> 0 | EL68: Stop/Signal Controlled | ET68: Marked | EZ68: =SUM('P DLT N-S'!CP18:CR18) -> 1 | FE68: =Maj_St_Spd_Lmt ->  | FJ68: =SUM(SBL_Master) -> 0 | FO68: Stop/Signal Controlled | FW68: Marked | GC68: =SUM('P DLT N-S'!CV33:CV35) -> 1 | GH68: =Min_St_Spd_Lmt ->  | GM68: =SUM(WBR_Master) -> 0 | GR68: Free Flowing | GZ68: Marked | HF68: =SUM('P DLT N-S'!CV36:CV41)+MAX('P DLT N-S'!CI39:CI41) -> 5 | HK68: =Min_St_Spd_Lmt ->  | HP68: =SUM(WBL_Master,WBT_Master,EBT_Master) -> 0 | HU68: Stop/Signal Controlled | IC68: Marked | II68: =SUM('P DLT N-S'!CS59:CU59) -> 1 | IN68: =Maj_St_Spd_Lmt ->  | IS68: =SUM(NBR_Master) -> 0 | IX68: Free Flowing | JF68: Marked | JL68: =SUM('P DLT N-S'!CP59:CR59) -> 2 | JQ68: =Maj_St_Spd_Lmt ->  | JV68: =SUM(NBT_Master) -> 0 | KA68: Stop/Signal Controlled | KI68: Marked | KO68: =MAX('P DLT N-S'!CV39:CV41,'P DLT N-S'!CM18:CO18) -> 2 | KT68: =Maj_St_Spd_Lmt ->  | KY68: =SUM(WBL_Master,SBT_Master) -> 0 | LD68: Stop/Signal Controlled | LL68: Marked | LR68: =SUM('P DLT N-S'!CM59:CO59) -> 1 | LW68: =Maj_St_Spd_Lmt ->  | MB68: =SUM(NBL_Master) -> 0 | MG68: Stop/Signal Controlled | MO68: Marked | MU68: =SUM('P DLT N-S'!CI42:CI44) -> 1 | MZ68: =Min_St_Spd_Lmt ->  | NE68: =SUM(EBR_Master) -> 0 | NJ68: Free Flowing | NR68: Marked | UP68: =IFERROR((((SUM(SQRT(UU68),SQRT(VE68),SQRT(VO68),SQRT(VY68),SQRT(WI68),SQRT(WS68),SQRT(XC68),SQRT(XM68),SQRT(XW68),SQRT(YG68),SQRT(YQ68),SQRT(ZA68),SQRT(ZK68),SQRT(ZU68),SQRT(AAE68),SQRT(AAO68),SQRT(AAY68),SQRT(ABI68))/COUNTIF(UU68:ABR69,">0"))^2)*(_xlfn.XLOOKUP(AD68,$W$311:$W$312,$AA$311:$AA$312,"lookup error",0,1))*(_xlfn.XLOOKUP(AI68,Multistage_Crossing,$AA$305:$AA$307,"lookup error",0,1))),"Enter Major/Minor Street Speeds") -> Enter Major/Minor Street Speeds | UU68: =IF(OR(LEN($P$21)=0,LEN($P$23)=0),"Enter Major/Minor Street Speeds",IF(AN68=0,,(IF(AN68<5,VLOOKUP(AN68,$W$276:$AA$279,5, FALSE),$AA$280)+IF(AS68<=$V$283,$AA$283,IF(AND(AS68>$V$283,AS68<=$V$284),$AA$284,IF(AND(AS68>$V$284,AS68<=$V$285),$AA$285,IF(AND(AS68>$V$285,AS68<=$V$286),$AA$286,$AA$287))))+IF(AX68<=$V$293,HLOOKUP(BC68,$AA$292:$AD$297,2,FALSE),IF(AND(AX68>$V$293,AX68<=$V$294),HLOOKUP(BC68,$AA$292:$AD$297,3,FALSE),IF(AND(AX68>$V$294,AX68<=$V$295),HLOOKUP(BC68,$AA$292:$AD$297,4,FALSE),IF(AND(AX68>$V$295,AX68<=$V$296),HLOOKUP(BC68,$AA$292:$AD$297,5,FALSE),IF(AX68>$V$296,HLOOKUP(BC68,$AA$292:$AD$297,6,FALSE),"")))))+IF(BK68=$W$300,$AA$300,$AA$301))/4)) -> Enter Major/Minor Street Speeds | VE68: =IF(OR(LEN($P$21)=0,LEN($P$23)=0),"Enter Major/Minor Street Speeds",IF(BQ68=0,,(IF(BQ68<5,VLOOKUP(BQ68,$W$276:$AA$279,5, FALSE),$AA$280)+IF(BV68<=$V$283,$AA$283,IF(AND(BV68>$V$283,BV68<=$V$284),$AA$284,IF(AND(BV68>$V$284,BV68<=$V$285),$AA$285,IF(AND(BV68>$V$285,BV68<=$V$286),$AA$286,$AA$287))))+IF(CA68<=$V$293,HLOOKUP(CF68,$AA$292:$AD$297,2,FALSE),IF(AND(CA68>$V$293,CA68<=$V$294),HLOOKUP(CF68,$AA$292:$AD$297,3,FALSE),IF(AND(CA68>$V$294,CA68<=$V$295),HLOOKUP(CF68,$AA$292:$AD$297,4,FALSE),IF(AND(CA68>$V$295,CA68<=$V$296),HLOOKUP(CF68,$AA$292:$AD$297,5,FALSE),IF(CA68>$V$296,HLOOKUP(CF68,$AA$292:$AD$297,6,FALSE),"")))))+IF(CN68=$W$300,$AA$300,$AA$301))/4)) -> Enter Major/Minor Street Speeds | VO68: =IF(OR(LEN($P$21)=0,LEN($P$23)=0),"Enter Major/Minor Street Speeds",IF(CT68=0,,(IF(CT68<5,VLOOKUP(CT68,$W$276:$AA$279,5, FALSE),$AA$280)+IF(CY68<=$V$283,$AA$283,IF(AND(CY68>$V$283,CY68<=$V$284),$AA$284,IF(AND(CY68>$V$284,CY68<=$V$285),$AA$285,IF(AND(CY68>$V$285,CY68<=$V$286),$AA$286,$AA$287))))+IF(DD68<=$V$293,HLOOKUP(DI68,$AA$292:$AD$297,2,FALSE),IF(AND(DD68>$V$293,DD68<=$V$294),HLOOKUP(DI68,$AA$292:$AD$297,3,FALSE),IF(AND(DD68>$V$294,DD68<=$V$295),HLOOKUP(DI68,$AA$292:$AD$297,4,FALSE),IF(AND(DD68>$V$295,DD68<=$V$296),HLOOKUP(DI68,$AA$292:$AD$297,5,FALSE),IF(DD68>$V$296,HLOOKUP(DI68,$AA$292:$AD$297,6,FALSE),"")))))+IF(DQ68=$W$300,$AA$300,$AA$301))/4)) -> Enter Major/Minor Street Speeds | VY68: =IF(OR(LEN($P$21)=0,LEN($P$23)=0),"Enter Major/Minor Street Speeds",IF(DW68=0,,(IF(DW68<5,VLOOKUP(DW68,$W$276:$AA$279,5, FALSE),$AA$280)+IF(EB68<=$V$283,$AA$283,IF(AND(EB68>$V$283,EB68<=$V$284),$AA$284,IF(AND(EB68>$V$284,EB68<=$V$285),$AA$285,IF(AND(EB68>$V$285,EB68<=$V$286),$AA$286,$AA$287))))+IF(EG68<=$V$293,HLOOKUP(EL68,$AA$292:$AD$297,2,FALSE),IF(AND(EG68>$V$293,EG68<=$V$294),HLOOKUP(EL68,$AA$292:$AD$297,3,FALSE),IF(AND(EG68>$V$294,EG68<=$V$295),HLOOKUP(EL68,$AA$292:$AD$297,4,FALSE),IF(AND(EG68>$V$295,EG68<=$V$296),HLOOKUP(EL68,$AA$292:$AD$297,5,FALSE),IF(EG68>$V$296,HLOOKUP(EL68,$AA$292:$AD$297,6,FALSE),"")))))+IF(ET68=$W$300,$AA$300,$AA$301))/4)) -> Enter Major/Minor Street Speeds | WI68: =IF(OR(LEN($P$21)=0,LEN($P$23)=0),"Enter Major/Minor Street Speeds",IF(EZ68=0,,(IF(EZ68<5,VLOOKUP(EZ68,$W$276:$AA$279,5, FALSE),$AA$280)+IF(FE68<=$V$283,$AA$283,IF(AND(FE68>$V$283,FE68<=$V$284),$AA$284,IF(AND(FE68>$V$284,FE68<=$V$285),$AA$285,IF(AND(FE68>$V$285,FE68<=$V$286),$AA$286,$AA$287))))+IF(FJ68<=$V$293,HLOOKUP(FO68,$AA$292:$AD$297,2,FALSE),IF(AND(FJ68>$V$293,FJ68<=$V$294),HLOOKUP(FO68,$AA$292:$AD$297,3,FALSE),IF(AND(FJ68>$V$294,FJ68<=$V$295),HLOOKUP(FO68,$AA$292:$AD$297,4,FALSE),IF(AND(FJ68>$V$295,FJ68<=$V$296),HLOOKUP(FO68,$AA$292:$AD$297,5,FALSE),IF(FJ68>$V$296,HLOOKUP(FO68,$AA$292:$AD$297,6,FALSE),"")))))+IF(FW68=$W$300,$AA$300,$AA$301))/4)) -> Enter Major/Minor Street Speeds | WS68: =IF(OR(LEN($P$21)=0,LEN($P$23)=0),"Enter Major/Minor Street Speeds",IF(GC68=0,,(IF(GC68<5,VLOOKUP(GC68,$W$276:$AA$279,5, FALSE),$AA$280)+IF(GH68<=$V$283,$AA$283,IF(AND(GH68>$V$283,GH68<=$V$284),$AA$284,IF(AND(GH68>$V$284,GH68<=$V$285),$AA$285,IF(AND(GH68>$V$285,GH68<=$V$286),$AA$286,$AA$287))))+IF(GM68<=$V$293,HLOOKUP(GR68,$AA$292:$AD$297,2,FALSE),IF(AND(GM68>$V$293,GM68<=$V$294),HLOOKUP(GR68,$AA$292:$AD$297,3,FALSE),IF(AND(GM68>$V$294,GM68<=$V$295),HLOOKUP(GR68,$AA$292:$AD$297,4,FALSE),IF(AND(GM68>$V$295,GM68<=$V$296),HLOOKUP(GR68,$AA$292:$AD$297,5,FALSE),IF(GM68>$V$296,HLOOKUP(GR68,$AA$292:$AD$297,6,FALSE),"")))))+IF(GZ68=$W$300,$AA$300,$AA$301))/4)) -> Enter Major/Minor Street Speeds | XC68: =IF(OR(LEN($P$21)=0,LEN($P$23)=0),"Enter Major/Minor Street Speeds",IF(HF68=0,,(IF(HF68<5,VLOOKUP(HF68,$W$276:$AA$279,5, FALSE),$AA$280)+IF(HK68<=$V$283,$AA$283,IF(AND(HK68>$V$283,HK68<=$V$284),$AA$284,IF(AND(HK68>$V$284,HK68<=$V$285),$AA$285,IF(AND(HK68>$V$285,HK68<=$V$286),$AA$286,$AA$287))))+IF(HP68<=$V$293,HLOOKUP(HU68,$AA$292:$AD$297,2,FALSE),IF(AND(HP68>$V$293,HP68<=$V$294),HLOOKUP(GR68,$AA$292:$AD$297,3,FALSE),IF(AND(HP68>$V$294,HP68<=$V$295),HLOOKUP(GR68,$AA$292:$AD$297,4,FALSE),IF(AND(HP68>$V$295,HP68<=$V$296),HLOOKUP(GR68,$AA$292:$AD$297,5,FALSE),IF(HP68>$V$296,HLOOKUP(GR68,$AA$292:$AD$297,6,FALSE),"")))))+IF(IC68=$W$300,$AA$300,$AA$301))/4)) -> Enter Major/Minor Street Speeds | XM68: =IF(OR(LEN($P$21)=0,LEN($P$23)=0),"Enter Major/Minor Street Speeds",IF(II68=0,,(IF(II68<5,VLOOKUP(II68,$W$276:$AA$279,5, FALSE),$AA$280)+IF(IN68<=$V$283,$AA$283,IF(AND(IN68>$V$283,IN68<=$V$284),$AA$284,IF(AND(IN68>$V$284,IN68<=$V$285),$AA$285,IF(AND(IN68>$V$285,IN68<=$V$286),$AA$286,$AA$287))))+IF(IS68<=$V$293,HLOOKUP(IX68,$AA$292:$AD$297,2,FALSE),IF(AND(IS68>$V$293,IS68<=$V$294),HLOOKUP(IX68,$AA$292:$AD$297,3,FALSE),IF(AND(IS68>$V$294,IS68<=$V$295),HLOOKUP(IX68,$AA$292:$AD$297,4,FALSE),IF(AND(IS68>$V$295,IS68<=$V$296),HLOOKUP(IX68,$AA$292:$AD$297,5,FALSE),IF(IS68>$V$296,HLOOKUP(IX68,$AA$292:$AD$297,6,FALSE),"")))))+IF(JF68=$W$300,$AA$300,$AA$301))/4)) -> Enter Major/Minor Street Speeds | XW68: =IF(OR(LEN($P$21)=0,LEN($P$23)=0),"Enter Major/Minor Street Speeds",IF(JL68=0,,(IF(JL68<5,VLOOKUP(JL68,$W$276:$AA$279,5, FALSE),$AA$280)+IF(JQ68<=$V$283,$AA$283,IF(AND(JQ68>$V$283,JQ68<=$V$284),$AA$284,IF(AND(JQ68>$V$284,JQ68<=$V$285),$AA$285,IF(AND(JQ68>$V$285,JQ68<=$V$286),$AA$286,$AA$287))))+IF(JV68<=$V$293,HLOOKUP(KA68,$AA$292:$AD$297,2,FALSE),IF(AND(JV68>$V$293,JV68<=$V$294),HLOOKUP(KA68,$AA$292:$AD$297,3,FALSE),IF(AND(JV68>$V$294,JV68<=$V$295),HLOOKUP(KA68,$AA$292:$AD$297,4,FALSE),IF(AND(JV68>$V$295,JV68<=$V$296),HLOOKUP(KA68,$AA$292:$AD$297,5,FALSE),IF(JV68>$V$296,HLOOKUP(KA68,$AA$292:$AD$297,6,FALSE),"")))))+IF(KI68=$W$300,$AA$300,$AA$301))/4)) -> Enter Major/Minor Street Speeds | YG68: =IF(OR(LEN($P$21)=0,LEN($P$23)=0),"Enter Major/Minor Street Speeds",IF(KO68=0,,(IF(KO68<5,VLOOKUP(KO68,$W$276:$AA$279,5, FALSE),$AA$280)+IF(KT68<=$V$283,$AA$283,IF(AND(KT68>$V$283,KT68<=$V$284),$AA$284,IF(AND(KT68>$V$284,KT68<=$V$285),$AA$285,IF(AND(KT68>$V$285,KT68<=$V$286),$AA$286,$AA$287))))+IF(KY68<=$V$293,HLOOKUP(LD68,$AA$292:$AD$297,2,FALSE),IF(AND(KY68>$V$293,KY68<=$V$294),HLOOKUP(LD68,$AA$292:$AD$297,3,FALSE),IF(AND(KY68>$V$294,KY68<=$V$295),HLOOKUP(LD68,$AA$292:$AD$297,4,FALSE),IF(AND(KY68>$V$295,KY68<=$V$296),HLOOKUP(LD68,$AA$292:$AD$297,5,FALSE),IF(KY68>$V$296,HLOOKUP(LD68,$AA$292:$AD$297,6,FALSE),"")))))+IF(LL68=$W$300,$AA$300,$AA$301))/4)) -> Enter Major/Minor Street Speeds | YQ68: =IF(OR(LEN($P$21)=0,LEN($P$23)=0),"Enter Major/Minor Street Speeds",IF(LR68=0,,(IF(LR68<5,VLOOKUP(LR68,$W$276:$AA$279,5, FALSE),$AA$280)+IF(LW68<=$V$283,$AA$283,IF(AND(LW68>$V$283,LW68<=$V$284),$AA$284,IF(AND(LW68>$V$284,LW68<=$V$285),$AA$285,IF(AND(LW68>$V$285,LW68<=$V$286),$AA$286,$AA$287))))+IF(MB68<=$V$293,HLOOKUP(MG68,$AA$292:$AD$297,2,FALSE),IF(AND(MB68>$V$293,MB68<=$V$294),HLOOKUP(MG68,$AA$292:$AD$297,3,FALSE),IF(AND(MB68>$V$294,MB68<=$V$295),HLOOKUP(MG68,$AA$292:$AD$297,4,FALSE),IF(AND(MB68>$V$295,MB68<=$V$296),HLOOKUP(MG68,$AA$292:$AD$297,5,FALSE),IF(MB68>$V$296,HLOOKUP(MG68,$AA$292:$AD$297,6,FALSE),"")))))+IF(MO68=$W$300,$AA$300,$AA$301))/4)) -> Enter Major/Minor Street Speeds | ZA68: =IF(OR(LEN($P$21)=0,LEN($P$23)=0),"Enter Major/Minor Street Speeds",IF(MU68=0,,(IF(MU68<5,VLOOKUP(MU68,$W$276:$AA$279,5, FALSE),$AA$280)+IF(MZ68<=$V$283,$AA$283,IF(AND(MZ68>$V$283,MZ68<=$V$284),$AA$284,IF(AND(MZ68>$V$284,MZ68<=$V$285),$AA$285,IF(AND(MZ68>$V$285,MZ68<=$V$286),$AA$286,$AA$287))))+IF(NE68<=$V$293,HLOOKUP(NJ68,$AA$292:$AD$297,2,FALSE),IF(AND(NE68>$V$293,NE68<=$V$294),HLOOKUP(NJ68,$AA$292:$AD$297,3,FALSE),IF(AND(NE68>$V$294,NE68<=$V$295),HLOOKUP(NJ68,$AA$292:$AD$297,4,FALSE),IF(AND(NE68>$V$295,NE68<=$V$296),HLOOKUP(NJ68,$AA$292:$AD$297,5,FALSE),IF(NE68>$V$296,HLOOKUP(NJ68,$AA$292:$AD$297,6,FALSE),"")))))+IF(NR68=$W$300,$AA$300,$AA$301))/4)) -> Enter Major/Minor Street Speeds
